Workbook

Sheet INDICE
F1: MARROCOS
F2: Trocas comerciais com Portugal (PT) 2019-2023 Setores agrícola e agroalimentar, do mar e das florestas
C3: Fonte
D4: Estatísticas do Comércio Internacional | F4: Marrocos - Síntese
D5: dados: 2022 definitivos | F5: 1. Evolução da balança comercial
F6: 2. Ranking dos parceiros comerciais de Portugal por país
C7: Data | D7: 2024-03-26T15:06:06.970 | F7: 2A Parceiros comerciais de Portugal - UE vs. Países Terceiros
F8: 3. Principais produtos transacionados (NC a 2 e 4 dígitos)
F9: 3A Principais produtos transacionados (sem mar nem florestas)
F10: 4A Evolução da balança comercial por produto
F11: 5.2. Trocas comerciais por produto (NC 2 dígitos)

Sheet Sintese
A1: Marrocos - Síntese (2019-2023)
A3: • As trocas comerciais de bens transacionáveis (excluindo serviços) entre Portugal e Marrocos representam um total de 781 milhões de € (M€) em exportações e 292 M€ em importações, na média do período 2019-2023, correspondendo a um saldo positivo da balança comercial de cerca de 488,9 M€.
A4: • No que respeita aos produtos dos setores agrícola e agroalimentar, mar e florestas, Portugal exportou para Marrocos 118,6 M€ em média anual, no mesmo período (este país ocupa assim a 17ª posição em relação ao total dos países), enquanto as importações totalizaram 42,8 M€ (33ª posição), com um saldo positivo de 75,8 M€. Estes setores representam perto de 15,2% do total de exportações de bens transacionáveis e 14,7% das correspondentes importações.
A5: • Se nos referirmos apenas ao setor agrícola e agroalimentar, as exportações representam, em média, 49,8 M€ (20ª posição) e as importações 11,3 milhões (49ª posição), ou seja, Portugal tem um saldo positivo de 38,4 M€. Estes valores representam, respetivamente, cerca de 41,9% das exportações do setor agroflorestal e mar e 26,4% das importações.
A6: • As principais exportações agrícolas e agroalimentares (NC 4 dígitos) neste período são Óleo de soja e suas frações (49%), Manteiga (10%) e Produtos de padaria, pastelaria, etc. (6%). As importações agrícolas e agroalimentares mais relevantes referem-se a Tomates, frescos ou refrigerados (30%), Melaços resultantes da extração ou refinação do açúcar (15%) e Frutas não cozidas ou cozidas em água ou vapor, congeladas (14%). Se considerarmos também os produtos do mar e da floresta, merecem particular destaque, em termos de exportações, Papel e cartão p/ escrita, etc. (25%), Óleo de soja e suas frações (20%) e Pastas químicas de madeira, à soda ou ao sulfato (6%). Nas importações destes setores, destacam-se Moluscos (20%), Obras de cortiça natural (16%) e Cortiça natural em bruto (13%).
A9: Saldo da Balança Comercial | B9: 2019 | C9: 2020 | D9: 2021 | E9: 2022 | F9: 2023 | G9: média 2019-2023 | J9: Posição entre os parceiros comerciais de Portugal (milhares de euros)
A10: Total de Bens Transacionáveis* | B10: 515809.1 | C10: 3112-12-22T03:54:43.200 | D10: 602074.748 | E10: 328718.726 | F10: 3419-08-11T11:03:50.400 | G10: 488932.2396 | J10: AA + M + F | K10: Posição | L10: média 2019-2023 | M10: % do total | N10: TVMA* 2019-2023 | O10: TVT* 2019-2023
A11: Agrícola e Agroalimentar (AA) | B11: 16571.995 | C11: 1958-07-25T02:49:55.200 | D11: 59932.584 | E11: 43287.24 | F11: 2039-09-23T14:29:45.600 | G11: 38443.9082 | J11: Exportações | K11: 17ª | L11: 118641.6206 | M11: 0.008548462745 | N11: 0.1110886503 | O11: 0.5240346646
A12: Mar (M) | B12: -11344.763 | C12: -15916.656 | D12: -16207.591 | E12: -18589.589 | F12: -26760.774 | G12: -17763.8746 | J12: Importações | K12: 33ª | L12: 42820.3218 | M12: 0.002648010485 | N12: 0.1153819601 | O12: 0.5477273751
A13: Florestas (F) | B13: 48780.561 | C13: 1995-03-25T15:04:19.200 | D13: 58268.71 | E13: 76743.806 | F13: 2056-05-29T14:54:14.400 | G13: 55141.2652 | J13: AA
A14: AA + M + F | B14: 54007.793 | C14: 2010-03-21T02:09:36 | D14: 101993.703 | E14: 101441.457 | F14: 2122-11-16T10:49:26.400 | G14: 75821.2988 | J14: Exportações | K14: 20ª | L14: 49767.4468 | M14: 0.006423821708 | N14: 0.31390962 | O14: 1.980313635
J15: Importações | K15: 49ª | L15: 11323.5386 | M15: 0.001010013394 | N15: 0.2242970071 | O15: 1.750641171
A16: milhares de euros *exclui serviços | K16: *TVMA - Taxa de variação média anual; TVT - Taxa de variação total
A18: Evolução das trocas comerciais Portugal-Marrocos em milhares de euros (2019-2023)
E27: Exportações | G27: Importações | I27: Saldo
A28: Principais produtos agrícolas e agroalimentares, do mar e da floresta transacionados (NC 4 dígitos)
A47: Principais produtos agrícolas e agroalimentares transacionados (NC 4 dígitos)
A81: Fonte: GPP a partir de dados INE/Comércio Internacional (2022 definitivos) | N81: 2024-03-26T15:06:06.970

Sheet 1
A1: Evolução da balança comercial Portugal-Marrocos 2019-2023 em milhões de euros
A3: Total de Bens Transacionáveis (BT)(1) | B3: 2019 | C3: 2020 | D3: 2021 | E3: 2022 | F3: 2023 | G3: média quinquénio | H3: var. 19/20 | I3: var. 20/21 | J3: var. 21/22 | K3: var. 22/23 | L3: TVMA* 2019-2023 | M3: TVT* 2019-2023
A4: Exportações | B4: 715.683944 | C4: 626.094875 | D4: 867.932751 | E4: 676.735829 | F4: 1018.306313 | G4: 780.9507424 | H4: -0.1251796547 | I4: 0.3862639444 | J4: -0.2202900188 | K4: 0.5047323776 | L4: 0.09216760453 | M4: 0.4228435911
A5: Importações | B5: 199.874844 | C5: 183.063712 | D5: 265.858003 | E5: 348.017103 | F5: 463.278852 | G5: 292.0185028 | H5: -0.08410829329 | I5: 0.4522703604 | J5: 0.3090337664 | K5: 0.3311956453 | L5: 0.2338747715 | M5: 1.317844721
A6: Saldo (exp-imp) | B6: 515.8091 | C6: 443.031163 | D6: 602.074748 | E6: 328.718726 | F6: 555.027461 | G6: 488.9322396
A7: Cobertura (exp/imp) | B7: 3.580660426 | C7: 3.420092754 | D7: 3.264647824 | E7: 1.944547619 | F7: 2.198041867 | G7: 2.674319384
A8: Exp BT Marrocos / Exp BT Mundo | B8: 0.01194741857 | C8: 0.01164667491 | D8: 0.01364276753 | E8: 0.008638650175 | F8: 0.01312749785 | G8: 0.01171939354 | L8: Exportações
A9: Imp BT Marrocos / Imp BT Mundo | B9: 0.002499150046 | C9: 0.0026863627 | D9: 0.003197494947 | E9: 0.00317865055 | F9: 0.004413894137 | G9: 0.003275854916 | L9: Importações
A10: Exp BT Marrocos / Exp TE Mundo | B10: 0.007673165685 | C10: 0.008428194033 | D10: 0.009703022158 | E10: 0.005630150065 | F10: 0.008079168482 | G10: 0.007759134517
A11: Imp BT Marrocos / Imp TE Mundo | B11: 0.002165449742 | C11: 0.00232950615 | D11: 0.002782461097 | E11: 0.002761334826 | F11: 0.003743697894 | G11: 0.002828455249
A12: (1) Todos os produtos transacionados entre PT e Marrocos (exclui serviços) | D12: TE - Total da Economia (bens e serviços) Fonte: INE/Contas Nacionais | H12: *TVMA - Taxa de variação média anual; TVT - Taxa de variação total
A24: Agro(1) + Mar + Florestas (AMF) | B24: 2019 | C24: 2020 | D24: 2021 | E24: 2022 | F24: 2023 | G24: média quinquénio | H24: var. 19/20 | I24: var. 20/21 | J24: var. 21/22 | K24: var. 22/23 | L24: TVMA* 2019-2023 | M24: TVT* 2019-2023
A25: Exportações | B25: 92.175553 | C25: 79.677792 | D25: 135.589878 | E25: 145.286142 | F25: 140.478738 | G25: 118.6416206 | H25: -0.1355865042 | I25: 0.7017273521 | J25: 0.07151170975 | K25: -0.03308921232 | L25: 0.1110886503 | M25: 0.5240346646
A26: Importações | B26: 38.16776 | C26: 39.419702 | D26: 33.596175 | E26: 43.844685 | F26: 59.073287 | G26: 42.8203218 | H26: 0.03280103417 | I26: -0.1477313806 | J26: 0.3050499052 | K26: 0.3473306286 | L26: 0.1153819601 | M26: 0.5477273751
A27: Saldo (exp-imp) | B27: 54.007793 | C27: 40.25809 | D27: 101.993703 | E27: 101.441457 | F27: 81.405451 | G27: 75.8212988
A28: Cobertura (exp/imp) | B28: 2.41501081 | C28: 2.021268248 | D28: 4.035872477 | E28: 3.313654597 | F28: 2.378041669 | G28: 2.770684937
A29: Exp AMF / Exp BT | B29: 0.1287936578 | C29: 0.1272615305 | D29: 0.1562216403 | E29: 0.214686641 | F29: 0.1379533213 | G29: 0.1519194671 | L29: Exportações
A30: Imp AMF / Imp BT | B30: 0.1909582979 | C30: 0.2153332387 | D30: 0.1263688684 | E30: 0.1259842824 | F30: 0.1275112964 | G30: 0.146635646 | L30: Importações
A31: Exp AMF Marrocos / Exp AMF Mundo | B31: 0.007793110729 | C31: 0.006907217981 | D31: 0.01012123868 | E31: 0.008865200599 | F31: 0.008647323878 | G31: 0.008548462745
A32: Imp AMF Marrocos / Imp AMF Mundo | B32: 0.002759108754 | C32: 0.003021734773 | D32: 0.00224804612 | E32: 0.002270177564 | F32: 0.002996048119 | G32: 0.002648010485
A33: (1) Produtos agrícolas e agroalimentares | B33: BT - Total de Bens Transacionáveis (exclui serviços) | H33: *TVMA - Taxa de variação média anual; TVT - Taxa de variação total
A45: Agroalimentar (AA)(1) | B45: 2019 | C45: 2020 | D45: 2021 | E45: 2022 | F45: 2023 | G45: média quinquénio | H45: var. 19/20 | I45: var. 20/21 | J45: var. 21/22 | K45: var. 22/23 | L45: TVMA* 2019-2023 | M45: TVT* 2019-2023
A46: Exportações | B46: 23.742473 | C46: 32.372332 | D46: 68.098324 | E46: 53.864089 | F46: 70.760016 | G46: 49.7674468 | H46: 0.3634776799 | I46: 1.103596491 | J46: -0.2090247478 | K46: 0.3136770214 | L46: 0.31390962 | M46: 1.980313635
A47: Importações | B47: 7.170478 | C47: 10.981214 | D47: 8.16574 | E47: 10.576849 | F47: 19.723412 | G47: 11.3235386 | H47: 0.5314479732 | I47: -0.2563900494 | J47: 0.295271341 | K47: 0.8647720129 | L47: 0.2878298428 | M47: 1.750641171
A48: Saldo (exp-imp) | B48: 16.571995 | C48: 21.391118 | D48: 59.932584 | E48: 43.28724 | F48: 51.036604 | G48: 38.4439082
A49: Cobertura (exp/imp) | B49: 3.311142298 | C49: 2.947973876 | D49: 8.339516566 | E49: 5.092640445 | F49: 3.587615368 | G49: 4.395043684
A50: Exp AA / Exp AMF | B50: 0.2575788507 | C50: 0.4062905257 | D50: 0.5022375195 | E50: 0.3707448505 | F50: 0.5037062335 | G50: 0.4194771325 | L50: Exportações
A51: Imp AA / Imp AMF | B51: 0.1878674043 | C51: 0.2785717152 | D51: 0.2430556455 | E51: 0.2412344621 | F51: 0.3338803883 | G51: 0.2644430991 | L51: Importações
A52: Exp AA / Exp BT | B52: 0.03317452236 | C52: 0.05170515411 | D52: 0.0784603691 | E52: 0.07959396664 | F52: 0.06948794788 | G52: 0.06372674242
A53: Imp AA / Imp BT | B53: 0.03587483976 | C53: 0.05998574966 | D53: 0.03071466688 | E53: 0.0303917506 | F53: 0.04257352114 | G53: 0.03877678466
A54: Exp AA Marrocos / Exp AA Mundo | B54: 0.00377364243 | C54: 0.00489223706 | D54: 0.009138503228 | E54: 0.006067555179 | F54: 0.007449446163 | G54: 0.006423821708
A55: Imp AA Marrocos / Imp AA Mundo | B55: 0.0007696062794 | C55: 0.00120879223 | D55: 0.0007950408358 | E55: 0.0007990245926 | F55: 0.001394195042 | G55: 0.001010013394
A56: (1) Produtos agrícolas e agroalimentares | B56: AMF - Agroalimentar, Mar e Florestas; BT - Total de Bens Transacionáveis (exclui serviços) | H56: *TVMA - Taxa de variação média anual; TVT - Taxa de variação total
A67: Mar (M) | B67: 2019 | C67: 2020 | D67: 2021 | E67: 2022 | F67: 2023 | G67: média quinquénio | H67: var. 19/20 | I67: var. 20/21 | J67: var. 21/22 | K67: var. 22/23 | L67: TVMA* 2019-2023 | M67: TVT* 2019-2023
A68: Exportações | B68: 0.837116 | C68: 0.557526 | D68: 1.252148 | E68: 0.91773 | F68: 0.839727 | G68: 0.8808494 | H68: -0.3339919438 | I68: 1.24590064 | J68: -0.2670754575 | K68: -0.08499558694 | L68: 0.0007788501273 | M68: 0.003119042044
A69: Importações | B69: 12.181879 | C69: 16.474182 | D69: 17.459739 | E69: 19.507319 | F69: 27.600501 | G69: 18.644724 | H69: 0.3523514722 | I69: 0.05982433604 | J69: 0.1172743762 | K69: 0.4148792563 | L69: 0.2268760002
A70: Saldo (exp-imp) | B70: -11.344763 | C70: -15.916656 | D70: -16.207591 | E70: -18.589589 | F70: -26.760774 | G70: -17.7638746
A71: Cobertura (exp/imp) | B71: 0.06871813453 | C71: 0.03384240869 | D71: 0.07171630687 | E71: 0.04704541921 | F71: 0.03042433904 | G71: 0.04724389591
A72: Exp M / Exp AMF | B72: 0.009081757285 | C72: 0.006997257153 | D72: 0.009234819136 | E72: 0.006316707068 | F72: 0.005977609224 | G72: 0.007424455225 | L72: Exportações
A73: Imp M / Imp AMF | B73: 0.3191667261 | C73: 0.4179174668 | D73: 0.5196942509 | E73: 0.4449186714 | F73: 0.4672247373 | G73: 0.4354176526 | L73: Importações
A74: Exp M / Exp BT | B74: 0.00116967274 | C74: 0.0008904816542 | D74: 0.001442678593 | E74: 0.001356112623 | F74: 0.000824631046 | G74: 0.001127919281
A75: Imp M / Imp BT | B75: 0.06094753475 | C75: 0.08999152164 | D75: 0.06567317441 | E75: 0.05605275957 | F75: 0.05957643195 | G75: 0.06384774876
A76: Exp M Marrocos / Exp M Mundo | B76: 0.0007835326058 | C76: 0.0006197007697 | D76: 0.001143069384 | E76: 0.0007174688498 | F76: 0.0006297929494 | G76: 0.0007759498791
A77: Imp M Marrocos / Imp M Mundo | B77: 0.005589704437 | C77: 0.008558608372 | D77: 0.008345737746 | E77: 0.007501568271 | F77: 0.01087628013 | G77: 0.008224858123
A78: AMF - Agroalimentar, Mar e Florestas; BT - Total de Bens Transacionáveis (exclui serviços) | H78: *TVMA - Taxa de variação média anual; TVT - Taxa de variação total
A90: Florestas (F) | B90: 2019 | C90: 2020 | D90: 2021 | E90: 2022 | F90: 2023 | G90: média quinquénio | H90: var. 19/20 | I90: var. 20/21 | J90: var. 21/22 | K90: var. 22/23 | L90: TVMA* 2019-2023 | M90: TVT* 2019-2023
A91: Exportações | B91: 67.595964 | C91: 46.747934 | D91: 66.239406 | E91: 90.504323 | F91: 68.878995 | G91: 67.9933244 | H91: -0.3084212247 | I91: 0.4169483083 | J91: 0.3663214764 | K91: -0.2389424868 | L91: 0.004711813923 | M91: 0.01898088176
A92: Importações | B92: 18.815403 | C92: 11.964306 | D92: 7.970696 | E92: 13.760517 | F92: 11.749374 | G92: 12.8520592 | H92: -0.3641217252 | I92: -0.3337937027 | J92: 0.7263883857 | K92: -0.1461531569 | L92: -0.1110541621 | M92: -0.3755449192
A93: Saldo (exp-imp) | B93: 48.780561 | C93: 34.783628 | D93: 58.26871 | E93: 76.743806 | F93: 57.129621 | G93: 55.1412652
A94: Cobertura (exp/imp) | B94: 3.592586563 | C94: 3.907283381 | D94: 8.310366623 | E94: 6.577101936 | F94: 5.862354454 | G94: 5.290461501
A95: Exp F / Exp AMF | B95: 0.7333393921 | C95: 0.5867122171 | D95: 0.4885276613 | E95: 0.6229384424 | F95: 0.4903161573 | G95: 0.5730984123 | L95: Exportações
A96: Imp F / Imp AMF | B96: 0.4929658696 | C96: 0.303510818 | D96: 0.2372501036 | E96: 0.3138468665 | F96: 0.1988948744 | G96: 0.3001392484 | L96: Importações
A97: Exp F / Exp BT | B97: 0.09444946274 | C97: 0.07466589469 | D97: 0.07631859257 | E97: 0.1337365618 | F97: 0.0676407424 | G97: 0.08706480538
A98: Imp F / Imp BT | B98: 0.09413592338 | C98: 0.06535596743 | D98: 0.02998102713 | E98: 0.03953977227 | F98: 0.02536134328 | G98: 0.04401111257
A99: Exp F Marrocos / Exp F Mundo | B99: 0.01512965696 | C99: 0.01163263663 | D99: 0.01365946638 | E99: 0.01452287236 | F99: 0.01272400848 | G99: 0.01360902725
A100: Imp F Marrocos / Imp F Mundo | B100: 0.008051264107 | C100: 0.005876176931 | D100: 0.003087367176 | E100: 0.003959068573 | F100: 0.0038743813 | G100: 0.004773100516
A101: AMF - Agroalimentar, Mar e Florestas; BT - Total de Bens Transacionáveis (exclui serviços) | H101: *TVMA - Taxa de variação média anual; TVT - Taxa de variação total
A111: Fonte: GPP a partir de dados INE/Comércio Internacional (2022 definitivos) | H111: 2024-03-26T15:06:06.970

Sheet 2
A1: Ranking dos parceiros comerciais de Portugal por país (média 2019-2023 em milhares de euros) produtos agrícolas e agroalimentares, do mar e da floresta
A2: Exportações | F2: Importações | K2: Trocas comerciais (total e saldo)
A3: P | B3: País | C3: média quinquénio | D3: % do Total | F3: P | G3: País | H3: média quinquénio | I3: % do Total | K3: P | L3: País | M3: Total (exp+imp) | N3: % do Total | O3: Saldo (exp-imp)
A4: 1 | B4: Espanha | C4: 4590491.185 | D4: 0.3307578123 | F4: 1 | G4: Espanha | H4: 7532828.768 | I4: 0.465830445 | K4: 1 | L4: Espanha | M4: 12123319.95 | N4: 0.4034455095 | O4: -2942337.583
A5: 2 | B5: França | C5: 1476268.706 | D5: 0.106369316 | F5: 2 | G5: França | H5: 1063406.9 | I5: 0.065761127 | K5: 2 | L5: França | M5: 2539675.606 | N5: 0.0845165122 | O5: 412861.8066
A6: 3 | B6: Itália | C6: 914663.8098 | D6: 0.06590410231 | F6: 3 | G6: Países Baixos | H6: 945212.2012 | I6: 0.05845196193 | K6: 3 | L6: Países Baixos | M6: 1578954.656 | N6: 0.05254519126 | O6: -311469.7464
A7: 4 | B7: Alemanha | C7: 650874.2964 | D7: 0.04689732529 | F7: 4 | G7: Alemanha | H7: 912932.1978 | I7: 0.05645576517 | K7: 4 | L7: Alemanha | M7: 1563806.494 | N7: 0.05204108365 | O7: -262057.9014
A8: 5 | B8: Países Baixos | C8: 633742.4548 | D8: 0.04566292788 | F8: 5 | G8: Brasil | H8: 813481.7776 | I8: 0.05030574704 | K8: 5 | L8: Itália | M8: 1408269.735 | N8: 0.04686505864 | O8: 421057.885
A9: 6 | B9: Estados Unidos | C9: 565286.3462 | D9: 0.04073047255 | F9: 6 | G9: Itália | H9: 493605.9248 | I9: 0.03052461097 | K9: 6 | L9: Brasil | M9: 1307235.43 | N9: 0.04350279181 | O9: -319728.1254 | P9: Nota: Nesta listagem, o Reino Unido passa a ser constituído por três componentes: Reino Unido [até 2020] ; Reino Unido (sem Irlanda do Norte) pós-2020 e Reino Unido (Irlanda do Norte) pós-2020. Estas componentes são calculadas igualmente como média do quinquénio, embora a primeira corresponda apenas a 2019-2020 e as duas últimas a 2021-2023.
A10: 7 | B10: Brasil | C10: 493753.6522 | D10: 0.03557634058 | F10: 7 | G10: Suécia | H10: 339355.7674 | I10: 0.0209857748 | K10: 7 | L10: Estados Unidos | M10: 831261.885 | N10: 0.02766312165 | O10: 299310.8074
A11: 8 | B11: Reino Unido (sem Irlanda do Norte) pós 2020 | C11: 454910.6858 | D11: 0.03277759551 | F11: 8 | G11: Bélgica | H11: 311523.3706 | I11: 0.01926461822 | K11: 8 | L11: Bélgica | M11: 566083.0808 | N11: 0.01883837743 | O11: -56963.6604
A12: 9 | B12: Angola | C12: 292757.7874 | D12: 0.02109402271 | F12: 9 | G12: Estados Unidos | H12: 265975.5388 | I12: 0.01644793841 | K12: 9 | L12: Reino Unido (sem Irlanda do Norte) pós 2020 | M12: 544529.0646 | N12: 0.0181210928 | O12: 365292.307
A13: 10 | B13: Reino Unido | C13: 261878.4294 | D13: 0.01886907804 | F13: 10 | G13: Polónia | H13: 241424.4406 | I13: 0.01492969747 | K13: 10 | L13: Polónia | M13: 501175.7444 | N13: 0.01667836074 | O13: 18326.8632
A14: 11 | B14: Polónia | C14: 259751.3038 | D14: 0.01871581265 | F14: 11 | G14: Ucrânia | H14: 222824.0602 | I14: 0.01377944917 | K14: 11 | L14: Suécia | M14: 438745.3668 | N14: 0.01460077345 | O14: -239966.168
A15: 12 | B15: Bélgica | C15: 254559.7102 | D15: 0.01834174372 | F15: 12 | G15: China, República Popular da | H15: 185792.3688 | I15: 0.01148940783 | K15: 12 | L15: China, República Popular da | M15: 398788.1174 | N15: 0.01327105742 | O15: 27203.3798
A16: 13 | B16: Israel | C16: 229312.128 | D16: 0.01652258435 | F16: 13 | G16: Dinamarca | H16: 157282.5854 | I16: 0.009726361638 | K16: 13 | L16: Reino Unido | M16: 360801.6302 | N16: 0.01200692534 | O16: 162955.2286
A17: 14 | B17: China, República Popular da | C17: 212995.7486 | D17: 0.01534694328 | F17: 14 | G17: África do Sul | H17: 152632.7946 | I17: 0.009438818381 | K17: 14 | L17: Angola | M17: 311656.2444 | N17: 0.01037144221 | O17: 273859.3304
A18: 15 | B18: Turquia | C18: 183349.1244 | D18: 0.01321082055 | F18: 15 | G18: Roménia | H18: 151076.3234 | I18: 0.009342566137 | K18: 15 | L18: Turquia | M18: 242691.3654 | N18: 0.008076396725 | O18: 124006.8834
A19: 16 | B19: Suíça | C19: 154488.0214 | D19: 0.01113129683 | F19: 16 | G19: Irlanda | H19: 122293.635 | I19: 0.007562643486 | K19: 16 | L19: Dinamarca | M19: 241940.252 | N19: 0.008051400822 | O19: -72624.9188
A20: 17 | B20: Marrocos | C20: 118641.6206 | D20: 0.008549071909 | F20: 17 | G20: Canadá | H20: 119672.946 | I20: 0.007400579969 | K20: 17 | L20: Ucrânia | M20: 239492.5 | N20: 0.007969943386 | O20: -206155.6204
A21: 18 | B21: Cabo Verde | C21: 109801.4126 | D21: 0.007911500874 | F21: 18 | G21: Argentina | H21: 105868.1334 | I21: 0.006546889783 | K21: 18 | L21: Israel | M21: 237364.4856 | N21: 0.007899126328 | O21: 221259.7704
A22: 19 | B22: Suécia | C22: 99389.5994 | D22: 0.007161300423 | F22: 19 | G22: Uruguai | H22: 104314.013 | I22: 0.006450782912 | K22: 19 | L22: Canadá | M22: 218508.619 | N22: 0.007271631984 | O22: -20837.273
A23: 20 | B23: Canadá | C23: 98835.673 | D23: 0.007121388466 | F23: 20 | G23: Rússia, Federação da | H23: 103735.9496 | I23: 0.006415035448 | K23: 20 | L23: Irlanda | M23: 195617.827 | N23: 0.006509861505 | O23: -48969.443
A24: 21 | B24: Argélia | C24: 96652.6324 | D24: 0.006964094246 | F24: 21 | G24: Reino Unido | H24: 98923.2008 | I24: 0.006117414861 | K24: 21 | L24: África do Sul | M24: 189444.2222 | N24: 0.006304413398 | O24: -115821.367
A25: 22 | B25: Dinamarca | C25: 84657.6666 | D25: 0.006099823194 | F25: 22 | G25: Reino Unido (sem Irlanda do Norte) pós 2020 | H25: 89618.3788 | I25: 0.005542004281 | K25: 22 | L25: Roménia | M25: 177174.7676 | N25: 0.005896104752 | O25: -124977.8792
A26: 23 | B26: Egito | C26: 82715.0134 | D26: 0.005959849562 | F26: 23 | G26: Finlândia | H26: 81257.9706 | I26: 0.005024996289 | K26: 23 | L26: Rússia, Federação da | M26: 176432.6266 | N26: 0.005871407437 | O26: -31039.2726
A27: 24 | B27: México | C27: 78972.8492 | D27: 0.005690216097 | F27: 24 | G27: Índia | H27: 79609.9066 | I27: 0.004923079943 | K27: 24 | L27: Marrocos | M27: =SUM(C20,H36) -> 161461.9424 | N27: 0.005373487358 | O27: 75829.7532
A28: 25 | B28: Japão | C28: 73648.195 | D28: 0.005306559773 | F28: 25 | G28: Costa Rica | H28: 70759.3454 | I28: 0.004375760869 | K28: 25 | L28: Suíça | M28: 158552.2246 | N28: 0.005276375059 | O28: 150423.8182
A29: 26 | B29: Irlanda | C29: 73324.192 | D29: 0.005283214444 | F29: 26 | G29: Áustria | H29: 70245.8762 | I29: 0.004344007913 | K29: 26 | L29: Argentina | M29: 121955.0376 | N29: 0.00405847676 | O29: -89781.2292
A30: 27 | B30: Rússia, Federação da | C30: 72696.677 | D30: 0.005238000222 | F30: 27 | G30: Vietname | H30: 69724.8096 | I30: 0.004311785132 | K30: 27 | L30: Grécia | M30: 120765.3464 | N30: 0.00401888566 | O30: -5889.2392
A31: 28 | B31: Luxemburgo | C31: 58761.5336 | D31: 0.004233933912 | F31: 28 | G31: Grécia | H31: 63327.2928 | I31: 0.003916162427 | K31: 28 | L31: Áustria | M31: 112475.7692 | N31: 0.003743021234 | O31: -28015.9832
A32: 29 | B32: Grécia | C32: 57438.0536 | D32: 0.004138573452 | F32: 29 | G32: Turquia | H32: 59342.241 | I32: 0.003669726657 | K32: 29 | L32: Finlândia | M32: 112057.0106 | N32: 0.003729085589 | O32: -50458.9306
A33: 30 | B33: Áustria | C33: 42229.893 | D33: 0.00304278267 | F33: 30 | G33: Equador | H33: 58414.7256 | I33: 0.003612369066 | K33: 30 | L33: Índia | M33: 110950.7256 | N33: 0.00369227012 | O33: -48269.0876
A34: 31 | B34: Moçambique | C34: 41348.7066 | D34: 0.002979290709 | F34: 31 | G34: Chile | H34: 53583.805 | I34: 0.003313624735 | K34: 31 | L34: Cabo Verde | M34: 110220.3146 | N34: 0.003667963161 | O34: 109382.5106
A35: 32 | B35: África do Sul | C35: 36811.4276 | D35: 0.002652366984 | F35: 32 | G35: Bulgária | H35: 44153.2414 | I35: 0.002730438289 | K35: 32 | L35: Uruguai | M35: 107585.2684 | N35: 0.003580272862 | O35: -101042.7576
A36: 33 | B36: Arábia Saudita | C36: 35880.8896 | D36: 0.002585319102 | F36: 33 | G36: Marrocos | H36: 42820.3218 | I36: 0.002648010485 | K36: 33 | L36: Argélia | M36: 103327.6826 | N36: 0.003438586931 | O36: 89977.5822
A37: 34 | B37: Austrália | C37: 35113.0132 | D37: 0.002529991446 | F37: 34 | G37: Checa, República | H37: 40142.4096 | I37: 0.002482408283 | K37: 34 | L37: Egito | M37: 96954.5744 | N37: 0.003226499657 | O37: 68475.4524
A38: 35 | B38: Guiné-Bissau | C38: 34935.4838 | D38: 0.002517199953 | F38: 35 | G38: Moçambique | H38: 38763.0688 | I38: 0.002397109791 | K38: 35 | L38: México | M38: 96736.9562 | N38: 0.003219257656 | O38: 61208.7422
A39: 36 | B39: Índia | C39: 31340.819 | D39: 0.002258194235 | F39: 36 | G39: Cuba | H39: 37252.762 | I39: 0.002303712355 | K39: 36 | L39: Japão | M39: 88495.462 | N39: 0.002944993359 | O39: 58800.928
A40: 37 | B40: Emirados Árabes Unidos | C40: 31196.0318 | D40: 0.002247761909 | F40: 37 | G40: Colômbia | H40: 31648.7828 | I40: 0.001957162048 | K40: 37 | L40: Chile | M40: 83999.5896 | N40: 0.002795377615 | O40: -23168.0204
A41: 38 | B41: Finlândia | C41: 30799.04 | D41: 0.002219157533 | F41: 38 | G41: Guiana | H41: 31014.2578 | I41: 0.001917922995 | K41: 38 | L41: Moçambique | M41: 80111.7754 | N41: 0.002665997117 | O41: 2585.6378
A42: 39 | B42: Checa, República | C42: 30745.115 | D42: 0.002215272085 | F42: 39 | G42: Indonésia | H42: 29000.601 | I42: 0.001793398375 | K42: 39 | L42: Vietname | M42: 76018.5502 | N42: 0.002529780855 | O42: -63431.069
A43: 40 | B43: Chile | C43: 30415.7846 | D43: 0.002191542902 | F43: 40 | G43: Hungria | H43: 27504.3764 | I43: 0.001700871783 | K43: 40 | L43: Costa Rica | M43: 75108.8896 | N43: 0.002499508744 | O43: -66409.8012
A44: 41 | B44: Jordânia | C44: 29575.643 | D44: 0.002131008335 | F44: 41 | G44: Costa do Marfim | H44: 23657.68 | I44: 0.001462991917 | K44: 41 | L44: Checa, República | M44: 70887.5246 | N44: 0.002359028186 | O44: -9397.2946
A45: 42 | B45: São Tomé e Príncipe | C45: 26643.9446 | D45: 0.001919771212 | F45: 42 | G45: Uganda | H45: 22974.374 | I45: 0.001420736246 | K45: 42 | L45: Luxemburgo | M45: 67580.5006 | N45: 0.002248975495 | O45: 49942.5666
A46: 43 | B46: Roménia | C46: 26098.4442 | D46: 0.001880466373 | F46: 43 | G46: Namíbia | H46: 22892.673 | I46: 0.001415683853 | K46: 43 | L46: Equador | M46: 61226.8336 | N46: 0.002037535194 | O46: -55602.6176
A47: 44 | B47: Tunísia | C47: 25934.6478 | D47: 0.001868664381 | F47: 44 | G47: Peru | H47: 21918.8742 | I47: 0.001355464094 | K47: 44 | L47: Bulgária | M47: 58437.3568 | N47: 0.001944705681 | O47: -29869.126
A48: 45 | B48: Noruega | C48: 23604.4228 | D48: 0.00170076511 | F48: 45 | G48: Letónia | H48: 19612.9514 | I48: 0.001212865732 | K48: 45 | L48: Austrália | M48: 52768.539 | N48: 0.001756056112 | O48: 17457.4874
A49: 46 | B49: Coreia, República da | C49: 22131.0668 | D49: 0.001594605663 | F49: 46 | G49: Lituânia | H49: 19332.5596 | I49: 0.001195526292 | K49: 46 | L49: Hungria | M49: 47185.0826 | N49: 0.001570247239 | O49: -7823.6702
A50: 47 | B50: Hungria | C50: 19680.7062 | D50: 0.001418050284 | F50: 47 | G50: Angola | H50: 18898.457 | I50: 0.001168681369 | K50: 47 | L50: Cuba | M50: 44341.484 | N50: 0.001475616636 | O50: -30164.04
A51: 48 | B51: Nigéria | C51: 18837.3684 | D51: 0.001357285421 | F51: 48 | G51: Suazilândia | H51: 17908.5294 | I51: 0.001107464205 | K51: 48 | L51: Colômbia | M51: 40554.3906 | N51: 0.001349587971 | O51: -22743.175
A52: 49 | B52: Ucrânia | C52: 16668.4398 | D52: 0.00120100801 | F52: 49 | G52: México | H52: 17764.107 | I52: 0.001098533117 | K52: 49 | L52: Noruega | M52: 38857.1224 | N52: 0.001293105486 | O52: 8351.7232
A53: 50 | B53: Argentina | C53: 16086.9042 | D53: 0.001159106733 | F53: 50 | G53: Austrália | H53: 17655.5258 | I53: 0.001091818451 | K53: 50 | L53: Tunísia | M53: 37484.4198 | N53: 0.001247424047 | O53: 14384.8758
A54: 51 | B54: Lituânia | C54: 15774.7642 | D54: 0.001136616167 | F54: 51 | G54: Senegal | H54: 16694.6988 | I54: 0.00103240087 | K54: 51 | L54: Arábia Saudita | M54: 35932.1724 | N54: 0.001195767633 | O54: 35829.6068
A55: 52 | B55: Macau | C55: 14589.4744 | D55: 0.001051212701 | F55: 52 | G55: Nova Zelânda | H55: 16509.396 | I55: 0.001020941737 | K55: 52 | L55: Costa do Marfim | M55: 35761.2586 | N55: 0.001190079883 | O55: -11554.1014
A56: 53 | B56: Bulgária | C56: 14284.1154 | D56: 0.001029210725 | F56: 53 | G56: Estónia | H56: 16337.1056 | I56: 0.001010287291 | K56: 53 | L56: Guiné-Bissau | M56: 35227.2832 | N56: 0.00117231 | O56: 34643.6844
A57: 54 | B57: Líbia, Jamahira Árabe da | C57: 13798.5402 | D57: 0.0009942236649 | F57: 54 | G57: Eslovénia | H57: 16042.0816 | I57: 0.0009920429949 | K57: 54 | L57: Lituânia | M57: 35107.3238 | N57: 0.001168317935 | O57: -3557.7954
A58: 55 | B58: Iraque | C58: 13659.5246 | D58: 0.0009842071996 | F58: 55 | G58: Noruega | H58: 15252.6996 | I58: 0.0009432275791 | K58: 55 | L58: Coreia, República da | M58: 35092.7906 | N58: 0.001167834293 | O58: 9169.343
A59: 56 | B59: Senegal | C59: 13224.0438 | D59: 0.000952829582 | F59: 56 | G59: Japão | H59: 14847.267 | I59: 0.0009181556102 | K59: 56 | L59: Indonésia | M59: 33328.2946 | N59: 0.00110911457 | O59: -24672.9074
A60: 57 | B60: Letónia | C60: 13161.652 | D60: 0.0009483340772 | F60: 57 | G60: Egito | H60: 14239.561 | I60: 0.0008805750458 | K60: 57 | L60: Letónia | M60: 32774.6034 | N60: 0.001090688575 | O60: -6451.2994
A61: 58 | B61: Eslováquia | C61: 12799.2024 | D61: 0.0009222185632 | F61: 58 | G61: Mauritânia | H61: 13443.2356 | I61: 0.0008313302499 | K61: 58 | L61: Emirados Árabes Unidos | M61: 31954.6106 | N61: 0.001063400471 | O61: 30437.453
A62: 59 | B62: Croácia | C62: 12332.8288 | D62: 0.0008886150325 | F62: 59 | G62: Tanzânia, República Unida da | H62: 13079.5878 | I62: 0.0008088422548 | K62: 59 | L62: Guiana | M62: 31130.901 | N62: 0.001035988678 | O62: -30897.6146
A63: 60 | B63: Costa do Marfim | C63: 12103.5786 | D63: 0.0008720969102 | F63: 60 | G63: Camarões | H63: 13022.8276 | I63: 0.0008053322017 | K63: 60 | L63: Senegal | M63: 29918.7426 | N63: 0.0009956499043 | O63: -3470.655
A64: 61 | B64: Síria, República Árabe da | C64: 11995.3212 | D64: 0.0008642966598 | F64: 61 | G64: Coreia, República da | H64: 12961.7238 | I64: 0.0008015535401 | K64: 61 | L64: Jordânia | M64: 29723.4374 | N64: 0.0009891504466 | O64: 29427.8486
A65: 62 | B65: Dominicana, República | C65: 11848.0206 | D65: 0.0008536832369 | F65: 62 | G65: Paquistão | H65: 12615.7756 | I65: 0.000780160089 | K65: 62 | L65: São Tomé e Príncipe | M65: 27733.0344 | N65: 0.0009229128849 | O65: 25554.8548
A66: 63 | B66: Território Palestiniano Ocupado | C66: 11806.0928 | D66: 0.0008506622209 | F66: 63 | G66: Tailândia | H66: 12316.114 | I66: 0.0007616290032 | K66: 63 | L66: Peru | M66: 27430.0544 | N66: 0.0009128301748 | O66: -16407.694
A67: 64 | B67: HongKong | C67: 11528.0934 | D67: 0.0008306315815 | F67: 64 | G67: Moldava, República de | H67: 12178.8658 | I67: 0.0007531415688 | K67: 64 | L67: Nigéria | M67: 25016.4128 | N67: 0.0008325078812 | O67: 12658.324
A68: 65 | B68: Chipre | C68: 10852.977 | D68: 0.0007819875444 | F68: 65 | G68: Sérvia | H68: 11730.1152 | I68: 0.000725390813 | K68: 65 | L68: Estónia | M68: 24803.9728 | N68: 0.0008254382036 | O68: -7870.2384
A69: 66 | B69: Kuwait | C69: 10775.802 | D69: 0.0007764268684 | F69: 66 | G69: Tunísia | H69: 11549.772 | I69: 0.000714238382 | K69: 66 | L69: Uganda | M69: 24133.8048 | N69: 0.0008031360395 | O69: -21814.9432
A70: 67 | B70: Malta | C70: 10392.4568 | D70: 0.0007488057677 | F70: 67 | G70: Belize | H70: 10934.5394 | I70: 0.0006761923723 | K70: 67 | L70: Eslovénia | M70: 23960.5058 | N70: 0.0007973689144 | O70: -8123.6574
A71: 68 | B71: Tailândia | C71: 9256.6804 | D71: 0.0006669698808 | F71: 68 | G71: Paraguai | H71: 10263.5706 | I71: 0.0006346996338 | K71: 68 | L71: Namíbia | M71: 23758.7906 | N71: 0.0007906561417 | O71: -22026.5554
A72: 69 | B72: Colômbia | C72: 8905.6078 | D72: 0.0006416741117 | F72: 69 | G72: Maurícias | H72: 9873.1322 | I72: 0.0006105549068 | K72: 69 | L72: Camarões | M72: 21652.1438 | N72: 0.0007205501645 | O72: -4393.5114
A73: 70 | B73: Geórgia | C73: 8776.724 | D73: 0.0006323876711 | F73: 70 | G73: Reino Unido (Irlanda do Norte) pós-2020 | H73: 9118.0026 | I73: 0.0005638576609 | K73: 70 | L73: Tailândia | M73: 21572.7944 | N73: 0.0007179095381 | O73: -3059.4336
A74: 71 | B74: Líbano | C74: 8677.7838 | D74: 0.0006252587511 | F74: 71 | G74: Islândia | H74: 9112.164 | I74: 0.0005634966016 | K74: 71 | L74: Nova Zelânda | M74: 20810.7044 | N74: 0.0006925483508 | O74: -12208.0876
A75: 72 | B75: Camarões | C75: 8629.3162 | D75: 0.0006217665241 | F75: 72 | G75: Luxemburgo | H75: 8818.967 | I75: 0.0005453652869 | K75: 72 | L75: Croácia | M75: 20489.0438 | N75: 0.0006818439789 | O75: 4176.6138
A76: 73 | B76: Estónia | C76: 8466.8672 | D76: 0.0006100616164 | F76: 73 | G76: Croácia | H76: 8156.215 | I76: 0.0005043806756 | K76: 73 | L76: Eslováquia | M76: 20122.2174 | N76: 0.0006696365585 | O76: 5476.1874
A77: 74 | B77: Gana | C77: 8178.0838 | D77: 0.0005892539594 | F77: 74 | G77: Israel | H77: 8052.3576 | I77: 0.0004979581297 | K77: 74 | L77: Suazilândia | M77: 19975.6478 | N77: 0.0006647589468 | O77: -15841.411
A78: 75 | B78: Eslovénia | C78: 7918.4242 | D78: 0.0005705447543 | F78: 75 | G78: Bangladesh | H78: 7823.177 | I78: 0.0004837855918 | K78: 75 | L78: Sérvia | M78: 19112.5644 | N78: 0.0006360368539 | O78: -4347.666
A79: 76 | B79: Belarus | C79: 7872.655 | D79: 0.0005672469546 | F79: 76 | G79: Malásia | H79: 7805.5168 | I79: 0.0004826934843 | K79: 76 | L79: Paquistão | M79: 17209.3712 | N79: 0.0005727015008 | O79: -8022.18
A80: 77 | B80: Sérvia | C80: 7382.4492 | D80: 0.0005319262468 | F80: 77 | G80: Quénia | H80: 7356.7132 | I80: 0.000454939451 | K80: 77 | L80: Mauritânia | M80: 16816.7526 | N80: 0.0005596357555 | O80: -10069.7186
A81: 78 | B81: Gibraltar | C81: 7309.7404 | D81: 0.0005266873731 | F81: 78 | G81: Filipinas | H81: 7323.2812 | I81: 0.0004528720147 | K81: 78 | L81: Maurícias | M81: 16663.174 | N81: 0.000554524895 | O81: -3083.0904
A82: 79 | B82: Cuba | C82: 7088.722 | D82: 0.0005107623752 | F82: 79 | G82: Eslováquia | H82: 7323.015 | I82: 0.0004528555529 | K82: 79 | L82: Moldava, República de | M82: 15413.0416 | N82: 0.0005129224045 | O82: -8944.69
A83: 80 | B83: Maurícias | C83: 6790.0418 | D83: 0.0004892416259 | F83: 80 | G83: Gana | H83: 6780.4694 | I83: 0.0004193045104 | K83: 80 | L83: Chipre | M83: 15099.618 | N83: 0.0005024921474 | O83: 6606.336
A84: 81 | B84: Taiwan | C84: 6498.8018 | D84: 0.0004682569641 | F84: 81 | G84: Argélia | H84: 6675.0502 | I84: 0.0004127853826 | K84: 81 | L84: Gana | M84: 14958.5532 | N84: 0.000497797727 | O84: 1397.6144
A85: 82 | B85: Vietname | C85: 6293.7406 | D85: 0.0004534817274 | F85: 82 | G85: Nigéria | H85: 6179.0444 | I85: 0.0003821123633 | K85: 82 | L85: Macau | M85: 14610.2374 | N85: 0.000486206311 | O85: 14568.7114
A86: 83 | B86: Andorra | C86: 6022.5714 | D86: 0.0004339432232 | F86: 83 | G86: Panamá | H86: 5653.6226 | I86: 0.0003496202573 | K86: 83 | L86: HongKong | M86: 14502.5934 | N86: 0.0004826240836 | O86: 8553.5934
A87: 84 | B87: Guatemala | C87: 5731.0826 | D87: 0.0004129406346 | F87: 84 | G87: Congo | H87: 5587.8752 | I87: 0.0003455544353 | K87: 84 | L87: Dominicana, República | M87: 14480.0812 | N87: 0.0004818749121 | O87: 9215.96
A88: 85 | B88: Peru | C88: 5511.1802 | D88: 0.0003970960476 | F88: 85 | G88: Honduras | H88: 5352.3066 | I88: 0.0003309868633 | K88: 85 | L88: Líbia, Jamahira Árabe da | M88: 13839.6806 | N88: 0.0004605633615 | O88: 13757.3998
A89: 86 | B89: Singapura | C89: 5118.6402 | D89: 0.0003688124356 | F89: 86 | G89: Camboja | H89: 5251.3418 | I89: 0.0003247431958 | K89: 86 | L89: Iraque | M89: 13672.6982 | N89: 0.0004550064432 | O89: 13646.351
A90: 87 | B90: Omã | C90: 4766.6966 | D90: 0.0003434539085 | F90: 87 | G90: Zimbabwe | H90: 5173.412 | I90: 0.0003199240137 | K90: 87 | L90: Tanzânia, República Unida da | M90: 13489.132 | N90: 0.0004488976413 | O90: -12670.0436
A91: 88 | B91: Panamá | C91: 4742.5904 | D91: 0.0003417169889 | F91: 88 | G91: Etiópia | H91: 4865.2444 | I91: 0.0003008669165 | K91: 88 | L91: Malta | M91: 12895.0662 | N91: 0.0004291280419 | O91: 7889.8474
A92: 89 | B92: Paquistão | C92: 4593.5956 | D92: 0.0003309814941 | F92: 89 | G92: Sri Lanca | H92: 4526.3678 | I92: 0.0002799107734 | K92: 89 | L92: Reino Unido (Irlanda do Norte) pós-2020 | M92: 12723.867 | N92: 0.0004234307949 | O92: -5512.1382
A93: 90 | B93: Mali | C93: 4507.5844 | D93: 0.0003247841451 | F93: 90 | G93: Suriname | H93: 4461.0484 | I93: 0.000275871419 | K93: 90 | L93: Kuwait | M93: 12319.6144 | N93: 0.0004099778879 | O93: 9231.9896
A94: 91 | B94: Costa Rica | C94: 4349.5442 | D94: 0.0003133969038 | F94: 91 | G94: Macedónia, Antiga República jugoslava da | H94: 4419.1744 | I94: 0.0002732819291 | K94: 91 | L94: Síria, República Árabe da | M94: 12141.732 | N94: 0.0004040582342 | O94: 11848.9104
A95: 92 | B95: Indonésia | C95: 4327.6936 | D95: 0.0003118225065 | F95: 92 | G95: Myanmar | H95: 4417.7084 | I95: 0.0002731912716 | K95: 92 | L95: Território Palestiniano Ocupado | M95: 11817.7626 | N95: 0.000393277029 | O95: 11794.423
A96: 93 | B96: Nova Zelânda | C96: 4301.3084 | D96: 0.0003099213786 | F96: 93 | G96: Papuásia-Nova Guiné | H96: 4268.11 | I96: 0.0002639401003 | K96: 93 | L96: Paraguai | M96: 11233.3798 | N96: 0.000373829665 | O96: -9293.7614
A97: 94 | B97: Burquina Faso | C97: 4086.0794 | D97: 0.0002944135233 | F97: 94 | G97: Chipre | H97: 4246.641 | I97: 0.0002626124565 | K97: 94 | L97: Islândia | M97: 10997.3204 | N97: 0.0003659739699 | O97: -7227.0076
A98: 95 | B98: Venezuela | C98: 3914.122 | D98: 0.0002820235085 | F98: 95 | G98: Suíça | H98: 4064.2032 | I98: 0.0002513304953 | K98: 95 | L98: Belize | M98: 10954.0486 | N98: 0.0003645339507 | O98: -10915.0302
A99: 96 | B99: Reino Unido (Irlanda do Norte) pós-2020 | C99: 3605.8644 | D99: 0.0002598126807 | F99: 96 | G99: Guatemala | H99: 3891.5604 | I99: 0.0002406542574 | K99: 96 | L99: Filipinas | M99: 10864.8014 | N99: 0.0003615639407 | O99: -3781.761
A100: 97 | B100: Filipinas | C100: 3541.5202 | D100: 0.0002551764999 | F100: 97 | G100: Malavi | H100: 3761.9744 | I100: 0.0002326406537 | K100: 97 | L100: Malásia | M100: 10802.9 | N100: 0.0003595039569 | O100: -4808.1336
A101: 98 | B101: Catar | C101: 3509.4766 | D101: 0.0002528676684 | F101: 98 | G101: Congo, República Democrática do | H101: 3658.6746 | I101: 0.0002262525898 | K101: 98 | L101: Panamá | M101: 10396.213 | N101: 0.0003459700368 | O101: -911.0322
A102: 99 | B102: Mauritânia | C102: 3373.517 | D102: 0.0002430713964 | F102: 99 | G102: Madagáscar | H102: 3530.0814 | I102: 0.0002183003809 | K102: 99 | L102: Bangladesh | M102: 9992.5026 | N102: 0.0003325351734 | O102: -5653.8514
A103: 100 | B103: Uruguai | C103: 3271.2554 | D103: 0.0002357031603 | F103: 100 | G103: Taiwan | H103: 3371.904 | I103: 0.0002085186839 | K103: 100 | L103: Taiwan | M103: 9870.7058 | N103: 0.0003284819625 | O103: 3126.8978
A104: 101 | B104: Moldava, República de | C104: 3234.1758 | D104: 0.0002330314707 | F104: 101 | G104: Nicarágua | H104: 3348.1498 | I104: 0.0002070497232 | K104: 101 | L104: Geórgia | M104: 9763.0358 | N104: 0.0003248988699 | O104: 7790.4122
A105: 102 | B105: Guiné | C105: 3199.9078 | D105: 0.0002305623649 | F105: 102 | G105: Gâmbia | H105: 3121.0524 | I105: 0.0001930060105 | K105: 102 | L105: Quénia | M105: 9728.6568 | N105: 0.0003237547895 | O105: -4984.7696
A106: 103 | B106: Malásia | C106: 2997.3832 | D106: 0.0002159698973 | F106: 103 | G106: HongKong | H106: 2974.5 | I106: 0.000183943204 | K106: 103 | L106: Guatemala | M106: 9622.643 | N106: 0.0003202268127 | O106: 1839.5222
A107: 104 | B107: Gabão | C107: 2969.7446 | D107: 0.0002139784584 | F107: 104 | G107: Gabão | H107: 2833.2392 | I107: 0.0001752076302 | K107: 104 | L107: Líbano | M107: 9030.529 | N107: 0.0003005221662 | O107: 8325.0386
A108: 105 | B108: Equador | C108: 2812.108 | D108: 0.0002026202976 | F108: 105 | G108: Dominicana, República | H108: 2632.0606 | I108: 0.0001627667372 | K108: 105 | L108: Belarus | M108: 8568.8254 | N108: 0.0002851573779 | O108: 7176.4846
A109: 106 | B109: Arménia | C109: 2727.7372 | D109: 0.000196541144 | F109: 106 | G109: Malta | H109: 2502.6094 | I109: 0.0001547614696 | K109: 106 | L109: Congo | M109: 8278.2768 | N109: 0.0002754883657 | O109: -2897.4736
A110: 107 | B110: Guiné Equatorial | C110: 2712.667 | D110: 0.0001954552936 | F110: 107 | G110: Mali | H110: 2475.2544 | I110: 0.0001530698353 | K110: 107 | L110: Gibraltar | M110: 7352.4128 | N110: 0.0002446770307 | O110: 7267.068
A111: 108 | B111: Congo | C111: 2690.4016 | D111: 0.0001938510089 | F111: 108 | G111: Centro-Africana, República | H111: 2466.2132 | I111: 0.0001525107271 | K111: 108 | L111: Mali | M111: 6982.8388 | N111: 0.0002323781743 | O111: 2032.33
A112: 109 | B112: Timor-Leste | C112: 2668.7438 | D112: 0.0001922905034 | F112: 109 | G112: Benim | H112: 1927.4492 | I112: 0.0001191935389 | K112: 109 | L112: Singapura | M112: 6659.3268 | N112: 0.0002216121907 | O112: 3577.9536
A113: 110 | B113: Benim | C113: 2476.0626 | D113: 0.0001784072806 | F113: 110 | G113: Serra Leoa | H113: 1903.7664 | I113: 0.0001177289935 | K113: 110 | L113: Honduras | M113: 6531.9538 | N113: 0.0002173734125 | O113: -4172.6594
A114: 111 | B114: Quénia | C114: 2371.9436 | D114: 0.0001709052135 | F114: 111 | G114: Laos, República Democrática Popular do | H114: 1764.877 | I114: 0.0001091400673 | K114: 111 | L114: Etiópia | M114: 6273.7972 | N114: 0.0002087823564 | O114: -3456.6916
A115: 112 | B115: Seychelles | C115: 2348.937 | D115: 0.0001692475232 | F115: 112 | G115: Burquina Faso | H115: 1596.8146 | I115: 9.874708143e-05 | K115: 112 | L115: Camboja | M115: 6129.6458 | N115: 0.0002039852188 | O115: -4373.0378
A116: 113 | B116: Congo, República Democrática do | C116: 2232.4506 | D116: 0.0001608543502 | F116: 113 | G116: Kuwait | H116: 1543.8124 | I116: 9.546942317e-05 | K116: 113 | L116: Andorra | M116: 6085.3588 | N116: 0.0002025114153 | O116: 5959.784
A117: 114 | B117: Bangladesh | C117: 2169.3256 | D117: 0.0001563060162 | F117: 114 | G117: Singapura | H117: 1540.6866 | I117: 9.527612357e-05 | K117: 114 | L117: Sri Lanca | M117: 6081.5606 | N117: 0.000202385017 | O117: -2971.175
A118: 115 | B118: Suazilândia | C118: 2067.1184 | D118: 0.0001489416997 | F118: 115 | G118: Seychelles | H118: 1430.66 | I118: 8.847207404e-05 | K118: 115 | L118: Congo, República Democrática do | M118: 5891.1252 | N118: 0.0001960476187 | O118: -1426.224
A119: 116 | B119: Irão, República Islâmica do | C119: 2015.5486 | D119: 0.0001452259505 | F119: 116 | G119: Bolívia | H119: 1415.5294 | I119: 8.75363971e-05 | K119: 116 | L119: Gabão | M119: 5802.9838 | N119: 0.000193114408 | O119: 136.5054
A120: 117 | B120: Islândia | C120: 1885.1564 | D120: 0.0001358308254 | F120: 117 | G120: São Tomé e Príncipe | H120: 1089.0898 | I120: 6.734935863e-05 | K120: 117 | L120: Burquina Faso | M120: 5682.894 | N120: 0.0001891180035 | O120: 2489.2648
A121: 118 | B121: Togo | C121: 1879.1826 | D121: 0.0001354003963 | F121: 118 | G121: Venezuela | H121: 1080.4086 | I121: 6.681251286e-05 | K121: 118 | L121: Omã | M121: 5590.2944 | N121: 0.0001860364307 | O121: 3943.0988
A122: 119 | B122: Sudão | C122: 1868.0632 | D122: 0.0001345992122 | F122: 119 | G122: Bósnia-Herzegovina | H122: 1034.9794 | I122: 6.400316924e-05 | K122: 119 | L122: Macedónia, Antiga República jugoslava da | M122: 5497.1524 | N122: 0.0001829368077 | O122: -3341.1964
A123: 120 | B123: Nicarágua | C123: 1709.2518 | D123: 0.0001231564038 | F123: 120 | G123: Geórgia | H123: 986.3118 | I123: 6.099356283e-05 | K123: 120 | L123: Zimbabwe | M123: 5240.2714 | N123: 0.0001743882017 | O123: -5106.5526
A124: 121 | B124: Jamaica | C124: 1645.8018 | D124: 0.0001185846527 | F124: 121 | G124: Cazaquistão | H124: 977.1902 | I124: 6.04294827e-05 | K124: 121 | L124: Suriname | M124: 5124.6412 | N124: 0.0001705402058 | O124: -3797.4556
A125: 122 | B125: El Salvador | C125: 1612.2706 | D125: 0.0001161686353 | F125: 122 | G125: El Salvador | H125: 921.9616 | I125: 5.701414378e-05 | K125: 122 | L125: Nicarágua | M125: 5057.4016 | N125: 0.000168302575 | O125: -1638.898
A126: 123 | B126: Cazaquistão | C126: 1586.0954 | D126: 0.0001142826385 | F126: 123 | G126: Omã | H126: 823.5978 | I126: 5.093132229e-05 | K126: 123 | L126: Venezuela | M126: 4994.5306 | N126: 0.0001662103244 | O126: 2833.7134
A127: 124 | B127: Sri Lanca | C127: 1555.1928 | D127: 0.0001120560192 | F127: 124 | G127: Timor-Leste | H127: 773.0574 | I127: 4.780590184e-05 | K127: 124 | L127: Myanmar | M127: 4788.3204 | N127: 0.000159347965 | O127: -4047.0964
A128: 125 | B128: Ruanda | C128: 1542.3664 | D128: 0.0001111318409 | F128: 125 | G128: Emirados Árabes Unidos | H128: 758.5788 | I128: 4.691054461e-05 | K128: 125 | L128: Benim | M128: 4403.5118 | N128: 0.0001465421245 | O128: 548.6134
A129: 126 | B129: Azerbaijão | C129: 1447.7444 | D129: 0.0001043140595 | F129: 126 | G129: Belarus | H129: 696.1704 | I129: 4.305120656e-05 | K129: 126 | L129: Papuásia-Nova Guiné | M129: 4270.9956 | N129: 0.0001421321884 | O129: -4265.2244
A130: 127 | B130: Etiópia | C130: 1408.5528 | D130: 0.0001014901944 | F130: 127 | G130: Turquemenistão | H130: 693.7048 | I130: 4.289873375e-05 | K130: 127 | L130: Madagáscar | M130: 3916.3472 | N130: 0.0001303300332 | O130: -3143.8156
A131: 128 | B131: Albânia | C131: 1395.6804 | D131: 0.0001005627017 | F131: 128 | G131: Iémen | H131: 684.2014 | I131: 4.23110431e-05 | K131: 128 | L131: Seychelles | M131: 3779.597 | N131: 0.0001257791961 | O131: 918.277
A132: 129 | B132: Bolívia | C132: 1235.6182 | D132: 8.902976963e-05 | F132: 129 | G132: Gronelândia | H132: 628.3832 | I132: 3.885924328e-05 | K132: 129 | L132: Malavi | M132: 3770.4898 | N132: 0.0001254761224 | O132: -3753.459
A133: 130 | B133: Montenegro | C133: 1193.9358 | D133: 8.602643537e-05 | F133: 130 | G133: Faroé, Ilhas | H133: 595.1746 | I133: 3.680562207e-05 | K133: 130 | L133: Gâmbia | M133: 3599.2092 | N133: 0.0001197761665 | O133: -2642.8956
A134: 131 | B134: São Bartolomeu | C134: 1183.3114 | D134: 8.526091744e-05 | F134: 131 | G134: Cabo Verde | H134: 418.902 | I134: 2.590491714e-05 | K134: 131 | L134: Catar | M134: 3530.8284 | N134: 0.0001175005583 | O134: 3488.1248
A135: 132 | B135: Honduras | C135: 1179.6472 | D135: 8.499690152e-05 | F135: 132 | G135: Usbequistão | H135: 380.4082 | I135: 2.352445895e-05 | K135: 132 | L135: Guiné | M135: 3487.284 | N135: 0.0001160514674 | O135: 2912.5316
A136: 133 | B136: Uganda | C136: 1159.4308 | D136: 8.354025299e-05 | F136: 133 | G136: Líbano | H136: 352.7452 | I136: 2.181377787e-05 | K136: 133 | L136: Timor-Leste | M136: 3441.8012 | N136: 0.0001145378695 | O136: 1895.6864
A137: 134 | B137: Macedónia, Antiga República jugoslava da | C137: 1077.978 | D137: 7.767134945e-05 | F137: 134 | G137: Chade | H137: 303.1764 | I137: 1.874844121e-05 | K137: 134 | L137: Arménia | M137: 2777.2188 | N137: 9.242158567e-05 | O137: 2678.2556
A138: 135 | B138: Paraguai | C138: 969.8092 | D138: 6.987748291e-05 | F138: 135 | G138: Guiné-Bissau | H138: 291.7994 | I138: 1.804488706e-05 | K138: 135 | L138: Guiné Equatorial | M138: 2722.4508 | N138: 9.059899056e-05 | O138: 2702.8832
A139: 136 | B139: Bermudas | C139: 957.27 | D139: 6.897399826e-05 | F139: 136 | G139: Guiné | H139: 287.3762 | I139: 1.777135619e-05 | K139: 136 | L139: Bolívia | M139: 2651.1476 | N139: 8.822612934e-05 | O139: -179.9112
A140: 137 | B140: Aruba | C140: 940.2512 | D140: 6.774774581e-05 | F140: 137 | G140: Togo | H140: 238.6312 | I140: 1.475696336e-05 | K140: 137 | L140: Centro-Africana, República | M140: 2569.5112 | N140: 8.550939505e-05 | O140: -2362.9152
A141: 138 | B141: Barbados | C141: 924.8742 | D141: 6.663978967e-05 | F141: 138 | G141: Irão, República Islâmica do | H141: 211.8398 | I141: 1.310018206e-05 | K141: 138 | L141: Cazaquistão | M141: 2563.2856 | N141: 8.530221662e-05 | O141: 608.9052
A142: 139 | B142: Camboja | C142: 878.304 | D142: 6.328427566e-05 | F142: 139 | G142: Zâmbia | H142: 183.9494 | I142: 1.137543856e-05 | K142: 139 | L142: El Salvador | M142: 2534.2322 | N142: 8.433536399e-05 | O142: 690.309
A143: 140 | B143: Trindade e Tobago | C143: 878.2468 | D143: 6.328015424e-05 | F143: 140 | G143: Jordânia | H143: 147.7944 | I143: 9.139611857e-06 | K143: 140 | L143: Serra Leoa | M143: 2340.2336 | N143: 7.787938788e-05 | O143: -1467.2992
A144: 141 | B144: Kosovo | C144: 870.5922 | D144: 6.272861876e-05 | F144: 141 | G144: Síria, República Árabe da | H144: 146.4108 | I144: 9.054049975e-06 | K144: 141 | L144: Irão, República Islâmica do | M144: 2227.3884 | N144: 7.412407256e-05 | O144: 1803.7088
A145: 142 | B145: Namíbia | C145: 866.1176 | D145: 6.240621124e-05 | F145: 142 | G145: Maldivas | H145: 127.2588 | I145: 7.869689497e-06 | K145: 142 | L145: Togo | M145: 2117.8138 | N145: 7.047759779e-05 | O145: 1640.5514
A146: 143 | B146: Turquemenistão | C146: 749.1004 | D146: 5.397479257e-05 | F146: 143 | G146: Albânia | H146: 125.4572 | I146: 7.758278478e-06 | K146: 143 | L146: Laos, República Democrática Popular do | M146: 1935.8146 | N146: 6.442094332e-05 | O146: -1593.9394
A147: 144 | B147: Barém | C147: 728.9324 | D147: 5.25216314e-05 | F147: 144 | G147: Azerbaijão | H147: 124.9342 | I147: 7.725936136e-06 | K147: 144 | L147: Sudão | M147: 1883.1514 | N147: 6.266839273e-05 | O147: 1852.975
A148: 145 | B148: Iémen | C148: 704.0114 | D148: 5.072600319e-05 | F148: 145 | G148: Kosovo | H148: 80.0466 | I148: 4.950085081e-06 | K148: 145 | L148: Jamaica | M148: 1660.4886 | N148: 5.525851597e-05 | O148: 1631.115
A149: 146 | B149: Suriname | C149: 663.5928 | D149: 4.781372928e-05 | F149: 146 | G149: Tajiquistão | H149: 74.7168 | I149: 4.620490027e-06 | K149: 146 | L149: Azerbaijão | M149: 1572.6786 | N149: 5.233633373e-05 | O149: 1322.8102
A150: 147 | B150: Niger | C150: 619.0434 | D150: 4.46038196e-05 | F150: 147 | G150: Andorra | H150: 62.7874 | I150: 3.882775433e-06 | K150: 147 | L150: Bósnia-Herzegovina | M150: 1571.857 | N150: 5.230899214e-05 | O150: -498.1018
A151: 148 | B151: São Martinho (parte holandesa) | C151: 606.1984 | D151: 4.367830119e-05 | F151: 148 | G151: Libéria | H151: 54.4472 | I151: 3.367017118e-06 | K151: 148 | L151: Ruanda | M151: 1569.669 | N151: 5.223617886e-05 | O151: 1515.0638
A152: 149 | B152: Bósnia-Herzegovina | C152: 536.8776 | D152: 3.868354241e-05 | F152: 149 | G152: Arábia Saudita | H152: 51.2828 | I152: 3.17133049e-06 | K152: 149 | L152: Albânia | M152: 1521.1376 | N152: 5.062112824e-05 | O152: 1270.2232
A153: 150 | B153: Curaçau | C153: 534.0534 | D153: 3.848005085e-05 | F153: 150 | G153: Fiji, Ilhas | H153: 50.1218 | I153: 3.099534201e-06 | K153: 150 | L153: Turquemenistão | M153: 1442.8052 | N153: 4.801434601e-05 | O153: 55.3956
A154: 151 | B154: Burundi | C154: 485.0592 | D154: 3.494988082e-05 | F154: 151 | G154: Arménia | H154: 49.4816 | I154: 3.059944207e-06 | K154: 151 | L154: Iémen | M154: 1388.2128 | N154: 4.61975946e-05 | O154: 19.81
A155: 152 | B155: Gâmbia | C155: 478.1568 | D155: 3.445254347e-05 | F155: 152 | G155: Falkland Ilhas (Malvinas) | H155: 46.09 | I155: 2.850207521e-06 | K155: 152 | L155: Montenegro | M155: 1194.2042 | N155: 3.97412857e-05 | O155: 1193.6674
A156: 153 | B156: Antígua e Barbuda | C156: 468.1724 | D156: 3.373313935e-05 | F156: 153 | G156: Aruba | H156: 45.6344 | I156: 2.822033198e-06 | K156: 153 | L156: São Bartolomeu | M156: 1185.2626 | N156: 3.944372296e-05 | O156: 1181.3602
A157: 154 | B157: Serra Leoa | C157: 436.4672 | D157: 3.144869043e-05 | F157: 154 | G157: Gibraltar | H157: 42.6724 | I157: 2.638862995e-06 | K157: 154 | L157: Aruba | M157: 985.8856 | N157: 3.280876193e-05 | O157: 894.6168
A158: 155 | B158: Tanzânia, República Unida da | C158: 409.5442 | D158: 2.950881249e-05 | F158: 155 | G158: Líbia, Jamahira Árabe da | H158: 41.1404 | I158: 2.544124051e-06 | K158: 155 | L158: Bermudas | M158: 958.1048 | N158: 3.188425948e-05 | O158: 956.4352
A159: 156 | B159: Nova Caledónia | C159: 388.6078 | D159: 2.800028594e-05 | F159: 156 | G159: Curaçau | H159: 39.2148 | I159: 2.425044867e-06 | K159: 156 | L159: Kosovo | M159: 950.6388 | N159: 3.163580244e-05 | O159: 790.5456
A160: 157 | B160: Madagáscar | C160: 386.2658 | D160: 2.783153824e-05 | F160: 157 | G160: Botswana | H160: 30.037 | I160: 1.857489332e-06 | K160: 157 | L160: Barbados | M160: 935.22 | N160: 3.112268841e-05 | O160: 914.5284
A161: 158 | B161: Myanmar | C161: 370.612 | D161: 2.670363789e-05 | F161: 158 | G161: São Pedro e Miquelon | H161: 28.9156 | I161: 1.788141909e-06 | K161: 158 | L161: Trindade e Tobago | M161: 878.6292 | N161: 2.923943331e-05 | O161: 877.8644
A162: 159 | B162: Comores | C162: 333.8038 | D162: 2.405150346e-05 | F162: 159 | G162: Ruanda | H162: 27.3026 | I162: 1.688393922e-06 | K162: 159 | L162: Barém | M162: 733.5568 | N162: 2.441164615e-05 | O162: 724.308
A163: 160 | B163: Haiti | C163: 328.0528 | D163: 2.363712772e-05 | F163: 160 | G163: São Marino | H163: 25.3104 | I163: 1.565196191e-06 | K163: 160 | L163: Usbequistão | M163: 665.2294 | N163: 2.213781499e-05 | O163: -95.587
A164: 161 | B164: Polinésia Francesa | C164: 317.6242 | D164: 2.288571774e-05 | F164: 161 | G164: Catar | H164: 21.3518 | I164: 1.320396202e-06 | K164: 161 | L164: Gronelândia | M164: 629.1046 | N164: 2.093563701e-05 | O164: -627.6618
A165: 162 | B165: Bahamas | C165: 305.389 | D165: 2.200413713e-05 | F165: 162 | G165: Macau | H165: 20.763 | I165: 1.283984786e-06 | K165: 162 | L165: Niger | M165: 622.3102 | N165: 2.070952979e-05 | O165: 615.7766
A166: 163 | B166: Libéria | C166: 303.6128 | D166: 2.187615692e-05 | F166: 163 | G166: Marshall, Ilhas | H166: 18.3784 | I166: 1.136521022e-06 | K166: 163 | L166: São Martinho (parte holandesa) | M166: 606.2012 | N166: 2.017344695e-05 | O166: 606.1956
A167: 164 | B167: Somália | C167: 293.0252 | D167: 2.111329054e-05 | F167: 164 | G167: Quirguizistão | H167: 17.5046 | I167: 1.082485194e-06 | K167: 164 | L167: Faroé, Ilhas | M167: 600.7416 | N167: 1.999175983e-05 | O167: -589.6076
A168: 165 | B168: Usbequistão | C168: 284.8212 | D168: 2.052216924e-05 | F168: 165 | G168: Salomão, Ilhas | H168: 16.0532 | I168: 9.927305572e-07 | K168: 165 | L168: Curaçau | M168: 573.2682 | N168: 1.907748718e-05 | O168: 494.8386
A169: 166 | B169: São Marino | C169: 251.4926 | D169: 1.812074979e-05 | F169: 166 | G169: Sudão | H169: 15.0882 | I169: 9.33054917e-07 | K169: 166 | L169: Burundi | M169: 485.2096 | N169: 1.614703192e-05 | O169: 484.9088
A170: 167 | B170: Bonaire, Santo Eustáquio e Saba | C170: 241.8602 | D170: 1.742670826e-05 | F170: 167 | G170: Jamaica | H170: 14.6868 | I170: 9.082323242e-07 | K170: 167 | L170: Antígua e Barbuda | M170: 477.853 | N170: 1.590221555e-05 | O170: 458.4918
A171: 168 | B171: Laos, República Democrática Popular do | C171: 170.9376 | D171: 1.231653528e-05 | F171: 168 | G171: Iraque | H171: 13.1736 | I171: 8.146559732e-07 | K171: 168 | L171: Nova Caledónia | M171: 390.0338 | N171: 1.297972715e-05 | O171: 387.1818
A172: 169 | B172: Zâmbia | C172: 164.9114 | D172: 1.18823306e-05 | F172: 169 | G172: São Cristovão e Nevis | H172: 12.4064 | I172: 7.672122932e-07 | K172: 169 | L172: Libéria | M172: 358.06 | N172: 1.191568809e-05 | O172: 249.1656
A173: 170 | B173: Santa Lúcia | C173: 158.8492 | D173: 1.144553203e-05 | F173: 170 | G173: Nepal | H173: 12.0278 | I173: 7.437996534e-07 | K173: 170 | L173: Zâmbia | M173: 348.8608 | N173: 1.160955281e-05 | O173: -19.038
A174: 171 | B174: Liechtenstein | C174: 144.4366 | D174: 1.040706363e-05 | F174: 171 | G174: Território Palestiniano Ocupado | H174: 11.6698 | I174: 7.216609185e-07 | K174: 171 | L174: Comores | M174: 333.8038 | N174: 1.110847892e-05 | O174: 333.8038
A175: 172 | B175: Maldivas | C175: 139.5096 | D175: 1.005205941e-05 | F175: 172 | G175: Barbados | H175: 10.3458 | I175: 6.397847033e-07 | K175: 172 | L175: Haiti | M175: 328.3394 | N175: 1.092663206e-05 | O175: 327.7662
A176: 173 | B176: Ceuta e Melilha | C176: 132.796 | D176: 9.568325626e-06 | F176: 173 | G176: Jibuti | H176: 9.885 | I176: 6.112888121e-07 | K176: 173 | L176: Polinésia Francesa | M176: 318.4566 | N176: 1.059774762e-05 | O176: 316.7918
A177: 174 | B177: Quirguizistão | C177: 130.9018 | D177: 9.431843184e-06 | F177: 174 | G177: Guiné Equatorial | H177: 9.7838 | I177: 6.050305999e-07 | K177: 174 | L177: Bahamas | M177: 305.389 | N177: 1.016287792e-05 | O177: 305.389
A178: 175 | B178: Botswana | C178: 118.8382 | D178: 8.562626845e-06 | F178: 175 | G178: Antígua e Barbuda | H178: 9.6806 | I178: 5.986487076e-07 | K178: 175 | L178: Chade | M178: 303.2232 | N178: 1.009080342e-05 | O178: -303.1296
A179: 176 | B179: Guiana | C179: 116.6432 | D179: 8.404470916e-06 | F179: 176 | G179: Santa Helena | H179: 5.0476 | I179: 3.121437944e-07 | K179: 176 | L179: Somália | M179: 293.0252 | N179: 9.751429605e-06 | O179: 293.0252
A180: 177 | B180: Nepal | C180: 114.3036 | D180: 8.23589615e-06 | F180: 177 | G180: Barém | H180: 4.6244 | I180: 2.859730888e-07 | K180: 177 | L180: São Marino | M180: 276.803 | N180: 9.211579649e-06 | O180: 226.1822
A181: 178 | B181: Afeganistão | C181: 109.4574 | D181: 7.886713797e-06 | F181: 178 | G181: Niger | H181: 3.2668 | I181: 2.020190482e-07 | K181: 178 | L181: Maldivas | M181: 266.7684 | N181: 8.877643539e-06 | O181: 12.2508
A182: 179 | B182: Virgens Britânicas, Ilhas | C182: 106.6708 | D182: 7.685931423e-06 | F182: 179 | G182: São Bartolomeu | H182: 1.9512 | I182: 1.206622893e-07 | K182: 179 | L182: Bonaire, Santo Eustáquio e Saba | M182: 241.8602 | N182: 8.048736814e-06 | O182: 241.8602
A183: 180 | B183: Centro-Africana, República | C183: 103.298 | D183: 7.442911688e-06 | F183: 180 | G183: Liechtenstein | H183: 1.8568 | I183: 1.148245894e-07 | K183: 180 | L183: Santa Lúcia | M183: 158.8768 | N183: 5.287176431e-06 | O183: 158.8216
A184: 181 | B184: Jibuti | C184: 90.5884 | D184: 6.52714923e-06 | F184: 181 | G184: Lesoto | H184: 1.7136 | I184: 1.059690954e-07 | K184: 181 | L184: Botswana | M184: 148.8752 | N184: 4.95433851e-06 | O184: 88.8012
A185: 182 | B185: Caimão, Ilhas | C185: 73.8006 | D185: 5.317540982e-06 | F185: 182 | G185: Nova Caledónia | H185: 1.426 | I185: 8.818389945e-08 | K185: 182 | L185: Quirguizistão | M185: 148.4064 | N185: 4.938737564e-06 | O185: 113.3972
A186: 183 | B186: Zimbabwe | C186: 66.8594 | D186: 4.817407982e-06 | F186: 183 | G186: Bermudas | H186: 0.8348 | I186: 5.16240668e-08 | K186: 183 | L186: Liechtenstein | M186: 146.2934 | N186: 4.868420163e-06 | O186: 142.5798
A187: 184 | B187: Turcas e Caicos, Ilhas | C187: 48.519 | D187: 3.495930533e-06 | F187: 184 | G187: Polinésia Francesa | H187: 0.8324 | I187: 5.14756507e-08 | K187: 184 | L187: Ceuta e Melilha | M187: 132.796 | N187: 4.419247375e-06 | O187: 132.796
A188: 185 | B188: Virgens dos Estados Unidos, Ilhas | C188: 27.4406 | D188: 1.977172476e-06 | F188: 185 | G188: Micronésia, Estados Federados da | H188: 0.6592 | I188: 4.076495548e-08 | K188: 185 | L188: Nepal | M188: 126.3314 | N188: 4.204115394e-06 | O188: 102.2758
A189: 186 | B189: Mongólia | C189: 26.1112 | D189: 1.881385464e-06 | F189: 186 | G189: Afeganistão | H189: 0.6156 | I189: 3.806872966e-08 | K189: 186 | L189: Afeganistão | M189: 110.073 | N189: 3.663060757e-06 | O189: 108.8418
A190: 187 | B190: Belize | C190: 19.5092 | D190: 1.405692779e-06 | F190: 187 | G190: Trindade e Tobago | H190: 0.3824 | I190: 2.364763194e-08 | K190: 187 | L190: Virgens Britânicas, Ilhas | M190: 106.6778 | N190: 3.550073704e-06 | O190: 106.6638
A191: 188 | B191: Anguila | C191: 15.482 | D191: 1.115521682e-06 | F191: 188 | G191: Haiti | H191: 0.2866 | I191: 1.772335595e-08 | K191: 188 | L191: Jibuti | M191: 100.4734 | N191: 3.34360078e-06 | O191: 80.7034
A192: 189 | B192: Brunei Darussalam | C192: 13.5634 | D192: 9.772811516e-07 | F192: 189 | G192: Montenegro | H192: 0.2684 | I192: 1.659786719e-08 | K192: 189 | L192: Tajiquistão | M192: 74.7168 | N192: 2.486460603e-06 | O192: -74.7168
A193: 190 | B193: Fiji, Ilhas | C193: 11.4598 | D193: 8.257108498e-07 | F193: 190 | G193: Burundi | H193: 0.1504 | I193: 9.30074227e-09 | K193: 190 | L193: Caimão, Ilhas | M193: 73.8014 | N193: 2.455997494e-06 | O193: 73.7998
A194: 191 | B194: Malavi | C194: 8.5154 | D194: 6.135585412e-07 | F194: 191 | G194: Oceano Indico, Território Britânico do | H194: 0.1384 | I194: 8.558661769e-09 | K194: 191 | L194: Fiji, Ilhas | M194: 61.5816 | N194: 2.049341276e-06 | O194: -38.662
A195: 192 | B195: São Vicente e Granadinas | C195: 7.5006 | D195: 5.404393445e-07 | F195: 192 | G195: Vanuatu | H195: 0.0874 | I195: 5.404819643e-09 | K195: 192 | L195: Turcas e Caicos, Ilhas | M195: 48.519 | N195: 1.614637966e-06 | O195: 48.519
A196: 193 | B196: Guam | C196: 6.4026 | D196: 4.613253536e-07 | F196: 193 | G196: Nauru | H196: 0.0694 | I196: 4.291698893e-09 | K196: 193 | L196: Falkland Ilhas (Malvinas) | M196: 46.09 | N196: 1.533804569e-06 | O196: -46.09
A197: 194 | B197: Territórios Franceses do Sul | C197: 6.3292 | D197: 4.56036677e-07 | F197: 194 | G197: Palau | H197: 0.0478 | I197: 2.955953993e-09 | K197: 194 | L197: São Pedro e Miquelon | M197: 28.9156 | N197: 9.622668559e-07 | O197: -28.9156
A198: 195 | B198: Faroé, Ilhas | C198: 5.567 | D198: 4.011180213e-07 | F198: 195 | G198: Santa Lúcia | H198: 0.0276 | I198: 1.706785151e-09 | K198: 195 | L198: Virgens dos Estados Unidos, Ilhas | M198: 27.4406 | N198: 9.131811163e-07 | O198: 27.4406
A199: 196 | B199: Sudão do Sul | C199: 3.771 | D199: 2.717111655e-07 | F199: 196 | G199: Coreia, República Popular Democrática da | H199: 0.0196 | I199: 1.212064817e-09 | K199: 196 | L199: Mongólia | M199: 26.1254 | N199: 8.694132758e-07 | O199: 26.097
A200: 197 | B200: Marianas do Norte, Ilhas | C200: 2.9244 | D200: 2.107112523e-07 | F200: 197 | G200: São Vicente e Granadinas | H200: 0.0144 | I200: 8.904966003e-10 | K200: 197 | L200: Marshall, Ilhas | M200: 18.3784 | N200: 6.116049878e-07 | O200: -18.3784
... 58 more rows

Sheet 2AA
A1: Ranking dos parceiros comerciais de Portugal por país (média 2019-2023 em milhares de euros) produtos agrícolas e agroalimentares
A2: Exportações | F2: Importações | K2: Trocas comerciais (total e saldo)
A3: P | B3: País | C3: média quinquénio | D3: % do Total | F3: P | G3: País | H3: média quinquénio | I3: % do Total | K3: P | L3: País | M3: Total (exp+imp) | N3: % do Total | O3: Saldo (exp-imp)
A4: 1 | B4: Espanha | C4: 2756526.707 | D4: 0.3558035873 | F4: 1 | G4: Espanha | H4: 5213607.897 | I4: 0.4650325303 | K4: 1 | L4: Espanha | M4: 7970134.604 | N4: 0.4203967335 | O4: -2457081.19
A5: 2 | B5: França | C5: 750994.669 | D5: 0.09693597256 | F5: 2 | G5: França | H5: 877795.2262 | I5: 0.07829574897 | K5: 2 | L5: França | M5: 1628789.895 | N5: 0.08591297205 | O5: -126800.5572
A6: 3 | B6: Itália | C6: 479490.8484 | D6: 0.06189113404 | F6: 3 | G6: Alemanha | H6: 721043.162 | I6: 0.06431410507 | K6: 3 | L6: Países Baixos | M6: 1047768.52 | N6: 0.05526612602 | O6: -309895.61
A7: 4 | B7: Brasil | C7: 405414.6 | D7: 0.05232961053 | F7: 4 | G7: Países Baixos | H7: 678832.0652 | I7: 0.06054904764 | K7: 4 | L7: Brasil | M7: 1040851.628 | N7: 0.05490128415 | O7: -230022.4284
A8: 5 | B8: Países Baixos | C8: 368936.4552 | D8: 0.04762112912 | F8: 5 | G8: Brasil | H8: 635437.0284 | I8: 0.0566783876 | K8: 5 | L8: Alemanha | M8: 1002774.079 | N8: 0.05289282656 | O8: -439312.245
A9: 6 | B9: Alemanha | C9: 281730.917 | D9: 0.03636491918 | F9: 6 | G9: Itália | H9: 370300.5088 | I9: 0.03302929295 | K9: 6 | L9: Itália | M9: 849791.3572 | N9: 0.04482352287 | O9: 109190.3396 | P9: Nota: Nesta listagem, o Reino Unido passa a ser constituído por três componentes: Reino Unido [até 2020] ; Reino Unido (sem Irlanda do Norte) pós-2020 e Reino Unido (Irlanda do Norte) pós-2020. Estas componentes são calculadas igualmente como média do quinquénio, embora a primeira corresponda apenas a 2019-2020 e as duas últimas a 2021-2023.
A10: 7 | B10: Angola | C10: 239303.2474 | D10: 0.03088849226 | F10: 7 | G10: Bélgica | H10: 281220.828 | I10: 0.02508374926 | K10: 7 | L10: Bélgica | M10: 455570.7978 | N10: 0.02402976672 | O10: -106870.8582
A11: 8 | B11: Reino Unido (sem Irlanda do Norte) pós 2020 | C11: 237675.3426 | D11: 0.03067836756 | F11: 8 | G11: Ucrânia | H11: 218361.6698 | I11: 0.01947696908 | K11: 8 | L11: Estados Unidos | M11: 399333.3418 | N11: 0.02106343755 | O11: -4824.3558
A12: 9 | B12: Estados Unidos | C12: 197254.493 | D12: 0.02546097451 | F12: 9 | G12: Polónia | H12: 216578.9564 | I12: 0.01931795833 | K12: 9 | L12: Polónia | M12: 362096.5628 | N12: 0.01909932765 | O12: -71061.35
A13: 10 | B13: Israel | C13: 180621.8384 | D13: 0.02331408503 | F13: 10 | G13: Estados Unidos | H13: 202078.8488 | I13: 0.01802460796 | K13: 10 | L13: Reino Unido (sem Irlanda do Norte) pós 2020 | M13: 312269.886 | N13: 0.01647114466 | O13: 163080.7992
A14: 11 | B14: Bélgica | C14: 174349.9698 | D14: 0.02250453244 | F14: 11 | G14: Roménia | H14: 147646.568 | I14: 0.01316947083 | K14: 11 | L14: Angola | M14: 248889.2528 | N14: 0.01312803787 | O14: 229717.242
A15: 12 | B15: Polónia | C15: 145517.6064 | D15: 0.01878294385 | F15: 12 | G15: África do Sul | H15: 122030.6004 | I15: 0.01088463114 | K15: 12 | L15: Ucrânia | M15: 226323.7844 | N15: 0.01193778831 | O15: -210399.5552
A16: 13 | B16: Reino Unido | C16: 140181.6612 | D16: 0.01809419724 | F16: 13 | G16: Canadá | H16: 114587.5954 | I16: 0.0102207455 | K16: 13 | L16: Reino Unido | M16: 218445.519 | N16: 0.01152223735 | O16: 61917.8034
A17: 14 | B17: Suíça | C17: 101114.2498 | D17: 0.01305150163 | F17: 14 | G17: Irlanda | H17: 113856.0414 | I17: 0.01015549387 | K17: 14 | L17: Canadá | M17: 187938.0184 | N17: 0.009913073362 | O17: -41237.1724
A18: 15 | B18: Cabo Verde | C18: 93279.335 | D18: 0.01204019606 | F18: 15 | G18: Argentina | H18: 81740.7412 | I18: 0.007290940259 | K18: 15 | L18: Israel | M18: 185954.1124 | N18: 0.009808429257 | O18: 175289.5644
A19: 16 | B19: Canadá | C19: 73350.423 | D19: 0.009467836304 | F19: 16 | G19: Reino Unido | H19: 78263.8578 | I19: 0.00698081646 | K19: 16 | L19: Roménia | M19: 164393.706 | N19: 0.008671193204 | O19: -130899.43
A20: 17 | B20: China, República Popular da | C20: 65000.3236 | D20: 0.008390032373 | F20: 17 | G20: Dinamarca | H20: 77827.4728 | I20: 0.006941892701 | K20: 17 | L20: Irlanda | M20: 144417.1364 | N20: 0.007617499004 | O20: -83294.9464
A21: 18 | B21: Japão | C21: 61058.1046 | D21: 0.007881183444 | F21: 18 | G21: Reino Unido (sem Irlanda do Norte) pós 2020 | H21: 74594.5434 | I21: 0.006653528602 | K21: 18 | L21: África do Sul | M21: 144191.7508 | N21: 0.007605610701 | O21: -99869.45
A22: 19 | B22: Suécia | C22: 55343.9304 | D22: 0.007143616247 | F22: 19 | G22: Costa Rica | H22: 70756.5738 | I22: 0.00631119739 | K22: 19 | L22: Dinamarca | M22: 126426.6714 | N22: 0.006668564877 | O22: -29228.2742
A23: 20 | B23: Marrocos | C23: 49767.4468 | D23: 0.006424912975 | F23: 20 | G23: China, República Popular da | H23: 48105.6586 | I23: 0.004290828268 | K23: 20 | L23: China, República Popular da | M23: 113105.9822 | N23: 0.005965945096 | O23: 16894.665
A24: 21 | B24: Dinamarca | C24: 48599.1986 | D24: 0.006273027994 | F24: 21 | G24: Bulgária | H24: 41898.2634 | I24: 0.003737153969 | K24: 21 | L24: Suíça | M24: 103786.2768 | N24: 0.005474363222 | O24: 98442.2228
A25: 22 | B25: Luxemburgo | C25: 48499.8844 | D25: 0.006260208837 | F25: 22 | G25: Grécia | H25: 35154.546 | I25: 0.00313564192 | K25: 22 | L25: Cabo Verde | M25: 93424.5136 | N25: 0.004927816442 | O25: 93134.1564
A26: 23 | B26: Rússia, Federação da | C26: 47519.044 | D26: 0.006133605118 | F26: 23 | G26: Colômbia | H26: 31210.9096 | I26: 0.002783885661 | K26: 23 | L26: Argentina | M26: 82057.1494 | N26: 0.004328227725 | O26: -81424.333
A27: 24 | B27: Guiné-Bissau | C27: 33196.7706 | D27: 0.004284932206 | F27: 24 | G27: Guiana | H27: 31014.2578 | I27: 0.002766345123 | K27: 24 | L27: Japão | M27: 72873.96 | N27: 0.003843846593 | O27: 49242.2492
A28: 25 | B28: Irlanda | C28: 30561.095 | D28: 0.003944727691 | F28: 25 | G28: Vietname | H28: 30892.5166 | I28: 0.002755486305 | K28: 25 | L28: Costa Rica | M28: 72072.464 | N28: 0.003801570481 | O28: -69440.6836
A29: 26 | B29: Arábia Saudita | C29: 29146.6976 | D29: 0.003762161831 | F29: 26 | G29: Cuba | H29: 28789.5394 | I29: 0.002567909328 | K29: 26 | L29: Suécia | M29: 68701.1834 | N29: 0.003623747217 | O29: 41986.6774
A30: 27 | B30: Moçambique | C30: 28595.144 | D30: 0.003690969069 | F30: 27 | G30: Áustria | H30: 27528.3534 | I30: 0.002455416688 | K30: 27 | L30: Marrocos | M30: =SUM(C23,H52) -> 61090.9854 | N30: 0.003222781821 | O30: 38452.3626
A31: 28 | B31: São Tomé e Príncipe | C31: 25055.0656 | D31: 0.003234027153 | F31: 28 | G31: Chile | H31: 26079.5266 | I31: 0.002326187255 | K31: 28 | L31: Grécia | M31: 60059.6984 | N31: 0.003167939097 | O31: -10249.3936
A32: 29 | B32: Grécia | C32: 24905.1524 | D32: 0.00321467684 | F32: 29 | G32: Checa, República | H32: 24358.1106 | I32: 0.002172643979 | K32: 29 | L32: Rússia, Federação da | M32: 59387.4766 | N32: 0.003132481748 | O32: 35650.6114
A33: 30 | B33: Finlândia | C33: 22507.389 | D33: 0.002905181265 | F33: 30 | G33: Índia | H33: 24071.1366 | I33: 0.00214704707 | K33: 30 | L33: Luxemburgo | M33: 56734.1026 | N33: 0.002992525546 | O33: 40265.6662
A34: 31 | B34: África do Sul | C34: 22161.1504 | D34: 0.002860489902 | F34: 31 | G34: Uruguai | H34: 22728.6906 | I34: 0.00202730637 | K34: 31 | L34: Bulgária | M34: 50926.6468 | N34: 0.002686202558 | O34: -32869.88
A35: 32 | B35: Jordânia | C35: 21900.1484 | D35: 0.002826800605 | F35: 32 | G35: Costa do Marfim | H35: 22619.1534 | I35: 0.002017536099 | K35: 32 | L35: Checa, República | M35: 43802.439 | N35: 0.002310425506 | O35: -4913.7822
A36: 33 | B36: Argélia | C36: 20568.7852 | D36: 0.002654952532 | F36: 33 | G36: Turquia | H36: 19669.1464 | I36: 0.001754407524 | K36: 33 | L36: Áustria | M36: 42081.8714 | N36: 0.002219671581 | O36: -12974.8354
A37: 34 | B37: Checa, República | C37: 19444.3284 | D37: 0.00250981127 | F37: 34 | G37: Hungria | H37: 18973.8342 | I37: 0.001692388515 | K37: 34 | L37: Moçambique | M37: 38414.706 | N37: 0.002026241428 | O37: 18775.582
A38: 35 | B38: Noruega | C38: 18383.7692 | D38: 0.002372917705 | F38: 35 | G38: Suazilândia | H38: 17908.3876 | I38: 0.00159735503 | K38: 35 | L38: Colômbia | M38: 37783.0652 | N38: 0.001992924584 | O38: -24638.754
A39: 36 | B39: Coreia, República da | C39: 16791.4172 | D39: 0.002167382039 | F39: 36 | G39: Letónia | H39: 17561.0816 | I39: 0.001566376753 | K39: 36 | L39: Guiné-Bissau | M39: 33467.6086 | N39: 0.001765299337 | O39: 32925.9326
A40: 37 | B40: Roménia | C40: 16747.138 | D40: 0.002161666622 | F40: 37 | G40: Uganda | H40: 17520.2176 | I40: 0.001562731852 | K40: 37 | L40: Austrália | M40: 33457.6176 | N40: 0.001764772347 | O40: -224.8624
A41: 38 | B41: Austrália | C41: 16616.3776 | D41: 0.002144788491 | F41: 38 | G41: Austrália | H41: 16841.24 | I41: 0.001502169823 | K41: 38 | L41: Cuba | M41: 33227.7552 | N41: 0.001752647909 | O41: -24351.3236
A42: 39 | B42: Áustria | C42: 14553.518 | D42: 0.00187852122 | F42: 39 | G42: Lituânia | H42: 14616.305 | I42: 0.001303714708 | K42: 39 | L42: Vietname | M42: 32990.675 | N42: 0.001740142757 | O42: -28794.3582
A43: 40 | B43: Emirados Árabes Unidos | C43: 13773.8568 | D43: 0.001777885064 | F43: 40 | G43: México | H43: 13942.9954 | I43: 0.001243658242 | K43: 40 | L43: Chile | M43: 31046.9382 | N43: 0.001637617437 | O43: -21112.115
A44: 41 | B44: Iraque | C44: 13213.736 | D44: 0.001705586475 | F44: 41 | G44: Peru | H44: 13551.1124 | I44: 0.001208703879 | K44: 41 | L44: Guiana | M44: 31034.393 | N44: 0.001636955722 | O44: -30994.1226
A45: 42 | B45: Nigéria | C45: 12563.3872 | D45: 0.001621641547 | F45: 42 | G45: Egito | H45: 13444.2972 | I45: 0.001199176399 | K45: 42 | L45: Hungria | M45: 30978.8802 | N45: 0.001634027616 | O45: -6968.7882
A46: 43 | B46: Hungria | C46: 12005.046 | D46: 0.001549572664 | F46: 43 | G46: Indonésia | H46: 13373.0426 | I46: 0.00119282078 | K46: 43 | L46: Finlândia | M46: 30626.9338 | N46: 0.001615463674 | O46: 14387.8442
A47: 44 | B47: Macau | C47: 11456.2218 | D47: 0.001478732204 | F47: 44 | G47: Suécia | H47: 13357.253 | I47: 0.001191412412 | K47: 44 | L47: Costa do Marfim | M47: 30195.695 | N47: 0.001592717335 | O47: -15042.6118
A48: 45 | B48: Território Palestiniano Ocupado | C48: 11126.9966 | D48: 0.001436236876 | F48: 45 | G48: Paquistão | H48: 12392.2934 | I48: 0.001105341957 | K48: 45 | L48: Turquia | M48: 29730.2228 | N48: 0.001568165304 | O48: -9608.07
A49: 46 | B49: Líbia, Jamahira Árabe da | C49: 10747.1924 | D49: 0.001387212973 | F49: 46 | G49: Moldava, República de | H49: 12169.9448 | I49: 0.00108550937 | K49: 46 | L49: Arábia Saudita | M49: 29183.7518 | N49: 0.001539340869 | O49: 29109.6434
A50: 47 | B50: Senegal | C50: 10277.8906 | D50: 0.001326637009 | F50: 47 | G50: Rússia, Federação da | H50: 11868.4326 | I50: 0.001058615713 | K50: 47 | L50: Índia | M50: 27213.734 | N50: 0.001435429318 | O50: -20928.5392
A51: 48 | B51: Turquia | C51: 10061.0764 | D51: 0.00129865133 | F51: 48 | G51: Japão | H51: 11815.8554 | I51: 0.001053926042 | K51: 48 | L51: São Tomé e Príncipe | M51: 26143.8986 | N51: 0.001378999241 | O51: 23966.2326
A52: 49 | B52: Kuwait | C52: 9238.6512 | D52: 0.001192495335 | F52: 49 | G52: Marrocos | H52: 11323.5386 | I52: 0.001010013394 | K52: 49 | L52: Uruguai | M52: 24804.8014 | N52: 0.001308366546 | O52: -20652.5798
A53: 50 | B53: Bulgária | C53: 9028.3834 | D53: 0.001165354645 | F53: 50 | G53: Tailândia | H53: 10221.1584 | I53: 0.0009116855827 | K53: 50 | L53: Letónia | M53: 24572.4534 | N53: 0.001296111001 | O53: -10549.7098
A54: 51 | B54: Eslováquia | C54: 8982.5242 | D54: 0.001159435287 | F54: 51 | G54: Paraguai | H54: 9863.0808 | I54: 0.0008797465233 | K54: 51 | L54: Argélia | M54: 22398.8544 | N54: 0.001181461254 | O54: 18738.716
A55: 52 | B55: Ucrânia | C55: 7962.1146 | D55: 0.001027724103 | F55: 52 | G55: Moçambique | H55: 9819.562 | I55: 0.0008758648241 | K55: 52 | L55: Jordânia | M55: 22020.7756 | N55: 0.001161518919 | O55: 21779.5212
A56: 53 | B56: Costa do Marfim | C56: 7576.5416 | D56: 0.0009779555821 | F56: 53 | G56: Angola | H56: 9586.0054 | I56: 0.0008550325293 | K56: 53 | L56: México | M56: 20411.1484 | N56: 0.001076616712 | O56: -7474.8424
A57: 54 | B57: Letónia | C57: 7011.3718 | D57: 0.000905005285 | F57: 54 | G57: Equador | H57: 9434.7056 | I57: 0.0008415372051 | K57: 54 | L57: Lituânia | M57: 20256.6616 | N57: 0.001068468074 | O57: -8975.9484
A58: 55 | B58: Gibraltar | C58: 6867.0166 | D58: 0.0008863723808 | F58: 55 | G58: Sérvia | H58: 8961.3684 | I58: 0.0007993174601 | K58: 55 | L58: Suazilândia | M58: 19974.7344 | N58: 0.0010535974 | O58: -15842.0408
A59: 56 | B59: Maurícias | C59: 6601.9064 | D59: 0.0008521528102 | F59: 56 | G59: Belize | H59: 8481.6488 | I59: 0.0007565284311 | K59: 56 | L59: Noruega | M59: 19562.9914 | N59: 0.001031879396 | O59: 17204.547
A60: 57 | B60: Colômbia | C60: 6572.1556 | D60: 0.0008483126728 | F60: 57 | G60: Luxemburgo | H60: 8234.2182 | I60: 0.0007344586322 | K60: 57 | L60: Uganda | M60: 18130.6166 | N60: 0.0009563266336 | O60: -16909.8186
A61: 58 | B61: México | C61: 6468.153 | D61: 0.0008348883522 | F61: 58 | G61: Estónia | H61: 8150.5124 | I61: 0.0007269924167 | K61: 58 | L61: Coreia, República da | M61: 18110.515 | N61: 0.0009552663445 | O61: 15472.3194
A62: 59 | B62: Andorra | C62: 5880.33 | D62: 0.000759014053 | F62: 59 | G62: Finlândia | H62: 8119.5448 | I62: 0.0007242302332 | K62: 59 | L62: Peru | M62: 15536.0606 | N62: 0.0008194728762 | O62: -11566.1642
A63: 60 | B63: Lituânia | C63: 5640.3566 | D63: 0.0007280390596 | F63: 60 | G63: Nova Zelânda | H63: 7373.8184 | I63: 0.0006577144842 | K63: 60 | L63: Egito | M63: 15081.7762 | N63: 0.0007955109625 | O63: -11806.8182
A64: 61 | B64: Malta | C64: 5443.689 | D64: 0.0007026538394 | F64: 61 | G64: Malásia | H64: 6878.308 | I64: 0.0006135169803 | K64: 61 | L64: Indonésia | M64: 14601.5172 | N64: 0.0007701789794 | O64: -12144.568
A65: 62 | B65: Estónia | C65: 5389.6404 | D65: 0.0006956774202 | F65: 62 | G65: Camarões | H65: 6873.6916 | I65: 0.0006131052163 | K65: 62 | L65: Emirados Árabes Unidos | M65: 14302.271 | N65: 0.0007543947886 | O65: 13245.4426
A66: 63 | B66: HongKong | C66: 4973.9084 | D66: 0.0006420160729 | F66: 63 | G66: Eslovénia | H66: 5884.5426 | I66: 0.0005248771655 | K66: 63 | L66: Eslováquia | M66: 14111.0314 | N66: 0.0007443075684 | O66: 3854.017
A67: 64 | B67: Chile | C67: 4967.4116 | D67: 0.0006411774869 | F67: 64 | G67: Israel | H67: 5332.274 | I67: 0.000475617062 | K67: 64 | L67: Tailândia | M67: 13545.4648 | N67: 0.0007144759077 | O67: -6896.852
A68: 65 | B68: Chipre | C68: 4693.4188 | D68: 0.000605811379 | F68: 65 | G68: Honduras | H68: 5320.7232 | I68: 0.0004745867778 | K68: 65 | L68: Estónia | M68: 13540.1528 | N68: 0.0007141957183 | O68: -2760.872
A69: 66 | B69: Cuba | C69: 4438.2158 | D69: 0.0005728705978 | F69: 66 | G69: Camboja | H69: 5251.2876 | I69: 0.0004683934059 | K69: 66 | L69: Iraque | M69: 13226 | N69: 0.0006976252565 | O69: 13201.472
A70: 67 | B70: Mali | C70: 4408.7876 | D70: 0.0005690721006 | F70: 67 | G70: Zimbabwe | H70: 5172.692 | I70: 0.0004613829994 | K70: 67 | L70: Paquistão | M70: 12653.1142 | N70: 0.0006674075336 | O70: -12131.4726
A71: 68 | B71: Omã | C71: 4251.3822 | D71: 0.0005487547186 | F71: 68 | G71: Eslováquia | H71: 5128.5072 | I71: 0.0004574418957 | K71: 68 | L71: Nigéria | M71: 12613.3818 | N71: 0.0006653117884 | O71: 12513.3926
A72: 69 | B72: Sérvia | C72: 3643.2286 | D72: 0.0004702562111 | F72: 69 | G72: Etiópia | H72: 4865.161 | I72: 0.0004339524903 | K72: 69 | L72: Sérvia | M72: 12604.597 | N72: 0.0006648484209 | O72: -5318.1398
A73: 70 | B73: Gana | C73: 3561.703 | D73: 0.0004597331493 | F73: 70 | G73: Reino Unido (Irlanda do Norte) pós-2020 | H73: 4850.4368 | I73: 0.0004326391518 | K73: 70 | L73: Moldava, República de | M73: 12435.7646 | N73: 0.0006559431021 | O73: -11904.125
A74: 71 | B74: Síria, República Árabe da | C74: 3557.076 | D74: 0.000459135911 | F74: 71 | G74: Tanzânia, República Unida da | H74: 4645.6104 | I74: 0.0004143694735 | K74: 71 | L74: Macau | M74: 11474.4464 | N74: 0.0006052369282 | O74: 11437.9972
A75: 72 | B75: Tailândia | C75: 3324.3064 | D75: 0.0004290907609 | F75: 72 | G75: Filipinas | H75: 4316.8954 | I75: 0.000385049438 | K75: 72 | L75: Território Palestiniano Ocupado | M75: 11138.6664 | N75: 0.0005875257073 | O75: 11115.3268
A76: 73 | B76: Singapura | C76: 3292.5498 | D76: 0.0004249917213 | F76: 73 | G76: Macedónia, Antiga República jugoslava da | H76: 4269.76 | I76: 0.0003808451529 | K76: 73 | L76: Kuwait | M76: 10781.5982 | N76: 0.0005686916082 | O76: 7695.7042
A77: 74 | B77: Eslovénia | C77: 3209.1284 | D77: 0.0004142239557 | F77: 74 | G77: Myanmar | H77: 4258.6984 | I77: 0.0003798585033 | K77: 74 | L77: Senegal | M77: 10777.8706 | N77: 0.0005684949903 | O77: 9777.9106
A78: 75 | B78: Índia | C78: 3142.5974 | D78: 0.0004056363486 | F78: 75 | G78: Tunísia | H78: 4096.3914 | I78: 0.0003653813819 | K78: 75 | L78: Líbia, Jamahira Árabe da | M78: 10763.4438 | N78: 0.000567734027 | O78: 10730.941
A79: 76 | B79: Taiwan | C79: 3027.0112 | D79: 0.0003907168542 | F79: 76 | G79: Quénia | H79: 3999.6272 | I79: 0.0003567504104 | K79: 76 | L79: Paraguai | M79: 10570.8508 | N79: 0.0005575754197 | O79: -9155.3108
A80: 77 | B80: Guiné | C80: 2745.3572 | D80: 0.0003543618633 | F80: 77 | G80: Chipre | H80: 3968.4594 | I80: 0.00035397037 | K80: 77 | L80: Equador | M80: 10263.4314 | N80: 0.0005413601212 | O80: -8605.9798
A81: 78 | B81: Burquina Faso | C81: 2525.8832 | D81: 0.0003260328664 | F81: 78 | G81: Suriname | H81: 3877.4378 | I81: 0.000345851615 | K81: 78 | L81: Nova Zelânda | M81: 9856.0686 | N81: 0.0005198731578 | O81: -4891.5682
A82: 79 | B82: Venezuela | C82: 2486.9168 | D82: 0.000321003209 | F82: 79 | G82: Malavi | H82: 3756.8802 | I82: 0.0003350983695 | K82: 79 | L82: Maurícias | M82: 9426.6558 | N82: 0.000497223134 | O82: 3777.157
A83: 80 | B83: Nova Zelânda | C83: 2482.2502 | D83: 0.0003204008593 | F83: 80 | G83: Guatemala | H83: 3336.065 | I83: 0.0002975633724 | K83: 80 | L83: Eslovénia | M83: 9093.671 | N83: 0.00047965935 | O83: -2675.4142
A84: 81 | B84: Timor-Leste | C84: 2425.5014 | D84: 0.000313075907 | F84: 81 | G84: Sri Lanca | H84: 3081.7992 | I84: 0.0002748839016 | K84: 81 | L84: Camarões | M84: 8912.7596 | N84: 0.0004701169062 | O84: -4834.6236
A85: 82 | B85: Filipinas | C85: 2423.494 | D85: 0.0003128167983 | F85: 82 | G85: Nicarágua | H85: 3050.9764 | I85: 0.0002721346337 | K85: 82 | L85: Chipre | M85: 8661.8782 | N85: 0.0004568837896 | O85: 724.9594
A86: 83 | B86: Congo | C86: 2401.0914 | D86: 0.0003099251428 | F86: 83 | G86: Maurícias | H86: 2824.7494 | I86: 0.0002519561093 | K86: 83 | L86: Belize | M86: 8501.158 | N86: 0.000448406361 | O86: -8462.1396
A87: 84 | B87: Dominicana, República | C87: 2366.1238 | D87: 0.0003054116377 | F87: 84 | G87: Suíça | H87: 2672.027 | I87: 0.000238333895 | K87: 84 | L87: Malásia | M87: 8478.9536 | N87: 0.0004472351565 | O87: -5277.6624
A88: 85 | B88: Seychelles | C88: 2266.2448 | D88: 0.0002925195781 | F88: 85 | G88: Taiwan | H88: 2620.8988 | I88: 0.0002337734683 | K88: 85 | L88: Mali | M88: 6882.4546 | N88: 0.0003630254163 | O88: 1935.1206
A89: 86 | B89: Belarus | C89: 2265.0334 | D89: 0.0002923632145 | F89: 86 | G89: Dominicana, República | H89: 2590.705 | I89: 0.0002310803047 | K89: 86 | L89: Gibraltar | M89: 6867.0382 | N89: 0.0003622122551 | O89: 6866.995
A90: 87 | B90: Benim | C90: 2254.9256 | D90: 0.0002910585323 | F90: 87 | G90: Mali | H90: 2473.667 | I90: 0.0002206409931 | K90: 87 | L90: Filipinas | M90: 6740.3894 | N90: 0.0003555319737 | O90: -1893.4014
A91: 88 | B91: Guiné Equatorial | C91: 2237.877 | D91: 0.0002888579539 | F91: 88 | G91: Gana | H91: 2244.213 | I91: 0.0002001746335 | K91: 88 | L91: Reino Unido (Irlanda do Norte) pós-2020 | M91: 6617.563 | N91: 0.0003490533105 | O91: -3083.3106
A92: 89 | B92: Líbano | C92: 2221.1674 | D92: 0.0002867011325 | F92: 89 | G92: Croácia | H92: 2136.9686 | I92: 0.000190608871 | K92: 89 | L92: HongKong | M92: 6486.8174 | N92: 0.0003421569373 | O92: 3460.9994
A93: 90 | B93: Gabão | C93: 2209.6904 | D93: 0.0002852197184 | F93: 90 | G93: Congo, República Democrática do | H93: 1937.5966 | I93: 0.0001728257029 | K93: 90 | L93: Honduras | M93: 6000.5624 | N93: 0.0003165086862 | O93: -4640.884
A94: 91 | B94: Croácia | C94: 2104.3754 | D94: 0.0002716259974 | F94: 91 | G94: Benim | H94: 1901.2374 | I94: 0.0001695826108 | K94: 91 | L94: Malta | M94: 5976.0534 | N94: 0.0003152159221 | O94: 4911.3246
A95: 92 | B95: Vietname | C95: 2098.1584 | D95: 0.0002708235271 | F95: 92 | G95: Serra Leoa | H95: 1900.5094 | I95: 0.0001695176762 | K95: 92 | L95: Andorra | M95: 5897.0704 | N95: 0.000311049845 | O95: 5863.5896
A96: 93 | B96: Uruguai | C96: 2076.1108 | D96: 0.0002679776939 | F96: 93 | G96: Argélia | H96: 1830.0692 | I96: 0.000163234698 | K96: 93 | L96: Gana | M96: 5805.916 | N96: 0.0003062417691 | O96: 1317.49
A97: 94 | B97: Suazilândia | C97: 2066.3468 | D97: 0.0002667173883 | F97: 94 | G97: Laos, República Democrática Popular do | H97: 1764.7672 | I97: 0.0001574100263 | K97: 94 | L97: Camboja | M97: 5661.8046 | N97: 0.0002986403967 | O97: -4840.7706
A98: 95 | B98: Camarões | C98: 2039.068 | D98: 0.0002631963286 | F98: 95 | G98: Burquina Faso | H98: 1596.6714 | I98: 0.0001424165675 | K98: 95 | L98: Taiwan | M98: 5647.91 | N98: 0.0002979075051 | O98: 406.1124
A99: 96 | B99: Peru | C99: 1984.9482 | D99: 0.0002562107192 | F99: 96 | G99: Kuwait | H99: 1542.947 | I99: 0.0001376245705 | K99: 96 | L99: Etiópia | M99: 5274.7014 | N99: 0.0002782220563 | O99: -4455.6206
A100: 97 | B100: Catar | C100: 1923.0908 | D100: 0.0002482263653 | F100: 97 | G100: HongKong | H100: 1512.909 | I100: 0.0001349453036 | K100: 97 | L100: Zimbabwe | M100: 5238.022 | N100: 0.0002762873462 | O100: -5107.362
A101: 98 | B101: Irão, República Islâmica do | C101: 1920.529 | D101: 0.0002478956964 | F101: 98 | G101: Panamá | H101: 1505.4946 | I101: 0.0001342839694 | K101: 98 | L101: Tunísia | M101: 5011.7562 | N101: 0.0002643526164 | O101: -3181.0266
A102: 99 | B102: Geórgia | C102: 1916.3824 | D102: 0.0002473604666 | F102: 99 | G102: Madagáscar | H102: 1471.794 | I102: 0.0001312780135 | K102: 99 | L102: Tanzânia, República Unida da | M102: 4986.1414 | N102: 0.0002630015253 | O102: -4305.0794
A103: 100 | B103: Reino Unido (Irlanda do Norte) pós-2020 | C103: 1767.1262 | D103: 0.0002280949571 | F103: 100 | G103: Coreia, República da | H103: 1319.0978 | I103: 0.0001176581361 | K103: 100 | L103: Dominicana, República | M103: 4956.8288 | N103: 0.0002614553881 | O103: -224.5812
A104: 101 | B104: Egito | C104: 1637.479 | D104: 0.0002113605142 | F104: 101 | G104: Singapura | H104: 1313.0876 | I104: 0.0001171220508 | K104: 101 | L104: Omã | M104: 4826.1814 | N104: 0.0002545641945 | O104: 3676.583
A105: 102 | B105: Malásia | C105: 1600.6456 | D105: 0.0002066061776 | F105: 102 | G105: Noruega | H105: 1179.2222 | I105: 0.0001051818039 | K105: 102 | L105: Singapura | M105: 4605.6374 | N105: 0.0002429312697 | O105: 1979.4622
A106: 103 | B106: Bangladesh | C106: 1592.1082 | D106: 0.0002055041975 | F106: 103 | G106: São Tomé e Príncipe | H106: 1088.833 | I106: 9.711945645e-05 | K106: 103 | L106: Myanmar | M106: 4593.3818 | N106: 0.0002422848296 | O106: -3924.015
A107: 104 | B107: Congo, República Democrática do | C107: 1487.5888 | D107: 0.0001920131701 | F107: 104 | G107: Timor-Leste | H107: 773.0574 | I107: 6.895356266e-05 | K107: 104 | L107: Macedónia, Antiga República jugoslava da | M107: 4569.63 | N107: 0.0002410320052 | O107: -3969.89
A108: 105 | B108: Costa Rica | C108: 1315.8902 | D108: 0.0001698508679 | F108: 105 | G108: El Salvador | H108: 699.8376 | I108: 6.242265555e-05 | K108: 105 | L108: Quénia | M108: 4449.3114 | N108: 0.0002346856197 | O108: -3549.943
A109: 106 | B109: Sudão | C109: 1307.024 | D109: 0.0001687064474 | F109: 106 | G109: Turquemenistão | H109: 693.7048 | I109: 6.187563484e-05 | K109: 106 | L109: Croácia | M109: 4241.344 | N109: 0.0002237160665 | O109: -32.5932
A110: 107 | B110: Togo | C110: 1248.9136 | D110: 0.0001612057441 | F110: 107 | G110: Cazaquistão | H110: 686.1514 | I110: 6.120190241e-05 | K110: 107 | L110: Benim | M110: 4156.163 | N110: 0.0002192230666 | O110: 353.6882
A111: 108 | B111: Indonésia | C111: 1228.4746 | D111: 0.0001585675439 | F111: 108 | G111: Omã | H111: 574.7992 | I111: 5.126974097e-05 | K111: 108 | L111: Burquina Faso | M111: 4122.5546 | N111: 0.000217450341 | O111: 929.2118
A112: 109 | B112: Islândia | C112: 1198.9784 | D112: 0.0001547602694 | F112: 109 | G112: Geórgia | H112: 547.4606 | I112: 4.883124951e-05 | K112: 109 | L112: Suriname | M112: 4115.4388 | N112: 0.0002170750074 | O112: -3639.4368
A113: 110 | B113: Panamá | C113: 1014.5438 | D113: 0.0001309540454 | F113: 110 | G113: Malta | H113: 532.3644 | I113: 4.748473013e-05 | K113: 110 | L113: Guatemala | M113: 3875.6304 | N113: 0.0002044259528 | O113: -2796.4996
A114: 111 | B114: Tunísia | C114: 915.3648 | D114: 0.0001181523396 | F114: 111 | G114: Emirados Árabes Unidos | H114: 528.4142 | I114: 4.713238842e-05 | K114: 111 | L114: Malavi | M114: 3763.5146 | N114: 0.0001985122364 | O114: -3750.2458
A115: 112 | B115: Equador | C115: 828.7258 | D115: 0.0001069692565 | F115: 112 | G115: Senegal | H115: 499.98 | I115: 4.459617392e-05 | K115: 112 | L115: Síria, República Árabe da | M115: 3703.4868 | N115: 0.0001953459798 | O115: 3410.6652
A116: 113 | B116: Bermudas | C116: 818.2718 | D116: 0.0001056198879 | F116: 113 | G116: Usbequistão | H116: 380.3558 | I116: 3.392618386e-05 | K116: 113 | L116: Sri Lanca | M116: 3487.0704 | N116: 0.0001839307714 | O116: -2676.528
A117: 114 | B117: Kosovo | C117: 799.843 | D117: 0.0001032411578 | F117: 114 | G117: Líbano | H117: 342.8862 | I117: 3.058404858e-05 | K117: 114 | L117: Nicarágua | M117: 3449.8386 | N117: 0.0001819669241 | O117: -2652.1142
A118: 115 | B118: Paraguai | C118: 707.77 | D118: 9.135667153e-05 | F118: 115 | G118: Chade | H118: 303.1764 | I118: 2.704209661e-05 | K118: 115 | L118: Congo, República Democrática do | M118: 3425.1854 | N118: 0.000180666554 | O118: -450.0078
A119: 116 | B119: Honduras | C119: 679.8392 | D119: 8.775145385e-05 | F119: 116 | G119: Bangladesh | H119: 298.8156 | I119: 2.665313106e-05 | K119: 116 | L119: Timor-Leste | M119: 3198.5588 | N119: 0.0001687127932 | O119: 1652.444
A120: 117 | B120: Aruba | C120: 651.3298 | D120: 8.407155234e-05 | F120: 117 | G120: Bolívia | H120: 296.509 | I120: 2.644739176e-05 | K120: 117 | L120: Guiné | M120: 3020.6542 | N120: 0.0001593289476 | O120: 2470.0602
A121: 118 | B121: Mauritânia | C121: 615.705 | D121: 7.947321792e-05 | F121: 118 | G121: Venezuela | H121: 285.0498 | I121: 2.542527792e-05 | K121: 118 | L121: Venezuela | M121: 2771.9666 | N121: 0.0001462115462 | O121: 2201.867
A122: 119 | B122: Uganda | C122: 610.399 | D122: 7.878833653e-05 | F122: 119 | G122: Guiné | H122: 275.297 | I122: 2.4555368e-05 | K122: 119 | L122: Congo | M122: 2655.1662 | N122: 0.0001400507335 | O122: 2147.0166
A123: 120 | B123: Namíbia | C123: 600.2532 | D123: 7.747874935e-05 | F123: 120 | G123: Guiné-Bissau | H123: 270.838 | I123: 2.415764341e-05 | K123: 120 | L123: Líbano | M123: 2564.0536 | N123: 0.0001352448624 | O123: 1878.2812
A124: 121 | B124: Cazaquistão | C124: 584.6762 | D124: 7.546812037e-05 | F124: 121 | G124: Congo | H124: 254.0748 | I124: 2.266243443e-05 | K124: 121 | L124: Panamá | M124: 2520.0384 | N124: 0.0001329232145 | O124: -490.9508
A125: 122 | B125: Albânia | C125: 582.0574 | D125: 7.513009411e-05 | F125: 122 | G125: Belarus | H125: 241.8304 | I125: 2.157028396e-05 | K125: 122 | L125: Belarus | M125: 2506.8638 | N125: 0.0001322283004 | O125: 2023.203
A126: 123 | B126: Ruanda | C126: 580.43 | D126: 7.492003456e-05 | F126: 123 | G126: Togo | H126: 238.6312 | I126: 2.128492839e-05 | K126: 123 | L126: Geórgia | M126: 2463.843 | N126: 0.0001299591036 | O126: 1368.9218
A127: 124 | B127: Azerbaijão | C127: 564.159 | D127: 7.281982629e-05 | F127: 124 | G127: Irão, República Islâmica do | H127: 186.7426 | I127: 1.66566772e-05 | K127: 124 | L127: Serra Leoa | M127: 2326.8524 | N127: 0.0001227333285 | O127: -1474.1664
A128: 125 | B128: São Bartolomeu | C128: 548.5216 | D128: 7.080140108e-05 | F128: 125 | G128: Zâmbia | H128: 183.9494 | I128: 1.640753517e-05 | K128: 125 | L128: Seychelles | M128: 2267.3882 | N128: 0.0001195967998 | O128: 2265.1014
A129: 126 | B129: Guatemala | C129: 539.5654 | D129: 6.964536363e-05 | F129: 126 | G129: Islândia | H129: 183.9414 | I129: 1.64068216e-05 | K129: 126 | L129: Guiné Equatorial | M129: 2237.877 | N129: 0.0001180401872 | O129: 2237.877
A130: 127 | B130: Arménia | C130: 525.5354 | D130: 6.783441643e-05 | F130: 127 | G130: Síria, República Árabe da | H130: 146.4108 | I130: 1.305924537e-05 | K130: 127 | L130: Gabão | M130: 2210.0274 | N130: 0.0001165712182 | O130: 2209.3534
A131: 128 | B131: Barém | C131: 502.4658 | D131: 6.485666678e-05 | F131: 128 | G131: Cabo Verde | H131: 145.1786 | I131: 1.294933816e-05 | K131: 128 | L131: Irão, República Islâmica do | M131: 2107.2716 | N131: 0.000111151209 | O131: 1733.7864
A132: 129 | B132: Bolívia | C132: 494.4554 | D132: 6.382271015e-05 | F132: 129 | G132: Azerbaijão | H132: 124.8964 | I132: 1.114024876e-05 | K132: 129 | L132: Catar | M132: 1939.3412 | N132: 0.0001022934676 | O132: 1906.8404
A133: 130 | B133: Burundi | C133: 484.978 | D133: 6.259939789e-05 | F133: 130 | G133: Jordânia | H133: 120.6272 | I133: 1.075945356e-05 | K133: 130 | L133: Bangladesh | M133: 1890.9238 | N133: 9.973961901e-05 | O133: 1293.2926
A134: 131 | B134: Quénia | C134: 449.6842 | D134: 5.804378789e-05 | F134: 131 | G134: Albânia | H134: 120.2784 | I134: 1.072834202e-05 | K134: 131 | L134: Laos, República Democrática Popular do | M134: 1777.8864 | N134: 9.377729138e-05 | O134: -1751.648
A135: 132 | B135: Gâmbia | C135: 434.028 | D135: 5.602293603e-05 | F135: 132 | G135: Iémen | H135: 84.6154 | I135: 7.547348083e-06 | K135: 132 | L135: Madagáscar | M135: 1602.4536 | N135: 8.452382457e-05 | O135: -1341.1344
A136: 133 | B136: Serra Leoa | C136: 426.343 | D136: 5.503098098e-05 | F136: 133 | G136: Kosovo | H136: 79.8322 | I136: 7.120706179e-06 | K136: 133 | L136: Togo | M136: 1487.5448 | N136: 7.846278713e-05 | O136: 1010.2824
A137: 134 | B137: Camboja | C137: 410.517 | D137: 5.298821189e-05 | F137: 134 | G137: Tajiquistão | H137: 74.7168 | I137: 6.664433392e-06 | K137: 134 | L137: Islândia | M137: 1382.9198 | N137: 7.29441842e-05 | O137: 1015.037
A138: 135 | B138: Etiópia | C138: 409.5404 | D138: 5.286215551e-05 | F138: 135 | G138: Namíbia | H138: 64.9894 | I138: 5.796789042e-06 | K138: 135 | L138: Sudão | M138: 1318.1622 | N138: 6.952844721e-05 | O138: 1295.8858
A139: 136 | B139: Sri Lanca | C139: 405.2712 | D139: 5.231110092e-05 | F139: 136 | G139: Libéria | H139: 54.4472 | I139: 4.85646786e-06 | K139: 136 | L139: Cazaquistão | M139: 1270.8276 | N139: 6.703171257e-05 | O139: -101.4752
A140: 137 | B140: Antígua e Barbuda | C140: 403.3246 | D140: 5.205984007e-05 | F140: 137 | G140: Nigéria | H140: 49.9946 | I140: 4.459314125e-06 | K140: 137 | L140: El Salvador | M140: 1081.0474 | N140: 5.702147057e-05 | O140: -318.6278
A141: 138 | B141: Nicarágua | C141: 398.8622 | D141: 5.148384785e-05 | F141: 138 | G141: Aruba | H141: 45.6144 | I141: 4.068618176e-06 | K141: 138 | L141: Kosovo | M141: 879.6752 | N141: 4.639979109e-05 | O141: 720.0108
A142: 139 | B142: El Salvador | C142: 381.2098 | D142: 4.920533292e-05 | F142: 139 | G142: Bósnia-Herzegovina | H142: 42.5574 | I142: 3.795946261e-06 | K142: 139 | L142: Bermudas | M142: 818.9736 | N142: 4.319799393e-05 | O142: 817.57
A143: 140 | B143: São Martinho (parte holandesa) | C143: 373.2376 | D143: 4.817630703e-05 | F143: 140 | G143: Curaçau | H143: 39.2148 | I143: 3.497799994e-06 | K143: 140 | L143: Bolívia | M143: 790.9644 | N143: 4.172060656e-05 | O143: 197.9464
A144: 141 | B144: Iémen | C144: 360.3172 | D144: 4.650858342e-05 | F144: 141 | G144: Arménia | H144: 37.5752 | I144: 3.35155437e-06 | K144: 141 | L144: Albânia | M144: 702.3358 | N144: 3.70457578e-05 | O144: 461.779
A145: 142 | B145: Tanzânia, República Unida da | C145: 340.531 | D145: 4.395464447e-05 | F145: 142 | G145: Arábia Saudita | H145: 37.0542 | I145: 3.305083298e-06 | K145: 142 | L145: Turquemenistão | M145: 700.9924 | N145: 3.697489814e-05 | O145: -686.4172
A146: 143 | B146: Myanmar | C146: 334.6834 | D146: 4.31998551e-05 | F146: 143 | G146: Botswana | H146: 30.037 | I146: 2.679177719e-06 | K146: 143 | L146: Aruba | M146: 696.9442 | N146: 3.676136975e-05 | O146: 605.7154
A147: 144 | B147: Comores | C147: 333.8038 | D147: 4.308631916e-05 | F147: 144 | G147: Ruanda | H147: 26.8278 | I147: 2.392930186e-06 | K147: 144 | L147: Azerbaijão | M147: 689.0554 | N147: 3.634526313e-05 | O147: 439.2626
A148: 145 | B148: Argentina | C148: 316.4082 | D148: 4.084095115e-05 | F148: 145 | G148: São Marino | H148: 25.2246 | I148: 2.249931294e-06 | K148: 145 | L148: Namíbia | M148: 665.2426 | N148: 3.508922119e-05 | O148: 535.2638
A149: 146 | B149: Jamaica | C149: 302.5728 | D149: 3.905512229e-05 | F149: 146 | G149: Macau | H149: 18.2246 | I149: 1.625559885e-06 | K149: 146 | L149: Mauritânia | M149: 617.715 | N149: 3.258230647e-05 | O149: 613.695
A150: 147 | B150: Libéria | C150: 301.9358 | D150: 3.897290038e-05 | F150: 147 | G150: Quirguizistão | H150: 17.5046 | I150: 1.561338825e-06 | K150: 147 | L150: Ruanda | M150: 607.2578 | N150: 3.203072573e-05 | O150: 553.6022
A151: 148 | B151: Macedónia, Antiga República jugoslava da | C151: 299.87 | D151: 3.870625358e-05 | F151: 148 | G151: Andorra | H151: 16.7404 | I151: 1.493175307e-06 | K151: 148 | L151: Arménia | M151: 563.1106 | N151: 2.970211528e-05 | O151: 487.9602
A152: 149 | B152: Somália | C152: 292.8384 | D152: 3.77986373e-05 | F152: 149 | G152: Líbia, Jamahira Árabe da | H152: 16.2514 | I152: 1.449558504e-06 | K152: 149 | L152: São Bartolomeu | M152: 548.8046 | N152: 2.89475238e-05 | O152: 548.2386
A153: 150 | B153: Moldava, República de | C153: 265.8198 | D153: 3.431116345e-05 | F153: 150 | G153: Catar | H153: 16.2504 | I153: 1.449469308e-06 | K153: 150 | L153: Barém | M153: 506.7884 | N153: 2.673131616e-05 | O153: 498.1432
A154: 151 | B154: Paquistão | C154: 260.8208 | D154: 3.366590864e-05 | F154: 151 | G154: Jamaica | H154: 14.6512 | I154: 1.3068272e-06 | K154: 151 | L154: Burundi | M154: 485.092 | N154: 2.558690692e-05 | O154: 484.864
A155: 152 | B155: Curaçau | C155: 251.4226 | D155: 3.245281926e-05 | F155: 152 | G155: São Cristovão e Nevis | H155: 12.4064 | I155: 1.106600208e-06 | K155: 152 | L155: Iémen | M155: 444.9326 | N155: 2.346863898e-05 | O155: 275.7018
A156: 153 | B156: Suriname | C156: 238.001 | D156: 3.072040236e-05 | F156: 153 | G156: Iraque | H156: 12.264 | I156: 1.09389871e-06 | K156: 153 | L156: Gâmbia | M156: 434.067 | N156: 2.289551657e-05 | O156: 433.989
A157: 154 | B157: Nova Caledónia | C157: 206.2626 | D157: 2.662371194e-05 | F157: 154 | G157: Território Palestiniano Ocupado | H157: 11.6698 | I157: 1.040898497e-06 | K157: 154 | L157: Usbequistão | M157: 421.6984 | N157: 2.224311617e-05 | O157: -339.0132
A158: 155 | B158: Trindade e Tobago | C158: 189.8074 | D158: 2.449972773e-05 | F158: 155 | G158: Sudão | H158: 11.1382 | I158: 9.934819479e-07 | K158: 155 | L158: Antígua e Barbuda | M158: 403.7924 | N158: 2.129863728e-05 | O158: 402.8568
A159: 156 | B159: Haiti | C159: 187.225 | D159: 2.416639986e-05 | F159: 156 | G159: Barém | H159: 4.3226 | I159: 3.855582651e-07 | K159: 156 | L159: São Martinho (parte holandesa) | M159: 373.2376 | N159: 1.968697841e-05 | O159: 373.2376
A160: 157 | B160: Zâmbia | C160: 152.3042 | D160: 1.965893549e-05 | F160: 157 | G160: Nepal | H160: 2.6584 | I160: 2.371184222e-07 | K160: 157 | L160: Libéria | M160: 356.383 | N160: 1.879795719e-05 | O160: 247.4886
A161: 158 | B161: Maldivas | C161: 137.7162 | D161: 1.777596345e-05 | F161: 158 | G161: Fiji, Ilhas | H161: 2.251 | I161: 2.007800062e-07 | K161: 158 | L161: Zâmbia | M161: 336.2536 | N161: 1.773620172e-05 | O161: -31.6452
A162: 159 | B162: Liechtenstein | C162: 135.8048 | D162: 1.752924609e-05 | F162: 159 | G162: Mauritânia | H162: 2.01 | I162: 1.792837905e-07 | K162: 159 | L162: Comores | M162: 333.8038 | N162: 1.760698334e-05 | O162: 333.8038
A163: 160 | B163: Polinésia Francesa | C163: 133.9344 | D163: 1.728782089e-05 | F163: 160 | G163: Liechtenstein | H163: 1.7982 | I163: 1.603920956e-07 | K163: 160 | L163: Jamaica | M163: 317.224 | N163: 1.673245685e-05 | O163: 287.9216
A164: 161 | B164: Madagáscar | C164: 130.6596 | D164: 1.686512025e-05 | F164: 161 | G164: Lesoto | H164: 1.7136 | I164: 1.528461211e-07 | K164: 161 | L164: Chade | M164: 303.1804 | N164: 1.599170606e-05 | O164: -303.1724
A165: 162 | B165: Niger | C165: 126.732 | D165: 1.63581583e-05 | F165: 162 | G165: Seychelles | H165: 1.1434 | I165: 1.0198661e-07 | K165: 162 | L165: Somália | M165: 292.8384 | N165: 1.544620172e-05 | O165: 292.8384
A166: 163 | B166: Bósnia-Herzegovina | C166: 90.5322 | D166: 1.168560473e-05 | F166: 163 | G166: Bermudas | H166: 0.7018 | I166: 6.259769362e-08 | K166: 163 | L166: Curaçau | M166: 290.6374 | N166: 1.533010666e-05 | O166: 212.2078
A167: 164 | B167: Centro-Africana, República | C167: 89.9082 | D167: 1.160506082e-05 | F167: 164 | G167: Afeganistão | H167: 0.5848 | I167: 5.216177148e-08 | K167: 164 | L167: Nova Caledónia | M167: 206.2906 | N167: 1.088110787e-05 | O167: 206.2346
A168: 165 | B168: Nepal | C168: 87.8934 | D168: 1.134499693e-05 | F168: 165 | G168: Antígua e Barbuda | H168: 0.4678 | I168: 4.172584935e-08 | K168: 165 | L168: Trindade e Tobago | M168: 189.8764 | N168: 1.001531621e-05 | O168: 189.7384
A169: 166 | B169: Jibuti | C169: 70.7384 | D169: 9.13068479e-06 | F169: 166 | G169: Gabão | H169: 0.337 | I169: 3.005902358e-08 | K169: 166 | L169: Haiti | M169: 187.2274 | N169: 9.875590726e-06 | O169: 187.2226
A170: 167 | B170: Zimbabwe | C170: 65.33 | D170: 8.432585941e-06 | F170: 167 | G170: São Bartolomeu | H170: 0.283 | I170: 2.524244413e-08 | K170: 167 | L170: Maldivas | M170: 137.7198 | N170: 7.264237925e-06 | O170: 137.7126
A171: 168 | B171: Montenegro | C171: 54.6326 | D171: 7.05180001e-06 | F171: 168 | G171: Barbados | H171: 0.1636 | I171: 1.45924518e-08 | K171: 168 | L171: Liechtenstein | M171: 137.603 | N171: 7.258077134e-06 | O171: 134.0066
A172: 169 | B172: Caimão, Ilhas | C172: 53.1296 | D172: 6.857797612e-06 | F172: 169 | G172: Oceano Indico, Território Britânico do | H172: 0.1384 | I172: 1.234471473e-08 | K172: 169 | L172: Polinésia Francesa | M172: 133.9626 | N172: 7.066058762e-06 | O172: 133.9062
A173: 170 | B173: Ceuta e Melilha | C173: 51.6648 | D173: 6.668725947e-06 | F173: 170 | G173: Niger | H173: 0.1252 | I173: 1.116732864e-08 | K173: 170 | L173: Bósnia-Herzegovina | M173: 133.0896 | N173: 7.020011064e-06 | O173: 47.9748
A174: 171 | B174: Bahamas | C174: 43.9552 | D174: 5.673595615e-06 | F174: 171 | G174: Burundi | H174: 0.114 | I174: 1.016833439e-08 | K174: 171 | L174: Niger | M174: 126.8572 | N174: 6.691273755e-06 | O174: 126.6068
A175: 172 | B175: Usbequistão | C175: 41.3426 | D175: 5.336369624e-06 | F175: 172 | G175: Trindade e Tobago | H175: 0.069 | I175: 6.154518181e-09 | K175: 172 | L175: Nepal | M175: 90.5518 | N175: 4.776290844e-06 | O175: 85.235
A176: 173 | B176: Virgens dos Estados Unidos, Ilhas | C176: 26.0742 | D176: 3.365573739e-06 | F176: 173 | G176: Gâmbia | H176: 0.039 | I176: 3.478640711e-09 | K176: 173 | L176: Centro-Africana, República | M176: 89.9082 | N176: 4.742343194e-06 | O176: 89.9082
A177: 174 | B177: Turcas e Caicos, Ilhas | C177: 25.0024 | D177: 3.227229247e-06 | F177: 174 | G177: Polinésia Francesa | H177: 0.0282 | I177: 2.515324822e-09 | K177: 174 | L177: Tajiquistão | M177: 74.7168 | N177: 3.941049959e-06 | O177: -74.7168
A178: 175 | B178: Quirguizistão | C178: 23.7908 | D178: 3.070839822e-06 | F178: 175 | G178: Nova Caledónia | H178: 0.028 | I178: 2.497485639e-09 | K178: 175 | L178: Jibuti | M178: 70.7384 | N178: 3.73120327e-06 | O178: 70.7384
A179: 176 | B179: Guiana | C179: 20.1352 | D179: 2.598986751e-06 | F179: 176 | G179: Papuásia-Nova Guiné | H179: 0.0222 | I179: 1.980149328e-09 | K179: 176 | L179: Montenegro | M179: 54.634 | N179: 2.881752477e-06 | O179: 54.6312
A180: 177 | B180: Belize | C180: 19.5092 | D180: 2.518184688e-06 | F180: 177 | G180: Gibraltar | H180: 0.0216 | I180: 1.926631778e-09 | K180: 177 | L180: Caimão, Ilhas | M180: 53.1304 | N180: 2.802442834e-06 | O180: 53.1288
A181: 178 | B181: Mongólia | C181: 19.1206 | D181: 2.468025451e-06 | F181: 178 | G181: São Vicente e Granadinas | H181: 0.0144 | I181: 1.284421186e-09 | K181: 178 | L181: Ceuta e Melilha | M181: 51.6648 | N181: 2.725137559e-06 | O181: 51.6648
A182: 179 | B182: Afeganistão | C182: 18.9718 | D182: 2.448818827e-06 | F182: 179 | G182: Mongólia | H182: 0.0112 | I182: 9.989942555e-10 | K182: 179 | L182: Bahamas | M182: 43.9552 | N182: 2.318483115e-06 | O182: 43.9552
A183: 180 | B183: Barbados | C183: 15.4724 | D183: 1.997127548e-06 | F183: 180 | G183: Santa Lúcia | H183: 0.009 | I183: 8.02763241e-10 | K183: 180 | L183: Quirguizistão | M183: 41.2954 | N183: 2.178187964e-06 | O183: 6.2862
A184: 181 | B184: Virgens Britânicas, Ilhas | C184: 13.47 | D184: 1.738664207e-06 | F184: 181 | G184: Virgens Britânicas, Ilhas | H184: 0.007 | I184: 6.243714097e-10 | K184: 181 | L184: Botswana | M184: 30.0886 | N184: 1.587068448e-06 | O184: -29.9854
A185: 182 | B185: Laos, República Democrática Popular do | C185: 13.1192 | D185: 1.693384073e-06 | F185: 182 | G185: Maldivas | H185: 0.0036 | I185: 3.211052964e-10 | K185: 182 | L185: Virgens dos Estados Unidos, Ilhas | M185: 26.0742 | N185: 1.375322884e-06 | O185: 26.0742
A186: 183 | B186: Brunei Darussalam | C186: 12.819 | D186: 1.654635224e-06 | F186: 183 | G186: Faroé, Ilhas | H186: 0.0026 | I186: 2.319093807e-10 | K186: 183 | L186: São Marino | M186: 25.2486 | N186: 1.331775371e-06 | O186: -25.2006
A187: 184 | B187: Fiji, Ilhas | C187: 11.4226 | D187: 1.47439241e-06 | F187: 184 | G187: Haiti | H187: 0.0024 | I187: 2.140701976e-10 | K187: 184 | L187: Turcas e Caicos, Ilhas | M187: 25.0024 | N187: 1.318789181e-06 | O187: 25.0024
A188: 185 | B188: Turquemenistão | C188: 7.2876 | D188: 9.406599311e-07 | F188: 185 | G188: Montenegro | H188: 0.0014 | I188: 1.248742819e-10 | K188: 185 | L188: Afeganistão | M188: 19.5566 | N188: 1.031542272e-06 | O188: 18.387
A189: 186 | B189: Santa Lúcia | C189: 7.138 | D189: 9.213500451e-07 | F189: 186 | G189: Caimão, Ilhas | H189: 0.0008 | I189: 7.135673253e-11 | K189: 186 | L189: Mongólia | M189: 19.1318 | N189: 1.009135557e-06 | O189: 19.1094
A190: 187 | B190: Malavi | C190: 6.6344 | D190: 8.563469794e-07 | F190: 187 | G190: Anguila | H190: 0 | I190: 0 | K190: 187 | L190: Barbados | M190: 15.636 | N190: 8.247443301e-07 | O190: 15.3088
A191: 188 | B191: Bonaire, Santo Eustáquio e Saba | C191: 6.6316 | D191: 8.559855644e-07 | F191: 188 | G191: Antárctica | H191: 0 | I191: 0 | K191: 188 | L191: Fiji, Ilhas | M191: 13.6736 | N191: 7.212345915e-07 | O191: 9.1716
A192: 189 | B192: Guam | C192: 6.3336 | D192: 8.175206844e-07 | F192: 189 | G192: Antilhas Holandesas | H192: 0 | I192: 0 | K192: 189 | L192: Virgens Britânicas, Ilhas | M192: 13.477 | N192: 7.108646289e-07 | O192: 13.463
A193: 190 | B193: São Vicente e Granadinas | C193: 4.3128 | D193: 5.566823304e-07 | F193: 190 | G193: Bahamas | H193: 0 | I193: 0 | K193: 190 | L193: São Cristovão e Nevis | M193: 13.1558 | N193: 6.939224519e-07 | O193: -11.657
A194: 191 | B194: Sudão do Sul | C194: 3.771 | D194: 4.867485318e-07 | F194: 191 | G194: Bonaire, Santo Eustáquio e Saba | H194: 0 | I194: 0 | K194: 191 | L194: Brunei Darussalam | M194: 12.819 | N194: 6.761574295e-07 | O194: 12.819
A195: 192 | B195: Marianas do Norte, Ilhas | C195: 2.9244 | D195: 3.774721311e-07 | F195: 192 | G195: Bouvet, Ilha | H195: 0 | I195: 0 | K195: 192 | L195: Santa Lúcia | M195: 7.147 | N195: 3.769792612e-07 | O195: 7.129
A196: 193 | B196: Papuásia-Nova Guiné | C196: 2.8856 | D196: 3.724639521e-07 | F196: 193 | G196: Brunei Darussalam | H196: 0 | I196: 0 | K196: 193 | L196: Bonaire, Santo Eustáquio e Saba | M196: 6.6316 | N196: 3.497937132e-07 | O196: 6.6316
A197: 194 | B197: Anguila | C197: 2.7816 | D197: 3.590399671e-07 | F197: 194 | G197: Butão | H197: 0 | I197: 0 | K197: 194 | L197: Guam | M197: 6.3336 | N197: 3.340752551e-07 | O197: 6.3336
A198: 195 | B198: Domínica | C198: 1.4248 | D198: 1.83908594e-07 | F198: 195 | G198: Centro-Africana, República | H198: 0 | I198: 0 | K198: 195 | L198: São Vicente e Granadinas | M198: 4.3272 | N198: 2.282446703e-07 | O198: 4.2984
A199: 196 | B199: São Cristovão e Nevis | C199: 0.7494 | D199: 9.673013782e-08 | F199: 196 | G199: Ceuta | H199: 0 | I199: 0 | K199: 196 | L199: Sudão do Sul | M199: 3.771 | N199: 1.98907065e-07 | O199: 3.771
A200: 197 | B200: Granada | C200: 0.6942 | D200: 8.960509965e-08 | F200: 197 | G200: Ceuta e Melilha | H200: 0 | I200: 0 | K200: 197 | L200: Marianas do Norte, Ilhas | M200: 2.9244 | N200: 1.542518751e-07 | O200: 2.9244
... 58 more rows

Sheet 3
A1: Principais produtos agrícolas e agroalimentares, do mar e da floresta transacionados entre Portugal e Marrocos em 2019-2023 (NC a 2 e 4 dígitos) em milhões de euros
AC4: P | AE4: Cód.NC | AF4: Descritivo | AG4: Média export quinquénio | AH4: % do total | AI4: % acumulada | AN4: P | AO4: NC | AP4: Exportações | AQ4: 2019 | AR4: 2020 | AS4: 2021 | AT4: 2022 | AU4: 2023 | AV4: média quinquénio
AC5: 1 | AD5: º | AE5: 48 | AF5: Papel e cartão | AG5: 38.1670722 | AH5: 0.3217005298 | AN5: 1º | AO5: 48 | AP5: Papel e cartão | AQ5: 34.873646 | AR5: 26.065871 | AS5: 33.006926 | AT5: 53.649386 | AU5: 43.239532 | AV5: 38.1670722
AC6: 2 | AD6: º | AE6: 15 | AF6: Gorduras e óleos animais ou vegetais | AG6: 25.1871338 | AH6: 0.2122959352 | AN6: 2º | AO6: 15 | AP6: Gorduras e óleos animais ou vegetais | AQ6: 9.550502 | AR6: 10.470548 | AS6: 38.889149 | AT6: 25.3235 | AU6: 41.70197 | AV6: 25.1871338
AC7: 3 | AD7: º | AE7: 44 | AF7: Madeira e suas obras | AG7: 21.0278674 | AH7: 0.1772385382 | AI7: 0.7112350031 | AN7: 3º | AO7: 44 | AP7: Madeira e suas obras | AQ7: 25.728687 | AR7: 19.423988 | AS7: 22.267323 | AT7: 23.436821 | AU7: 14.282518 | AV7: 21.0278674
AC8: 4 | AD8: º | AE8: 04 | AF8: Leite e laticínios; ovos; mel, etc. | AG8: 8.1507166 | AH8: 0.0687003141 | AO8: - | AP8: Outros | AQ8: 22.022718 | AR8: 23.717385 | AS8: 41.42648 | AT8: 42.876435 | AU8: 41.254718 | AV8: 34.2595472
AC9: 5 | AD9: º | AE9: 47 | AF9: Pastas de madeira | AG9: 7.1864628 | AH9: 0.06057286443 | AP9: Total | AQ9: 92.175553 | AR9: 79.677792 | AS9: 135.589878 | AT9: 145.286142 | AU9: 140.478738 | AV9: 118.6416206
AC10: 6 | AD10: º | AE10: 19a | AF10: Preparações à base de cereais (exc. NC 19022010) (a) | AG10: 3.651531 | AH10: 0.03077782469
AC11: 7 | AD11: º | AE11: 22 | AF11: Bebidas, líquidos alcoólicos e vinagres | AG11: 2.4242234 | AH11: 0.02043316155
AC12: 8 | AD12: º | AE12: 23a | AF12: Resíduos indústrias alimentares; alimentos p/ animais (exc. NC 230120) (a) | AG12: 1.7764302 | AH12: 0.01497307767
AC13: 9 | AD13: º | AE13: 20 | AF13: Preparações de produtos vegetais | AG13: 1.4993188 | AH13: 0.01263737626
AC14: 10 | AD14: º | AE14: 38f | AF14: Tall oil, essências e colofónias (f) | AG14: 1.2932196 | AH14: 0.0109002186 | AI14: 0.9302298404
AE15: - | AF15: Outros | AG15: 8.2776448 | AH15: 0.06977015956
AE16: Total | AG16: 118.6416206 | AH16: 1
AC38: P | AE38: Cód.NC | AF38: Descritivo | AG38: Média import quinquénio | AH38: % do total | AI38: % acumulada | AN38: P | AO38: NC | AP38: Importações | AQ38: 2019 | AR38: 2020 | AS38: 2021 | AT38: 2022 | AU38: 2023 | AV38: média quinquénio
AC39: 1 | AD39: º | AE39: 03 | AF39: Peixes e crustáceos | AG39: 14.4903912 | AH39: 0.338399867 | AN39: 1º | AO39: 03 | AP39: Peixes e crustáceos | AQ39: 9.532748 | AR39: 12.737271 | AS39: 12.13057 | AT39: 15.710427 | AU39: 22.34094 | AV39: 14.4903912
AC40: 2 | AD40: º | AE40: 45 | AF40: Cortiça e suas obras | AG40: 12.5920084 | AH40: 0.2940661786 | AN40: 2º | AO40: 45 | AP40: Cortiça e suas obras | AQ40: 18.612113 | AR40: 11.848027 | AS40: 7.74236 | AT40: 13.436215 | AU40: 11.321327 | AV40: 12.5920084
AC41: 3 | AD41: º | AE41: 07 | AF41: Produtos hortícolas | AG41: 4.3116694 | AH41: 0.1006921298 | AI41: 0.7331581754 | AN41: 3º | AO41: 07 | AP41: Produtos hortícolas | AQ41: 0.472772 | AR41: 1.213871 | AS41: 1.494408 | AT41: 4.412247 | AU41: 13.965049 | AV41: 4.3116694
AC42: 4 | AD42: º | AE42: 16p | AF42: Preparações e conservas de peixes ou crustáceos (NC 1604-05) (p) | AG42: 3.4273208 | AH42: 0.08003958532 | AO42: - | AP42: Outros | AQ42: 9.550127 | AR42: 13.620533 | AS42: 12.228837 | AT42: 10.285796 | AU42: 11.445971 | AV42: 11.4262528
AC43: 5 | AD43: º | AE43: 08 | AF43: Frutas | AG43: 1.8807638 | AH43: 0.0439222248 | AP43: Total | AQ43: 38.16776 | AR43: 39.419702 | AS43: 33.596175 | AT43: 43.844685 | AU43: 59.073287 | AV43: 42.8203218
AC44: 6 | AD44: º | AE44: 17 | AF44: Açúcares e produtos de confeitaria | AG44: 1.7725996 | AH44: 0.04139622323
AC45: 7 | AD45: º | AE45: 15 | AF45: Gorduras e óleos animais ou vegetais | AG45: 1.6439946 | AH45: 0.03839285953
AC46: 8 | AD46: º | AE46: 38a | AF46: Agentes de acabamento, ácidos gordos, sorbitol (a) | AG46: 0.8517892 | AH46: 0.01989217185
AC47: 9 | AD47: º | AE47: 05p | AF47: Outros produtos de pescado (NC 0508, 051191) (p) | AG47: 0.7267968 | AH47: 0.01697317464
AC48: 10 | AD48: º | AE48: 19a | AF48: Preparações à base de cereais (exc. NC 19022010) (a) | AG48: 0.298337 | AH48: 0.006967182577 | AI48: 0.9807415973
AE49: - | AF49: Outros | AG49: 0.824651 | AH49: 0.01925840268
AE50: Total | AG50: 42.8203218 | AH50: 1
AC62: DESAGREGAÇÃO A 4 DÍGITOS | AN62: DESAGREGAÇÃO A 4 DÍGITOS
AC64: P | AE64: Cód.NC | AF64: Descritivo | AG64: Média export quinquénio | AH64: % do total | AI64: % acumulada | AN64: P | AO64: NC | AP64: Exportações | AQ64: 2019 | AR64: 2020 | AS64: 2021 | AT64: 2022 | AU64: 2023 | AV64: média quinquénio
AC65: 1 | AD65: º | AE65: 4802 | AF65: Papel e cartão p/ escrita, etc. | AG65: 29.164828 | AH65: 0.2458229064 | AN65: 1º | AO65: 4802 | AP65: Papel e cartão p/ escrita, etc. | AQ65: 26.515228 | AR65: 19.559139 | AS65: 25.759069 | AT65: 40.458387 | AU65: 33.532317 | AV65: 29.164828
AC66: 2 | AD66: º | AE66: 1507 | AF66: Óleo de soja e suas frações | AG66: 24.2113728 | AH66: 0.2040714943 | AN66: 2º | AO66: 1507 | AP66: Óleo de soja e suas frações | AQ66: 9.090018 | AR66: 10.17511 | AS66: 36.168572 | AT66: 25.209174 | AU66: 40.41399 | AV66: 24.2113728
AC67: 3 | AD67: º | AE67: 4703 | AF67: Pastas químicas de madeira, à soda ou ao sulfato | AG67: 7.1838774 | AH67: 0.06055107275 | AI67: 0.5104454735 | AN67: 3º | AO67: 4703 | AP67: Pastas químicas de madeira, à soda ou ao sulfato | AQ67: 5.608595 | AR67: 0.254196 | AS67: 9.069641 | AT67: 11.475494 | AU67: 9.511461 | AV67: 7.1838774
AC68: 4 | AD68: º | AE68: 4407 | AF68: Madeira serrada, etc. | AG68: 6.4761138 | AH68: 0.05458551364 | AN68: - | AO68: - | AP68: Outros | AQ68: 50.961712 | AR68: 49.689347 | AS68: 64.592596 | AT68: 68.143087 | AU68: 57.02097 | AV68: 58.0815424
AC69: 5 | AD69: º | AE69: 4411 | AF69: Outros painéis de fibras de madeira | AG69: 6.3208218 | AH69: 0.05327659693 | AP69: Total | AQ69: 92.175553 | AR69: 79.677792 | AS69: 135.589878 | AT69: 145.286142 | AU69: 140.478738 | AV69: 118.6416206
AC70: 6 | AD70: º | AE70: 4410 | AF70: Painéis de partículas de madeira, etc. | AG70: 5.748875 | AH70: 0.04845580304
AC71: 7 | AD71: º | AE71: 0405 | AF71: Manteiga | AG71: 5.0488708 | AH71: 0.04255564594
AC72: 8 | AD72: º | AE72: 1905 | AF72: Produtos de padaria, pastelaria, etc. | AG72: 3.204006 | AH72: 0.02700575046
AC73: 9 | AD73: º | AE73: 4818 | AF73: Papel para toucador, etc., pasta de celulose, etc. | AG73: 2.9587548 | AH73: 0.02493859056
AC74: 10 | AD74: º | AE74: 0404 | AF74: Soro de leite e outros produtos do leite | AG74: 2.3677342 | AH74: 0.01995702847 | AI74: 0.7812204025
AE75: - | AF75: Outros | AG75: 25.956366 | AH75: 0.2187795975
AE76: Total | AG76: 118.6416206 | AH76: 1
AC89: DESAGREGAÇÃO A 4 DÍGITOS | AN89: DESAGREGAÇÃO A 4 DÍGITOS
G91: média 2019-2023 em milhões de euros | I91: Cód. NC | J91: Descritivo | K91: Export | L91: Import | M91: Saldo | AC91: P | AE91: Cód.NC | AF91: Descritivo | AG91: Média import quinquénio | AH91: % do total | AI91: % acumulada | AN91: P | AO91: NC | AP91: Importações | AQ91: 2019 | AR91: 2020 | AS91: 2021 | AT91: 2022 | AU91: 2023 | AV91: média quinquénio
I92: 4802 | J92: Papel e cartão p/ escrita, etc. | K92: 29.164828 | L92: 0.0071926 | M92: 29.1576354 | AC92: 1 | AD92: º | AE92: 0307 | AF92: Moluscos | AG92: 8.514376 | AH92: 0.198839608 | AN92: 1º | AO92: 0307 | AP92: Moluscos | AQ92: 6.30015 | AR92: 6.572989 | AS92: 8.217047 | AT92: 7.609831 | AU92: 13.871863 | AV92: 8.514376
I93: 1507 | J93: Óleo de soja e suas frações | K93: 24.2113728 | L93: 7.2e-06 | M93: 24.2113656 | AC93: 2 | AD93: º | AE93: 4503 | AF93: Obras de cortiça natural | AG93: 6.8096778 | AH93: 0.1590291131 | AN93: 2º | AO93: 4503 | AP93: Obras de cortiça natural | AQ93: 10.75003 | AR93: 6.741292 | AS93: 3.938884 | AT93: 7.51164 | AU93: 5.106543 | AV93: 6.8096778
I94: 4703 | J94: Pastas químicas de madeira, à soda ou ao sulfato | K94: 7.1838774 | L94: 0 | M94: 7.1838774 | AC94: 3 | AD94: º | AE94: 4501 | AF94: Cortiça natural em bruto | AG94: 5.6307158 | AH94: 0.1314963448 | AI94: 0.4893650659 | AN94: 3º | AO94: 4501 | AP94: Cortiça natural em bruto | AQ94: 7.836234 | AR94: 5.106735 | AS94: 3.13772 | AT94: 5.858106 | AU94: 6.214784 | AV94: 5.6307158
I95: 4407 | J95: Madeira serrada, etc. | K95: 6.4761138 | L95: 0 | M95: 6.4761138 | AC95: 4 | AD95: º | AE95: 0303 | AF95: Peixes congelados | AG95: 5.3590678 | AH95: 0.1251524411 | AN95: - | AO95: - | AP95: Outros | AQ95: 13.281346 | AR95: 20.998686 | AS95: 18.302524 | AT95: 22.865108 | AU95: 33.880097 | AV95: 21.8655522
I96: 4411 | J96: Outros painéis de fibras de madeira | K96: 6.3208218 | L96: 0.0014276 | M96: 6.3193942 | AC96: 5 | AD96: º | AE96: 1604 | AF96: Preparações e conservas de peixes, etc. | AG96: 3.4273208 | AH96: 0.08003958532 | AP96: Total | AQ96: 38.16776 | AR96: 39.419702 | AS96: 33.596175 | AT96: 43.844685 | AU96: 59.073287 | AV96: 42.8203218
I97: 4410 | J97: Painéis de partículas de madeira, etc. | K97: 5.748875 | L97: 0 | M97: 5.748875 | AC97: 6 | AD97: º | AE97: 0702 | AF97: Tomates, frescos ou refrigerados | AG97: 3.3952668 | AH97: 0.07929101551
I98: 0405 | J98: Manteiga | K98: 5.0488708 | L98: 0 | M98: 5.0488708 | AC98: 7 | AD98: º | AE98: 1703 | AF98: Melaços resultantes da extração ou refinação do açúcar | AG98: 1.6460454 | AH98: 0.03844075268
I99: 1905 | J99: Produtos de padaria, pastelaria, etc. | K99: 3.204006 | L99: 0.0051218 | M99: 3.1988842 | AC99: 8 | AD99: º | AE99: 0811 | AF99: Frutas não cozidas ou cozidas em água ou vapor, congeladas | AG99: 1.5717408 | AH99: 0.03670548781
I100: 4818 | J100: Papel para toucador, etc., pasta de celulose, etc. | K100: 2.9587548 | L100: 0.0002196 | M100: 2.9585352 | AC100: 9 | AD100: º | AE100: 1518 | AF100: Gorduras e óleos, animais ou vegetais, processados de outras formas | AG100: 1.2279402 | AH100: 0.02867657571
I101: 0404 | J101: Soro de leite e outros produtos do leite | K101: 2.3677342 | L101: 0 | M101: 2.3677342 | AC101: 10 | AD101: º | AE101: 3823 | AF101: Ácidos e álcoois gordos (NC 382311 a 13-19-70) | AG101: 0.8517892 | AH101: 0.01989217185 | AI101: 0.8975630958
I102: - | J102: Outros | K102: 24.8349876 | L102: 4.3724124 | M102: 20.4625752 | AE102: - | AF102: Outros | AG102: 4.3863812 | AH102: 0.1024369042
I103: 3823 | J103: Ácidos e álcoois gordos (NC 382311 a 13-19-70) | K103: 0 | L103: 0.8517892 | M103: -0.8517892 | AE103: Total | AG103: 42.8203218 | AH103: 1
I104: 1518 | J104: Gorduras e óleos, animais ou vegetais, processados de outras formas | K104: 0.000975 | L104: 1.2279402 | M104: -1.2269652
I105: 0811 | J105: Frutas não cozidas ou cozidas em água ou vapor, congeladas | K105: 0.2266186 | L105: 1.5717408 | M105: -1.3451222
I106: 1703 | J106: Melaços resultantes da extração ou refinação do açúcar | K106: 0 | L106: 1.6460454 | M106: -1.6460454
I107: 1604 | J107: Preparações e conservas de peixes, etc. | K107: 0.8110074 | L107: 3.4273208 | M107: -2.6163134
I108: 0702 | J108: Tomates, frescos ou refrigerados | K108: 0 | L108: 3.3952668 | M108: -3.3952668
I109: 0303 | J109: Peixes congelados | K109: 0.0019896 | L109: 5.3590678 | M109: -5.3570782
I110: 4501 | J110: Cortiça natural em bruto | K110: 0.002051 | L110: 5.6307158 | M110: -5.6286648
I111: 4503 | J111: Obras de cortiça natural | K111: 0.0523364 | L111: 6.8096778 | M111: -6.7573414
I112: 0307 | J112: Moluscos | K112: 0.0264004 | L112: 8.514376 | M112: -8.4879756
I113: Total | K113: 118.6416206 | L113: 42.8203218 | M113: 75.8212988
A116: Fonte: GPP a partir de dados INE/Comércio Internacional (2022 definitivos) | Y116: 2024-03-26T15:06:06.970

Sheet 3A
A1: Principais produtos agrícolas e agroalimentares transacionados entre Portugal e Marrocos em 2019-2023 (NC a 2 e 4 dígitos) em milhões de euros
AC4: P | AE4: Cód.NC | AF4: Descritivo | AG4: Média export quinquénio | AH4: % do total | AI4: % acumulada | AN4: P | AO4: NC | AP4: Exportações | AQ4: 2019 | AR4: 2020 | AS4: 2021 | AT4: 2022 | AU4: 2023 | AV4: média quinquénio
AC5: 1 | AD5: º | AE5: 15 | AF5: Gorduras e óleos animais ou vegetais | AG5: 25.1871338 | AH5: 0.5060965635 | AN5: 1º | AO5: 15 | AP5: Gorduras e óleos animais ou vegetais | AQ5: 9.550502 | AR5: 10.470548 | AS5: 38.889149 | AT5: 25.3235 | AU5: 41.70197 | AV5: 25.1871338
AC6: 2 | AD6: º | AE6: 04 | AF6: Leite e laticínios; ovos; mel, etc. | AG6: 8.1507166 | AH6: 0.163776065 | AN6: 2º | AO6: 04 | AP6: Leite e laticínios; ovos; mel, etc. | AQ6: 5.093103 | AR6: 10.004569 | AS6: 15.248423 | AT6: 7.850826 | AU6: 2.556662 | AV6: 8.1507166
AC7: 3 | AD7: º | AE7: 19a | AF7: Preparações à base de cereais (exc. NC 19022010) (a) | AG7: 3.651531 | AH7: 0.0733718773 | AI7: 0.7432445058 | AN7: 3º | AO7: 19a | AP7: Preparações à base de cereais (exc. NC 19022010) (a) | AQ7: 1.737728 | AR7: 2.579827 | AS7: 3.042585 | AT7: 4.468247 | AU7: 6.429268 | AV7: 3.651531
AC8: 4 | AD8: º | AE8: 22 | AF8: Bebidas, líquidos alcoólicos e vinagres | AG8: 2.4242234 | AH8: 0.0487110261 | AO8: - | AP8: Outros | AQ8: 7.36114 | AR8: 9.317388 | AS8: 10.918167 | AT8: 16.221516 | AU8: 20.072116 | AV8: 12.7780654
AC9: 5 | AD9: º | AE9: 23a | AF9: Resíduos indústrias alimentares; alimentos p/ animais (exc. NC 230120) (a) | AG9: 1.7764302 | AH9: 0.03569462197 | AP9: Total | AQ9: 23.742473 | AR9: 32.372332 | AS9: 68.098324 | AT9: 53.864089 | AU9: 70.760016 | AV9: 49.7674468
AC10: 6 | AD10: º | AE10: 20 | AF10: Preparações de produtos vegetais | AG10: 1.4993188 | AH10: 0.03012649626
AC11: 7 | AD11: º | AE11: 21 | AF11: Preparações alimentícias diversas | AG11: 1.2921154 | AH11: 0.02596306387
AC12: 8 | AD12: º | AE12: 01 | AF12: Animais vivos | AG12: 1.2315934 | AH12: 0.02474696773
AC13: 9 | AD13: º | AE13: 10 | AF13: Cereais | AG13: 0.8130796 | AH13: 0.01633757913
AC14: 10 | AD14: º | AE14: 33 | AF14: Óleos essenciais e resinóides (NC 3301) | AG14: 0.7541222 | AH14: 0.01515292121 | AI14: 0.939977182
AE15: - | AF15: Outros | AG15: 2.9871824 | AH15: 0.06002281797
AE16: Total | AG16: 49.7674468 | AH16: 1
AC38: P | AE38: Cód.NC | AF38: Descritivo | AG38: Média import quinquénio | AH38: % do total | AI38: % acumulada | AN38: P | AO38: NC | AP38: Importações | AQ38: 2019 | AR38: 2020 | AS38: 2021 | AT38: 2022 | AU38: 2023 | AV38: média quinquénio
AC39: 1 | AD39: º | AE39: 07 | AF39: Produtos hortícolas | AG39: 4.3116694 | AH39: 0.3807704952 | AN39: 1º | AO39: 07 | AP39: Produtos hortícolas | AQ39: 0.472772 | AR39: 1.213871 | AS39: 1.494408 | AT39: 4.412247 | AU39: 13.965049 | AV39: 4.3116694
AC40: 2 | AD40: º | AE40: 08 | AF40: Frutas | AG40: 1.8807638 | AH40: 0.1660932917 | AN40: 2º | AO40: 08 | AP40: Frutas | AQ40: 1.014511 | AR40: 1.744676 | AS40: 0.907746 | AT40: 2.485486 | AU40: 3.2514 | AV40: 1.8807638
AC41: 3 | AD41: º | AE41: 17 | AF41: Açúcares e produtos de confeitaria | AG41: 1.7725996 | AH41: 0.1565411364 | AI41: 0.7034049233 | AN41: 3º | AO41: 17 | AP41: Açúcares e produtos de confeitaria | AQ41: 2.173573 | AR41: 4.335982 | AS41: 2.353255 | AT41: 0.000188 | AU41: 0 | AV41: 1.7725996
AC42: 4 | AD42: º | AE42: 15 | AF42: Gorduras e óleos animais ou vegetais | AG42: 1.6439946 | AH42: 0.1451838209 | AO42: - | AP42: Outros | AQ42: 3.509622 | AR42: 3.686685 | AS42: 3.410331 | AT42: 3.678928 | AU42: 2.506963 | AV42: 3.3585058
AC43: 5 | AD43: º | AE43: 38a | AF43: Agentes de acabamento, ácidos gordos, sorbitol (a) | AG43: 0.8517892 | AH43: 0.0752228813 | AP43: Total | AQ43: 7.170478 | AR43: 10.981214 | AS43: 8.16574 | AT43: 10.576849 | AU43: 19.723412 | AV43: 11.3235386
AC44: 6 | AD44: º | AE44: 19a | AF44: Preparações à base de cereais (exc. NC 19022010) (a) | AG44: 0.298337 | AH44: 0.02634662278
AC45: 7 | AD45: º | AE45: 20 | AF45: Preparações de produtos vegetais | AG45: 0.1419156 | AH45: 0.01253279606
AC46: 8 | AD46: º | AE46: 05a | AF46: Outros produtos de origem animal (exc. NC 0508, 051191) (a) | AG46: 0.1409836 | AH46: 0.01245048964
AC47: 9 | AD47: º | AE47: 12 | AF47: Sementes e frutos oleaginosos | AG47: 0.0885974 | AH47: 0.007824179625
AC48: 10 | AD48: º | AE48: 21 | AF48: Preparações alimentícias diversas | AG48: 0.081211 | AH48: 0.0071718747 | AI48: 0.9901375883
AE49: - | AF49: Outros | AG49: 0.1116774 | AH49: 0.009862411738
AE50: Total | AG50: 11.3235386 | AH50: 1
AC62: DESAGREGAÇÃO A 4 DÍGITOS | AN62: DESAGREGAÇÃO A 4 DÍGITOS
AC64: P | AE64: Cód.NC | AF64: Descritivo | AG64: Média export quinquénio | AH64: % do total | AI64: % acumulada | AN64: P | AO64: NC | AP64: Exportações | AQ64: 2019 | AR64: 2020 | AS64: 2021 | AT64: 2022 | AU64: 2023 | AV64: média quinquénio
AC65: 1 | AD65: º | AE65: 1507 | AF65: Óleo de soja e suas frações | AG65: 24.2113728 | AH65: 0.4864901528 | AN65: 1º | AO65: 1507 | AP65: Óleo de soja e suas frações | AQ65: 9.090018 | AR65: 10.17511 | AS65: 36.168572 | AT65: 25.209174 | AU65: 40.41399 | AV65: 24.2113728
AC66: 2 | AD66: º | AE66: 0405 | AF66: Manteiga | AG66: 5.0488708 | AH66: 0.101449263 | AN66: 2º | AO66: 0405 | AP66: Manteiga | AQ66: 1.64502 | AR66: 6.9378 | AS66: 11.10584 | AT66: 4.73419 | AU66: 0.821504 | AV66: 5.0488708
AC67: 3 | AD67: º | AE67: 1905 | AF67: Produtos de padaria, pastelaria, etc. | AG67: 3.204006 | AH67: 0.06437955342 | AI67: 0.6523189693 | AN67: 3º | AO67: 1905 | AP67: Produtos de padaria, pastelaria, etc. | AQ67: 1.372329 | AR67: 2.09639 | AS67: 2.62214 | AT67: 3.990627 | AU67: 5.938544 | AV67: 3.204006
AC68: 4 | AD68: º | AE68: 0404 | AF68: Soro de leite e outros produtos do leite | AG68: 2.3677342 | AH68: 0.04757596285 | AN68: - | AO68: - | AP68: Outros | AQ68: 11.635106 | AR68: 13.163032 | AS68: 18.201772 | AT68: 19.930098 | AU68: 23.585978 | AV68: 17.3031972
AC69: 5 | AD69: º | AE69: 2203 | AF69: Cervejas de malte | AG69: 1.4943904 | AH69: 0.03002746767 | AP69: Total | AQ69: 23.742473 | AR69: 32.372332 | AS69: 68.098324 | AT69: 53.864089 | AU69: 70.760016 | AV69: 49.7674468
AC70: 6 | AD70: º | AE70: 2309 | AF70: Preparações p/ alimentação animal | AG70: 1.4070994 | AH70: 0.02827348981
AC71: 7 | AD71: º | AE71: 0104 | AF71: Ovinos ou caprinos vivos | AG71: 1.0037614 | AH71: 0.02016903547
AC72: 8 | AD72: º | AE72: 2103 | AF72: Preparações para molhos e molhos preparados | AG72: 0.9679776 | AH72: 0.01945001527
AC73: 9 | AD73: º | AE73: 1006 | AF73: Arroz | AG73: 0.7972884 | AH73: 0.01602027934
AC74: 10 | AD74: º | AE74: 3302 | AF74: Misturas de substâncias odoríferas p/ alimentação e bebidas | AG74: 0.7534432 | AH74: 0.01513927775 | AI74: 0.8289744974
AE75: - | AF75: Outros | AG75: 8.5115026 | AH75: 0.1710255026
AE76: Total | AG76: 49.7674468 | AH76: 1
AC89: DESAGREGAÇÃO A 4 DÍGITOS | AN89: DESAGREGAÇÃO A 4 DÍGITOS
G91: média 2019-2023 em milhões de euros | I91: Cód. NC | J91: Descritivo | K91: Export | L91: Import | M91: Saldo | AC91: P | AE91: Cód.NC | AF91: Descritivo | AG91: Média import quinquénio | AH91: % do total | AI91: % acumulada | AN91: P | AO91: NC | AP91: Importações | AQ91: 2019 | AR91: 2020 | AS91: 2021 | AT91: 2022 | AU91: 2023 | AV91: média quinquénio
I92: 1507 | J92: Óleo de soja e suas frações | K92: 24.2113728 | L92: 7.2e-06 | M92: 24.2113656 | AC92: 1 | AD92: º | AE92: 0702 | AF92: Tomates, frescos ou refrigerados | AG92: 3.3952668 | AH92: 0.2998415001 | AN92: 1º | AO92: 0702 | AP92: Tomates, frescos ou refrigerados | AQ92: 0.205133 | AR92: 1.197471 | AS92: 1.481738 | AT92: 4.293826 | AU92: 9.798166 | AV92: 3.3952668
I93: 0405 | J93: Manteiga | K93: 5.0488708 | L93: 0 | M93: 5.0488708 | AC93: 2 | AD93: º | AE93: 1703 | AF93: Melaços resultantes da extração ou refinação do açúcar | AG93: 1.6460454 | AH93: 0.1453649304 | AN93: 2º | AO93: 1703 | AP93: Melaços resultantes da extração ou refinação do açúcar | AQ93: 2.173573 | AR93: 3.93208 | AS93: 2.124574 | AT93: 0 | AU93: 0 | AV93: 1.6460454
I94: 1905 | J94: Produtos de padaria, pastelaria, etc. | K94: 3.204006 | L94: 0.0051218 | M94: 3.1988842 | AC94: 3 | AD94: º | AE94: 0811 | AF94: Frutas não cozidas ou cozidas em água ou vapor, congeladas | AG94: 1.5717408 | AH94: 0.138802971 | AI94: 0.5840094014 | AN94: 3º | AO94: 0811 | AP94: Frutas não cozidas ou cozidas em água ou vapor, congeladas | AQ94: 0.877832 | AR94: 1.602706 | AS94: 0.652164 | AT94: 2.40423 | AU94: 2.321772 | AV94: 1.5717408
I95: 0404 | J95: Soro de leite e outros produtos do leite | K95: 2.3677342 | L95: 0 | M95: 2.3677342 | AC95: 4 | AD95: º | AE95: 1518 | AF95: Gorduras e óleos, animais ou vegetais, processados de outras formas | AG95: 1.2279402 | AH95: 0.1084413842 | AN95: - | AO95: - | AP95: Outros | AQ95: 3.91394 | AR95: 4.248957 | AS95: 3.907264 | AT95: 3.878793 | AU95: 7.603474 | AV95: 4.7104856
I96: 2203 | J96: Cervejas de malte | K96: 1.4943904 | L96: 7.66e-05 | M96: 1.4943138 | AC96: 5 | AD96: º | AE96: 3823 | AF96: Ácidos e álcoois gordos (NC 382311 a 13-19-70) | AG96: 0.8517892 | AH96: 0.0752228813 | AP96: Total | AQ96: 7.170478 | AR96: 10.981214 | AS96: 8.16574 | AT96: 10.576849 | AU96: 19.723412 | AV96: 11.3235386
I97: 2309 | J97: Preparações p/ alimentação animal | K97: 1.4070994 | L97: 0.0001256 | M97: 1.4069738 | AC97: 6 | AD97: º | AE97: 0708 | AF97: Tomates preparados ou conservados | AG97: 0.3793822 | AH97: 0.03350385541
I98: 0104 | J98: Ovinos ou caprinos vivos | K98: 1.0037614 | L98: 0 | M98: 1.0037614 | AC98: 7 | AD98: º | AE98: 0709 | AF98: Outros produtos hortícolas, frescos ou refrigerados | AG98: 0.3064602 | AH98: 0.0270639957
I99: 2103 | J99: Preparações para molhos e molhos preparados | K99: 0.9679776 | L99: 4.82e-05 | M99: 0.9679294 | AC99: 8 | AD99: º | AE99: 1902 | AF99: Massas alimentícias (exc. NC 1902 20 10) (a) | AG99: 0.2927464 | AH99: 0.02585290785
I100: 1006 | J100: Arroz | K100: 0.7972884 | L100: 0 | M100: 0.7972884 | AC100: 9 | AD100: º | AE100: 1509 | AF100: Azeite (processos mecânicos ou físicos) | AG100: 0.2418808 | AH100: 0.02136088449
I101: 3302 | J101: Misturas de substâncias odoríferas p/ alimentação e bebidas | K101: 0.7534432 | L101: 0.0159292 | M101: 0.737514 | AC101: 10 | AD101: º | AE101: 0807 | AF101: Melões, melancias e papaia, frescos | AG101: 0.2206536 | AH101: 0.01948627614 | AI101: 0.8949415865
I102: - | J102: Outros | K102: 8.2188698 | L102: 1.1683244 | M102: 7.0505454 | AE102: - | AF102: Outros | AG102: 1.189633 | AH102: 0.1050584135
I103: 0807 | J103: Melões, melancias e papaia, frescos | K103: 0 | L103: 0.2206536 | M103: -0.2206536 | AE103: Total | AG103: 11.3235386 | AH103: 1
I104: 1902 | J104: Massas alimentícias (exc. NC 1902 20 10) (a) | K104: 0.0650354 | L104: 0.2927464 | M104: -0.227711
I105: 1509 | J105: Azeite (processos mecânicos ou físicos) | K105: 2.2e-06 | L105: 0.2418808 | M105: -0.2418786
I106: 0709 | J106: Outros produtos hortícolas, frescos ou refrigerados | K106: 1.2e-06 | L106: 0.3064602 | M106: -0.306459
I107: 0708 | J107: Tomates preparados ou conservados | K107: 4e-07 | L107: 0.3793822 | M107: -0.3793818
I108: 3823 | J108: Ácidos e álcoois gordos (NC 382311 a 13-19-70) | K108: 0 | L108: 0.8517892 | M108: -0.8517892
I109: 1518 | J109: Gorduras e óleos, animais ou vegetais, processados de outras formas | K109: 0.000975 | L109: 1.2279402 | M109: -1.2269652
I110: 0811 | J110: Frutas não cozidas ou cozidas em água ou vapor, congeladas | K110: 0.2266186 | L110: 1.5717408 | M110: -1.3451222
I111: 1703 | J111: Melaços resultantes da extração ou refinação do açúcar | K111: 0 | L111: 1.6460454 | M111: -1.6460454
I112: 0702 | J112: Tomates, frescos ou refrigerados | K112: 0 | L112: 3.3952668 | M112: -3.3952668
I113: Total | K113: 49.7674468 | L113: 11.3235386 | M113: 38.4439082
A116: Fonte: GPP a partir de dados INE/Comércio Internacional (2022 definitivos) | Y116: 2024-03-26T15:06:06.970

Sheet 4A
A1: Evolução da balança comercial Portugal-Marrocos 2019-2023 por produto em euros (NC 2 dígitos)
A3: =+aux!A31 -> Evolução da balança comercial Portugal-Marrocos para Gorduras e óleos animais ou vegetais
A5: Selecione o produto:
Q7: Para obter uma maior desagregação deste produto, clique no botão respetivo:
A20: =+aux!A43 -> Evolução da balança comercial Portugal-Marrocos para Peixes e crustáceos
A22: Selecione o produto:
A38: Fonte: GPP a partir de dados INE/Comércio Internacional (2022 definitivos) | N38: 2024-03-26T15:06:06.970

Sheet 5.2
A1: Trocas comerciais Portugal-Marrocos 2019-2023 em milhares de euros (NC 2 dígitos) | C1: Produtos agrícolas e agroalimentares, do mar e da floresta
A2: Cód. NC | B2: Descritivo | C2: Importações | K2: Exportações | S2: Saldo quinquénio (exp-imp) | T2: Evolução das importações | U2: =+"Variação das Importações " & INDEX(K3:N3,1,aux!AL1) & "-"& '5.2'!O3 &"" -> Variação das Importações 2019-2023 | Z2: Evolução das exportações | AA2: ="Variação das Exportações " & INDEX(K3:N3,1,aux!AL1) & "-"& '5.2'!O3 &"" -> Variação das Exportações 2019-2023
C3: 2019 | D3: 2020 | E3: 2021 | F3: 2022 | G3: 2023 | H3: média quinquénio | I3: % Subtot | J3: % Total | K3: 2019 | L3: 2020 | M3: 2021 | N3: 2022 | O3: 2023 | P3: média quinquénio | Q3: % Subtot | R3: % Total | U3: variação total em valor | V3: % no subtotal de variação | W3: % no total de variação | X3: taxa de variação média anual | Y3: taxa de variação total | AA3: variação total em valor | AB3: % no subtotal de variação | AC3: % no total de variação | AD3: taxa de variação média anual | AE3: taxa de variação total
A4: 01 | B4: Animais vivos | C4: 0 | D4: 0 | E4: 0 | F4: 1.5 | G4: 0 | H4: 0.3 | I4: 2.6493485e-05 | J4: 7.006019278e-06 | K4: 439.677 | L4: 227.613 | M4: 185.65 | N4: 130.62 | O4: 5174.407 | P4: 1231.5934 | Q4: 0.02474696773 | R4: 0.01038078706 | S4: 1231.2934 | U4: =G4-INDEX($C4:$G4,1,aux!$AL$1) -> 0 | V4: =IF($U$37<>0,U4/$U$37, "n.d.") -> 0 | W4: =IF($U$53<>0,U4/$U$53, "n.d.") -> 0 | X4: =+IF(INDEX($C4:$G4,1,aux!$AL$1)>0,(G4/INDEX($C4:$G4,1,aux!$AL$1))^(1/($G$3-INDEX($C$3:$G$3,1,aux!$AL$1)))-1,"n.d.") -> n.d. | Y4: =IF(INDEX($C4:$G4,1,aux!$AL$1)>0,(G4-INDEX($C4:$G4,1,aux!$AL$1))/INDEX($C4:$G4,1,aux!$AL$1),"n.d.") -> n.d. | AA4: =O4-INDEX($K4:$O4,1,aux!$AL$1) -> 4734.73 | AB4: =IF($AA$37<>0,AA4/$AA$37, "n.d.") -> 0.1007013489 | AC4: =IF($AA$53<>0,AA4/$AA$53, "n.d.") -> 0.09802107252 | AD4: =+IF(INDEX($K4:$O4,1,aux!$AL$1)>0,(O4/INDEX($K4:$O4,1,aux!$AL$1))^(1/($O$3-INDEX($K$3:$O$3,1,aux!$AL$1)))-1,"n.d.") -> 0.8521736845 | AE4: =IF(INDEX($K4:$O4,1,aux!$AL$1)>0,(O4-INDEX($K4:$O4,1,aux!$AL$1))/INDEX($K4:$O4,1,aux!$AL$1),"n.d.") -> 10.76865517
A5: 02 | B5: Carnes e miudezas | C5: 0 | D5: 0 | E5: 0 | F5: 0 | G5: 0 | H5: 0 | I5: 0 | J5: 0 | K5: 334.685 | L5: 0 | M5: 647.18 | N5: 0 | O5: 222.522 | P5: 240.8774 | Q5: 0.004840059426 | R5: 0.002030294249 | S5: 240.8774 | U5: =G5-INDEX($C5:$G5,1,aux!$AL$1) -> 0 | V5: 0 | W5: 0 | X5: =+IF(INDEX($C5:$G5,1,aux!$AL$1)>0,(G5/INDEX($C5:$G5,1,aux!$AL$1))^(1/($G$3-INDEX($C$3:$G$3,1,aux!$AL$1)))-1,"n.d.") -> n.d. | Y5: =IF(INDEX($C5:$G5,1,aux!$AL$1)>0,(G5-INDEX($C5:$G5,1,aux!$AL$1))/INDEX($C5:$G5,1,aux!$AL$1),"n.d.") -> n.d. | AA5: =O5-INDEX($K5:$O5,1,aux!$AL$1) -> -112.163 | AB5: -0.002385556387 | AC5: -0.002322062199 | AD5: =+IF(INDEX($K5:$O5,1,aux!$AL$1)>0,(O5/INDEX($K5:$O5,1,aux!$AL$1))^(1/($O$3-INDEX($K$3:$O$3,1,aux!$AL$1)))-1,"n.d.") -> -0.09700743066 | AE5: =IF(INDEX($K5:$O5,1,aux!$AL$1)>0,(O5-INDEX($K5:$O5,1,aux!$AL$1))/INDEX($K5:$O5,1,aux!$AL$1),"n.d.") -> -0.3351300477
A6: 04 | B6: Leite e laticínios; ovos; mel, etc. | C6: 0 | D6: 0 | E6: 0 | F6: 0 | G6: 0 | H6: 0 | I6: 0 | J6: 0 | K6: 5093.103 | L6: 10004.569 | M6: 15248.423 | N6: 7850.826 | O6: 2556.662 | P6: 8150.7166 | Q6: 0.163776065 | R6: 0.0687003141 | S6: 8150.7166 | U6: =G6-INDEX($C6:$G6,1,aux!$AL$1) -> 0 | V6: 0 | W6: 0 | X6: =+IF(INDEX($C6:$G6,1,aux!$AL$1)>0,(G6/INDEX($C6:$G6,1,aux!$AL$1))^(1/($G$3-INDEX($C$3:$G$3,1,aux!$AL$1)))-1,"n.d.") -> n.d. | Y6: =IF(INDEX($C6:$G6,1,aux!$AL$1)>0,(G6-INDEX($C6:$G6,1,aux!$AL$1))/INDEX($C6:$G6,1,aux!$AL$1),"n.d.") -> n.d. | AA6: =O6-INDEX($K6:$O6,1,aux!$AL$1) -> -2536.441 | AB6: -0.0539466939 | AC6: -0.05251084375 | AD6: =+IF(INDEX($K6:$O6,1,aux!$AL$1)>0,(O6/INDEX($K6:$O6,1,aux!$AL$1))^(1/($O$3-INDEX($K$3:$O$3,1,aux!$AL$1)))-1,"n.d.") -> -0.1582701778 | AE6: =IF(INDEX($K6:$O6,1,aux!$AL$1)>0,(O6-INDEX($K6:$O6,1,aux!$AL$1))/INDEX($K6:$O6,1,aux!$AL$1),"n.d.") -> -0.4980148644
A7: 05a | B7: Outros produtos de origem animal (exc. NC 0508, 051191) (a) | C7: 62.942 | D7: 168.898 | E7: 98.308 | F7: 157.302 | G7: 217.468 | H7: 140.9836 | I7: 0.01245048964 | J7: 0.003292446065 | K7: 131.395 | L7: 0 | M7: 257.56 | N7: 385.978 | O7: 576.265 | P7: 270.2396 | Q7: 0.005430047498 | R7: 0.002277780754 | S7: 129.256 | U7: =G7-INDEX($C7:$G7,1,aux!$AL$1) -> 154.526 | V7: 0.01230995081 | W7: 0.007391633801 | X7: =+IF(INDEX($C7:$G7,1,aux!$AL$1)>0,(G7/INDEX($C7:$G7,1,aux!$AL$1))^(1/($G$3-INDEX($C$3:$G$3,1,aux!$AL$1)))-1,"n.d.") -> 0.3633699122 | Y7: =IF(INDEX($C7:$G7,1,aux!$AL$1)>0,(G7-INDEX($C7:$G7,1,aux!$AL$1))/INDEX($C7:$G7,1,aux!$AL$1),"n.d.") -> 2.455053859 | AA7: =O7-INDEX($K7:$O7,1,aux!$AL$1) -> 444.87 | AB7: 0.009461787486 | AC7: 0.009209951683 | AD7: =+IF(INDEX($K7:$O7,1,aux!$AL$1)>0,(O7/INDEX($K7:$O7,1,aux!$AL$1))^(1/($O$3-INDEX($K$3:$O$3,1,aux!$AL$1)))-1,"n.d.") -> 0.4471410098 | AE7: =IF(INDEX($K7:$O7,1,aux!$AL$1)>0,(O7-INDEX($K7:$O7,1,aux!$AL$1))/INDEX($K7:$O7,1,aux!$AL$1),"n.d.") -> 3.385745272
A8: 06 | B8: Plantas vivas e produtos de floricultura | C8: 0 | D8: 0 | E8: 12.014 | F8: 0.177 | G8: 5.477 | H8: 3.5336 | I8: 0.0003120579286 | J8: 8.252156573e-05 | K8: 123.892 | L8: 0 | M8: 0 | N8: 80.1 | O8: 0 | P8: 40.7984 | Q8: 0.0008197808532 | R8: 0.0003438793216 | S8: 37.2648 | U8: =G8-INDEX($C8:$G8,1,aux!$AL$1) -> 5.477 | V8: 0.0004363123394 | W8: 0.0002619881336 | X8: =+IF(INDEX($C8:$G8,1,aux!$AL$1)>0,(G8/INDEX($C8:$G8,1,aux!$AL$1))^(1/($G$3-INDEX($C$3:$G$3,1,aux!$AL$1)))-1,"n.d.") -> n.d. | Y8: =IF(INDEX($C8:$G8,1,aux!$AL$1)>0,(G8-INDEX($C8:$G8,1,aux!$AL$1))/INDEX($C8:$G8,1,aux!$AL$1),"n.d.") -> n.d. | AA8: =O8-INDEX($K8:$O8,1,aux!$AL$1) -> -123.892 | AB8: -0.002635016466 | AC8: -0.002564882626 | AD8: =+IF(INDEX($K8:$O8,1,aux!$AL$1)>0,(O8/INDEX($K8:$O8,1,aux!$AL$1))^(1/($O$3-INDEX($K$3:$O$3,1,aux!$AL$1)))-1,"n.d.") -> -1 | AE8: =IF(INDEX($K8:$O8,1,aux!$AL$1)>0,(O8-INDEX($K8:$O8,1,aux!$AL$1))/INDEX($K8:$O8,1,aux!$AL$1),"n.d.") -> -1
A9: 07 | B9: Produtos hortícolas | C9: 472.772 | D9: 1213.871 | E9: 1494.408 | F9: 4412.247 | G9: 13965.049 | H9: 4311.6694 | I9: 0.3807704952 | J9: 0.1006921298 | K9: 0.031 | L9: 105.432 | M9: 59.932 | N9: 33.962 | O9: 8.582 | P9: 41.5878 | Q9: 0.0008356426273 | R9: 0.0003505329731 | S9: -4270.0816 | U9: =G9-INDEX($C9:$G9,1,aux!$AL$1) -> 13492.277 | V9: 1.074830554 | W9: 0.6453928188 | X9: =+IF(INDEX($C9:$G9,1,aux!$AL$1)>0,(G9/INDEX($C9:$G9,1,aux!$AL$1))^(1/($G$3-INDEX($C$3:$G$3,1,aux!$AL$1)))-1,"n.d.") -> 1.331297399 | Y9: =IF(INDEX($C9:$G9,1,aux!$AL$1)>0,(G9-INDEX($C9:$G9,1,aux!$AL$1))/INDEX($C9:$G9,1,aux!$AL$1),"n.d.") -> 28.538655 | AA9: =O9-INDEX($K9:$O9,1,aux!$AL$1) -> 8.551 | AB9: 0.0001818682869 | AC9: 0.0001770276639 | AD9: =+IF(INDEX($K9:$O9,1,aux!$AL$1)>0,(O9/INDEX($K9:$O9,1,aux!$AL$1))^(1/($O$3-INDEX($K$3:$O$3,1,aux!$AL$1)))-1,"n.d.") -> 3.079028165 | AE9: =IF(INDEX($K9:$O9,1,aux!$AL$1)>0,(O9-INDEX($K9:$O9,1,aux!$AL$1))/INDEX($K9:$O9,1,aux!$AL$1),"n.d.") -> 275.8387097
A10: 08 | B10: Frutas | C10: 1014.511 | D10: 1744.676 | E10: 907.746 | F10: 2485.486 | G10: 3251.4 | H10: 1880.7638 | I10: 0.1660932917 | J10: 0.0439222248 | K10: 550.952 | L10: 489.248 | M10: 772.702 | N10: 930.554 | O10: 920.967 | P10: 732.8846 | Q10: 0.01472618443 | R10: 0.006177297615 | S10: -1147.8792 | U10: =G10-INDEX($C10:$G10,1,aux!$AL$1) -> 2236.889 | V10: 0.1781965077 | W10: 0.1069998857 | X10: =+IF(INDEX($C10:$G10,1,aux!$AL$1)>0,(G10/INDEX($C10:$G10,1,aux!$AL$1))^(1/($G$3-INDEX($C$3:$G$3,1,aux!$AL$1)))-1,"n.d.") -> 0.337991672 | Y10: =IF(INDEX($C10:$G10,1,aux!$AL$1)>0,(G10-INDEX($C10:$G10,1,aux!$AL$1))/INDEX($C10:$G10,1,aux!$AL$1),"n.d.") -> 2.204893786 | AA10: =O10-INDEX($K10:$O10,1,aux!$AL$1) -> 370.015 | AB10: 0.007869722159 | AC10: 0.007660260912 | AD10: =+IF(INDEX($K10:$O10,1,aux!$AL$1)>0,(O10/INDEX($K10:$O10,1,aux!$AL$1))^(1/($O$3-INDEX($K$3:$O$3,1,aux!$AL$1)))-1,"n.d.") -> 0.1370578904 | AE10: =IF(INDEX($K10:$O10,1,aux!$AL$1)>0,(O10-INDEX($K10:$O10,1,aux!$AL$1))/INDEX($K10:$O10,1,aux!$AL$1),"n.d.") -> 0.6715920806
A11: 09 | B11: Café, chá, mate e especiarias | C11: 0 | D11: 0.041 | E11: 0.199 | F11: 1.77 | G11: 4.018 | H11: 1.2056 | I11: 0.000106468485 | J11: 2.815485614e-05 | K11: 413.313 | L11: 624.462 | M11: 556.947 | N11: 446.114 | O11: 342.743 | P11: 476.7158 | Q11: 0.009578867928 | R11: 0.004018116051 | S11: 475.5102 | U11: =G11-INDEX($C11:$G11,1,aux!$AL$1) -> 4.018 | V11: 0.0003200845316 | W11: 0.0001921979771 | X11: =+IF(INDEX($C11:$G11,1,aux!$AL$1)>0,(G11/INDEX($C11:$G11,1,aux!$AL$1))^(1/($G$3-INDEX($C$3:$G$3,1,aux!$AL$1)))-1,"n.d.") -> n.d. | Y11: =IF(INDEX($C11:$G11,1,aux!$AL$1)>0,(G11-INDEX($C11:$G11,1,aux!$AL$1))/INDEX($C11:$G11,1,aux!$AL$1),"n.d.") -> n.d. | AA11: =O11-INDEX($K11:$O11,1,aux!$AL$1) -> -70.57 | AB11: -0.001500929132 | AC11: -0.001460980265 | AD11: =+IF(INDEX($K11:$O11,1,aux!$AL$1)>0,(O11/INDEX($K11:$O11,1,aux!$AL$1))^(1/($O$3-INDEX($K$3:$O$3,1,aux!$AL$1)))-1,"n.d.") -> -0.0457275583 | AE11: =IF(INDEX($K11:$O11,1,aux!$AL$1)>0,(O11-INDEX($K11:$O11,1,aux!$AL$1))/INDEX($K11:$O11,1,aux!$AL$1),"n.d.") -> -0.1707422704
A12: 10 | B12: Cereais | C12: 0 | D12: 0 | E12: 0 | F12: 0 | G12: 0 | H12: 0 | I12: 0 | J12: 0 | K12: 0.366 | L12: 155.667 | M12: 578.257 | N12: 1773.682 | O12: 1557.426 | P12: 813.0796 | Q12: 0.01633757913 | R12: 0.006853240843 | S12: 813.0796 | U12: =G12-INDEX($C12:$G12,1,aux!$AL$1) -> 0 | V12: 0 | W12: 0 | X12: =+IF(INDEX($C12:$G12,1,aux!$AL$1)>0,(G12/INDEX($C12:$G12,1,aux!$AL$1))^(1/($G$3-INDEX($C$3:$G$3,1,aux!$AL$1)))-1,"n.d.") -> n.d. | Y12: =IF(INDEX($C12:$G12,1,aux!$AL$1)>0,(G12-INDEX($C12:$G12,1,aux!$AL$1))/INDEX($C12:$G12,1,aux!$AL$1),"n.d.") -> n.d. | AA12: =O12-INDEX($K12:$O12,1,aux!$AL$1) -> 1557.06 | AB12: 0.03311657523 | AC12: 0.03223514143 | AD12: =+IF(INDEX($K12:$O12,1,aux!$AL$1)>0,(O12/INDEX($K12:$O12,1,aux!$AL$1))^(1/($O$3-INDEX($K$3:$O$3,1,aux!$AL$1)))-1,"n.d.") -> 7.076655962 | AE12: =IF(INDEX($K12:$O12,1,aux!$AL$1)>0,(O12-INDEX($K12:$O12,1,aux!$AL$1))/INDEX($K12:$O12,1,aux!$AL$1),"n.d.") -> 4254.262295
A13: 11 | B13: Produtos da indústria de moagem e outros | C13: 0 | D13: 55.108 | E13: 0.053 | F13: 0.142 | G13: 0.048 | H13: 11.0702 | I13: 0.0009776272587 | J13: 0.000258526782 | K13: 211.584 | L13: 49.782 | M13: 88.814 | N13: 78.472 | O13: 59.148 | P13: 97.56 | Q13: 0.001960317562 | R13: 0.0008223083898 | S13: 86.4898 | U13: =G13-INDEX($C13:$G13,1,aux!$AL$1) -> 0.048 | V13: 3.823807247e-06 | W13: 2.29604353e-06 | X13: =+IF(INDEX($C13:$G13,1,aux!$AL$1)>0,(G13/INDEX($C13:$G13,1,aux!$AL$1))^(1/($G$3-INDEX($C$3:$G$3,1,aux!$AL$1)))-1,"n.d.") -> n.d. | Y13: =IF(INDEX($C13:$G13,1,aux!$AL$1)>0,(G13-INDEX($C13:$G13,1,aux!$AL$1))/INDEX($C13:$G13,1,aux!$AL$1),"n.d.") -> n.d. | AA13: =O13-INDEX($K13:$O13,1,aux!$AL$1) -> -152.436 | AB13: -0.003242109015 | AC13: -0.003155816744 | AD13: =+IF(INDEX($K13:$O13,1,aux!$AL$1)>0,(O13/INDEX($K13:$O13,1,aux!$AL$1))^(1/($O$3-INDEX($K$3:$O$3,1,aux!$AL$1)))-1,"n.d.") -> -0.2728662378 | AE13: =IF(INDEX($K13:$O13,1,aux!$AL$1)>0,(O13-INDEX($K13:$O13,1,aux!$AL$1))/INDEX($K13:$O13,1,aux!$AL$1),"n.d.") -> -0.7204514519
A14: 12 | B14: Sementes e frutos oleaginosos | C14: 23.254 | D14: 78.792 | E14: 146.864 | F14: 187.794 | G14: 6.283 | H14: 88.5974 | I14: 0.007824179625 | J14: 0.002069050308 | K14: 40.037 | L14: 88.622 | M14: 117.37 | N14: 143.12 | O14: 98.541 | P14: 97.538 | Q14: 0.001959875506 | R14: 0.0008221229574 | S14: 8.9406 | U14: =G14-INDEX($C14:$G14,1,aux!$AL$1) -> -16.971 | V14: -0.00135195485 | W14: -0.0008117948904 | X14: =+IF(INDEX($C14:$G14,1,aux!$AL$1)>0,(G14/INDEX($C14:$G14,1,aux!$AL$1))^(1/($G$3-INDEX($C$3:$G$3,1,aux!$AL$1)))-1,"n.d.") -> -0.2790297442 | Y14: =IF(INDEX($C14:$G14,1,aux!$AL$1)>0,(G14-INDEX($C14:$G14,1,aux!$AL$1))/INDEX($C14:$G14,1,aux!$AL$1),"n.d.") -> -0.7298099252 | AA14: =O14-INDEX($K14:$O14,1,aux!$AL$1) -> 58.504 | AB14: 0.001244301515 | AC14: 0.001211183072 | AD14: =+IF(INDEX($K14:$O14,1,aux!$AL$1)>0,(O14/INDEX($K14:$O14,1,aux!$AL$1))^(1/($O$3-INDEX($K$3:$O$3,1,aux!$AL$1)))-1,"n.d.") -> 0.2525320841 | AE14: =IF(INDEX($K14:$O14,1,aux!$AL$1)>0,(O14-INDEX($K14:$O14,1,aux!$AL$1))/INDEX($K14:$O14,1,aux!$AL$1),"n.d.") -> 1.461248345
A15: 13a | B15: Sucos e extratos vegetais (exc. NC 1301) (a) | C15: 0 | D15: 1.082 | E15: 2 | F15: 215.692 | G15: 15.25 | H15: 46.8048 | I15: 0.004133407555 | J15: 0.001093051104 | K15: 21.688 | L15: 11.186 | M15: 23.485 | N15: 60.571 | O15: 30.565 | P15: 29.499 | Q15: 0.0005927368571 | R15: 0.0002486395571 | S15: -17.3058 | U15: =G15-INDEX($C15:$G15,1,aux!$AL$1) -> 15.25 | V15: 0.001214855427 | W15: 0.000729472163 | X15: =+IF(INDEX($C15:$G15,1,aux!$AL$1)>0,(G15/INDEX($C15:$G15,1,aux!$AL$1))^(1/($G$3-INDEX($C$3:$G$3,1,aux!$AL$1)))-1,"n.d.") -> n.d. | Y15: =IF(INDEX($C15:$G15,1,aux!$AL$1)>0,(G15-INDEX($C15:$G15,1,aux!$AL$1))/INDEX($C15:$G15,1,aux!$AL$1),"n.d.") -> n.d. | AA15: =O15-INDEX($K15:$O15,1,aux!$AL$1) -> 8.877 | AB15: 0.0001888018691 | AC15: 0.0001837767013 | AD15: =+IF(INDEX($K15:$O15,1,aux!$AL$1)>0,(O15/INDEX($K15:$O15,1,aux!$AL$1))^(1/($O$3-INDEX($K$3:$O$3,1,aux!$AL$1)))-1,"n.d.") -> 0.08956018283 | AE15: =IF(INDEX($K15:$O15,1,aux!$AL$1)>0,(O15-INDEX($K15:$O15,1,aux!$AL$1))/INDEX($K15:$O15,1,aux!$AL$1),"n.d.") -> 0.4093046846
A16: 14 | B16: Matérias para entrançar e outros | C16: 0.911 | D16: 0 | E16: 0 | F16: 0 | G16: 0 | H16: 0.1822 | I16: 1.609037655e-05 | J16: 4.254989041e-06 | K16: 0 | L16: 0 | M16: 0 | N16: 0 | O16: 0 | P16: 0 | Q16: 0 | R16: 0 | S16: -0.1822 | U16: =G16-INDEX($C16:$G16,1,aux!$AL$1) -> -0.911 | V16: -7.257267504e-05 | W16: -4.357699282e-05 | X16: =+IF(INDEX($C16:$G16,1,aux!$AL$1)>0,(G16/INDEX($C16:$G16,1,aux!$AL$1))^(1/($G$3-INDEX($C$3:$G$3,1,aux!$AL$1)))-1,"n.d.") -> -1 | Y16: =IF(INDEX($C16:$G16,1,aux!$AL$1)>0,(G16-INDEX($C16:$G16,1,aux!$AL$1))/INDEX($C16:$G16,1,aux!$AL$1),"n.d.") -> -1 | AA16: =O16-INDEX($K16:$O16,1,aux!$AL$1) -> 0 | AB16: 0 | AC16: 0 | AD16: =+IF(INDEX($K16:$O16,1,aux!$AL$1)>0,(O16/INDEX($K16:$O16,1,aux!$AL$1))^(1/($O$3-INDEX($K$3:$O$3,1,aux!$AL$1)))-1,"n.d.") -> n.d. | AE16: =IF(INDEX($K16:$O16,1,aux!$AL$1)>0,(O16-INDEX($K16:$O16,1,aux!$AL$1))/INDEX($K16:$O16,1,aux!$AL$1),"n.d.") -> n.d.
A17: 15 | B17: Gorduras e óleos animais ou vegetais | C17: 2760.147 | D17: 1841.058 | E17: 1482.656 | F17: 1329.747 | G17: 806.365 | H17: 1643.9946 | I17: 0.1451838209 | J17: 0.03839285953 | K17: 9550.502 | L17: 10470.548 | M17: 38889.149 | N17: 25323.5 | O17: 41701.97 | P17: 25187.1338 | Q17: 0.5060965635 | R17: 0.2122959352 | S17: 23543.1392 | U17: =G17-INDEX($C17:$G17,1,aux!$AL$1) -> -1953.782 | V17: -0.1556434536 | W17: -0.09345767748 | X17: =+IF(INDEX($C17:$G17,1,aux!$AL$1)>0,(G17/INDEX($C17:$G17,1,aux!$AL$1))^(1/($G$3-INDEX($C$3:$G$3,1,aux!$AL$1)))-1,"n.d.") -> -0.2648095378 | Y17: =IF(INDEX($C17:$G17,1,aux!$AL$1)>0,(G17-INDEX($C17:$G17,1,aux!$AL$1))/INDEX($C17:$G17,1,aux!$AL$1),"n.d.") -> -0.707854328 | AA17: =O17-INDEX($K17:$O17,1,aux!$AL$1) -> 32151.468 | AB17: 0.6838185483 | AC17: 0.6656179712 | AD17: =+IF(INDEX($K17:$O17,1,aux!$AL$1)>0,(O17/INDEX($K17:$O17,1,aux!$AL$1))^(1/($O$3-INDEX($K$3:$O$3,1,aux!$AL$1)))-1,"n.d.") -> 0.4455482521 | AE17: =IF(INDEX($K17:$O17,1,aux!$AL$1)>0,(O17-INDEX($K17:$O17,1,aux!$AL$1))/INDEX($K17:$O17,1,aux!$AL$1),"n.d.") -> 3.366468904
A18: 16a | B18: Preparações de carnes (exc. NC 1604-05) (a) | C18: 0 | D18: 0 | E18: 0 | F18: 0 | G18: 0 | H18: 0 | I18: 0 | J18: 0 | K18: 0 | L18: 0 | M18: 0.008 | N18: 0 | O18: 0 | P18: 0.0016 | Q18: 3.214952952e-08 | R18: 1.348599245e-08 | S18: 0.0016 | U18: =G18-INDEX($C18:$G18,1,aux!$AL$1) -> 0 | V18: 0 | W18: 0 | X18: =+IF(INDEX($C18:$G18,1,aux!$AL$1)>0,(G18/INDEX($C18:$G18,1,aux!$AL$1))^(1/($G$3-INDEX($C$3:$G$3,1,aux!$AL$1)))-1,"n.d.") -> n.d. | Y18: =IF(INDEX($C18:$G18,1,aux!$AL$1)>0,(G18-INDEX($C18:$G18,1,aux!$AL$1))/INDEX($C18:$G18,1,aux!$AL$1),"n.d.") -> n.d. | AA18: =O18-INDEX($K18:$O18,1,aux!$AL$1) -> 0 | AB18: 0 | AC18: 0 | AD18: =+IF(INDEX($K18:$O18,1,aux!$AL$1)>0,(O18/INDEX($K18:$O18,1,aux!$AL$1))^(1/($O$3-INDEX($K$3:$O$3,1,aux!$AL$1)))-1,"n.d.") -> n.d. | AE18: =IF(INDEX($K18:$O18,1,aux!$AL$1)>0,(O18-INDEX($K18:$O18,1,aux!$AL$1))/INDEX($K18:$O18,1,aux!$AL$1),"n.d.") -> n.d.
A19: 17 | B19: Açúcares e produtos de confeitaria | C19: 2173.573 | D19: 4335.982 | E19: 2353.255 | F19: 0.188 | G19: 0 | H19: 1772.5996 | I19: 0.1565411364 | J19: 0.04139622323 | K19: 85.971 | L19: 99.506 | M19: 120.431 | N19: 193.176 | O19: 67.539 | P19: 113.3246 | Q19: 0.002277082858 | R19: 0.0009551841877 | S19: -1659.275 | U19: =G19-INDEX($C19:$G19,1,aux!$AL$1) -> -2173.573 | V19: -0.1731525873 | W19: -0.103971213 | X19: =+IF(INDEX($C19:$G19,1,aux!$AL$1)>0,(G19/INDEX($C19:$G19,1,aux!$AL$1))^(1/($G$3-INDEX($C$3:$G$3,1,aux!$AL$1)))-1,"n.d.") -> -1 | Y19: =IF(INDEX($C19:$G19,1,aux!$AL$1)>0,(G19-INDEX($C19:$G19,1,aux!$AL$1))/INDEX($C19:$G19,1,aux!$AL$1),"n.d.") -> -1 | AA19: =O19-INDEX($K19:$O19,1,aux!$AL$1) -> -18.432 | AB19: -0.0003920238878 | AC19: -0.000381589744 | AD19: =+IF(INDEX($K19:$O19,1,aux!$AL$1)>0,(O19/INDEX($K19:$O19,1,aux!$AL$1))^(1/($O$3-INDEX($K$3:$O$3,1,aux!$AL$1)))-1,"n.d.") -> -0.05854262491 | AE19: =IF(INDEX($K19:$O19,1,aux!$AL$1)>0,(O19-INDEX($K19:$O19,1,aux!$AL$1))/INDEX($K19:$O19,1,aux!$AL$1),"n.d.") -> -0.2143978784
A20: 18 | B20: Cacau e suas preparações | C20: 0 | D20: 0 | E20: 0 | F20: 0.378 | G20: 5.21 | H20: 1.1176 | I20: 9.869706277e-05 | J20: 2.609975715e-05 | K20: 36.323 | L20: 294.915 | M20: 761.422 | N20: 600.884 | O20: 1487.267 | P20: 636.1622 | Q20: 0.01278269714 | R20: 0.005362049142 | S20: 635.0446 | U20: =G20-INDEX($C20:$G20,1,aux!$AL$1) -> 5.21 | V20: 0.0004150424116 | W20: 0.0002492163914 | X20: =+IF(INDEX($C20:$G20,1,aux!$AL$1)>0,(G20/INDEX($C20:$G20,1,aux!$AL$1))^(1/($G$3-INDEX($C$3:$G$3,1,aux!$AL$1)))-1,"n.d.") -> n.d. | Y20: =IF(INDEX($C20:$G20,1,aux!$AL$1)>0,(G20-INDEX($C20:$G20,1,aux!$AL$1))/INDEX($C20:$G20,1,aux!$AL$1),"n.d.") -> n.d. | AA20: =O20-INDEX($K20:$O20,1,aux!$AL$1) -> 1450.944 | AB20: 0.03085963041 | AC20: 0.03003826766 | AD20: =+IF(INDEX($K20:$O20,1,aux!$AL$1)>0,(O20/INDEX($K20:$O20,1,aux!$AL$1))^(1/($O$3-INDEX($K$3:$O$3,1,aux!$AL$1)))-1,"n.d.") -> 1.529599739 | AE20: =IF(INDEX($K20:$O20,1,aux!$AL$1)>0,(O20-INDEX($K20:$O20,1,aux!$AL$1))/INDEX($K20:$O20,1,aux!$AL$1),"n.d.") -> 39.94559921
A21: 19a | B21: Preparações à base de cereais (exc. NC 19022010) (a) | C21: 389.805 | D21: 366.494 | E21: 436.788 | F21: 278.161 | G21: 20.437 | H21: 298.337 | I21: 0.02634662278 | J21: 0.006967182577 | K21: 1737.728 | L21: 2579.827 | M21: 3042.585 | N21: 4468.247 | O21: 6429.268 | P21: 3651.531 | Q21: 0.0733718773 | R21: 0.03077782469 | S21: 3353.194 | U21: =G21-INDEX($C21:$G21,1,aux!$AL$1) -> -369.368 | V21: -0.02942483407 | W21: -0.01766843763 | X21: =+IF(INDEX($C21:$G21,1,aux!$AL$1)>0,(G21/INDEX($C21:$G21,1,aux!$AL$1))^(1/($G$3-INDEX($C$3:$G$3,1,aux!$AL$1)))-1,"n.d.") -> -0.5214884391 | Y21: =IF(INDEX($C21:$G21,1,aux!$AL$1)>0,(G21-INDEX($C21:$G21,1,aux!$AL$1))/INDEX($C21:$G21,1,aux!$AL$1),"n.d.") -> -0.9475712215 | AA21: =O21-INDEX($K21:$O21,1,aux!$AL$1) -> 4691.54 | AB21: 0.09978275556 | AC21: 0.09712692859 | AD21: =+IF(INDEX($K21:$O21,1,aux!$AL$1)>0,(O21/INDEX($K21:$O21,1,aux!$AL$1))^(1/($O$3-INDEX($K$3:$O$3,1,aux!$AL$1)))-1,"n.d.") -> 0.3868993117 | AE21: =IF(INDEX($K21:$O21,1,aux!$AL$1)>0,(O21-INDEX($K21:$O21,1,aux!$AL$1))/INDEX($K21:$O21,1,aux!$AL$1),"n.d.") -> 2.699812629
A22: 20 | B22: Preparações de produtos vegetais | C22: 170.537 | D22: 168.887 | E22: 171.205 | F22: 62.861 | G22: 136.088 | H22: 141.9156 | I22: 0.01253279606 | J22: 0.003314211431 | K22: 1612.986 | L22: 1193.219 | M22: 1226.263 | N22: 1146.113 | O22: 2318.013 | P22: 1499.3188 | Q22: 0.03012649626 | R22: 0.01263737626 | S22: 1357.4032 | U22: =G22-INDEX($C22:$G22,1,aux!$AL$1) -> -34.449 | V22: -0.002744298664 | W22: -0.001647841741 | X22: =+IF(INDEX($C22:$G22,1,aux!$AL$1)>0,(G22/INDEX($C22:$G22,1,aux!$AL$1))^(1/($G$3-INDEX($C$3:$G$3,1,aux!$AL$1)))-1,"n.d.") -> -0.05485094774 | Y22: =IF(INDEX($C22:$G22,1,aux!$AL$1)>0,(G22-INDEX($C22:$G22,1,aux!$AL$1))/INDEX($C22:$G22,1,aux!$AL$1),"n.d.") -> -0.2020030844 | AA22: =O22-INDEX($K22:$O22,1,aux!$AL$1) -> 705.027 | AB22: 0.01499497751 | AC22: 0.01459586982 | AD22: =+IF(INDEX($K22:$O22,1,aux!$AL$1)>0,(O22/INDEX($K22:$O22,1,aux!$AL$1))^(1/($O$3-INDEX($K$3:$O$3,1,aux!$AL$1)))-1,"n.d.") -> 0.09489208773 | AE22: =IF(INDEX($K22:$O22,1,aux!$AL$1)>0,(O22-INDEX($K22:$O22,1,aux!$AL$1))/INDEX($K22:$O22,1,aux!$AL$1),"n.d.") -> 0.4370943083
A23: 21 | B23: Preparações alimentícias diversas | C23: 0.17 | D23: 0.05 | E23: 268.149 | F23: 82.696 | G23: 54.99 | H23: 81.211 | I23: 0.0071718747 | J23: 0.001896552772 | K23: 1085.005 | L23: 1195.725 | M23: 1214.566 | N23: 1611.278 | O23: 1354.003 | P23: 1292.1154 | Q23: 0.02596306387 | R23: 0.01089091158 | S23: 1210.9044 | U23: =G23-INDEX($C23:$G23,1,aux!$AL$1) -> 54.82 | V23: 0.004367106527 | W23: 0.002622273048 | X23: =+IF(INDEX($C23:$G23,1,aux!$AL$1)>0,(G23/INDEX($C23:$G23,1,aux!$AL$1))^(1/($G$3-INDEX($C$3:$G$3,1,aux!$AL$1)))-1,"n.d.") -> 3.240906519 | Y23: =IF(INDEX($C23:$G23,1,aux!$AL$1)>0,(G23-INDEX($C23:$G23,1,aux!$AL$1))/INDEX($C23:$G23,1,aux!$AL$1),"n.d.") -> 322.4705882 | AA23: =O23-INDEX($K23:$O23,1,aux!$AL$1) -> 268.998 | AB23: 0.005721226224 | AC23: 0.005568949542 | AD23: =+IF(INDEX($K23:$O23,1,aux!$AL$1)>0,(O23/INDEX($K23:$O23,1,aux!$AL$1))^(1/($O$3-INDEX($K$3:$O$3,1,aux!$AL$1)))-1,"n.d.") -> 0.05693181706 | AE23: =IF(INDEX($K23:$O23,1,aux!$AL$1)>0,(O23-INDEX($K23:$O23,1,aux!$AL$1))/INDEX($K23:$O23,1,aux!$AL$1),"n.d.") -> 0.2479232815
A24: 22 | B24: Bebidas, líquidos alcoólicos e vinagres | C24: 0.002 | D24: 0 | E24: 0.308 | F24: 0.427 | G24: 1.262 | H24: 0.3998 | I24: 3.530698434e-05 | J24: 9.336688357e-06 | K24: 613.127 | L24: 1019.665 | M24: 1753.998 | N24: 6239.254 | O24: 2495.073 | P24: 2424.2234 | Q24: 0.0487110261 | R24: 0.02043316155 | S24: 2423.8236 | U24: =G24-INDEX($C24:$G24,1,aux!$AL$1) -> 1.26 | V24: 0.0001003749402 | W24: 6.027114265e-05 | X24: =+IF(INDEX($C24:$G24,1,aux!$AL$1)>0,(G24/INDEX($C24:$G24,1,aux!$AL$1))^(1/($G$3-INDEX($C$3:$G$3,1,aux!$AL$1)))-1,"n.d.") -> 4.01195704 | Y24: =IF(INDEX($C24:$G24,1,aux!$AL$1)>0,(G24-INDEX($C24:$G24,1,aux!$AL$1))/INDEX($C24:$G24,1,aux!$AL$1),"n.d.") -> 630 | AA24: =O24-INDEX($K24:$O24,1,aux!$AL$1) -> 1881.946 | AB24: 0.04002646416 | AC24: 0.03896111613 | AD24: =+IF(INDEX($K24:$O24,1,aux!$AL$1)>0,(O24/INDEX($K24:$O24,1,aux!$AL$1))^(1/($O$3-INDEX($K$3:$O$3,1,aux!$AL$1)))-1,"n.d.") -> 0.4203101929 | AE24: =IF(INDEX($K24:$O24,1,aux!$AL$1)>0,(O24-INDEX($K24:$O24,1,aux!$AL$1))/INDEX($K24:$O24,1,aux!$AL$1),"n.d.") -> 3.069422811
A25: 23a | B25: Resíduos indústrias alimentares; alimentos p/ animais (exc. NC 230120) (a) | C25: 0 | D25: 0 | E25: 0 | F25: 0.628 | G25: 0 | H25: 0.1256 | I25: 1.109193905e-05 | J25: 2.933186738e-06 | K25: 900.948 | L25: 2949.665 | M25: 1461.981 | N25: 1194.777 | O25: 2374.78 | P25: 1776.4302 | Q25: 0.03569462197 | R25: 0.01497307767 | S25: 1776.3046 | U25: =G25-INDEX($C25:$G25,1,aux!$AL$1) -> 0 | V25: 0 | W25: 0 | X25: =+IF(INDEX($C25:$G25,1,aux!$AL$1)>0,(G25/INDEX($C25:$G25,1,aux!$AL$1))^(1/($G$3-INDEX($C$3:$G$3,1,aux!$AL$1)))-1,"n.d.") -> n.d. | Y25: =IF(INDEX($C25:$G25,1,aux!$AL$1)>0,(G25-INDEX($C25:$G25,1,aux!$AL$1))/INDEX($C25:$G25,1,aux!$AL$1),"n.d.") -> n.d. | AA25: =O25-INDEX($K25:$O25,1,aux!$AL$1) -> 1473.832 | AB25: 0.03134642744 | AC25: 0.03051210805 | AD25: =+IF(INDEX($K25:$O25,1,aux!$AL$1)>0,(O25/INDEX($K25:$O25,1,aux!$AL$1))^(1/($O$3-INDEX($K$3:$O$3,1,aux!$AL$1)))-1,"n.d.") -> 0.2741803824 | AE25: =IF(INDEX($K25:$O25,1,aux!$AL$1)>0,(O25-INDEX($K25:$O25,1,aux!$AL$1))/INDEX($K25:$O25,1,aux!$AL$1),"n.d.") -> 1.635867997
A26: 24 | B26: Tabaco | C26: 3.078 | D26: 0 | E26: 0 | F26: 0 | G26: 0 | H26: 0.6156 | I26: 5.436463121e-05 | J26: 1.437635156e-05 | K26: 0 | L26: 0.09 | M26: 0 | N26: 0 | O26: 66.09 | P26: 13.236 | Q26: 0.0002659569829 | R26: 0.0001115628726 | S26: 12.6204 | U26: =G26-INDEX($C26:$G26,1,aux!$AL$1) -> -3.078 | V26: -0.0002452016397 | W26: -0.0001472337913 | X26: =+IF(INDEX($C26:$G26,1,aux!$AL$1)>0,(G26/INDEX($C26:$G26,1,aux!$AL$1))^(1/($G$3-INDEX($C$3:$G$3,1,aux!$AL$1)))-1,"n.d.") -> -1 | Y26: =IF(INDEX($C26:$G26,1,aux!$AL$1)>0,(G26-INDEX($C26:$G26,1,aux!$AL$1))/INDEX($C26:$G26,1,aux!$AL$1),"n.d.") -> -1 | AA26: =O26-INDEX($K26:$O26,1,aux!$AL$1) -> 66.09 | AB26: 0.001405645548 | AC26: 0.001368232757 | AD26: =+IF(INDEX($K26:$O26,1,aux!$AL$1)>0,(O26/INDEX($K26:$O26,1,aux!$AL$1))^(1/($O$3-INDEX($K$3:$O$3,1,aux!$AL$1)))-1,"n.d.") -> n.d. | AE26: =IF(INDEX($K26:$O26,1,aux!$AL$1)>0,(O26-INDEX($K26:$O26,1,aux!$AL$1))/INDEX($K26:$O26,1,aux!$AL$1),"n.d.") -> n.d.
A27: 29 | B27: Manitol e sorbitol (NC 290543; 290544) | C27: 0 | D27: 0 | E27: 0 | F27: 0 | G27: 0 | H27: 0 | I27: 0 | J27: 0 | K27: 10.45 | L27: 1.378 | M27: 0 | N27: 0 | O27: 15.714 | P27: 5.5084 | Q27: 0.0001106827928 | R27: 4.642890052e-05 | S27: 5.5084 | U27: =G27-INDEX($C27:$G27,1,aux!$AL$1) -> 0 | V27: 0 | W27: 0 | X27: =+IF(INDEX($C27:$G27,1,aux!$AL$1)>0,(G27/INDEX($C27:$G27,1,aux!$AL$1))^(1/($G$3-INDEX($C$3:$G$3,1,aux!$AL$1)))-1,"n.d.") -> n.d. | Y27: =IF(INDEX($C27:$G27,1,aux!$AL$1)>0,(G27-INDEX($C27:$G27,1,aux!$AL$1))/INDEX($C27:$G27,1,aux!$AL$1),"n.d.") -> n.d. | AA27: =O27-INDEX($K27:$O27,1,aux!$AL$1) -> 5.264 | AB27: 0.000111958211 | AC27: 0.000108978321 | AD27: =+IF(INDEX($K27:$O27,1,aux!$AL$1)>0,(O27/INDEX($K27:$O27,1,aux!$AL$1))^(1/($O$3-INDEX($K$3:$O$3,1,aux!$AL$1)))-1,"n.d.") -> 0.1073696451 | AE27: =IF(INDEX($K27:$O27,1,aux!$AL$1)>0,(O27-INDEX($K27:$O27,1,aux!$AL$1))/INDEX($K27:$O27,1,aux!$AL$1),"n.d.") -> 0.5037320574
A28: 33 | B28: Óleos essenciais e resinóides (NC 3301) | C28: 64.172 | D28: 6.015 | E28: 1.143 | F28: 6.575 | G28: 3.091 | H28: 16.1992 | I28: 0.00143057754 | J28: 0.0003783063583 | K28: 673.252 | L28: 653.319 | M28: 830.09 | N28: 825.19 | O28: 788.76 | P28: 754.1222 | Q28: 0.01515292121 | R28: 0.006356303936 | S28: 737.923 | U28: =G28-INDEX($C28:$G28,1,aux!$AL$1) -> -61.081 | V28: -0.004865874384 | W28: -0.002921763226 | X28: =+IF(INDEX($C28:$G28,1,aux!$AL$1)>0,(G28/INDEX($C28:$G28,1,aux!$AL$1))^(1/($G$3-INDEX($C$3:$G$3,1,aux!$AL$1)))-1,"n.d.") -> -0.5315229098 | Y28: =IF(INDEX($C28:$G28,1,aux!$AL$1)>0,(G28-INDEX($C28:$G28,1,aux!$AL$1))/INDEX($C28:$G28,1,aux!$AL$1),"n.d.") -> -0.951832575 | AA28: =O28-INDEX($K28:$O28,1,aux!$AL$1) -> 115.508 | AB28: 0.002456700045 | AC28: 0.002391312291 | AD28: =+IF(INDEX($K28:$O28,1,aux!$AL$1)>0,(O28/INDEX($K28:$O28,1,aux!$AL$1))^(1/($O$3-INDEX($K$3:$O$3,1,aux!$AL$1)))-1,"n.d.") -> 0.04037954889 | AE28: =IF(INDEX($K28:$O28,1,aux!$AL$1)>0,(O28-INDEX($K28:$O28,1,aux!$AL$1))/INDEX($K28:$O28,1,aux!$AL$1),"n.d.") -> 0.1715672586
A29: 35 | B29: Caseínas, albuminas, gelatinas, peptonas, dextrinas (NC 3501 a 3505) | C29: 0 | D29: 0 | E29: 0 | F29: 0 | G29: 0.131 | H29: 0.0262 | I29: 2.313764356e-06 | J29: 6.118590169e-07 | K29: 74.88 | L29: 19.523 | M29: 49.108 | N29: 276.072 | O29: 113.711 | P29: 106.6588 | Q29: 0.002143143899 | R29: 0.0008989998574 | S29: 106.6326 | U29: =G29-INDEX($C29:$G29,1,aux!$AL$1) -> 0.131 | V29: 1.043580728e-05 | W29: 6.266285466e-06 | X29: =+IF(INDEX($C29:$G29,1,aux!$AL$1)>0,(G29/INDEX($C29:$G29,1,aux!$AL$1))^(1/($G$3-INDEX($C$3:$G$3,1,aux!$AL$1)))-1,"n.d.") -> n.d. | Y29: =IF(INDEX($C29:$G29,1,aux!$AL$1)>0,(G29-INDEX($C29:$G29,1,aux!$AL$1))/INDEX($C29:$G29,1,aux!$AL$1),"n.d.") -> n.d. | AA29: =O29-INDEX($K29:$O29,1,aux!$AL$1) -> 38.831 | AB29: 0.0008258832241 | AC29: 0.0008039014405 | AD29: =+IF(INDEX($K29:$O29,1,aux!$AL$1)>0,(O29/INDEX($K29:$O29,1,aux!$AL$1))^(1/($O$3-INDEX($K$3:$O$3,1,aux!$AL$1)))-1,"n.d.") -> 0.1100924803 | AE29: =IF(INDEX($K29:$O29,1,aux!$AL$1)>0,(O29-INDEX($K29:$O29,1,aux!$AL$1))/INDEX($K29:$O29,1,aux!$AL$1),"n.d.") -> 0.5185763889
A30: 38a | B30: Agentes de acabamento, ácidos gordos, sorbitol (NC 380910, 382311-12-13-19-70, 382460) (a) | C30: 0 | D30: 888.881 | E30: 790.644 | F30: 1352.963 | G30: 1226.458 | H30: 851.7892 | I30: 0.0752228813 | J30: 0.01989217185 | K30: 0 | L30: 93.904 | M30: 192.915 | N30: 71.599 | O30: 0 | P30: 71.6836 | Q30: 0.001440371259 | R30: 0.0006042028054 | S30: -780.1056 | U30: =G30-INDEX($C30:$G30,1,aux!$AL$1) -> 1226.458 | V30: 0.09770289559 | W30: 0.05866668657 | X30: =+IF(INDEX($C30:$G30,1,aux!$AL$1)>0,(G30/INDEX($C30:$G30,1,aux!$AL$1))^(1/($G$3-INDEX($C$3:$G$3,1,aux!$AL$1)))-1,"n.d.") -> n.d. | Y30: =IF(INDEX($C30:$G30,1,aux!$AL$1)>0,(G30-INDEX($C30:$G30,1,aux!$AL$1))/INDEX($C30:$G30,1,aux!$AL$1),"n.d.") -> n.d. | AA30: =O30-INDEX($K30:$O30,1,aux!$AL$1) -> 0 | AB30: 0 | AC30: 0 | AD30: =+IF(INDEX($K30:$O30,1,aux!$AL$1)>0,(O30/INDEX($K30:$O30,1,aux!$AL$1))^(1/($O$3-INDEX($K$3:$O$3,1,aux!$AL$1)))-1,"n.d.") -> n.d. | AE30: =IF(INDEX($K30:$O30,1,aux!$AL$1)>0,(O30-INDEX($K30:$O30,1,aux!$AL$1))/INDEX($K30:$O30,1,aux!$AL$1),"n.d.") -> n.d.
A31: 41 | B31: Couro e peles em bruto (NC 4101 a 4103) | C31: 0 | D31: 0 | E31: 0 | F31: 0.077 | G31: 0 | H31: 0.0154 | I31: 1.359998896e-06 | J31: 3.596423229e-07 | K31: 0.578 | L31: 0 | M31: 0 | N31: 0 | O31: 0 | P31: 0.1156 | Q31: 2.322803508e-06 | R31: 9.743629547e-07 | S31: 0.1002 | U31: =G31-INDEX($C31:$G31,1,aux!$AL$1) -> 0 | V31: 0 | W31: 0 | X31: =+IF(INDEX($C31:$G31,1,aux!$AL$1)>0,(G31/INDEX($C31:$G31,1,aux!$AL$1))^(1/($G$3-INDEX($C$3:$G$3,1,aux!$AL$1)))-1,"n.d.") -> n.d. | Y31: =IF(INDEX($C31:$G31,1,aux!$AL$1)>0,(G31-INDEX($C31:$G31,1,aux!$AL$1))/INDEX($C31:$G31,1,aux!$AL$1),"n.d.") -> n.d. | AA31: =O31-INDEX($K31:$O31,1,aux!$AL$1) -> -0.578 | AB31: -1.229328381e-05 | AC31: -1.196608464e-05 | AD31: =+IF(INDEX($K31:$O31,1,aux!$AL$1)>0,(O31/INDEX($K31:$O31,1,aux!$AL$1))^(1/($O$3-INDEX($K$3:$O$3,1,aux!$AL$1)))-1,"n.d.") -> -1 | AE31: =IF(INDEX($K31:$O31,1,aux!$AL$1)>0,(O31-INDEX($K31:$O31,1,aux!$AL$1))/INDEX($K31:$O31,1,aux!$AL$1),"n.d.") -> -1
A32: 43 | B32: Peles com pelo em bruto (NC 4301) | C32: 0 | D32: 0 | E32: 0 | F32: 0 | G32: 0 | H32: 0 | I32: 0 | J32: 0 | K32: 0 | L32: 0 | M32: 0 | N32: 0 | O32: 0 | P32: 0 | Q32: 0 | R32: 0 | S32: 0 | U32: =G32-INDEX($C32:$G32,1,aux!$AL$1) -> 0 | V32: 0 | W32: 0 | X32: =+IF(INDEX($C32:$G32,1,aux!$AL$1)>0,(G32/INDEX($C32:$G32,1,aux!$AL$1))^(1/($G$3-INDEX($C$3:$G$3,1,aux!$AL$1)))-1,"n.d.") -> n.d. | Y32: =IF(INDEX($C32:$G32,1,aux!$AL$1)>0,(G32-INDEX($C32:$G32,1,aux!$AL$1))/INDEX($C32:$G32,1,aux!$AL$1),"n.d.") -> n.d. | AA32: =O32-INDEX($K32:$O32,1,aux!$AL$1) -> 0 | AB32: 0 | AC32: 0 | AD32: =+IF(INDEX($K32:$O32,1,aux!$AL$1)>0,(O32/INDEX($K32:$O32,1,aux!$AL$1))^(1/($O$3-INDEX($K$3:$O$3,1,aux!$AL$1)))-1,"n.d.") -> n.d. | AE32: =IF(INDEX($K32:$O32,1,aux!$AL$1)>0,(O32-INDEX($K32:$O32,1,aux!$AL$1))/INDEX($K32:$O32,1,aux!$AL$1),"n.d.") -> n.d.
A33: 50 | B33: Seda crua (NC 5001-5003) | C33: 0 | D33: 0 | E33: 0 | F33: 0 | G33: 0 | H33: 0 | I33: 0 | J33: 0 | K33: 0 | L33: 0 | M33: 0 | N33: 0 | O33: 0 | P33: 0 | Q33: 0 | R33: 0 | S33: 0 | U33: =G33-INDEX($C33:$G33,1,aux!$AL$1) -> 0 | V33: 0 | W33: 0 | X33: =+IF(INDEX($C33:$G33,1,aux!$AL$1)>0,(G33/INDEX($C33:$G33,1,aux!$AL$1))^(1/($G$3-INDEX($C$3:$G$3,1,aux!$AL$1)))-1,"n.d.") -> n.d. | Y33: =IF(INDEX($C33:$G33,1,aux!$AL$1)>0,(G33-INDEX($C33:$G33,1,aux!$AL$1))/INDEX($C33:$G33,1,aux!$AL$1),"n.d.") -> n.d. | AA33: =O33-INDEX($K33:$O33,1,aux!$AL$1) -> 0 | AB33: 0 | AC33: 0 | AD33: =+IF(INDEX($K33:$O33,1,aux!$AL$1)>0,(O33/INDEX($K33:$O33,1,aux!$AL$1))^(1/($O$3-INDEX($K$3:$O$3,1,aux!$AL$1)))-1,"n.d.") -> n.d. | AE33: =IF(INDEX($K33:$O33,1,aux!$AL$1)>0,(O33-INDEX($K33:$O33,1,aux!$AL$1))/INDEX($K33:$O33,1,aux!$AL$1),"n.d.") -> n.d.
A34: 51 | B34: Lã não cardada (NC 5101-5103) | C34: 34.604 | D34: 0.101 | E34: 0 | F34: 0 | G34: 0 | H34: 6.941 | I34: 0.0006129709312 | J34: 0.0001620959327 | K34: 0 | L34: 0 | M34: 0 | N34: 0 | O34: 0 | P34: 0 | Q34: 0 | R34: 0 | S34: -6.941 | U34: =G34-INDEX($C34:$G34,1,aux!$AL$1) -> -34.604 | V34: -0.002756646374 | W34: -0.001655256048 | X34: =+IF(INDEX($C34:$G34,1,aux!$AL$1)>0,(G34/INDEX($C34:$G34,1,aux!$AL$1))^(1/($G$3-INDEX($C$3:$G$3,1,aux!$AL$1)))-1,"n.d.") -> -1 | Y34: =IF(INDEX($C34:$G34,1,aux!$AL$1)>0,(G34-INDEX($C34:$G34,1,aux!$AL$1))/INDEX($C34:$G34,1,aux!$AL$1),"n.d.") -> -1 | AA34: =O34-INDEX($K34:$O34,1,aux!$AL$1) -> 0 | AB34: 0 | AC34: 0 | AD34: =+IF(INDEX($K34:$O34,1,aux!$AL$1)>0,(O34/INDEX($K34:$O34,1,aux!$AL$1))^(1/($O$3-INDEX($K$3:$O$3,1,aux!$AL$1)))-1,"n.d.") -> n.d. | AE34: =IF(INDEX($K34:$O34,1,aux!$AL$1)>0,(O34-INDEX($K34:$O34,1,aux!$AL$1))/INDEX($K34:$O34,1,aux!$AL$1),"n.d.") -> n.d.
A35: 52 | B35: Algodão (NC 5201-5203) | C35: 0 | D35: 111.278 | E35: 0 | F35: 0.038 | G35: 4.387 | H35: 23.1406 | I35: 0.002043583796 | J35: 0.0005404116323 | K35: 0 | L35: 44.467 | M35: 19.488 | N35: 0 | O35: 0 | P35: 12.791 | Q35: 0.0002570153951 | R35: 0.0001078120809 | S35: -10.3496 | U35: =G35-INDEX($C35:$G35,1,aux!$AL$1) -> 4.387 | V35: 0.0003494800498 | W35: 0.0002098488118 | X35: =+IF(INDEX($C35:$G35,1,aux!$AL$1)>0,(G35/INDEX($C35:$G35,1,aux!$AL$1))^(1/($G$3-INDEX($C$3:$G$3,1,aux!$AL$1)))-1,"n.d.") -> n.d. | Y35: =IF(INDEX($C35:$G35,1,aux!$AL$1)>0,(G35-INDEX($C35:$G35,1,aux!$AL$1))/INDEX($C35:$G35,1,aux!$AL$1),"n.d.") -> n.d. | AA35: =O35-INDEX($K35:$O35,1,aux!$AL$1) -> 0 | AB35: 0 | AC35: 0 | AD35: =+IF(INDEX($K35:$O35,1,aux!$AL$1)>0,(O35/INDEX($K35:$O35,1,aux!$AL$1))^(1/($O$3-INDEX($K$3:$O$3,1,aux!$AL$1)))-1,"n.d.") -> n.d. | AE35: =IF(INDEX($K35:$O35,1,aux!$AL$1)>0,(O35-INDEX($K35:$O35,1,aux!$AL$1))/INDEX($K35:$O35,1,aux!$AL$1),"n.d.") -> n.d.
A36: 53 | B36: Linho e cânhamo em bruto (NC 5301-5302) | C36: 0 | D36: 0 | E36: 0 | F36: 0 | G36: 0 | H36: 0 | I36: 0 | J36: 0 | K36: 0 | L36: 0 | M36: 0 | N36: 0 | O36: 0 | P36: 0 | Q36: 0 | R36: 0 | S36: 0 | U36: =G36-INDEX($C36:$G36,1,aux!$AL$1) -> 0 | V36: 0 | W36: =IF($U$53<>0,U36/$U$53, "n.d.") -> 0 | X36: =+IF(INDEX($C36:$G36,1,aux!$AL$1)>0,(G36/INDEX($C36:$G36,1,aux!$AL$1))^(1/($G$3-INDEX($C$3:$G$3,1,aux!$AL$1)))-1,"n.d.") -> n.d. | Y36: =IF(INDEX($C36:$G36,1,aux!$AL$1)>0,(G36-INDEX($C36:$G36,1,aux!$AL$1))/INDEX($C36:$G36,1,aux!$AL$1),"n.d.") -> n.d. | AA36: =O36-INDEX($K36:$O36,1,aux!$AL$1) -> 0 | AB36: 0 | AC36: =IF($AA$53<>0,AA36/$AA$53, "n.d.") -> 0 | AD36: =+IF(INDEX($K36:$O36,1,aux!$AL$1)>0,(O36/INDEX($K36:$O36,1,aux!$AL$1))^(1/($O$3-INDEX($K$3:$O$3,1,aux!$AL$1)))-1,"n.d.") -> n.d. | AE36: =IF(INDEX($K36:$O36,1,aux!$AL$1)>0,(O36-INDEX($K36:$O36,1,aux!$AL$1))/INDEX($K36:$O36,1,aux!$AL$1),"n.d.") -> n.d.
A37: Subtotal Agrícola e Agroalimentar | C37: 7170.478 | D37: 10981.214 | E37: 8165.74 | F37: 10576.849 | G37: 19723.412 | H37: 11323.5386 | I37: 1 | J37: 0.2644430991 | K37: 23742.473 | L37: 32372.332 | M37: 68098.324 | N37: 53864.089 | O37: 70760.016 | P37: 49767.4468 | Q37: 1 | R37: 0.4194771325 | S37: 38443.9082 | U37: =G37-INDEX($C37:$G37,1,aux!$AL$1) -> 12552.934 | V37: 1 | W37: 0.6004600602 | X37: =+IF(INDEX($C37:$G37,1,aux!$AL$1)>0,(G37/INDEX($C37:$G37,1,aux!$AL$1))^(1/($G$3-INDEX($C$3:$G$3,1,aux!$AL$1)))-1,"n.d.") -> 0.2878298428 | Y37: =IF(INDEX($C37:$G37,1,aux!$AL$1)>0,(G37-INDEX($C37:$G37,1,aux!$AL$1))/INDEX($C37:$G37,1,aux!$AL$1),"n.d.") -> 1.750641171 | AA37: =O37-INDEX($K37:$O37,1,aux!$AL$1) -> 47017.543 | AB37: 1 | AC37: 0.9733839083 | AD37: =+IF(INDEX($K37:$O37,1,aux!$AL$1)>0,(O37/INDEX($K37:$O37,1,aux!$AL$1))^(1/($O$3-INDEX($K$3:$O$3,1,aux!$AL$1)))-1,"n.d.") -> 0.31390962 | AE37: =IF(INDEX($K37:$O37,1,aux!$AL$1)>0,(O37-INDEX($K37:$O37,1,aux!$AL$1))/INDEX($K37:$O37,1,aux!$AL$1),"n.d.") -> 1.980313635
A38: 03 | B38: Peixes e crustáceos | C38: 9532.748 | D38: 12737.271 | E38: 12130.57 | F38: 15710.427 | G38: 22340.94 | H38: 14490.3912 | I38: 0.7771845376 | J38: 0.338399867 | K38: 0 | L38: 50.803 | M38: 95.601 | N38: 155.217 | O38: 0 | P38: 60.3242 | Q38: 0.06848412453 | R38: 0.0005084573162 | S38: -14430.067 | U38: =G38-INDEX($C38:$G38,1,aux!$AL$1) -> 12808.192 | V38: =IF($U$44<>0,U38/$U$44, "n.d.") -> 0.830696284 | W38: 0.6126701326 | X38: =+IF(INDEX($C38:$G38,1,aux!$AL$1)>0,(G38/INDEX($C38:$G38,1,aux!$AL$1))^(1/($G$3-INDEX($C$3:$G$3,1,aux!$AL$1)))-1,"n.d.") -> 0.2372880898 | Y38: =IF(INDEX($C38:$G38,1,aux!$AL$1)>0,(G38-INDEX($C38:$G38,1,aux!$AL$1))/INDEX($C38:$G38,1,aux!$AL$1),"n.d.") -> 1.343599138 | AA38: =O38-INDEX($K38:$O38,1,aux!$AL$1) -> 0 | AB38: =IF($AA$44<>0,AA38/$AA$44, "n.d.") -> 0 | AC38: 0 | AD38: =+IF(INDEX($K38:$O38,1,aux!$AL$1)>0,(O38/INDEX($K38:$O38,1,aux!$AL$1))^(1/($O$3-INDEX($K$3:$O$3,1,aux!$AL$1)))-1,"n.d.") -> n.d. | AE38: =IF(INDEX($K38:$O38,1,aux!$AL$1)>0,(O38-INDEX($K38:$O38,1,aux!$AL$1))/INDEX($K38:$O38,1,aux!$AL$1),"n.d.") -> n.d.
A39: 05p | B39: Outros produtos de pescado (NC 0508, 051191) (p) | C39: 1178.431 | D39: 806.278 | E39: 584.547 | F39: 443.392 | G39: 621.336 | H39: 726.7968 | I39: 0.03898136545 | J39: 0.01697317464 | K39: 0 | L39: 0 | M39: 0 | N39: 0 | O39: 0 | P39: 0 | Q39: 0 | R39: 0 | S39: -726.7968 | U39: =G39-INDEX($C39:$G39,1,aux!$AL$1) -> -557.095 | V39: -0.03613130927 | W39: -0.02664821604 | X39: =+IF(INDEX($C39:$G39,1,aux!$AL$1)>0,(G39/INDEX($C39:$G39,1,aux!$AL$1))^(1/($G$3-INDEX($C$3:$G$3,1,aux!$AL$1)))-1,"n.d.") -> -0.1478705212 | Y39: =IF(INDEX($C39:$G39,1,aux!$AL$1)>0,(G39-INDEX($C39:$G39,1,aux!$AL$1))/INDEX($C39:$G39,1,aux!$AL$1),"n.d.") -> -0.4727429947 | AA39: =O39-INDEX($K39:$O39,1,aux!$AL$1) -> 0 | AB39: 0 | AC39: 0 | AD39: =+IF(INDEX($K39:$O39,1,aux!$AL$1)>0,(O39/INDEX($K39:$O39,1,aux!$AL$1))^(1/($O$3-INDEX($K$3:$O$3,1,aux!$AL$1)))-1,"n.d.") -> n.d. | AE39: =IF(INDEX($K39:$O39,1,aux!$AL$1)>0,(O39-INDEX($K39:$O39,1,aux!$AL$1))/INDEX($K39:$O39,1,aux!$AL$1),"n.d.") -> n.d.
A40: 16p | B40: Preparações e conservas de peixes ou crustáceos (NC 1604-05) (p) | C40: 1470.7 | D40: 2930.633 | E40: 4744.622 | F40: 3353.5 | G40: 4637.149 | H40: 3427.3208 | I40: 0.1838225548 | J40: 0.08003958532 | K40: 837.071 | L40: 506.687 | M40: 1156.013 | N40: 758.585 | O40: 814.06 | P40: 814.4832 | Q40: 0.9246565872 | R40: 0.00686507143 | S40: -2612.8376 | U40: =G40-INDEX($C40:$G40,1,aux!$AL$1) -> 3166.449 | V40: 0.2053652395 | W40: 0.151464682 | X40: =+IF(INDEX($C40:$G40,1,aux!$AL$1)>0,(G40/INDEX($C40:$G40,1,aux!$AL$1))^(1/($G$3-INDEX($C$3:$G$3,1,aux!$AL$1)))-1,"n.d.") -> 0.3325445567 | Y40: =IF(INDEX($C40:$G40,1,aux!$AL$1)>0,(G40-INDEX($C40:$G40,1,aux!$AL$1))/INDEX($C40:$G40,1,aux!$AL$1),"n.d.") -> 2.15302169 | AA40: =O40-INDEX($K40:$O40,1,aux!$AL$1) -> -23.011 | AB40: -8.81309843 | AC40: -0.0004763868055 | AD40: =+IF(INDEX($K40:$O40,1,aux!$AL$1)>0,(O40/INDEX($K40:$O40,1,aux!$AL$1))^(1/($O$3-INDEX($K$3:$O$3,1,aux!$AL$1)))-1,"n.d.") -> -0.006944479954 | AE40: =IF(INDEX($K40:$O40,1,aux!$AL$1)>0,(O40-INDEX($K40:$O40,1,aux!$AL$1))/INDEX($K40:$O40,1,aux!$AL$1),"n.d.") -> -0.02748990229
A41: 19p | B41: Massas recheadas com pescado (NC 19022010) (p) | C41: 0 | D41: 0 | E41: 0 | F41: 0 | G41: 0 | H41: 0 | I41: 0 | J41: 0 | K41: 0 | L41: 0 | M41: 0 | N41: 0 | O41: 0 | P41: 0 | Q41: 0 | R41: 0 | S41: 0 | U41: =G41-INDEX($C41:$G41,1,aux!$AL$1) -> 0 | V41: 0 | W41: 0 | X41: =+IF(INDEX($C41:$G41,1,aux!$AL$1)>0,(G41/INDEX($C41:$G41,1,aux!$AL$1))^(1/($G$3-INDEX($C$3:$G$3,1,aux!$AL$1)))-1,"n.d.") -> n.d. | Y41: =IF(INDEX($C41:$G41,1,aux!$AL$1)>0,(G41-INDEX($C41:$G41,1,aux!$AL$1))/INDEX($C41:$G41,1,aux!$AL$1),"n.d.") -> n.d. | AA41: =O41-INDEX($K41:$O41,1,aux!$AL$1) -> 0 | AB41: 0 | AC41: 0 | AD41: =+IF(INDEX($K41:$O41,1,aux!$AL$1)>0,(O41/INDEX($K41:$O41,1,aux!$AL$1))^(1/($O$3-INDEX($K$3:$O$3,1,aux!$AL$1)))-1,"n.d.") -> n.d. | AE41: =IF(INDEX($K41:$O41,1,aux!$AL$1)>0,(O41-INDEX($K41:$O41,1,aux!$AL$1))/INDEX($K41:$O41,1,aux!$AL$1),"n.d.") -> n.d.
A42: 23p | B42: Farinhas de pescado (NC 230120) (p) | C42: 0 | D42: 0 | E42: 0 | F42: 0 | G42: 0 | H42: 0 | I42: 0 | J42: 0 | K42: 0 | L42: 0 | M42: 0 | N42: 0 | O42: 0 | P42: 0 | Q42: 0 | R42: 0 | S42: 0 | U42: =G42-INDEX($C42:$G42,1,aux!$AL$1) -> 0 | V42: 0 | W42: 0 | X42: =+IF(INDEX($C42:$G42,1,aux!$AL$1)>0,(G42/INDEX($C42:$G42,1,aux!$AL$1))^(1/($G$3-INDEX($C$3:$G$3,1,aux!$AL$1)))-1,"n.d.") -> n.d. | Y42: =IF(INDEX($C42:$G42,1,aux!$AL$1)>0,(G42-INDEX($C42:$G42,1,aux!$AL$1))/INDEX($C42:$G42,1,aux!$AL$1),"n.d.") -> n.d. | AA42: =O42-INDEX($K42:$O42,1,aux!$AL$1) -> 0 | AB42: 0 | AC42: 0 | AD42: =+IF(INDEX($K42:$O42,1,aux!$AL$1)>0,(O42/INDEX($K42:$O42,1,aux!$AL$1))^(1/($O$3-INDEX($K$3:$O$3,1,aux!$AL$1)))-1,"n.d.") -> n.d. | AE42: =IF(INDEX($K42:$O42,1,aux!$AL$1)>0,(O42-INDEX($K42:$O42,1,aux!$AL$1))/INDEX($K42:$O42,1,aux!$AL$1),"n.d.") -> n.d.
A43: 25 | B43: Sal e cloreto de sódio puro; água do mar (NC 2501) | C43: 0 | D43: 0 | E43: 0 | F43: 0 | G43: 1.076 | H43: 0.2152 | I43: 1.154213921e-05 | J43: 5.025651162e-06 | K43: 0.045 | L43: 0.036 | M43: 0.534 | N43: 3.928 | O43: 25.667 | P43: 6.042 | Q43: 0.006859288319 | R43: 5.0926479e-05 | S43: 5.8268 | U43: =G43-INDEX($C43:$G43,1,aux!$AL$1) -> 1.076 | V43: 6.97857435e-05 | W43: 5.146964245e-05 | X43: =+IF(INDEX($C43:$G43,1,aux!$AL$1)>0,(G43/INDEX($C43:$G43,1,aux!$AL$1))^(1/($G$3-INDEX($C$3:$G$3,1,aux!$AL$1)))-1,"n.d.") -> n.d. | Y43: =IF(INDEX($C43:$G43,1,aux!$AL$1)>0,(G43-INDEX($C43:$G43,1,aux!$AL$1))/INDEX($C43:$G43,1,aux!$AL$1),"n.d.") -> n.d. | AA43: =O43-INDEX($K43:$O43,1,aux!$AL$1) -> 25.622 | AB43: 9.81309843 | AC43: 0.0005304412121 | AD43: =+IF(INDEX($K43:$O43,1,aux!$AL$1)>0,(O43/INDEX($K43:$O43,1,aux!$AL$1))^(1/($O$3-INDEX($K$3:$O$3,1,aux!$AL$1)))-1,"n.d.") -> 3.886980985 | AE43: =IF(INDEX($K43:$O43,1,aux!$AL$1)>0,(O43-INDEX($K43:$O43,1,aux!$AL$1))/INDEX($K43:$O43,1,aux!$AL$1),"n.d.") -> 569.3777778
A44: Subtotal Mar | C44: 12181.879 | D44: 16474.182 | E44: 17459.739 | F44: 19507.319 | G44: 27600.501 | H44: 18644.724 | I44: 1 | J44: 0.4354176526 | K44: 837.116 | L44: 557.526 | M44: 1252.148 | N44: 917.73 | O44: 839.727 | P44: 880.8494 | Q44: 1 | R44: 0.007424455225 | S44: -17763.8746 | U44: =G44-INDEX($C44:$G44,1,aux!$AL$1) -> 15418.622 | V44: 1 | W44: 0.7375380683 | X44: =+IF(INDEX($C44:$G44,1,aux!$AL$1)>0,(G44/INDEX($C44:$G44,1,aux!$AL$1))^(1/($G$3-INDEX($C$3:$G$3,1,aux!$AL$1)))-1,"n.d.") -> 0.2268760002 | Y44: =IF(INDEX($C44:$G44,1,aux!$AL$1)>0,(G44-INDEX($C44:$G44,1,aux!$AL$1))/INDEX($C44:$G44,1,aux!$AL$1),"n.d.") -> 1.265701457 | AA44: =O44-INDEX($K44:$O44,1,aux!$AL$1) -> 2.611 | AB44: 1 | AC44: 5.405440656e-05 | AD44: =+IF(INDEX($K44:$O44,1,aux!$AL$1)>0,(O44/INDEX($K44:$O44,1,aux!$AL$1))^(1/($O$3-INDEX($K$3:$O$3,1,aux!$AL$1)))-1,"n.d.") -> 0.0007788501273 | AE44: =IF(INDEX($K44:$O44,1,aux!$AL$1)>0,(O44-INDEX($K44:$O44,1,aux!$AL$1))/INDEX($K44:$O44,1,aux!$AL$1),"n.d.") -> 0.003119042044
A45: 13f | B45: Gomas e resinas (NC 1301) (f) | C45: 0 | D45: 0 | E45: 0 | F45: 0 | G45: 0 | H45: 0 | I45: 0 | J45: 0 | K45: 8.693 | L45: 6.545 | M45: 4.104 | N45: 5.789 | O45: 1.182 | P45: 5.2626 | Q45: 7.739877475e-05 | R45: 4.435711493e-05 | S45: 5.2626 | U45: =G45-INDEX($C45:$G45,1,aux!$AL$1) -> 0 | V45: =IF($U$52<>0,U45/$U$52, "n.d.") -> 0 | W45: 0 | X45: =+IF(INDEX($C45:$G45,1,aux!$AL$1)>0,(G45/INDEX($C45:$G45,1,aux!$AL$1))^(1/($G$3-INDEX($C$3:$G$3,1,aux!$AL$1)))-1,"n.d.") -> n.d. | Y45: =IF(INDEX($C45:$G45,1,aux!$AL$1)>0,(G45-INDEX($C45:$G45,1,aux!$AL$1))/INDEX($C45:$G45,1,aux!$AL$1),"n.d.") -> n.d. | AA45: =O45-INDEX($K45:$O45,1,aux!$AL$1) -> -7.511 | AB45: =IF($AA$52<>0,AA45/$AA$52, "n.d.") -> -0.005854106409 | AC45: -0.0001554969926 | AD45: =+IF(INDEX($K45:$O45,1,aux!$AL$1)>0,(O45/INDEX($K45:$O45,1,aux!$AL$1))^(1/($O$3-INDEX($K$3:$O$3,1,aux!$AL$1)))-1,"n.d.") -> -0.3927577941 | AE45: =IF(INDEX($K45:$O45,1,aux!$AL$1)>0,(O45-INDEX($K45:$O45,1,aux!$AL$1))/INDEX($K45:$O45,1,aux!$AL$1),"n.d.") -> -0.8640285287
A46: 38f | B46: Tall oil, essências e colofónias (NC 3803,3805,3806) (f) | C46: 0 | D46: 0 | E46: 0 | F46: 0 | G46: 0 | H46: 0 | I46: 0 | J46: 0 | K46: 1161.226 | L46: 763.286 | M46: 1730.01 | N46: 1353.474 | O46: 1458.102 | P46: 1293.2196 | Q46: 0.01901980248 | R46: 0.0109002186 | S46: 1293.2196 | U46: =G46-INDEX($C46:$G46,1,aux!$AL$1) -> 0 | V46: 0 | W46: 0 | X46: =+IF(INDEX($C46:$G46,1,aux!$AL$1)>0,(G46/INDEX($C46:$G46,1,aux!$AL$1))^(1/($G$3-INDEX($C$3:$G$3,1,aux!$AL$1)))-1,"n.d.") -> n.d. | Y46: =IF(INDEX($C46:$G46,1,aux!$AL$1)>0,(G46-INDEX($C46:$G46,1,aux!$AL$1))/INDEX($C46:$G46,1,aux!$AL$1),"n.d.") -> n.d. | AA46: =O46-INDEX($K46:$O46,1,aux!$AL$1) -> 296.876 | AB46: 0.2313864591 | AC46: 0.006146095749 | AD46: =+IF(INDEX($K46:$O46,1,aux!$AL$1)>0,(O46/INDEX($K46:$O46,1,aux!$AL$1))^(1/($O$3-INDEX($K$3:$O$3,1,aux!$AL$1)))-1,"n.d.") -> 0.05856562905 | AE46: =IF(INDEX($K46:$O46,1,aux!$AL$1)>0,(O46-INDEX($K46:$O46,1,aux!$AL$1))/INDEX($K46:$O46,1,aux!$AL$1),"n.d.") -> 0.2556573828
A47: 44 | B47: Madeira e suas obras | C47: 91.58 | D47: 40.038 | E47: 56.21 | F47: 173.497 | G47: 343.281 | H47: 140.9212 | I47: 0.01096487324 | J47: 0.003290988813 | K47: 25728.687 | L47: 19423.988 | M47: 22267.323 | N47: 23436.821 | O47: 14282.518 | P47: 21027.8674 | Q47: 0.3092637047 | R47: 0.1772385382 | S47: 20886.9462 | U47: =G47-INDEX($C47:$G47,1,aux!$AL$1) -> 251.701 | V47: -0.03562128035 | W47: 0.01203992609 | X47: =+IF(INDEX($C47:$G47,1,aux!$AL$1)>0,(G47/INDEX($C47:$G47,1,aux!$AL$1))^(1/($G$3-INDEX($C$3:$G$3,1,aux!$AL$1)))-1,"n.d.") -> 0.3914329447 | Y47: =IF(INDEX($C47:$G47,1,aux!$AL$1)>0,(G47-INDEX($C47:$G47,1,aux!$AL$1))/INDEX($C47:$G47,1,aux!$AL$1),"n.d.") -> 2.748427604 | AA47: =O47-INDEX($K47:$O47,1,aux!$AL$1) -> -11446.169 | AB47: -8.921194422 | AC47: -0.2369650987 | AD47: =+IF(INDEX($K47:$O47,1,aux!$AL$1)>0,(O47/INDEX($K47:$O47,1,aux!$AL$1))^(1/($O$3-INDEX($K$3:$O$3,1,aux!$AL$1)))-1,"n.d.") -> -0.1368291029 | AE47: =IF(INDEX($K47:$O47,1,aux!$AL$1)>0,(O47-INDEX($K47:$O47,1,aux!$AL$1))/INDEX($K47:$O47,1,aux!$AL$1),"n.d.") -> -0.4448796396
A48: 45 | B48: Cortiça e suas obras | C48: 18612.113 | D48: 11848.027 | E48: 7742.36 | F48: 13436.215 | G48: 11321.327 | H48: 12592.0084 | I48: 0.9797658262 | J48: 0.2940661786 | K48: 208.065 | L48: 229.429 | M48: 160.662 | N48: 582.048 | O48: 379.947 | P48: 312.0302 | Q48: 0.004589129929 | R48: 0.002630023076 | S48: -12279.9782 | U48: =G48-INDEX($C48:$G48,1,aux!$AL$1) -> -7290.786 | V48: 1.031808106 | W48: -0.3487492088 | X48: =+IF(INDEX($C48:$G48,1,aux!$AL$1)>0,(G48/INDEX($C48:$G48,1,aux!$AL$1))^(1/($G$3-INDEX($C$3:$G$3,1,aux!$AL$1)))-1,"n.d.") -> -0.1168684231 | Y48: =IF(INDEX($C48:$G48,1,aux!$AL$1)>0,(G48-INDEX($C48:$G48,1,aux!$AL$1))/INDEX($C48:$G48,1,aux!$AL$1),"n.d.") -> -0.3917226378 | AA48: =O48-INDEX($K48:$O48,1,aux!$AL$1) -> 171.882 | AB48: 0.1339655862 | AC48: 0.003558398892 | AD48: =+IF(INDEX($K48:$O48,1,aux!$AL$1)>0,(O48/INDEX($K48:$O48,1,aux!$AL$1))^(1/($O$3-INDEX($K$3:$O$3,1,aux!$AL$1)))-1,"n.d.") -> 0.1624679749 | AE48: =IF(INDEX($K48:$O48,1,aux!$AL$1)>0,(O48-INDEX($K48:$O48,1,aux!$AL$1))/INDEX($K48:$O48,1,aux!$AL$1),"n.d.") -> 0.8260976137
A49: 46 | B49: Obras de espartaria ou de cestaria | C49: 75.713 | D49: 54.509 | E49: 101.615 | F49: 68.412 | G49: 56.989 | H49: 71.4476 | I49: 0.005559233652 | J49: 0.00166854421 | K49: 0.012 | L49: 0.043 | M49: 0.74 | N49: 0 | O49: 6.253 | P49: 1.4096 | Q49: 2.073144698e-05 | R49: 1.188115935e-05 | S49: -70.038 | U49: =G49-INDEX($C49:$G49,1,aux!$AL$1) -> -18.724 | V49: 0.002649861754 | W49: -0.0008956483135 | X49: =+IF(INDEX($C49:$G49,1,aux!$AL$1)>0,(G49/INDEX($C49:$G49,1,aux!$AL$1))^(1/($G$3-INDEX($C$3:$G$3,1,aux!$AL$1)))-1,"n.d.") -> -0.06855944031 | Y49: =IF(INDEX($C49:$G49,1,aux!$AL$1)>0,(G49-INDEX($C49:$G49,1,aux!$AL$1))/INDEX($C49:$G49,1,aux!$AL$1),"n.d.") -> -0.2473023127 | AA49: =O49-INDEX($K49:$O49,1,aux!$AL$1) -> 6.241 | AB49: 0.004864262828 | AC49: 0.0001292047305 | AD49: =+IF(INDEX($K49:$O49,1,aux!$AL$1)>0,(O49/INDEX($K49:$O49,1,aux!$AL$1))^(1/($O$3-INDEX($K$3:$O$3,1,aux!$AL$1)))-1,"n.d.") -> 3.777787124 | AE49: =IF(INDEX($K49:$O49,1,aux!$AL$1)>0,(O49-INDEX($K49:$O49,1,aux!$AL$1))/INDEX($K49:$O49,1,aux!$AL$1),"n.d.") -> 520.0833333
A50: 47 | B50: Pastas de madeira | C50: 0 | D50: 0 | E50: 0 | F50: 0 | G50: 0 | H50: 0 | I50: 0 | J50: 0 | K50: 5615.635 | L50: 258.772 | M50: 9069.641 | N50: 11476.805 | O50: 9511.461 | P50: 7186.4628 | Q50: 0.1056936525 | R50: 0.06057286443 | S50: 7186.4628 | U50: =G50-INDEX($C50:$G50,1,aux!$AL$1) -> 0 | V50: 0 | W50: 0 | X50: =+IF(INDEX($C50:$G50,1,aux!$AL$1)>0,(G50/INDEX($C50:$G50,1,aux!$AL$1))^(1/($G$3-INDEX($C$3:$G$3,1,aux!$AL$1)))-1,"n.d.") -> n.d. | Y50: =IF(INDEX($C50:$G50,1,aux!$AL$1)>0,(G50-INDEX($C50:$G50,1,aux!$AL$1))/INDEX($C50:$G50,1,aux!$AL$1),"n.d.") -> n.d. | AA50: =O50-INDEX($K50:$O50,1,aux!$AL$1) -> 3895.826 | AB50: 3.036423906 | AC50: 0.08065360493 | AD50: =+IF(INDEX($K50:$O50,1,aux!$AL$1)>0,(O50/INDEX($K50:$O50,1,aux!$AL$1))^(1/($O$3-INDEX($K$3:$O$3,1,aux!$AL$1)))-1,"n.d.") -> 0.1408067701 | AE50: =IF(INDEX($K50:$O50,1,aux!$AL$1)>0,(O50-INDEX($K50:$O50,1,aux!$AL$1))/INDEX($K50:$O50,1,aux!$AL$1),"n.d.") -> 0.6937462994
A51: 48 | B51: Papel e cartão | C51: 35.997 | D51: 21.732 | E51: 70.511 | F51: 82.393 | G51: 27.777 | H51: 47.682 | I51: 0.003710066944 | J51: 0.001113536704 | K51: 34873.646 | L51: 26065.871 | M51: 33006.926 | N51: 53649.386 | O51: 43239.532 | P51: 38167.0722 | Q51: 0.5613355802 | R51: 0.3217005298 | S51: 38119.3902 | U51: =G51-INDEX($C51:$G51,1,aux!$AL$1) -> -8.22 | V51: 0.00116331252 | W51: -0.0003931974544 | X51: =+IF(INDEX($C51:$G51,1,aux!$AL$1)>0,(G51/INDEX($C51:$G51,1,aux!$AL$1))^(1/($G$3-INDEX($C$3:$G$3,1,aux!$AL$1)))-1,"n.d.") -> -0.06275149211 | Y51: =IF(INDEX($C51:$G51,1,aux!$AL$1)>0,(G51-INDEX($C51:$G51,1,aux!$AL$1))/INDEX($C51:$G51,1,aux!$AL$1),"n.d.") -> -0.2283523627 | AA51: =O51-INDEX($K51:$O51,1,aux!$AL$1) -> 8365.886 | AB51: 6.520408314 | AC51: 0.1731953286 | AD51: =+IF(INDEX($K51:$O51,1,aux!$AL$1)>0,(O51/INDEX($K51:$O51,1,aux!$AL$1))^(1/($O$3-INDEX($K$3:$O$3,1,aux!$AL$1)))-1,"n.d.") -> 0.05522703053 | AE51: =IF(INDEX($K51:$O51,1,aux!$AL$1)>0,(O51-INDEX($K51:$O51,1,aux!$AL$1))/INDEX($K51:$O51,1,aux!$AL$1),"n.d.") -> 0.2398913495
A52: Subtotal Florestas | C52: 18815.403 | D52: 11964.306 | E52: 7970.696 | F52: 13760.517 | G52: 11749.374 | H52: 12852.0592 | I52: 1 | J52: 0.3001392484 | K52: 67595.964 | L52: 46747.934 | M52: 66239.406 | N52: 90504.323 | O52: 68878.995 | P52: 67993.3244 | Q52: 1 | R52: 0.5730984123 | S52: 55141.2652 | U52: =G52-INDEX($C52:$G52,1,aux!$AL$1) -> -7066.029 | V52: 1 | W52: -0.3379981284 | X52: =+IF(INDEX($C52:$G52,1,aux!$AL$1)>0,(G52/INDEX($C52:$G52,1,aux!$AL$1))^(1/($G$3-INDEX($C$3:$G$3,1,aux!$AL$1)))-1,"n.d.") -> -0.1110541621 | Y52: =IF(INDEX($C52:$G52,1,aux!$AL$1)>0,(G52-INDEX($C52:$G52,1,aux!$AL$1))/INDEX($C52:$G52,1,aux!$AL$1),"n.d.") -> -0.3755449192 | AA52: =O52-INDEX($K52:$O52,1,aux!$AL$1) -> 1283.031 | AB52: 1 | AC52: 0.02656203727 | AD52: =+IF(INDEX($K52:$O52,1,aux!$AL$1)>0,(O52/INDEX($K52:$O52,1,aux!$AL$1))^(1/($O$3-INDEX($K$3:$O$3,1,aux!$AL$1)))-1,"n.d.") -> 0.004711813923 | AE52: =IF(INDEX($K52:$O52,1,aux!$AL$1)>0,(O52-INDEX($K52:$O52,1,aux!$AL$1))/INDEX($K52:$O52,1,aux!$AL$1),"n.d.") -> 0.01898088176
B53: TOTAL | C53: 38167.76 | D53: 39419.702 | E53: 33596.175 | F53: 43844.685 | G53: 59073.287 | H53: 42820.3218 | J53: 1 | K53: 92175.553 | L53: 79677.792 | M53: 135589.878 | N53: 145286.142 | O53: 140478.738 | P53: 118641.6206 | R53: 1 | S53: 75821.2988 | U53: =G53-INDEX($C53:$G53,1,aux!$AL$1) -> 20905.527 | W53: 1 | X53: =+IF(INDEX($C53:$G53,1,aux!$AL$1)>0,(G53/INDEX($C53:$G53,1,aux!$AL$1))^(1/($G$3-INDEX($C$3:$G$3,1,aux!$AL$1)))-1,"n.d.") -> 0.1153819601 | Y53: =IF(INDEX($C53:$G53,1,aux!$AL$1)>0,(G53-INDEX($C53:$G53,1,aux!$AL$1))/INDEX($C53:$G53,1,aux!$AL$1),"n.d.") -> 0.5477273751 | AA53: =O53-INDEX($K53:$O53,1,aux!$AL$1) -> 48303.185 | AC53: 1 | AD53: =+IF(INDEX($K53:$O53,1,aux!$AL$1)>0,(O53/INDEX($K53:$O53,1,aux!$AL$1))^(1/($O$3-INDEX($K$3:$O$3,1,aux!$AL$1)))-1,"n.d.") -> 0.1110886503 | AE53: =IF(INDEX($K53:$O53,1,aux!$AL$1)>0,(O53-INDEX($K53:$O53,1,aux!$AL$1))/INDEX($K53:$O53,1,aux!$AL$1),"n.d.") -> 0.5240346646
B54: a - agrícola e agroalimentar; p - pescas; f - florestas
A55: Fonte: GPP a partir de dados INE/Comércio Internacional (2022 definitivos) | S55: 2024-03-26T15:06:06.970

Sheet 5.2_var
A1: ="Principais contributos por produto para a variação das trocas comerciais PT-Marrocos_x000D_ no período " & INDEX('5.2'!K3:N3,1,aux!AL1) & "-2023 (NC 2 dígitos - milhares de euros) Produtos agrícolas e agroalimentares, do mar e da floresta" -> Principais contributos por produto para a variação das trocas comerciais PT-Marrocos no período 2019-2023 (NC 2 dígitos - milhares de euros) Produtos agrícolas e agroalimentares, do mar e da floresta
E5: aumento das importações | J5: aumento das exportações
E17: redução das importações | J17: redução das exportações
A28: Fonte: GPP a partir de dados INE/Comércio Internacional (2022 definitivos) | F28: a - agrícola e agroalimentar; p - mar; f - florestas | H28: ='3'!Y116 -> 2024-03-26T15:06:06.970
A29: Cód. NC | B29: Descritivo | C29: ="Variação das Importações " & INDEX('5.2'!K3:N3,1,aux!AL1) & "-"& '5.2'!O3 &"" -> Variação das Importações 2019-2023 | F29: Cód. NC | G29: Descritivo | H29: ="Variação das Exportações " & INDEX('5.2'!K3:N3,1,aux!AL1) & "-"& '5.2'!O3 &"" -> Variação das Exportações 2019-2023
C30: variação total em valor | D30: % do aumento/ redução total | H30: variação total em valor | I30: % do aumento/ redução total
A31: =IF(C31>0,aux!AU6,"") -> 07 | B31: =IF(C31>0,aux!AV6,"") -> Produtos hortícolas | C31: =IF(aux!AW6>0,aux!AW6,0) -> 13492.277 | D31: =IF(SUM($C$31:$C$41)<>0,C31/SUM($C$31:$C$41),0) -> 0.4036199829 | F31: =IF(H31>0,aux!AZ6,"") -> 15 | G31: =IF(H31>0,aux!BA6,"") -> Gorduras e óleos animais ou vegetais | H31: =IF(aux!BB6>0,aux!BB6,0) -> 32151.468 | I31: =IF(SUM($H$31:$H$41)<>0,H31/SUM($H$31:$H$41),0) -> 0.5120118059
A32: =IF(C32>0,aux!AU7,"") -> 03 | B32: =IF(C32>0,aux!AV7,"") -> Peixes e crustáceos | C32: =IF(aux!AW7>0,aux!AW7,0) -> 12808.192 | D32: =IF(SUM($C$31:$C$41)<>0,C32/SUM($C$31:$C$41),0) -> 0.3831556553 | F32: =IF(H32>0,aux!AZ7,"") -> 48 | G32: =IF(H32>0,aux!BA7,"") -> Papel e cartão | H32: =IF(aux!BB7>0,aux!BB7,0) -> 8365.886 | I32: =IF(SUM($H$31:$H$41)<>0,H32/SUM($H$31:$H$41),0) -> 0.1332266508
A33: =IF(C33>0,aux!AU8,"") -> 16p | B33: =IF(C33>0,aux!AV8,"") -> Preparações e conservas de peixes ou crustáceos (NC 1604-05) (p) | C33: =IF(aux!AW8>0,aux!AW8,0) -> 3166.449 | D33: 0.09472397366 | F33: =IF(H33>0,aux!AZ8,"") -> 01 | G33: =IF(H33>0,aux!BA8,"") -> Animais vivos | H33: =IF(aux!BB8>0,aux!BB8,0) -> 4734.73 | I33: 0.07540052783
A34: =IF(C34>0,aux!AU9,"") -> 08 | B34: =IF(C34>0,aux!AV9,"") -> Frutas | C34: =IF(aux!AW9>0,aux!AW9,0) -> 2236.889 | D34: 0.06691628848 | F34: =IF(H34>0,aux!AZ9,"") -> 19a | G34: =IF(H34>0,aux!BA9,"") -> Preparações à base de cereais (exc. NC 19022010) (a) | H34: =IF(aux!BB9>0,aux!BB9,0) -> 4691.54 | I34: 0.07471272751
A35: =IF(C35>0,aux!AU10,"") -> 38a | B35: =IF(C35>0,aux!AV10,"") -> Agentes de acabamento, ácidos gordos, sorbitol (NC 380910, 382311-12-13-19-70, 382460) (a) | C35: =IF(aux!AW10>0,aux!AW10,0) -> 1226.458 | D35: 0.03668935621 | F35: =IF(H35>0,aux!AZ10,"") -> 47 | G35: =IF(H35>0,aux!BA10,"") -> Pastas de madeira | H35: =IF(aux!BB10>0,aux!BB10,0) -> 3895.826 | I35: 0.06204099003
A36: =IF(C36>0,aux!AU11,"") -> 44 | B36: =IF(C36>0,aux!AV11,"") -> Madeira e suas obras | C36: =IF(aux!AW11>0,aux!AW11,0) -> 251.701 | D36: 0.007529607739 | F36: =IF(H36>0,aux!AZ11,"") -> 22 | G36: =IF(H36>0,aux!BA11,"") -> Bebidas, líquidos alcoólicos e vinagres | H36: =IF(aux!BB11>0,aux!BB11,0) -> 1881.946 | I36: 0.0299699712
A37: =IF(C37>0,aux!AU12,"") -> 05a | B37: =IF(C37>0,aux!AV12,"") -> Outros produtos de origem animal (exc. NC 0508, 051191) (a) | C37: =IF(aux!AW12>0,aux!AW12,0) -> 154.526 | D37: 0.004622628299 | F37: =IF(H37>0,aux!AZ12,"") -> 10 | G37: =IF(H37>0,aux!BA12,"") -> Cereais | H37: =IF(aux!BB12>0,aux!BB12,0) -> 1557.06 | I37: 0.02479616491
A38: =IF(C38>0,aux!AU13,"") -> 21 | B38: =IF(C38>0,aux!AV13,"") -> Preparações alimentícias diversas | C38: =IF(aux!AW13>0,aux!AW13,0) -> 54.82 | D38: 0.001639934272 | F38: =IF(H38>0,aux!AZ13,"") -> 23a | G38: =IF(H38>0,aux!BA13,"") -> Resíduos indústrias alimentares; alimentos p/ animais (exc. NC 230120) (a) | H38: =IF(aux!BB13>0,aux!BB13,0) -> 1473.832 | I38: 0.02347075984
A39: =IF(C39>0,aux!AU14,"") -> 13a | B39: =IF(C39>0,aux!AV14,"") -> Sucos e extratos vegetais (exc. NC 1301) (a) | C39: =IF(aux!AW14>0,aux!AW14,0) -> 15.25 | D39: 0.0004562020732 | F39: =IF(H39>0,aux!AZ14,"") -> 18 | G39: =IF(H39>0,aux!BA14,"") -> Cacau e suas preparações | H39: =IF(aux!BB14>0,aux!BB14,0) -> 1450.944 | I39: 0.02310626867
A40: =IF(C40>0,aux!AU15,"") -> 06 | B40: =IF(C40>0,aux!AV15,"") -> Plantas vivas e produtos de floricultura | C40: =IF(aux!AW15>0,aux!AW15,0) -> 5.477 | D40: 0.0001638438528 | F40: =IF(H40>0,aux!AZ15,"") -> 20 | G40: =IF(H40>0,aux!BA15,"") -> Preparações de produtos vegetais | H40: =IF(aux!BB15>0,aux!BB15,0) -> 705.027 | I40: 0.01122754791
B41: Outros contributos para o aumento das importações | C41: =SUMIF(aux!AW16:AW51,">0") -> 16.13 | D41: 0.0004825271764 | G41: Outros contributos para o aumento das exportações | H41: =SUMIF(aux!BB16:BB51,">0") -> 1886.129 | I41: 0.03003658543
B42: Outros contributos para a redução das importações | C42: =SUMIF(aux!AW6:AW41,"<0") -> -12.209 | D42: =IF(SUM($C$42:$C$52)<>0,C42/SUM($C$42:$C$52),0) -> 0.0009749540073 | G42: Outros contributos para a redução das exportações | H42: =SUMIF(aux!BB6:BB41,"<0") -> 0 | I42: =IF(SUM($H$42:$H$52)<>0,H42/SUM($H$42:$H$52),0) -> 0
A43: =IF(C43<>0,aux!AU42,"") -> 12 | B43: =IF(C43<0,aux!AV42,"") -> Sementes e frutos oleaginosos | C43: =IF(aux!AW42<0,aux!AW42,0) -> -16.971 | D43: =IF(SUM($C$42:$C$52)<>0,C43/SUM($C$42:$C$52),0) -> 0.001355225199 | F43: =IF(H43<>0,aux!AZ42,"") -> 41 | G43: =IF(H43<>0,aux!BA42,"") -> Couro e peles em bruto (NC 4101 a 4103) | H43: =IF(aux!BB42<0,aux!BB42,0) -> -0.578 | I43: =IF(SUM($H$42:$H$52)<>0,H43/SUM($H$42:$H$52),0) -> 3.988626755e-05
A44: =IF(C44<>0,aux!AU43,"") -> 46 | B44: =IF(C44<0,aux!AV43,"") -> Obras de espartaria ou de cestaria | C44: =IF(aux!AW43<0,aux!AW43,0) -> -18.724 | D44: 0.001495211633 | F44: =IF(H44<>0,aux!AZ43,"") -> 13f | G44: =IF(H44<>0,aux!BA43,"") -> Gomas e resinas (NC 1301) (f) | H44: =IF(aux!BB43<0,aux!BB43,0) -> -7.511 | I44: 0.000518314456
A45: =IF(C45<>0,aux!AU44,"") -> 20 | B45: =IF(C45<0,aux!AV44,"") -> Preparações de produtos vegetais | C45: =IF(aux!AW44<0,aux!AW44,0) -> -34.449 | D45: 0.002750937063 | F45: =IF(H45<>0,aux!AZ44,"") -> 17 | G45: =IF(H45<>0,aux!BA44,"") -> Açúcares e produtos de confeitaria | H45: =IF(aux!BB44<0,aux!BB44,0) -> -18.432 | I45: 0.001271944089
A46: =IF(C46<>0,aux!AU45,"") -> 51 | B46: =IF(C46<0,aux!AV45,"") -> Lã não cardada (NC 5101-5103) | C46: =IF(aux!AW45<0,aux!AW45,0) -> -34.604 | D46: 0.002763314642 | F46: =IF(H46<>0,aux!AZ45,"") -> 16p | G46: =IF(H46<>0,aux!BA45,"") -> Preparações e conservas de peixes ou crustáceos (NC 1604-05) (p) | H46: =IF(aux!BB45<0,aux!BB45,0) -> -23.011 | I46: 0.001587928897
A47: =IF(C47<>0,aux!AU46,"") -> 33 | B47: =IF(C47<0,aux!AV46,"") -> Óleos essenciais e resinóides (NC 3301) | C47: =IF(aux!AW46<0,aux!AW46,0) -> -61.081 | D47: 0.004877644829 | F47: =IF(H47<>0,aux!AZ46,"") -> 09 | G47: =IF(H47<>0,aux!BA46,"") -> Café, chá, mate e especiarias | H47: =IF(aux!BB46<0,aux!BB46,0) -> -70.57 | I47: 0.00486985104
A48: =IF(C48<>0,aux!AU47,"") -> 19a | B48: =IF(C48<0,aux!AV47,"") -> Preparações à base de cereais (exc. NC 19022010) (a) | C48: =IF(aux!AW47<0,aux!AW47,0) -> -369.368 | D48: 0.0294960121 | F48: =IF(H48<>0,aux!AZ47,"") -> 02 | G48: =IF(H48<>0,aux!BA47,"") -> Carnes e miudezas | H48: =IF(aux!BB47<0,aux!BB47,0) -> -112.163 | I48: 0.007740075134
A49: =IF(C49<>0,aux!AU48,"") -> 05p | B49: =IF(C49<0,aux!AV48,"") -> Outros produtos de pescado (NC 0508, 051191) (p) | C49: =IF(aux!AW48<0,aux!AW48,0) -> -557.095 | D49: 0.044487018 | F49: =IF(H49<>0,aux!AZ48,"") -> 06 | G49: =IF(H49<>0,aux!BA48,"") -> Plantas vivas e produtos de floricultura | H49: =IF(aux!BB48<0,aux!BB48,0) -> -123.892 | I49: 0.008549462733
A50: =IF(C50<>0,aux!AU49,"") -> 15 | B50: =IF(C50<0,aux!AV49,"") -> Gorduras e óleos animais ou vegetais | C50: =IF(aux!AW49<0,aux!AW49,0) -> -1953.782 | D50: 0.1560199517 | F50: =IF(H50<>0,aux!AZ49,"") -> 11 | G50: =IF(H50<>0,aux!BA49,"") -> Produtos da indústria de moagem e outros | H50: =IF(aux!BB49<0,aux!BB49,0) -> -152.436 | I50: 0.01051920948
A51: =IF(C51<>0,aux!AU50,"") -> 17 | B51: =IF(C51<0,aux!AV50,"") -> Açúcares e produtos de confeitaria | C51: =IF(aux!AW50<0,aux!AW50,0) -> -2173.573 | D51: 0.1735714396 | F51: =IF(H51<>0,aux!AZ50,"") -> 04 | G51: =IF(H51<>0,aux!BA50,"") -> Leite e laticínios; ovos; mel, etc. | H51: =IF(aux!BB50<0,aux!BB50,0) -> -2536.441 | I51: 0.1750331563
A52: =IF(C52<>0,aux!AU51,"") -> 45 | B52: =IF(C52<0,aux!AV51,"") -> Cortiça e suas obras | C52: =IF(aux!AW51<0,aux!AW51,0) -> -7290.786 | D52: 0.5822082912 | F52: =IF(H52<>0,aux!AZ51,"") -> 44 | G52: =IF(H52<>0,aux!BA51,"") -> Madeira e suas obras | H52: =IF(aux!BB51<0,aux!BB51,0) -> -11446.169 | I52: 0.7898701716
A53: TOTAL | C53: =SUM(C31:C52) -> 20905.527 | F53: TOTAL | H53: =SUM(H31:H52) -> 48303.185

Sheet 5.2A
A1: Trocas comerciais Portugal-Marrocos 2019-2023 em milhares de euros (NC 4 dígitos) | G1: Produtos agrícolas e agroalimentares, do mar e da floresta
A2: Cód. NC | B2: Descritivo | C2: Importações | K2: Exportações | S2: Saldo quinquénio (exp-imp) | T2: Evolução das importações | U2: =+"Variação das Importações " & INDEX(K3:N3,1,aux!AL1) & "-"& '5.2'!O3 &"" -> Variação das Importações 2019-2023 | Z2: Evolução das exportações | AA2: ="Variação das Exportações " & INDEX(K3:N3,1,aux!AL1) & "-"& '5.2'!O3 &"" -> Variação das Exportações 2019-2023
C3: 2019 | D3: 2020 | E3: 2021 | F3: 2022 | G3: 2023 | H3: média quinquénio | I3: % Subtot | J3: % Total | K3: 2019 | L3: 2020 | M3: 2021 | N3: 2022 | O3: 2023 | P3: média quinquénio | Q3: % Subtot | R3: % Total | U3: variação total em valor | V3: % no subtotal de variação | W3: % no total de variação | X3: taxa de variação média anual | Y3: taxa de variação total | AA3: variação total em valor | AB3: % no subtotal de variação | AC3: % no total de variação | AD3: taxa de variação média anual | AE3: taxa de variação total | AX3: filtro
A4: 0101 | B4: Equídeos vivos | C4: 0 | D4: 0 | E4: 0 | F4: 1.5 | G4: 0 | H4: 0.3 | I4: 2.6493485e-05 | J4: 7.006019278e-06 | K4: 0 | L4: 0 | M4: 0 | N4: 0 | O4: 0 | P4: 0 | Q4: 0 | R4: 0 | S4: -0.3 | U4: =G4-INDEX($C4:$G4,1,aux!$AL$1) -> 0 | V4: =IF($U$237<>0,U4/$U$237, "n.d.") -> 0 | W4: =IF($U$322<>0,U4/$U$322, "n.d.") -> 0 | X4: =+IF(INDEX($C4:$G4,1,aux!$AL$1)>0,(G4/INDEX($C4:$G4,1,aux!$AL$1))^(1/($G$3-INDEX($C$3:$G$3,1,aux!$AL$1)))-1,"n.d.") -> n.d. | Y4: =IF(INDEX($C4:$G4,1,aux!$AL$1)>0,(G4-INDEX($C4:$G4,1,aux!$AL$1))/INDEX($C4:$G4,1,aux!$AL$1),"n.d.") -> n.d. | AA4: =O4-INDEX($K4:$O4,1,aux!$AL$1) -> 0 | AB4: =IF($AA$237<>0,AA4/$AA$237, "n.d.") -> 0 | AC4: =IF($AA$322<>0,AA4/$AA$322, "n.d.") -> 0 | AD4: =+IF(INDEX($K4:$O4,1,aux!$AL$1)>0,(O4/INDEX($K4:$O4,1,aux!$AL$1))^(1/($O$3-INDEX($K$3:$O$3,1,aux!$AL$1)))-1,"n.d.") -> n.d. | AE4: =IF(INDEX($K4:$O4,1,aux!$AL$1)>0,(O4-INDEX($K4:$O4,1,aux!$AL$1))/INDEX($K4:$O4,1,aux!$AL$1),"n.d.") -> n.d. | AX4: =+LEFT(A4,2) -> 01
A5: 0102 | B5: Bovinos vivos | C5: 0 | D5: 0 | E5: 0 | F5: 0 | G5: 0 | H5: 0 | I5: 0 | J5: 0 | K5: 439.677 | L5: 227.613 | M5: 185.4 | N5: 130.62 | O5: 155.6 | P5: 227.782 | Q5: 0.004576927583 | R5: 0.001919916458 | S5: 227.782 | U5: =G5-INDEX($C5:$G5,1,aux!$AL$1) -> 0 | V5: 0 | W5: 0 | X5: =+IF(INDEX($C5:$G5,1,aux!$AL$1)>0,(G5/INDEX($C5:$G5,1,aux!$AL$1))^(1/($G$3-INDEX($C$3:$G$3,1,aux!$AL$1)))-1,"n.d.") -> n.d. | Y5: =IF(INDEX($C5:$G5,1,aux!$AL$1)>0,(G5-INDEX($C5:$G5,1,aux!$AL$1))/INDEX($C5:$G5,1,aux!$AL$1),"n.d.") -> n.d. | AA5: =O5-INDEX($K5:$O5,1,aux!$AL$1) -> -284.077 | AB5: -0.006041936304 | AC5: -0.005881123574 | AD5: =+IF(INDEX($K5:$O5,1,aux!$AL$1)>0,(O5/INDEX($K5:$O5,1,aux!$AL$1))^(1/($O$3-INDEX($K$3:$O$3,1,aux!$AL$1)))-1,"n.d.") -> -0.2287077613 | AE5: =IF(INDEX($K5:$O5,1,aux!$AL$1)>0,(O5-INDEX($K5:$O5,1,aux!$AL$1))/INDEX($K5:$O5,1,aux!$AL$1),"n.d.") -> -0.6461038444 | AX5: 01
A6: 0103 | B6: Suínos vivos | C6: 0 | D6: 0 | E6: 0 | F6: 0 | G6: 0 | H6: 0 | I6: 0 | J6: 0 | K6: 0 | L6: 0 | M6: 0 | N6: 0 | O6: 0 | P6: 0 | Q6: 0 | R6: 0 | S6: 0 | U6: =G6-INDEX($C6:$G6,1,aux!$AL$1) -> 0 | V6: 0 | W6: 0 | X6: =+IF(INDEX($C6:$G6,1,aux!$AL$1)>0,(G6/INDEX($C6:$G6,1,aux!$AL$1))^(1/($G$3-INDEX($C$3:$G$3,1,aux!$AL$1)))-1,"n.d.") -> n.d. | Y6: =IF(INDEX($C6:$G6,1,aux!$AL$1)>0,(G6-INDEX($C6:$G6,1,aux!$AL$1))/INDEX($C6:$G6,1,aux!$AL$1),"n.d.") -> n.d. | AA6: =O6-INDEX($K6:$O6,1,aux!$AL$1) -> 0 | AB6: 0 | AC6: 0 | AD6: =+IF(INDEX($K6:$O6,1,aux!$AL$1)>0,(O6/INDEX($K6:$O6,1,aux!$AL$1))^(1/($O$3-INDEX($K$3:$O$3,1,aux!$AL$1)))-1,"n.d.") -> n.d. | AE6: =IF(INDEX($K6:$O6,1,aux!$AL$1)>0,(O6-INDEX($K6:$O6,1,aux!$AL$1))/INDEX($K6:$O6,1,aux!$AL$1),"n.d.") -> n.d. | AX6: 01
A7: 0104 | B7: Ovinos ou caprinos vivos | C7: 0 | D7: 0 | E7: 0 | F7: 0 | G7: 0 | H7: 0 | I7: 0 | J7: 0 | K7: 0 | L7: 0 | M7: 0 | N7: 0 | O7: 5018.807 | P7: 1003.7614 | Q7: 0.02016903547 | R7: 0.008460449166 | S7: 1003.7614 | U7: =G7-INDEX($C7:$G7,1,aux!$AL$1) -> 0 | V7: 0 | W7: 0 | X7: =+IF(INDEX($C7:$G7,1,aux!$AL$1)>0,(G7/INDEX($C7:$G7,1,aux!$AL$1))^(1/($G$3-INDEX($C$3:$G$3,1,aux!$AL$1)))-1,"n.d.") -> n.d. | Y7: =IF(INDEX($C7:$G7,1,aux!$AL$1)>0,(G7-INDEX($C7:$G7,1,aux!$AL$1))/INDEX($C7:$G7,1,aux!$AL$1),"n.d.") -> n.d. | AA7: =O7-INDEX($K7:$O7,1,aux!$AL$1) -> 5018.807 | AB7: 0.1067432852 | AC7: 0.1039021961 | AD7: =+IF(INDEX($K7:$O7,1,aux!$AL$1)>0,(O7/INDEX($K7:$O7,1,aux!$AL$1))^(1/($O$3-INDEX($K$3:$O$3,1,aux!$AL$1)))-1,"n.d.") -> n.d. | AE7: =IF(INDEX($K7:$O7,1,aux!$AL$1)>0,(O7-INDEX($K7:$O7,1,aux!$AL$1))/INDEX($K7:$O7,1,aux!$AL$1),"n.d.") -> n.d. | AX7: 01
A8: 0105 | B8: Aves de capoeira vivas | C8: 0 | D8: 0 | E8: 0 | F8: 0 | G8: 0 | H8: 0 | I8: 0 | J8: 0 | K8: 0 | L8: 0 | M8: 0 | N8: 0 | O8: 0 | P8: 0 | Q8: 0 | R8: 0 | S8: 0 | U8: =G8-INDEX($C8:$G8,1,aux!$AL$1) -> 0 | V8: 0 | W8: 0 | X8: =+IF(INDEX($C8:$G8,1,aux!$AL$1)>0,(G8/INDEX($C8:$G8,1,aux!$AL$1))^(1/($G$3-INDEX($C$3:$G$3,1,aux!$AL$1)))-1,"n.d.") -> n.d. | Y8: =IF(INDEX($C8:$G8,1,aux!$AL$1)>0,(G8-INDEX($C8:$G8,1,aux!$AL$1))/INDEX($C8:$G8,1,aux!$AL$1),"n.d.") -> n.d. | AA8: =O8-INDEX($K8:$O8,1,aux!$AL$1) -> 0 | AB8: 0 | AC8: 0 | AD8: =+IF(INDEX($K8:$O8,1,aux!$AL$1)>0,(O8/INDEX($K8:$O8,1,aux!$AL$1))^(1/($O$3-INDEX($K$3:$O$3,1,aux!$AL$1)))-1,"n.d.") -> n.d. | AE8: =IF(INDEX($K8:$O8,1,aux!$AL$1)>0,(O8-INDEX($K8:$O8,1,aux!$AL$1))/INDEX($K8:$O8,1,aux!$AL$1),"n.d.") -> n.d. | AX8: 01
A9: 0106 | B9: Outros animais vivos | C9: 0 | D9: 0 | E9: 0 | F9: 0 | G9: 0 | H9: 0 | I9: 0 | J9: 0 | K9: 0 | L9: 0 | M9: 0.25 | N9: 0 | O9: 0 | P9: 0.05 | Q9: 1.004672797e-06 | R9: 4.214372642e-07 | S9: 0.05 | U9: =G9-INDEX($C9:$G9,1,aux!$AL$1) -> 0 | V9: 0 | W9: 0 | X9: =+IF(INDEX($C9:$G9,1,aux!$AL$1)>0,(G9/INDEX($C9:$G9,1,aux!$AL$1))^(1/($G$3-INDEX($C$3:$G$3,1,aux!$AL$1)))-1,"n.d.") -> n.d. | Y9: =IF(INDEX($C9:$G9,1,aux!$AL$1)>0,(G9-INDEX($C9:$G9,1,aux!$AL$1))/INDEX($C9:$G9,1,aux!$AL$1),"n.d.") -> n.d. | AA9: =O9-INDEX($K9:$O9,1,aux!$AL$1) -> 0 | AB9: 0 | AC9: 0 | AD9: =+IF(INDEX($K9:$O9,1,aux!$AL$1)>0,(O9/INDEX($K9:$O9,1,aux!$AL$1))^(1/($O$3-INDEX($K$3:$O$3,1,aux!$AL$1)))-1,"n.d.") -> n.d. | AE9: =IF(INDEX($K9:$O9,1,aux!$AL$1)>0,(O9-INDEX($K9:$O9,1,aux!$AL$1))/INDEX($K9:$O9,1,aux!$AL$1),"n.d.") -> n.d. | AX9: 01
A10: 01SS | B10: Animais vivos | C10: 0 | D10: 0 | E10: 0 | F10: 0 | G10: 0 | H10: 0 | I10: 0 | J10: 0 | K10: 0 | L10: 0 | M10: 0 | N10: 0 | O10: 0 | P10: 0 | Q10: 0 | R10: 0 | S10: 0 | U10: =G10-INDEX($C10:$G10,1,aux!$AL$1) -> 0 | V10: 0 | W10: 0 | X10: =+IF(INDEX($C10:$G10,1,aux!$AL$1)>0,(G10/INDEX($C10:$G10,1,aux!$AL$1))^(1/($G$3-INDEX($C$3:$G$3,1,aux!$AL$1)))-1,"n.d.") -> n.d. | Y10: =IF(INDEX($C10:$G10,1,aux!$AL$1)>0,(G10-INDEX($C10:$G10,1,aux!$AL$1))/INDEX($C10:$G10,1,aux!$AL$1),"n.d.") -> n.d. | AA10: =O10-INDEX($K10:$O10,1,aux!$AL$1) -> 0 | AB10: 0 | AC10: 0 | AD10: =+IF(INDEX($K10:$O10,1,aux!$AL$1)>0,(O10/INDEX($K10:$O10,1,aux!$AL$1))^(1/($O$3-INDEX($K$3:$O$3,1,aux!$AL$1)))-1,"n.d.") -> n.d. | AE10: =IF(INDEX($K10:$O10,1,aux!$AL$1)>0,(O10-INDEX($K10:$O10,1,aux!$AL$1))/INDEX($K10:$O10,1,aux!$AL$1),"n.d.") -> n.d. | AX10: 01
A11: 0201 | B11: Carnes de bovino, frescas ou refrigeradas | C11: 0 | D11: 0 | E11: 0 | F11: 0 | G11: 0 | H11: 0 | I11: 0 | J11: 0 | K11: 0 | L11: 0 | M11: 0 | N11: 0 | O11: 0 | P11: 0 | Q11: 0 | R11: 0 | S11: 0 | U11: =G11-INDEX($C11:$G11,1,aux!$AL$1) -> 0 | V11: 0 | W11: 0 | X11: =+IF(INDEX($C11:$G11,1,aux!$AL$1)>0,(G11/INDEX($C11:$G11,1,aux!$AL$1))^(1/($G$3-INDEX($C$3:$G$3,1,aux!$AL$1)))-1,"n.d.") -> n.d. | Y11: =IF(INDEX($C11:$G11,1,aux!$AL$1)>0,(G11-INDEX($C11:$G11,1,aux!$AL$1))/INDEX($C11:$G11,1,aux!$AL$1),"n.d.") -> n.d. | AA11: =O11-INDEX($K11:$O11,1,aux!$AL$1) -> 0 | AB11: 0 | AC11: 0 | AD11: =+IF(INDEX($K11:$O11,1,aux!$AL$1)>0,(O11/INDEX($K11:$O11,1,aux!$AL$1))^(1/($O$3-INDEX($K$3:$O$3,1,aux!$AL$1)))-1,"n.d.") -> n.d. | AE11: =IF(INDEX($K11:$O11,1,aux!$AL$1)>0,(O11-INDEX($K11:$O11,1,aux!$AL$1))/INDEX($K11:$O11,1,aux!$AL$1),"n.d.") -> n.d. | AX11: 02
A12: 0202 | B12: Carnes de bovino, congeladas | C12: 0 | D12: 0 | E12: 0 | F12: 0 | G12: 0 | H12: 0 | I12: 0 | J12: 0 | K12: 0 | L12: 0 | M12: 0 | N12: 0 | O12: 0 | P12: 0 | Q12: 0 | R12: 0 | S12: 0 | U12: =G12-INDEX($C12:$G12,1,aux!$AL$1) -> 0 | V12: 0 | W12: 0 | X12: =+IF(INDEX($C12:$G12,1,aux!$AL$1)>0,(G12/INDEX($C12:$G12,1,aux!$AL$1))^(1/($G$3-INDEX($C$3:$G$3,1,aux!$AL$1)))-1,"n.d.") -> n.d. | Y12: =IF(INDEX($C12:$G12,1,aux!$AL$1)>0,(G12-INDEX($C12:$G12,1,aux!$AL$1))/INDEX($C12:$G12,1,aux!$AL$1),"n.d.") -> n.d. | AA12: =O12-INDEX($K12:$O12,1,aux!$AL$1) -> 0 | AB12: 0 | AC12: 0 | AD12: =+IF(INDEX($K12:$O12,1,aux!$AL$1)>0,(O12/INDEX($K12:$O12,1,aux!$AL$1))^(1/($O$3-INDEX($K$3:$O$3,1,aux!$AL$1)))-1,"n.d.") -> n.d. | AE12: =IF(INDEX($K12:$O12,1,aux!$AL$1)>0,(O12-INDEX($K12:$O12,1,aux!$AL$1))/INDEX($K12:$O12,1,aux!$AL$1),"n.d.") -> n.d. | AX12: 02
A13: 0203 | B13: Carnes de suíno | C13: 0 | D13: 0 | E13: 0 | F13: 0 | G13: 0 | H13: 0 | I13: 0 | J13: 0 | K13: 0 | L13: 0 | M13: 0 | N13: 0 | O13: 0 | P13: 0 | Q13: 0 | R13: 0 | S13: 0 | U13: =G13-INDEX($C13:$G13,1,aux!$AL$1) -> 0 | V13: 0 | W13: 0 | X13: =+IF(INDEX($C13:$G13,1,aux!$AL$1)>0,(G13/INDEX($C13:$G13,1,aux!$AL$1))^(1/($G$3-INDEX($C$3:$G$3,1,aux!$AL$1)))-1,"n.d.") -> n.d. | Y13: =IF(INDEX($C13:$G13,1,aux!$AL$1)>0,(G13-INDEX($C13:$G13,1,aux!$AL$1))/INDEX($C13:$G13,1,aux!$AL$1),"n.d.") -> n.d. | AA13: =O13-INDEX($K13:$O13,1,aux!$AL$1) -> 0 | AB13: 0 | AC13: 0 | AD13: =+IF(INDEX($K13:$O13,1,aux!$AL$1)>0,(O13/INDEX($K13:$O13,1,aux!$AL$1))^(1/($O$3-INDEX($K$3:$O$3,1,aux!$AL$1)))-1,"n.d.") -> n.d. | AE13: =IF(INDEX($K13:$O13,1,aux!$AL$1)>0,(O13-INDEX($K13:$O13,1,aux!$AL$1))/INDEX($K13:$O13,1,aux!$AL$1),"n.d.") -> n.d. | AX13: 02
A14: 0204 | B14: Carnes de ovino ou caprino | C14: 0 | D14: 0 | E14: 0 | F14: 0 | G14: 0 | H14: 0 | I14: 0 | J14: 0 | K14: 0 | L14: 0 | M14: 0 | N14: 0 | O14: 0 | P14: 0 | Q14: 0 | R14: 0 | S14: 0 | U14: =G14-INDEX($C14:$G14,1,aux!$AL$1) -> 0 | V14: 0 | W14: 0 | X14: =+IF(INDEX($C14:$G14,1,aux!$AL$1)>0,(G14/INDEX($C14:$G14,1,aux!$AL$1))^(1/($G$3-INDEX($C$3:$G$3,1,aux!$AL$1)))-1,"n.d.") -> n.d. | Y14: =IF(INDEX($C14:$G14,1,aux!$AL$1)>0,(G14-INDEX($C14:$G14,1,aux!$AL$1))/INDEX($C14:$G14,1,aux!$AL$1),"n.d.") -> n.d. | AA14: =O14-INDEX($K14:$O14,1,aux!$AL$1) -> 0 | AB14: 0 | AC14: 0 | AD14: =+IF(INDEX($K14:$O14,1,aux!$AL$1)>0,(O14/INDEX($K14:$O14,1,aux!$AL$1))^(1/($O$3-INDEX($K$3:$O$3,1,aux!$AL$1)))-1,"n.d.") -> n.d. | AE14: =IF(INDEX($K14:$O14,1,aux!$AL$1)>0,(O14-INDEX($K14:$O14,1,aux!$AL$1))/INDEX($K14:$O14,1,aux!$AL$1),"n.d.") -> n.d. | AX14: 02
A15: 0205 | B15: Carnes de equídeo | C15: 0 | D15: 0 | E15: 0 | F15: 0 | G15: 0 | H15: 0 | I15: 0 | J15: 0 | K15: 0 | L15: 0 | M15: 0 | N15: 0 | O15: 0 | P15: 0 | Q15: 0 | R15: 0 | S15: 0 | U15: =G15-INDEX($C15:$G15,1,aux!$AL$1) -> 0 | V15: 0 | W15: 0 | X15: =+IF(INDEX($C15:$G15,1,aux!$AL$1)>0,(G15/INDEX($C15:$G15,1,aux!$AL$1))^(1/($G$3-INDEX($C$3:$G$3,1,aux!$AL$1)))-1,"n.d.") -> n.d. | Y15: =IF(INDEX($C15:$G15,1,aux!$AL$1)>0,(G15-INDEX($C15:$G15,1,aux!$AL$1))/INDEX($C15:$G15,1,aux!$AL$1),"n.d.") -> n.d. | AA15: =O15-INDEX($K15:$O15,1,aux!$AL$1) -> 0 | AB15: 0 | AC15: 0 | AD15: =+IF(INDEX($K15:$O15,1,aux!$AL$1)>0,(O15/INDEX($K15:$O15,1,aux!$AL$1))^(1/($O$3-INDEX($K$3:$O$3,1,aux!$AL$1)))-1,"n.d.") -> n.d. | AE15: =IF(INDEX($K15:$O15,1,aux!$AL$1)>0,(O15-INDEX($K15:$O15,1,aux!$AL$1))/INDEX($K15:$O15,1,aux!$AL$1),"n.d.") -> n.d. | AX15: 02
A16: 0206 | B16: Miudezas de bovino, suíno, ovino, caprino,equídeo | C16: 0 | D16: 0 | E16: 0 | F16: 0 | G16: 0 | H16: 0 | I16: 0 | J16: 0 | K16: 0 | L16: 0 | M16: 0 | N16: 0 | O16: 0 | P16: 0 | Q16: 0 | R16: 0 | S16: 0 | U16: =G16-INDEX($C16:$G16,1,aux!$AL$1) -> 0 | V16: 0 | W16: 0 | X16: =+IF(INDEX($C16:$G16,1,aux!$AL$1)>0,(G16/INDEX($C16:$G16,1,aux!$AL$1))^(1/($G$3-INDEX($C$3:$G$3,1,aux!$AL$1)))-1,"n.d.") -> n.d. | Y16: =IF(INDEX($C16:$G16,1,aux!$AL$1)>0,(G16-INDEX($C16:$G16,1,aux!$AL$1))/INDEX($C16:$G16,1,aux!$AL$1),"n.d.") -> n.d. | AA16: =O16-INDEX($K16:$O16,1,aux!$AL$1) -> 0 | AB16: 0 | AC16: 0 | AD16: =+IF(INDEX($K16:$O16,1,aux!$AL$1)>0,(O16/INDEX($K16:$O16,1,aux!$AL$1))^(1/($O$3-INDEX($K$3:$O$3,1,aux!$AL$1)))-1,"n.d.") -> n.d. | AE16: =IF(INDEX($K16:$O16,1,aux!$AL$1)>0,(O16-INDEX($K16:$O16,1,aux!$AL$1))/INDEX($K16:$O16,1,aux!$AL$1),"n.d.") -> n.d. | AX16: 02
A17: 0207 | B17: Carnes e miudezas de aves de capoeira | C17: 0 | D17: 0 | E17: 0 | F17: 0 | G17: 0 | H17: 0 | I17: 0 | J17: 0 | K17: 7.98 | L17: 0 | M17: 6.624 | N17: 0 | O17: 12.953 | P17: 5.5114 | Q17: 0.0001107430731 | R17: 4.645418675e-05 | S17: 5.5114 | U17: =G17-INDEX($C17:$G17,1,aux!$AL$1) -> 0 | V17: 0 | W17: 0 | X17: =+IF(INDEX($C17:$G17,1,aux!$AL$1)>0,(G17/INDEX($C17:$G17,1,aux!$AL$1))^(1/($G$3-INDEX($C$3:$G$3,1,aux!$AL$1)))-1,"n.d.") -> n.d. | Y17: =IF(INDEX($C17:$G17,1,aux!$AL$1)>0,(G17-INDEX($C17:$G17,1,aux!$AL$1))/INDEX($C17:$G17,1,aux!$AL$1),"n.d.") -> n.d. | AA17: =O17-INDEX($K17:$O17,1,aux!$AL$1) -> 4.973 | AB17: 0.0001057690318 | AC17: 0.0001029538735 | AD17: =+IF(INDEX($K17:$O17,1,aux!$AL$1)>0,(O17/INDEX($K17:$O17,1,aux!$AL$1))^(1/($O$3-INDEX($K$3:$O$3,1,aux!$AL$1)))-1,"n.d.") -> 0.1287346793 | AE17: =IF(INDEX($K17:$O17,1,aux!$AL$1)>0,(O17-INDEX($K17:$O17,1,aux!$AL$1))/INDEX($K17:$O17,1,aux!$AL$1),"n.d.") -> 0.6231829574 | AX17: 02
A18: 0208 | B18: Outras carnes e miudezas | C18: 0 | D18: 0 | E18: 0 | F18: 0 | G18: 0 | H18: 0 | I18: 0 | J18: 0 | K18: 0 | L18: 0 | M18: 0 | N18: 0 | O18: 0 | P18: 0 | Q18: 0 | R18: 0 | S18: 0 | U18: =G18-INDEX($C18:$G18,1,aux!$AL$1) -> 0 | V18: 0 | W18: 0 | X18: =+IF(INDEX($C18:$G18,1,aux!$AL$1)>0,(G18/INDEX($C18:$G18,1,aux!$AL$1))^(1/($G$3-INDEX($C$3:$G$3,1,aux!$AL$1)))-1,"n.d.") -> n.d. | Y18: =IF(INDEX($C18:$G18,1,aux!$AL$1)>0,(G18-INDEX($C18:$G18,1,aux!$AL$1))/INDEX($C18:$G18,1,aux!$AL$1),"n.d.") -> n.d. | AA18: =O18-INDEX($K18:$O18,1,aux!$AL$1) -> 0 | AB18: 0 | AC18: 0 | AD18: =+IF(INDEX($K18:$O18,1,aux!$AL$1)>0,(O18/INDEX($K18:$O18,1,aux!$AL$1))^(1/($O$3-INDEX($K$3:$O$3,1,aux!$AL$1)))-1,"n.d.") -> n.d. | AE18: =IF(INDEX($K18:$O18,1,aux!$AL$1)>0,(O18-INDEX($K18:$O18,1,aux!$AL$1))/INDEX($K18:$O18,1,aux!$AL$1),"n.d.") -> n.d. | AX18: 02
A19: 0209 | B19: Toucinho, gorduras de porco e de aves | C19: 0 | D19: 0 | E19: 0 | F19: 0 | G19: 0 | H19: 0 | I19: 0 | J19: 0 | K19: 0 | L19: 0 | M19: 0 | N19: 0 | O19: 0 | P19: 0 | Q19: 0 | R19: 0 | S19: 0 | U19: =G19-INDEX($C19:$G19,1,aux!$AL$1) -> 0 | V19: 0 | W19: 0 | X19: =+IF(INDEX($C19:$G19,1,aux!$AL$1)>0,(G19/INDEX($C19:$G19,1,aux!$AL$1))^(1/($G$3-INDEX($C$3:$G$3,1,aux!$AL$1)))-1,"n.d.") -> n.d. | Y19: =IF(INDEX($C19:$G19,1,aux!$AL$1)>0,(G19-INDEX($C19:$G19,1,aux!$AL$1))/INDEX($C19:$G19,1,aux!$AL$1),"n.d.") -> n.d. | AA19: =O19-INDEX($K19:$O19,1,aux!$AL$1) -> 0 | AB19: 0 | AC19: 0 | AD19: =+IF(INDEX($K19:$O19,1,aux!$AL$1)>0,(O19/INDEX($K19:$O19,1,aux!$AL$1))^(1/($O$3-INDEX($K$3:$O$3,1,aux!$AL$1)))-1,"n.d.") -> n.d. | AE19: =IF(INDEX($K19:$O19,1,aux!$AL$1)>0,(O19-INDEX($K19:$O19,1,aux!$AL$1))/INDEX($K19:$O19,1,aux!$AL$1),"n.d.") -> n.d. | AX19: 02
A20: 0210 | B20: Carnes e miudezas processadas; farinhas de carnes | C20: 0 | D20: 0 | E20: 0 | F20: 0 | G20: 0 | H20: 0 | I20: 0 | J20: 0 | K20: 326.705 | L20: 0 | M20: 640.556 | N20: 0 | O20: 209.569 | P20: 235.366 | Q20: 0.004729316353 | R20: 0.001983840062 | S20: 235.366 | U20: =G20-INDEX($C20:$G20,1,aux!$AL$1) -> 0 | V20: 0 | W20: 0 | X20: =+IF(INDEX($C20:$G20,1,aux!$AL$1)>0,(G20/INDEX($C20:$G20,1,aux!$AL$1))^(1/($G$3-INDEX($C$3:$G$3,1,aux!$AL$1)))-1,"n.d.") -> n.d. | Y20: =IF(INDEX($C20:$G20,1,aux!$AL$1)>0,(G20-INDEX($C20:$G20,1,aux!$AL$1))/INDEX($C20:$G20,1,aux!$AL$1),"n.d.") -> n.d. | AA20: =O20-INDEX($K20:$O20,1,aux!$AL$1) -> -117.136 | AB20: -0.002491325419 | AC20: -0.002425016073 | AD20: =+IF(INDEX($K20:$O20,1,aux!$AL$1)>0,(O20/INDEX($K20:$O20,1,aux!$AL$1))^(1/($O$3-INDEX($K$3:$O$3,1,aux!$AL$1)))-1,"n.d.") -> -0.1050622763 | AE20: =IF(INDEX($K20:$O20,1,aux!$AL$1)>0,(O20-INDEX($K20:$O20,1,aux!$AL$1))/INDEX($K20:$O20,1,aux!$AL$1),"n.d.") -> -0.3585375186 | AX20: 02
A21: 02SS | B21: Carnes e miudezas, comestíveis | C21: 0 | D21: 0 | E21: 0 | F21: 0 | G21: 0 | H21: 0 | I21: 0 | J21: 0 | K21: 0 | L21: 0 | M21: 0 | N21: 0 | O21: 0 | P21: 0 | Q21: 0 | R21: 0 | S21: 0 | U21: =G21-INDEX($C21:$G21,1,aux!$AL$1) -> 0 | V21: 0 | W21: 0 | X21: =+IF(INDEX($C21:$G21,1,aux!$AL$1)>0,(G21/INDEX($C21:$G21,1,aux!$AL$1))^(1/($G$3-INDEX($C$3:$G$3,1,aux!$AL$1)))-1,"n.d.") -> n.d. | Y21: =IF(INDEX($C21:$G21,1,aux!$AL$1)>0,(G21-INDEX($C21:$G21,1,aux!$AL$1))/INDEX($C21:$G21,1,aux!$AL$1),"n.d.") -> n.d. | AA21: =O21-INDEX($K21:$O21,1,aux!$AL$1) -> 0 | AB21: 0 | AC21: 0 | AD21: =+IF(INDEX($K21:$O21,1,aux!$AL$1)>0,(O21/INDEX($K21:$O21,1,aux!$AL$1))^(1/($O$3-INDEX($K$3:$O$3,1,aux!$AL$1)))-1,"n.d.") -> n.d. | AE21: =IF(INDEX($K21:$O21,1,aux!$AL$1)>0,(O21-INDEX($K21:$O21,1,aux!$AL$1))/INDEX($K21:$O21,1,aux!$AL$1),"n.d.") -> n.d. | AX21: 02
A22: 0401 | B22: Leite e nata, não concentrados | C22: 0 | D22: 0 | E22: 0 | F22: 0 | G22: 0 | H22: 0 | I22: 0 | J22: 0 | K22: 0 | L22: 0 | M22: 0 | N22: 0 | O22: 0 | P22: 0 | Q22: 0 | R22: 0 | S22: 0 | U22: =G22-INDEX($C22:$G22,1,aux!$AL$1) -> 0 | V22: 0 | W22: 0 | X22: =+IF(INDEX($C22:$G22,1,aux!$AL$1)>0,(G22/INDEX($C22:$G22,1,aux!$AL$1))^(1/($G$3-INDEX($C$3:$G$3,1,aux!$AL$1)))-1,"n.d.") -> n.d. | Y22: =IF(INDEX($C22:$G22,1,aux!$AL$1)>0,(G22-INDEX($C22:$G22,1,aux!$AL$1))/INDEX($C22:$G22,1,aux!$AL$1),"n.d.") -> n.d. | AA22: =O22-INDEX($K22:$O22,1,aux!$AL$1) -> 0 | AB22: 0 | AC22: 0 | AD22: =+IF(INDEX($K22:$O22,1,aux!$AL$1)>0,(O22/INDEX($K22:$O22,1,aux!$AL$1))^(1/($O$3-INDEX($K$3:$O$3,1,aux!$AL$1)))-1,"n.d.") -> n.d. | AE22: =IF(INDEX($K22:$O22,1,aux!$AL$1)>0,(O22-INDEX($K22:$O22,1,aux!$AL$1))/INDEX($K22:$O22,1,aux!$AL$1),"n.d.") -> n.d. | AX22: 04
A23: 0402 | B23: Leite e nata, concentrados | C23: 0 | D23: 0 | E23: 0 | F23: 0 | G23: 0 | H23: 0 | I23: 0 | J23: 0 | K23: 55.396 | L23: 708.798 | M23: 243.138 | N23: 246.43 | O23: 356.889 | P23: 322.1302 | Q23: 0.006472708984 | R23: 0.002715153404 | S23: 322.1302 | U23: =G23-INDEX($C23:$G23,1,aux!$AL$1) -> 0 | V23: 0 | W23: 0 | X23: =+IF(INDEX($C23:$G23,1,aux!$AL$1)>0,(G23/INDEX($C23:$G23,1,aux!$AL$1))^(1/($G$3-INDEX($C$3:$G$3,1,aux!$AL$1)))-1,"n.d.") -> n.d. | Y23: =IF(INDEX($C23:$G23,1,aux!$AL$1)>0,(G23-INDEX($C23:$G23,1,aux!$AL$1))/INDEX($C23:$G23,1,aux!$AL$1),"n.d.") -> n.d. | AA23: =O23-INDEX($K23:$O23,1,aux!$AL$1) -> 301.493 | AB23: 0.006412351237 | AC23: 0.006241679508 | AD23: =+IF(INDEX($K23:$O23,1,aux!$AL$1)>0,(O23/INDEX($K23:$O23,1,aux!$AL$1))^(1/($O$3-INDEX($K$3:$O$3,1,aux!$AL$1)))-1,"n.d.") -> 0.593175756 | AE23: =IF(INDEX($K23:$O23,1,aux!$AL$1)>0,(O23-INDEX($K23:$O23,1,aux!$AL$1))/INDEX($K23:$O23,1,aux!$AL$1),"n.d.") -> 5.442504874 | AX23: 04
A24: 0403 | B24: Leitelho, leite coalhado, iogurte, etc. | C24: 0 | D24: 0 | E24: 0 | F24: 0 | G24: 0 | H24: 0 | I24: 0 | J24: 0 | K24: 0 | L24: 0.008 | M24: 0.807 | N24: 98.563 | O24: 63.253 | P24: 32.5262 | Q24: 0.0006535637669 | R24: 0.0002741550548 | S24: 32.5262 | U24: =G24-INDEX($C24:$G24,1,aux!$AL$1) -> 0 | V24: 0 | W24: 0 | X24: =+IF(INDEX($C24:$G24,1,aux!$AL$1)>0,(G24/INDEX($C24:$G24,1,aux!$AL$1))^(1/($G$3-INDEX($C$3:$G$3,1,aux!$AL$1)))-1,"n.d.") -> n.d. | Y24: =IF(INDEX($C24:$G24,1,aux!$AL$1)>0,(G24-INDEX($C24:$G24,1,aux!$AL$1))/INDEX($C24:$G24,1,aux!$AL$1),"n.d.") -> n.d. | AA24: =O24-INDEX($K24:$O24,1,aux!$AL$1) -> 63.253 | AB24: 0.001345306368 | AC24: 0.00130949957 | AD24: =+IF(INDEX($K24:$O24,1,aux!$AL$1)>0,(O24/INDEX($K24:$O24,1,aux!$AL$1))^(1/($O$3-INDEX($K$3:$O$3,1,aux!$AL$1)))-1,"n.d.") -> n.d. | AE24: =IF(INDEX($K24:$O24,1,aux!$AL$1)>0,(O24-INDEX($K24:$O24,1,aux!$AL$1))/INDEX($K24:$O24,1,aux!$AL$1),"n.d.") -> n.d. | AX24: 04
A25: 0404 | B25: Soro de leite e outros produtos do leite | C25: 0 | D25: 0 | E25: 0 | F25: 0 | G25: 0 | H25: 0 | I25: 0 | J25: 0 | K25: 1978.245 | L25: 2122.963 | M25: 3719.214 | N25: 2761.465 | O25: 1256.784 | P25: 2367.7342 | Q25: 0.04757596285 | R25: 0.01995702847 | S25: 2367.7342 | U25: =G25-INDEX($C25:$G25,1,aux!$AL$1) -> 0 | V25: 0 | W25: 0 | X25: =+IF(INDEX($C25:$G25,1,aux!$AL$1)>0,(G25/INDEX($C25:$G25,1,aux!$AL$1))^(1/($G$3-INDEX($C$3:$G$3,1,aux!$AL$1)))-1,"n.d.") -> n.d. | Y25: =IF(INDEX($C25:$G25,1,aux!$AL$1)>0,(G25-INDEX($C25:$G25,1,aux!$AL$1))/INDEX($C25:$G25,1,aux!$AL$1),"n.d.") -> n.d. | AA25: =O25-INDEX($K25:$O25,1,aux!$AL$1) -> -721.461 | AB25: -0.01534450662 | AC25: -0.01493609583 | AD25: =+IF(INDEX($K25:$O25,1,aux!$AL$1)>0,(O25/INDEX($K25:$O25,1,aux!$AL$1))^(1/($O$3-INDEX($K$3:$O$3,1,aux!$AL$1)))-1,"n.d.") -> -0.1072185838 | AE25: =IF(INDEX($K25:$O25,1,aux!$AL$1)>0,(O25-INDEX($K25:$O25,1,aux!$AL$1))/INDEX($K25:$O25,1,aux!$AL$1),"n.d.") -> -0.364697497 | AX25: 04
A26: 0405 | B26: Manteiga | C26: 0 | D26: 0 | E26: 0 | F26: 0 | G26: 0 | H26: 0 | I26: 0 | J26: 0 | K26: 1645.02 | L26: 6937.8 | M26: 11105.84 | N26: 4734.19 | O26: 821.504 | P26: 5048.8708 | Q26: 0.101449263 | R26: 0.04255564594 | S26: 5048.8708 | U26: =G26-INDEX($C26:$G26,1,aux!$AL$1) -> 0 | V26: 0 | W26: 0 | X26: =+IF(INDEX($C26:$G26,1,aux!$AL$1)>0,(G26/INDEX($C26:$G26,1,aux!$AL$1))^(1/($G$3-INDEX($C$3:$G$3,1,aux!$AL$1)))-1,"n.d.") -> n.d. | Y26: =IF(INDEX($C26:$G26,1,aux!$AL$1)>0,(G26-INDEX($C26:$G26,1,aux!$AL$1))/INDEX($C26:$G26,1,aux!$AL$1),"n.d.") -> n.d. | AA26: =O26-INDEX($K26:$O26,1,aux!$AL$1) -> -823.516 | AB26: -0.01751507942 | AC26: -0.01704889647 | AD26: =+IF(INDEX($K26:$O26,1,aux!$AL$1)>0,(O26/INDEX($K26:$O26,1,aux!$AL$1))^(1/($O$3-INDEX($K$3:$O$3,1,aux!$AL$1)))-1,"n.d.") -> -0.1593608248 | AE26: =IF(INDEX($K26:$O26,1,aux!$AL$1)>0,(O26-INDEX($K26:$O26,1,aux!$AL$1))/INDEX($K26:$O26,1,aux!$AL$1),"n.d.") -> -0.5006115427 | AX26: 04
A27: 0406 | B27: Queijos e requeijão | C27: 0 | D27: 0 | E27: 0 | F27: 0 | G27: 0 | H27: 0 | I27: 0 | J27: 0 | K27: 1414.436 | L27: 235 | M27: 179.38 | N27: 10.178 | O27: 58.232 | P27: 379.4452 | Q27: 0.007624365411 | R27: 0.00319824694 | S27: 379.4452 | U27: =G27-INDEX($C27:$G27,1,aux!$AL$1) -> 0 | V27: 0 | W27: 0 | X27: =+IF(INDEX($C27:$G27,1,aux!$AL$1)>0,(G27/INDEX($C27:$G27,1,aux!$AL$1))^(1/($G$3-INDEX($C$3:$G$3,1,aux!$AL$1)))-1,"n.d.") -> n.d. | Y27: =IF(INDEX($C27:$G27,1,aux!$AL$1)>0,(G27-INDEX($C27:$G27,1,aux!$AL$1))/INDEX($C27:$G27,1,aux!$AL$1),"n.d.") -> n.d. | AA27: =O27-INDEX($K27:$O27,1,aux!$AL$1) -> -1356.204 | AB27: -0.02884463784 | AC27: -0.02807690632 | AD27: =+IF(INDEX($K27:$O27,1,aux!$AL$1)>0,(O27/INDEX($K27:$O27,1,aux!$AL$1))^(1/($O$3-INDEX($K$3:$O$3,1,aux!$AL$1)))-1,"n.d.") -> -0.549552064 | AE27: =IF(INDEX($K27:$O27,1,aux!$AL$1)>0,(O27-INDEX($K27:$O27,1,aux!$AL$1))/INDEX($K27:$O27,1,aux!$AL$1),"n.d.") -> -0.9588302334 | AX27: 04
A28: 0407 | B28: Ovos de aves, com cascas | C28: 0 | D28: 0 | E28: 0 | F28: 0 | G28: 0 | H28: 0 | I28: 0 | J28: 0 | K28: 0 | L28: 0 | M28: 0 | N28: 0 | O28: 0 | P28: 0 | Q28: 0 | R28: 0 | S28: 0 | U28: =G28-INDEX($C28:$G28,1,aux!$AL$1) -> 0 | V28: 0 | W28: 0 | X28: =+IF(INDEX($C28:$G28,1,aux!$AL$1)>0,(G28/INDEX($C28:$G28,1,aux!$AL$1))^(1/($G$3-INDEX($C$3:$G$3,1,aux!$AL$1)))-1,"n.d.") -> n.d. | Y28: =IF(INDEX($C28:$G28,1,aux!$AL$1)>0,(G28-INDEX($C28:$G28,1,aux!$AL$1))/INDEX($C28:$G28,1,aux!$AL$1),"n.d.") -> n.d. | AA28: =O28-INDEX($K28:$O28,1,aux!$AL$1) -> 0 | AB28: 0 | AC28: 0 | AD28: =+IF(INDEX($K28:$O28,1,aux!$AL$1)>0,(O28/INDEX($K28:$O28,1,aux!$AL$1))^(1/($O$3-INDEX($K$3:$O$3,1,aux!$AL$1)))-1,"n.d.") -> n.d. | AE28: =IF(INDEX($K28:$O28,1,aux!$AL$1)>0,(O28-INDEX($K28:$O28,1,aux!$AL$1))/INDEX($K28:$O28,1,aux!$AL$1),"n.d.") -> n.d. | AX28: 04
A29: 0408 | B29: Ovos de aves, sem casca | C29: 0 | D29: 0 | E29: 0 | F29: 0 | G29: 0 | H29: 0 | I29: 0 | J29: 0 | K29: 0 | L29: 0 | M29: 0 | N29: 0 | O29: 0 | P29: 0 | Q29: 0 | R29: 0 | S29: 0 | U29: =G29-INDEX($C29:$G29,1,aux!$AL$1) -> 0 | V29: 0 | W29: 0 | X29: =+IF(INDEX($C29:$G29,1,aux!$AL$1)>0,(G29/INDEX($C29:$G29,1,aux!$AL$1))^(1/($G$3-INDEX($C$3:$G$3,1,aux!$AL$1)))-1,"n.d.") -> n.d. | Y29: =IF(INDEX($C29:$G29,1,aux!$AL$1)>0,(G29-INDEX($C29:$G29,1,aux!$AL$1))/INDEX($C29:$G29,1,aux!$AL$1),"n.d.") -> n.d. | AA29: =O29-INDEX($K29:$O29,1,aux!$AL$1) -> 0 | AB29: 0 | AC29: 0 | AD29: =+IF(INDEX($K29:$O29,1,aux!$AL$1)>0,(O29/INDEX($K29:$O29,1,aux!$AL$1))^(1/($O$3-INDEX($K$3:$O$3,1,aux!$AL$1)))-1,"n.d.") -> n.d. | AE29: =IF(INDEX($K29:$O29,1,aux!$AL$1)>0,(O29-INDEX($K29:$O29,1,aux!$AL$1))/INDEX($K29:$O29,1,aux!$AL$1),"n.d.") -> n.d. | AX29: 04
A30: 0409 | B30: Mel natural | C30: 0 | D30: 0 | E30: 0 | F30: 0 | G30: 0 | H30: 0 | I30: 0 | J30: 0 | K30: 0.006 | L30: 0 | M30: 0.044 | N30: 0 | O30: 0 | P30: 0.01 | Q30: 2.009345595e-07 | R30: 8.428745283e-08 | S30: 0.01 | U30: =G30-INDEX($C30:$G30,1,aux!$AL$1) -> 0 | V30: 0 | W30: 0 | X30: =+IF(INDEX($C30:$G30,1,aux!$AL$1)>0,(G30/INDEX($C30:$G30,1,aux!$AL$1))^(1/($G$3-INDEX($C$3:$G$3,1,aux!$AL$1)))-1,"n.d.") -> n.d. | Y30: =IF(INDEX($C30:$G30,1,aux!$AL$1)>0,(G30-INDEX($C30:$G30,1,aux!$AL$1))/INDEX($C30:$G30,1,aux!$AL$1),"n.d.") -> n.d. | AA30: =O30-INDEX($K30:$O30,1,aux!$AL$1) -> -0.006 | AB30: -1.276119426e-07 | AC30: -1.242154115e-07 | AD30: =+IF(INDEX($K30:$O30,1,aux!$AL$1)>0,(O30/INDEX($K30:$O30,1,aux!$AL$1))^(1/($O$3-INDEX($K$3:$O$3,1,aux!$AL$1)))-1,"n.d.") -> -1 | AE30: =IF(INDEX($K30:$O30,1,aux!$AL$1)>0,(O30-INDEX($K30:$O30,1,aux!$AL$1))/INDEX($K30:$O30,1,aux!$AL$1),"n.d.") -> -1 | AX30: 04
A31: 0410 | B31: Outros produtos comestíveis de origem animal | C31: 0 | D31: 0 | E31: 0 | F31: 0 | G31: 0 | H31: 0 | I31: 0 | J31: 0 | K31: 0 | L31: 0 | M31: 0 | N31: 0 | O31: 0 | P31: 0 | Q31: 0 | R31: 0 | S31: 0 | U31: =G31-INDEX($C31:$G31,1,aux!$AL$1) -> 0 | V31: 0 | W31: 0 | X31: =+IF(INDEX($C31:$G31,1,aux!$AL$1)>0,(G31/INDEX($C31:$G31,1,aux!$AL$1))^(1/($G$3-INDEX($C$3:$G$3,1,aux!$AL$1)))-1,"n.d.") -> n.d. | Y31: =IF(INDEX($C31:$G31,1,aux!$AL$1)>0,(G31-INDEX($C31:$G31,1,aux!$AL$1))/INDEX($C31:$G31,1,aux!$AL$1),"n.d.") -> n.d. | AA31: =O31-INDEX($K31:$O31,1,aux!$AL$1) -> 0 | AB31: 0 | AC31: 0 | AD31: =+IF(INDEX($K31:$O31,1,aux!$AL$1)>0,(O31/INDEX($K31:$O31,1,aux!$AL$1))^(1/($O$3-INDEX($K$3:$O$3,1,aux!$AL$1)))-1,"n.d.") -> n.d. | AE31: =IF(INDEX($K31:$O31,1,aux!$AL$1)>0,(O31-INDEX($K31:$O31,1,aux!$AL$1))/INDEX($K31:$O31,1,aux!$AL$1),"n.d.") -> n.d. | AX31: 04
A32: 04SS | B32: Leite e lacticínios; ovos de aves; mel natural; etc. | C32: 0 | D32: 0 | E32: 0 | F32: 0 | G32: 0 | H32: 0 | I32: 0 | J32: 0 | K32: 0 | L32: 0 | M32: 0 | N32: 0 | O32: 0 | P32: 0 | Q32: 0 | R32: 0 | S32: 0 | U32: =G32-INDEX($C32:$G32,1,aux!$AL$1) -> 0 | V32: 0 | W32: 0 | X32: =+IF(INDEX($C32:$G32,1,aux!$AL$1)>0,(G32/INDEX($C32:$G32,1,aux!$AL$1))^(1/($G$3-INDEX($C$3:$G$3,1,aux!$AL$1)))-1,"n.d.") -> n.d. | Y32: =IF(INDEX($C32:$G32,1,aux!$AL$1)>0,(G32-INDEX($C32:$G32,1,aux!$AL$1))/INDEX($C32:$G32,1,aux!$AL$1),"n.d.") -> n.d. | AA32: =O32-INDEX($K32:$O32,1,aux!$AL$1) -> 0 | AB32: 0 | AC32: 0 | AD32: =+IF(INDEX($K32:$O32,1,aux!$AL$1)>0,(O32/INDEX($K32:$O32,1,aux!$AL$1))^(1/($O$3-INDEX($K$3:$O$3,1,aux!$AL$1)))-1,"n.d.") -> n.d. | AE32: =IF(INDEX($K32:$O32,1,aux!$AL$1)>0,(O32-INDEX($K32:$O32,1,aux!$AL$1))/INDEX($K32:$O32,1,aux!$AL$1),"n.d.") -> n.d. | AX32: 04
A33: 0501 | B33: Cabelos em bruto | C33: 0 | D33: 0 | E33: 0 | F33: 0 | G33: 0 | H33: 0 | I33: 0 | J33: 0 | K33: 0 | L33: 0 | M33: 0 | N33: 0 | O33: 0 | P33: 0 | Q33: 0 | R33: 0 | S33: 0 | U33: =G33-INDEX($C33:$G33,1,aux!$AL$1) -> 0 | V33: 0 | W33: 0 | X33: =+IF(INDEX($C33:$G33,1,aux!$AL$1)>0,(G33/INDEX($C33:$G33,1,aux!$AL$1))^(1/($G$3-INDEX($C$3:$G$3,1,aux!$AL$1)))-1,"n.d.") -> n.d. | Y33: =IF(INDEX($C33:$G33,1,aux!$AL$1)>0,(G33-INDEX($C33:$G33,1,aux!$AL$1))/INDEX($C33:$G33,1,aux!$AL$1),"n.d.") -> n.d. | AA33: =O33-INDEX($K33:$O33,1,aux!$AL$1) -> 0 | AB33: 0 | AC33: 0 | AD33: =+IF(INDEX($K33:$O33,1,aux!$AL$1)>0,(O33/INDEX($K33:$O33,1,aux!$AL$1))^(1/($O$3-INDEX($K$3:$O$3,1,aux!$AL$1)))-1,"n.d.") -> n.d. | AE33: =IF(INDEX($K33:$O33,1,aux!$AL$1)>0,(O33-INDEX($K33:$O33,1,aux!$AL$1))/INDEX($K33:$O33,1,aux!$AL$1),"n.d.") -> n.d. | AX33: 05
A34: 0502 | B34: Cerdas de porco ou de javali, etc. | C34: 0 | D34: 0 | E34: 0 | F34: 0 | G34: 0 | H34: 0 | I34: 0 | J34: 0 | K34: 0 | L34: 0 | M34: 0 | N34: 0 | O34: 0 | P34: 0 | Q34: 0 | R34: 0 | S34: 0 | U34: =G34-INDEX($C34:$G34,1,aux!$AL$1) -> 0 | V34: 0 | W34: 0 | X34: =+IF(INDEX($C34:$G34,1,aux!$AL$1)>0,(G34/INDEX($C34:$G34,1,aux!$AL$1))^(1/($G$3-INDEX($C$3:$G$3,1,aux!$AL$1)))-1,"n.d.") -> n.d. | Y34: =IF(INDEX($C34:$G34,1,aux!$AL$1)>0,(G34-INDEX($C34:$G34,1,aux!$AL$1))/INDEX($C34:$G34,1,aux!$AL$1),"n.d.") -> n.d. | AA34: =O34-INDEX($K34:$O34,1,aux!$AL$1) -> 0 | AB34: 0 | AC34: 0 | AD34: =+IF(INDEX($K34:$O34,1,aux!$AL$1)>0,(O34/INDEX($K34:$O34,1,aux!$AL$1))^(1/($O$3-INDEX($K$3:$O$3,1,aux!$AL$1)))-1,"n.d.") -> n.d. | AE34: =IF(INDEX($K34:$O34,1,aux!$AL$1)>0,(O34-INDEX($K34:$O34,1,aux!$AL$1))/INDEX($K34:$O34,1,aux!$AL$1),"n.d.") -> n.d. | AX34: 05
A35: 0504 | B35: Tripas de animais (excepto peixes) | C35: 62.942 | D35: 168.898 | E35: 98.308 | F35: 157.289 | G35: 217.468 | H35: 140.981 | I35: 0.01245026003 | J35: 0.003292385346 | K35: 131.395 | L35: 0 | M35: 257.56 | N35: 385.978 | O35: 576.265 | P35: 270.2396 | Q35: 0.005430047498 | R35: 0.002277780754 | S35: 129.2586 | U35: =G35-INDEX($C35:$G35,1,aux!$AL$1) -> 154.526 | V35: 0.01230995081 | W35: 0.007391633801 | X35: =+IF(INDEX($C35:$G35,1,aux!$AL$1)>0,(G35/INDEX($C35:$G35,1,aux!$AL$1))^(1/($G$3-INDEX($C$3:$G$3,1,aux!$AL$1)))-1,"n.d.") -> 0.3633699122 | Y35: =IF(INDEX($C35:$G35,1,aux!$AL$1)>0,(G35-INDEX($C35:$G35,1,aux!$AL$1))/INDEX($C35:$G35,1,aux!$AL$1),"n.d.") -> 2.455053859 | AA35: =O35-INDEX($K35:$O35,1,aux!$AL$1) -> 444.87 | AB35: 0.009461787486 | AC35: 0.009209951683 | AD35: =+IF(INDEX($K35:$O35,1,aux!$AL$1)>0,(O35/INDEX($K35:$O35,1,aux!$AL$1))^(1/($O$3-INDEX($K$3:$O$3,1,aux!$AL$1)))-1,"n.d.") -> 0.4471410098 | AE35: =IF(INDEX($K35:$O35,1,aux!$AL$1)>0,(O35-INDEX($K35:$O35,1,aux!$AL$1))/INDEX($K35:$O35,1,aux!$AL$1),"n.d.") -> 3.385745272 | AX35: 05
A36: 0505 | B36: Peles e outras partes de aves | C36: 0 | D36: 0 | E36: 0 | F36: 0.013 | G36: 0 | H36: 0.0026 | I36: 2.296102033e-07 | J36: 6.071883374e-08 | K36: 0 | L36: 0 | M36: 0 | N36: 0 | O36: 0 | P36: 0 | Q36: 0 | R36: 0 | S36: -0.0026 | U36: =G36-INDEX($C36:$G36,1,aux!$AL$1) -> 0 | V36: 0 | W36: 0 | X36: =+IF(INDEX($C36:$G36,1,aux!$AL$1)>0,(G36/INDEX($C36:$G36,1,aux!$AL$1))^(1/($G$3-INDEX($C$3:$G$3,1,aux!$AL$1)))-1,"n.d.") -> n.d. | Y36: =IF(INDEX($C36:$G36,1,aux!$AL$1)>0,(G36-INDEX($C36:$G36,1,aux!$AL$1))/INDEX($C36:$G36,1,aux!$AL$1),"n.d.") -> n.d. | AA36: =O36-INDEX($K36:$O36,1,aux!$AL$1) -> 0 | AB36: 0 | AC36: 0 | AD36: =+IF(INDEX($K36:$O36,1,aux!$AL$1)>0,(O36/INDEX($K36:$O36,1,aux!$AL$1))^(1/($O$3-INDEX($K$3:$O$3,1,aux!$AL$1)))-1,"n.d.") -> n.d. | AE36: =IF(INDEX($K36:$O36,1,aux!$AL$1)>0,(O36-INDEX($K36:$O36,1,aux!$AL$1))/INDEX($K36:$O36,1,aux!$AL$1),"n.d.") -> n.d. | AX36: 05
A37: 0506 | B37: Ossos e núcleos córneos, em bruto | C37: 0 | D37: 0 | E37: 0 | F37: 0 | G37: 0 | H37: 0 | I37: 0 | J37: 0 | K37: 0 | L37: 0 | M37: 0 | N37: 0 | O37: 0 | P37: 0 | Q37: 0 | R37: 0 | S37: 0 | U37: =G37-INDEX($C37:$G37,1,aux!$AL$1) -> 0 | V37: 0 | W37: 0 | X37: =+IF(INDEX($C37:$G37,1,aux!$AL$1)>0,(G37/INDEX($C37:$G37,1,aux!$AL$1))^(1/($G$3-INDEX($C$3:$G$3,1,aux!$AL$1)))-1,"n.d.") -> n.d. | Y37: =IF(INDEX($C37:$G37,1,aux!$AL$1)>0,(G37-INDEX($C37:$G37,1,aux!$AL$1))/INDEX($C37:$G37,1,aux!$AL$1),"n.d.") -> n.d. | AA37: =O37-INDEX($K37:$O37,1,aux!$AL$1) -> 0 | AB37: 0 | AC37: 0 | AD37: =+IF(INDEX($K37:$O37,1,aux!$AL$1)>0,(O37/INDEX($K37:$O37,1,aux!$AL$1))^(1/($O$3-INDEX($K$3:$O$3,1,aux!$AL$1)))-1,"n.d.") -> n.d. | AE37: =IF(INDEX($K37:$O37,1,aux!$AL$1)>0,(O37-INDEX($K37:$O37,1,aux!$AL$1))/INDEX($K37:$O37,1,aux!$AL$1),"n.d.") -> n.d. | AX37: 05
A38: 0507 | B38: Marfim, carapaças de tartaruga, etc. | C38: 0 | D38: 0 | E38: 0 | F38: 0 | G38: 0 | H38: 0 | I38: 0 | J38: 0 | K38: 0 | L38: 0 | M38: 0 | N38: 0 | O38: 0 | P38: 0 | Q38: 0 | R38: 0 | S38: 0 | U38: =G38-INDEX($C38:$G38,1,aux!$AL$1) -> 0 | V38: 0 | W38: 0 | X38: =+IF(INDEX($C38:$G38,1,aux!$AL$1)>0,(G38/INDEX($C38:$G38,1,aux!$AL$1))^(1/($G$3-INDEX($C$3:$G$3,1,aux!$AL$1)))-1,"n.d.") -> n.d. | Y38: =IF(INDEX($C38:$G38,1,aux!$AL$1)>0,(G38-INDEX($C38:$G38,1,aux!$AL$1))/INDEX($C38:$G38,1,aux!$AL$1),"n.d.") -> n.d. | AA38: =O38-INDEX($K38:$O38,1,aux!$AL$1) -> 0 | AB38: 0 | AC38: 0 | AD38: =+IF(INDEX($K38:$O38,1,aux!$AL$1)>0,(O38/INDEX($K38:$O38,1,aux!$AL$1))^(1/($O$3-INDEX($K$3:$O$3,1,aux!$AL$1)))-1,"n.d.") -> n.d. | AE38: =IF(INDEX($K38:$O38,1,aux!$AL$1)>0,(O38-INDEX($K38:$O38,1,aux!$AL$1))/INDEX($K38:$O38,1,aux!$AL$1),"n.d.") -> n.d. | AX38: 05
A39: 0510 | B39: Âmbar-cinzento, castóreo, algália e almíscar, etc. | C39: 0 | D39: 0 | E39: 0 | F39: 0 | G39: 0 | H39: 0 | I39: 0 | J39: 0 | K39: 0 | L39: 0 | M39: 0 | N39: 0 | O39: 0 | P39: 0 | Q39: 0 | R39: 0 | S39: 0 | U39: =G39-INDEX($C39:$G39,1,aux!$AL$1) -> 0 | V39: 0 | W39: 0 | X39: =+IF(INDEX($C39:$G39,1,aux!$AL$1)>0,(G39/INDEX($C39:$G39,1,aux!$AL$1))^(1/($G$3-INDEX($C$3:$G$3,1,aux!$AL$1)))-1,"n.d.") -> n.d. | Y39: =IF(INDEX($C39:$G39,1,aux!$AL$1)>0,(G39-INDEX($C39:$G39,1,aux!$AL$1))/INDEX($C39:$G39,1,aux!$AL$1),"n.d.") -> n.d. | AA39: =O39-INDEX($K39:$O39,1,aux!$AL$1) -> 0 | AB39: 0 | AC39: 0 | AD39: =+IF(INDEX($K39:$O39,1,aux!$AL$1)>0,(O39/INDEX($K39:$O39,1,aux!$AL$1))^(1/($O$3-INDEX($K$3:$O$3,1,aux!$AL$1)))-1,"n.d.") -> n.d. | AE39: =IF(INDEX($K39:$O39,1,aux!$AL$1)>0,(O39-INDEX($K39:$O39,1,aux!$AL$1))/INDEX($K39:$O39,1,aux!$AL$1),"n.d.") -> n.d. | AX39: 05
A40: 0511 | B40: Outros produtos de origem animal (exc. NC 0511 91) (a) | C40: 0 | D40: 0 | E40: 0 | F40: 0 | G40: 0 | H40: 0 | I40: 0 | J40: 0 | K40: 0 | L40: 0 | M40: 0 | N40: 0 | O40: 0 | P40: 0 | Q40: 0 | R40: 0 | S40: 0 | U40: =G40-INDEX($C40:$G40,1,aux!$AL$1) -> 0 | V40: 0 | W40: 0 | X40: =+IF(INDEX($C40:$G40,1,aux!$AL$1)>0,(G40/INDEX($C40:$G40,1,aux!$AL$1))^(1/($G$3-INDEX($C$3:$G$3,1,aux!$AL$1)))-1,"n.d.") -> n.d. | Y40: =IF(INDEX($C40:$G40,1,aux!$AL$1)>0,(G40-INDEX($C40:$G40,1,aux!$AL$1))/INDEX($C40:$G40,1,aux!$AL$1),"n.d.") -> n.d. | AA40: =O40-INDEX($K40:$O40,1,aux!$AL$1) -> 0 | AB40: 0 | AC40: 0 | AD40: =+IF(INDEX($K40:$O40,1,aux!$AL$1)>0,(O40/INDEX($K40:$O40,1,aux!$AL$1))^(1/($O$3-INDEX($K$3:$O$3,1,aux!$AL$1)))-1,"n.d.") -> n.d. | AE40: =IF(INDEX($K40:$O40,1,aux!$AL$1)>0,(O40-INDEX($K40:$O40,1,aux!$AL$1))/INDEX($K40:$O40,1,aux!$AL$1),"n.d.") -> n.d. | AX40: 05
A41: 05SS | B41: Outros produtos de origem animal | C41: 0 | D41: 0 | E41: 0 | F41: 0 | G41: 0 | H41: 0 | I41: 0 | J41: 0 | K41: 0 | L41: 0 | M41: 0 | N41: 0 | O41: 0 | P41: 0 | Q41: 0 | R41: 0 | S41: 0 | U41: =G41-INDEX($C41:$G41,1,aux!$AL$1) -> 0 | V41: 0 | W41: 0 | X41: =+IF(INDEX($C41:$G41,1,aux!$AL$1)>0,(G41/INDEX($C41:$G41,1,aux!$AL$1))^(1/($G$3-INDEX($C$3:$G$3,1,aux!$AL$1)))-1,"n.d.") -> n.d. | Y41: =IF(INDEX($C41:$G41,1,aux!$AL$1)>0,(G41-INDEX($C41:$G41,1,aux!$AL$1))/INDEX($C41:$G41,1,aux!$AL$1),"n.d.") -> n.d. | AA41: =O41-INDEX($K41:$O41,1,aux!$AL$1) -> 0 | AB41: 0 | AC41: 0 | AD41: =+IF(INDEX($K41:$O41,1,aux!$AL$1)>0,(O41/INDEX($K41:$O41,1,aux!$AL$1))^(1/($O$3-INDEX($K$3:$O$3,1,aux!$AL$1)))-1,"n.d.") -> n.d. | AE41: =IF(INDEX($K41:$O41,1,aux!$AL$1)>0,(O41-INDEX($K41:$O41,1,aux!$AL$1))/INDEX($K41:$O41,1,aux!$AL$1),"n.d.") -> n.d. | AX41: 05
A42: 0601 | B42: Bolbos, tubérculos, raízes, etc. | C42: 0 | D42: 0 | E42: 0 | F42: 0 | G42: 0 | H42: 0 | I42: 0 | J42: 0 | K42: 0 | L42: 0 | M42: 0 | N42: 0 | O42: 0 | P42: 0 | Q42: 0 | R42: 0 | S42: 0 | U42: =G42-INDEX($C42:$G42,1,aux!$AL$1) -> 0 | V42: 0 | W42: 0 | X42: =+IF(INDEX($C42:$G42,1,aux!$AL$1)>0,(G42/INDEX($C42:$G42,1,aux!$AL$1))^(1/($G$3-INDEX($C$3:$G$3,1,aux!$AL$1)))-1,"n.d.") -> n.d. | Y42: =IF(INDEX($C42:$G42,1,aux!$AL$1)>0,(G42-INDEX($C42:$G42,1,aux!$AL$1))/INDEX($C42:$G42,1,aux!$AL$1),"n.d.") -> n.d. | AA42: =O42-INDEX($K42:$O42,1,aux!$AL$1) -> 0 | AB42: 0 | AC42: 0 | AD42: =+IF(INDEX($K42:$O42,1,aux!$AL$1)>0,(O42/INDEX($K42:$O42,1,aux!$AL$1))^(1/($O$3-INDEX($K$3:$O$3,1,aux!$AL$1)))-1,"n.d.") -> n.d. | AE42: =IF(INDEX($K42:$O42,1,aux!$AL$1)>0,(O42-INDEX($K42:$O42,1,aux!$AL$1))/INDEX($K42:$O42,1,aux!$AL$1),"n.d.") -> n.d. | AX42: 06
A43: 0602 | B43: Plantas vivas | C43: 0 | D43: 0 | E43: 12 | F43: 0 | G43: 5.45 | H43: 3.49 | I43: 0.0003082075421 | J43: 8.15033576e-05 | K43: 123.892 | L43: 0 | M43: 0 | N43: 80.1 | O43: 0 | P43: 40.7984 | Q43: 0.0008197808532 | R43: 0.0003438793216 | S43: 37.3084 | U43: =G43-INDEX($C43:$G43,1,aux!$AL$1) -> 5.45 | V43: 0.0004341614478 | W43: 0.0002606966091 | X43: =+IF(INDEX($C43:$G43,1,aux!$AL$1)>0,(G43/INDEX($C43:$G43,1,aux!$AL$1))^(1/($G$3-INDEX($C$3:$G$3,1,aux!$AL$1)))-1,"n.d.") -> n.d. | Y43: =IF(INDEX($C43:$G43,1,aux!$AL$1)>0,(G43-INDEX($C43:$G43,1,aux!$AL$1))/INDEX($C43:$G43,1,aux!$AL$1),"n.d.") -> n.d. | AA43: =O43-INDEX($K43:$O43,1,aux!$AL$1) -> -123.892 | AB43: -0.002635016466 | AC43: -0.002564882626 | AD43: =+IF(INDEX($K43:$O43,1,aux!$AL$1)>0,(O43/INDEX($K43:$O43,1,aux!$AL$1))^(1/($O$3-INDEX($K$3:$O$3,1,aux!$AL$1)))-1,"n.d.") -> -1 | AE43: =IF(INDEX($K43:$O43,1,aux!$AL$1)>0,(O43-INDEX($K43:$O43,1,aux!$AL$1))/INDEX($K43:$O43,1,aux!$AL$1),"n.d.") -> -1 | AX43: 06
A44: 0603 | B44: Flores e seus botões | C44: 0 | D44: 0 | E44: 0 | F44: 0 | G44: 0 | H44: 0 | I44: 0 | J44: 0 | K44: 0 | L44: 0 | M44: 0 | N44: 0 | O44: 0 | P44: 0 | Q44: 0 | R44: 0 | S44: 0 | U44: =G44-INDEX($C44:$G44,1,aux!$AL$1) -> 0 | V44: 0 | W44: 0 | X44: =+IF(INDEX($C44:$G44,1,aux!$AL$1)>0,(G44/INDEX($C44:$G44,1,aux!$AL$1))^(1/($G$3-INDEX($C$3:$G$3,1,aux!$AL$1)))-1,"n.d.") -> n.d. | Y44: =IF(INDEX($C44:$G44,1,aux!$AL$1)>0,(G44-INDEX($C44:$G44,1,aux!$AL$1))/INDEX($C44:$G44,1,aux!$AL$1),"n.d.") -> n.d. | AA44: =O44-INDEX($K44:$O44,1,aux!$AL$1) -> 0 | AB44: 0 | AC44: 0 | AD44: =+IF(INDEX($K44:$O44,1,aux!$AL$1)>0,(O44/INDEX($K44:$O44,1,aux!$AL$1))^(1/($O$3-INDEX($K$3:$O$3,1,aux!$AL$1)))-1,"n.d.") -> n.d. | AE44: =IF(INDEX($K44:$O44,1,aux!$AL$1)>0,(O44-INDEX($K44:$O44,1,aux!$AL$1))/INDEX($K44:$O44,1,aux!$AL$1),"n.d.") -> n.d. | AX44: 06
A45: 0604 | B45: Folhagem, folhas, ramos e outras partes de plantas | C45: 0 | D45: 0 | E45: 0.014 | F45: 0.177 | G45: 0.027 | H45: 0.0436 | I45: 3.850386486e-06 | J45: 1.018208135e-06 | K45: 0 | L45: 0 | M45: 0 | N45: 0 | O45: 0 | P45: 0 | Q45: 0 | R45: 0 | S45: -0.0436 | U45: =G45-INDEX($C45:$G45,1,aux!$AL$1) -> 0.027 | V45: 2.150891576e-06 | W45: 1.291524485e-06 | X45: =+IF(INDEX($C45:$G45,1,aux!$AL$1)>0,(G45/INDEX($C45:$G45,1,aux!$AL$1))^(1/($G$3-INDEX($C$3:$G$3,1,aux!$AL$1)))-1,"n.d.") -> n.d. | Y45: =IF(INDEX($C45:$G45,1,aux!$AL$1)>0,(G45-INDEX($C45:$G45,1,aux!$AL$1))/INDEX($C45:$G45,1,aux!$AL$1),"n.d.") -> n.d. | AA45: =O45-INDEX($K45:$O45,1,aux!$AL$1) -> 0 | AB45: 0 | AC45: 0 | AD45: =+IF(INDEX($K45:$O45,1,aux!$AL$1)>0,(O45/INDEX($K45:$O45,1,aux!$AL$1))^(1/($O$3-INDEX($K$3:$O$3,1,aux!$AL$1)))-1,"n.d.") -> n.d. | AE45: =IF(INDEX($K45:$O45,1,aux!$AL$1)>0,(O45-INDEX($K45:$O45,1,aux!$AL$1))/INDEX($K45:$O45,1,aux!$AL$1),"n.d.") -> n.d. | AX45: 06
A46: 06SS | B46: Plantas vivas e produtos de floricultura | C46: 0 | D46: 0 | E46: 0 | F46: 0 | G46: 0 | H46: 0 | I46: 0 | J46: 0 | K46: 0 | L46: 0 | M46: 0 | N46: 0 | O46: 0 | P46: 0 | Q46: 0 | R46: 0 | S46: 0 | U46: =G46-INDEX($C46:$G46,1,aux!$AL$1) -> 0 | V46: 0 | W46: 0 | X46: =+IF(INDEX($C46:$G46,1,aux!$AL$1)>0,(G46/INDEX($C46:$G46,1,aux!$AL$1))^(1/($G$3-INDEX($C$3:$G$3,1,aux!$AL$1)))-1,"n.d.") -> n.d. | Y46: =IF(INDEX($C46:$G46,1,aux!$AL$1)>0,(G46-INDEX($C46:$G46,1,aux!$AL$1))/INDEX($C46:$G46,1,aux!$AL$1),"n.d.") -> n.d. | AA46: =O46-INDEX($K46:$O46,1,aux!$AL$1) -> 0 | AB46: 0 | AC46: 0 | AD46: =+IF(INDEX($K46:$O46,1,aux!$AL$1)>0,(O46/INDEX($K46:$O46,1,aux!$AL$1))^(1/($O$3-INDEX($K$3:$O$3,1,aux!$AL$1)))-1,"n.d.") -> n.d. | AE46: =IF(INDEX($K46:$O46,1,aux!$AL$1)>0,(O46-INDEX($K46:$O46,1,aux!$AL$1))/INDEX($K46:$O46,1,aux!$AL$1),"n.d.") -> n.d. | AX46: 06
A47: 0701 | B47: Batatas, frescas ou refrigeradas | C47: 159.789 | D47: 0 | E47: 0 | F47: 0 | G47: 0 | H47: 31.9578 | I47: 0.002822244983 | J47: 0.0007463232096 | K47: 0 | L47: 0 | M47: 32 | N47: 0 | O47: 0 | P47: 6.4 | Q47: 0.0001285981181 | R47: 5.394396981e-05 | S47: -25.5578 | U47: =G47-INDEX($C47:$G47,1,aux!$AL$1) -> -159.789 | V47: -0.01272921534 | W47: -0.007643385407 | X47: =+IF(INDEX($C47:$G47,1,aux!$AL$1)>0,(G47/INDEX($C47:$G47,1,aux!$AL$1))^(1/($G$3-INDEX($C$3:$G$3,1,aux!$AL$1)))-1,"n.d.") -> -1 | Y47: =IF(INDEX($C47:$G47,1,aux!$AL$1)>0,(G47-INDEX($C47:$G47,1,aux!$AL$1))/INDEX($C47:$G47,1,aux!$AL$1),"n.d.") -> -1 | AA47: =O47-INDEX($K47:$O47,1,aux!$AL$1) -> 0 | AB47: 0 | AC47: 0 | AD47: =+IF(INDEX($K47:$O47,1,aux!$AL$1)>0,(O47/INDEX($K47:$O47,1,aux!$AL$1))^(1/($O$3-INDEX($K$3:$O$3,1,aux!$AL$1)))-1,"n.d.") -> n.d. | AE47: =IF(INDEX($K47:$O47,1,aux!$AL$1)>0,(O47-INDEX($K47:$O47,1,aux!$AL$1))/INDEX($K47:$O47,1,aux!$AL$1),"n.d.") -> n.d. | AX47: 07
A48: 0702 | B48: Tomates, frescos ou refrigerados | C48: 205.133 | D48: 1197.471 | E48: 1481.738 | F48: 4293.826 | G48: 9798.166 | H48: 3395.2668 | I48: 0.2998415001 | J48: 0.07929101551 | K48: 0 | L48: 0 | M48: 0 | N48: 0 | O48: 0 | P48: 0 | Q48: 0 | R48: 0 | S48: -3395.2668 | U48: =G48-INDEX($C48:$G48,1,aux!$AL$1) -> 9593.033 | V48: 0.7642064397 | W48: 0.4588754448 | X48: =+IF(INDEX($C48:$G48,1,aux!$AL$1)>0,(G48/INDEX($C48:$G48,1,aux!$AL$1))^(1/($G$3-INDEX($C$3:$G$3,1,aux!$AL$1)))-1,"n.d.") -> 1.628919667 | Y48: =IF(INDEX($C48:$G48,1,aux!$AL$1)>0,(G48-INDEX($C48:$G48,1,aux!$AL$1))/INDEX($C48:$G48,1,aux!$AL$1),"n.d.") -> 46.76494274 | AA48: =O48-INDEX($K48:$O48,1,aux!$AL$1) -> 0 | AB48: 0 | AC48: 0 | AD48: =+IF(INDEX($K48:$O48,1,aux!$AL$1)>0,(O48/INDEX($K48:$O48,1,aux!$AL$1))^(1/($O$3-INDEX($K$3:$O$3,1,aux!$AL$1)))-1,"n.d.") -> n.d. | AE48: =IF(INDEX($K48:$O48,1,aux!$AL$1)>0,(O48-INDEX($K48:$O48,1,aux!$AL$1))/INDEX($K48:$O48,1,aux!$AL$1),"n.d.") -> n.d. | AX48: 07
A49: 0703 | B49: Cebolas, alhos, etc., frescos ou refrigerados | C49: 0 | D49: 0 | E49: 0 | F49: 0 | G49: 0 | H49: 0 | I49: 0 | J49: 0 | K49: 0 | L49: 0 | M49: 0 | N49: 0 | O49: 0 | P49: 0 | Q49: 0 | R49: 0 | S49: 0 | U49: =G49-INDEX($C49:$G49,1,aux!$AL$1) -> 0 | V49: 0 | W49: 0 | X49: =+IF(INDEX($C49:$G49,1,aux!$AL$1)>0,(G49/INDEX($C49:$G49,1,aux!$AL$1))^(1/($G$3-INDEX($C$3:$G$3,1,aux!$AL$1)))-1,"n.d.") -> n.d. | Y49: =IF(INDEX($C49:$G49,1,aux!$AL$1)>0,(G49-INDEX($C49:$G49,1,aux!$AL$1))/INDEX($C49:$G49,1,aux!$AL$1),"n.d.") -> n.d. | AA49: =O49-INDEX($K49:$O49,1,aux!$AL$1) -> 0 | AB49: 0 | AC49: 0 | AD49: =+IF(INDEX($K49:$O49,1,aux!$AL$1)>0,(O49/INDEX($K49:$O49,1,aux!$AL$1))^(1/($O$3-INDEX($K$3:$O$3,1,aux!$AL$1)))-1,"n.d.") -> n.d. | AE49: =IF(INDEX($K49:$O49,1,aux!$AL$1)>0,(O49-INDEX($K49:$O49,1,aux!$AL$1))/INDEX($K49:$O49,1,aux!$AL$1),"n.d.") -> n.d. | AX49: 07
A50: 0704 | B50: Couves, frescas ou refrigeradas | C50: 8.76 | D50: 0 | E50: 0 | F50: 0 | G50: 0 | H50: 1.752 | I50: 0.0001547219524 | J50: 4.091515258e-05 | K50: 0 | L50: 0 | M50: 0 | N50: 0 | O50: 0 | P50: 0 | Q50: 0 | R50: 0 | S50: -1.752 | U50: =G50-INDEX($C50:$G50,1,aux!$AL$1) -> -8.76 | V50: -0.0006978448226 | W50: -0.0004190279441 | X50: =+IF(INDEX($C50:$G50,1,aux!$AL$1)>0,(G50/INDEX($C50:$G50,1,aux!$AL$1))^(1/($G$3-INDEX($C$3:$G$3,1,aux!$AL$1)))-1,"n.d.") -> -1 | Y50: =IF(INDEX($C50:$G50,1,aux!$AL$1)>0,(G50-INDEX($C50:$G50,1,aux!$AL$1))/INDEX($C50:$G50,1,aux!$AL$1),"n.d.") -> -1 | AA50: =O50-INDEX($K50:$O50,1,aux!$AL$1) -> 0 | AB50: 0 | AC50: 0 | AD50: =+IF(INDEX($K50:$O50,1,aux!$AL$1)>0,(O50/INDEX($K50:$O50,1,aux!$AL$1))^(1/($O$3-INDEX($K$3:$O$3,1,aux!$AL$1)))-1,"n.d.") -> n.d. | AE50: =IF(INDEX($K50:$O50,1,aux!$AL$1)>0,(O50-INDEX($K50:$O50,1,aux!$AL$1))/INDEX($K50:$O50,1,aux!$AL$1),"n.d.") -> n.d. | AX50: 07
A51: 0705 | B51: Alfaces, frescas ou refrigeradas | C51: 0 | D51: 0 | E51: 0 | F51: 0 | G51: 0 | H51: 0 | I51: 0 | J51: 0 | K51: 0 | L51: 0 | M51: 0 | N51: 0 | O51: 0 | P51: 0 | Q51: 0 | R51: 0 | S51: 0 | U51: =G51-INDEX($C51:$G51,1,aux!$AL$1) -> 0 | V51: 0 | W51: 0 | X51: =+IF(INDEX($C51:$G51,1,aux!$AL$1)>0,(G51/INDEX($C51:$G51,1,aux!$AL$1))^(1/($G$3-INDEX($C$3:$G$3,1,aux!$AL$1)))-1,"n.d.") -> n.d. | Y51: =IF(INDEX($C51:$G51,1,aux!$AL$1)>0,(G51-INDEX($C51:$G51,1,aux!$AL$1))/INDEX($C51:$G51,1,aux!$AL$1),"n.d.") -> n.d. | AA51: =O51-INDEX($K51:$O51,1,aux!$AL$1) -> 0 | AB51: 0 | AC51: 0 | AD51: =+IF(INDEX($K51:$O51,1,aux!$AL$1)>0,(O51/INDEX($K51:$O51,1,aux!$AL$1))^(1/($O$3-INDEX($K$3:$O$3,1,aux!$AL$1)))-1,"n.d.") -> n.d. | AE51: =IF(INDEX($K51:$O51,1,aux!$AL$1)>0,(O51-INDEX($K51:$O51,1,aux!$AL$1))/INDEX($K51:$O51,1,aux!$AL$1),"n.d.") -> n.d. | AX51: 07
A52: 0706 | B52: Cenouras, nabos, beterrabas, etc., frescos ou refrigerados | C52: 0 | D52: 0 | E52: 0 | F52: 0 | G52: 12.48 | H52: 2.496 | I52: 0.0002204257952 | J52: 5.829008039e-05 | K52: 0 | L52: 0 | M52: 0 | N52: 0 | O52: 0 | P52: 0 | Q52: 0 | R52: 0 | S52: -2.496 | U52: =G52-INDEX($C52:$G52,1,aux!$AL$1) -> 12.48 | V52: 0.0009941898842 | W52: 0.0005969713177 | X52: =+IF(INDEX($C52:$G52,1,aux!$AL$1)>0,(G52/INDEX($C52:$G52,1,aux!$AL$1))^(1/($G$3-INDEX($C$3:$G$3,1,aux!$AL$1)))-1,"n.d.") -> n.d. | Y52: =IF(INDEX($C52:$G52,1,aux!$AL$1)>0,(G52-INDEX($C52:$G52,1,aux!$AL$1))/INDEX($C52:$G52,1,aux!$AL$1),"n.d.") -> n.d. | AA52: =O52-INDEX($K52:$O52,1,aux!$AL$1) -> 0 | AB52: 0 | AC52: 0 | AD52: =+IF(INDEX($K52:$O52,1,aux!$AL$1)>0,(O52/INDEX($K52:$O52,1,aux!$AL$1))^(1/($O$3-INDEX($K$3:$O$3,1,aux!$AL$1)))-1,"n.d.") -> n.d. | AE52: =IF(INDEX($K52:$O52,1,aux!$AL$1)>0,(O52-INDEX($K52:$O52,1,aux!$AL$1))/INDEX($K52:$O52,1,aux!$AL$1),"n.d.") -> n.d. | AX52: 07
A53: 0707 | B53: Pepinos e pepininhos, frescos ou refrigerados | C53: 0 | D53: 0 | E53: 0 | F53: 7.02 | G53: 862.918 | H53: 173.9876 | I53: 0.01536512623 | J53: 0.004063201599 | K53: 0 | L53: 0 | M53: 0 | N53: 0 | O53: 0 | P53: 0 | Q53: 0 | R53: 0 | S53: -173.9876 | U53: =G53-INDEX($C53:$G53,1,aux!$AL$1) -> 862.918 | V53: 0.06874233546 | W53: 0.04127702688 | X53: =+IF(INDEX($C53:$G53,1,aux!$AL$1)>0,(G53/INDEX($C53:$G53,1,aux!$AL$1))^(1/($G$3-INDEX($C$3:$G$3,1,aux!$AL$1)))-1,"n.d.") -> n.d. | Y53: =IF(INDEX($C53:$G53,1,aux!$AL$1)>0,(G53-INDEX($C53:$G53,1,aux!$AL$1))/INDEX($C53:$G53,1,aux!$AL$1),"n.d.") -> n.d. | AA53: =O53-INDEX($K53:$O53,1,aux!$AL$1) -> 0 | AB53: 0 | AC53: 0 | AD53: =+IF(INDEX($K53:$O53,1,aux!$AL$1)>0,(O53/INDEX($K53:$O53,1,aux!$AL$1))^(1/($O$3-INDEX($K$3:$O$3,1,aux!$AL$1)))-1,"n.d.") -> n.d. | AE53: =IF(INDEX($K53:$O53,1,aux!$AL$1)>0,(O53-INDEX($K53:$O53,1,aux!$AL$1))/INDEX($K53:$O53,1,aux!$AL$1),"n.d.") -> n.d. | AX53: 07
A54: 0708 | B54: Tomates preparados ou conservados | C54: 88.376 | D54: 0 | E54: 0 | F54: 77.97 | G54: 1730.565 | H54: 379.3822 | I54: 0.03350385541 | J54: 0.008859863356 | K54: 0 | L54: 0 | M54: 0.002 | N54: 0 | O54: 0 | P54: 0.0004 | Q54: 8.03738238e-09 | R54: 3.371498113e-09 | S54: -379.3818 | U54: =G54-INDEX($C54:$G54,1,aux!$AL$1) -> 1642.189 | V54: 0.1308211291 | W54: 0.07855286308 | X54: =+IF(INDEX($C54:$G54,1,aux!$AL$1)>0,(G54/INDEX($C54:$G54,1,aux!$AL$1))^(1/($G$3-INDEX($C$3:$G$3,1,aux!$AL$1)))-1,"n.d.") -> 1.103601122 | Y54: =IF(INDEX($C54:$G54,1,aux!$AL$1)>0,(G54-INDEX($C54:$G54,1,aux!$AL$1))/INDEX($C54:$G54,1,aux!$AL$1),"n.d.") -> 18.58184349 | AA54: =O54-INDEX($K54:$O54,1,aux!$AL$1) -> 0 | AB54: 0 | AC54: 0 | AD54: =+IF(INDEX($K54:$O54,1,aux!$AL$1)>0,(O54/INDEX($K54:$O54,1,aux!$AL$1))^(1/($O$3-INDEX($K$3:$O$3,1,aux!$AL$1)))-1,"n.d.") -> n.d. | AE54: =IF(INDEX($K54:$O54,1,aux!$AL$1)>0,(O54-INDEX($K54:$O54,1,aux!$AL$1))/INDEX($K54:$O54,1,aux!$AL$1),"n.d.") -> n.d. | AX54: 07
A55: 0709 | B55: Outros produtos hortícolas, frescos ou refrigerados | C55: 10.714 | D55: 0 | E55: 0.042 | F55: 33.431 | G55: 1488.114 | H55: 306.4602 | I55: 0.0270639957 | J55: 0.007156886897 | K55: 0 | L55: 0 | M55: 0.006 | N55: 0 | O55: 0 | P55: 0.0012 | Q55: 2.411214714e-08 | R55: 1.011449434e-08 | S55: -306.459 | U55: =G55-INDEX($C55:$G55,1,aux!$AL$1) -> 1477.4 | V55: 0.1176936006 | W55: 0.07067030647 | X55: =+IF(INDEX($C55:$G55,1,aux!$AL$1)>0,(G55/INDEX($C55:$G55,1,aux!$AL$1))^(1/($G$3-INDEX($C$3:$G$3,1,aux!$AL$1)))-1,"n.d.") -> 2.432978947 | Y55: =IF(INDEX($C55:$G55,1,aux!$AL$1)>0,(G55-INDEX($C55:$G55,1,aux!$AL$1))/INDEX($C55:$G55,1,aux!$AL$1),"n.d.") -> 137.8943438 | AA55: =O55-INDEX($K55:$O55,1,aux!$AL$1) -> 0 | AB55: 0 | AC55: 0 | AD55: =+IF(INDEX($K55:$O55,1,aux!$AL$1)>0,(O55/INDEX($K55:$O55,1,aux!$AL$1))^(1/($O$3-INDEX($K$3:$O$3,1,aux!$AL$1)))-1,"n.d.") -> n.d. | AE55: =IF(INDEX($K55:$O55,1,aux!$AL$1)>0,(O55-INDEX($K55:$O55,1,aux!$AL$1))/INDEX($K55:$O55,1,aux!$AL$1),"n.d.") -> n.d. | AX55: 07
A56: 0710 | B56: Produtos hortícolas congelados | C56: 0 | D56: 0 | E56: 0 | F56: 0 | G56: 72.806 | H56: 14.5612 | I56: 0.001285923112 | J56: 0.000340053493 | K56: 0.016 | L56: 0.021 | M56: 0.063 | N56: 6.828 | O56: 0.133 | P56: 1.4122 | Q56: 2.837597849e-05 | R56: 1.190307409e-05 | S56: -13.149 | U56: =G56-INDEX($C56:$G56,1,aux!$AL$1) -> 72.806 | V56: 0.005799918967 | W56: 0.003482619692 | X56: =+IF(INDEX($C56:$G56,1,aux!$AL$1)>0,(G56/INDEX($C56:$G56,1,aux!$AL$1))^(1/($G$3-INDEX($C$3:$G$3,1,aux!$AL$1)))-1,"n.d.") -> n.d. | Y56: =IF(INDEX($C56:$G56,1,aux!$AL$1)>0,(G56-INDEX($C56:$G56,1,aux!$AL$1))/INDEX($C56:$G56,1,aux!$AL$1),"n.d.") -> n.d. | AA56: =O56-INDEX($K56:$O56,1,aux!$AL$1) -> 0.117 | AB56: 2.488432881e-06 | AC56: 2.422200524e-06 | AD56: =+IF(INDEX($K56:$O56,1,aux!$AL$1)>0,(O56/INDEX($K56:$O56,1,aux!$AL$1))^(1/($O$3-INDEX($K$3:$O$3,1,aux!$AL$1)))-1,"n.d.") -> 0.6979813452 | AE56: =IF(INDEX($K56:$O56,1,aux!$AL$1)>0,(O56-INDEX($K56:$O56,1,aux!$AL$1))/INDEX($K56:$O56,1,aux!$AL$1),"n.d.") -> 7.3125 | AX56: 07
A57: 0711 | B57: Produtos hortícolas conservados transitoriamente | C57: 0 | D57: 0 | E57: 0 | F57: 0 | G57: 0 | H57: 0 | I57: 0 | J57: 0 | K57: 0 | L57: 0 | M57: 0 | N57: 0 | O57: 0 | P57: 0 | Q57: 0 | R57: 0 | S57: 0 | U57: =G57-INDEX($C57:$G57,1,aux!$AL$1) -> 0 | V57: 0 | W57: 0 | X57: =+IF(INDEX($C57:$G57,1,aux!$AL$1)>0,(G57/INDEX($C57:$G57,1,aux!$AL$1))^(1/($G$3-INDEX($C$3:$G$3,1,aux!$AL$1)))-1,"n.d.") -> n.d. | Y57: =IF(INDEX($C57:$G57,1,aux!$AL$1)>0,(G57-INDEX($C57:$G57,1,aux!$AL$1))/INDEX($C57:$G57,1,aux!$AL$1),"n.d.") -> n.d. | AA57: =O57-INDEX($K57:$O57,1,aux!$AL$1) -> 0 | AB57: 0 | AC57: 0 | AD57: =+IF(INDEX($K57:$O57,1,aux!$AL$1)>0,(O57/INDEX($K57:$O57,1,aux!$AL$1))^(1/($O$3-INDEX($K$3:$O$3,1,aux!$AL$1)))-1,"n.d.") -> n.d. | AE57: =IF(INDEX($K57:$O57,1,aux!$AL$1)>0,(O57-INDEX($K57:$O57,1,aux!$AL$1))/INDEX($K57:$O57,1,aux!$AL$1),"n.d.") -> n.d. | AX57: 07
A58: 0712 | B58: Produtos hortícolas secos | C58: 0 | D58: 0 | E58: 0.014 | F58: 0 | G58: 0 | H58: 0.0028 | I58: 2.472725266e-07 | J58: 6.538951326e-08 | K58: 0 | L58: 8.847 | M58: 0 | N58: 4.453 | O58: 0.001 | P58: 2.6602 | Q58: 5.345261152e-05 | R58: 2.24221482e-05 | S58: 2.6574 | U58: =G58-INDEX($C58:$G58,1,aux!$AL$1) -> 0 | V58: 0 | W58: 0 | X58: =+IF(INDEX($C58:$G58,1,aux!$AL$1)>0,(G58/INDEX($C58:$G58,1,aux!$AL$1))^(1/($G$3-INDEX($C$3:$G$3,1,aux!$AL$1)))-1,"n.d.") -> n.d. | Y58: =IF(INDEX($C58:$G58,1,aux!$AL$1)>0,(G58-INDEX($C58:$G58,1,aux!$AL$1))/INDEX($C58:$G58,1,aux!$AL$1),"n.d.") -> n.d. | AA58: =O58-INDEX($K58:$O58,1,aux!$AL$1) -> 0.001 | AB58: 2.126865711e-08 | AC58: 2.070256858e-08 | AD58: =+IF(INDEX($K58:$O58,1,aux!$AL$1)>0,(O58/INDEX($K58:$O58,1,aux!$AL$1))^(1/($O$3-INDEX($K$3:$O$3,1,aux!$AL$1)))-1,"n.d.") -> n.d. | AE58: =IF(INDEX($K58:$O58,1,aux!$AL$1)>0,(O58-INDEX($K58:$O58,1,aux!$AL$1))/INDEX($K58:$O58,1,aux!$AL$1),"n.d.") -> n.d. | AX58: 07
A59: 0713 | B59: Legumes de vagem, secos, em grão | C59: 0 | D59: 16.4 | E59: 12.614 | F59: 0 | G59: 0 | H59: 5.8028 | I59: 0.0005124546491 | J59: 0.0001355150955 | K59: 0.015 | L59: 47.712 | M59: 27.861 | N59: 22.681 | O59: 8.448 | P59: 21.3434 | Q59: 0.0004288626677 | R59: 0.0001798980821 | S59: 15.5406 | U59: =G59-INDEX($C59:$G59,1,aux!$AL$1) -> 0 | V59: 0 | W59: 0 | X59: =+IF(INDEX($C59:$G59,1,aux!$AL$1)>0,(G59/INDEX($C59:$G59,1,aux!$AL$1))^(1/($G$3-INDEX($C$3:$G$3,1,aux!$AL$1)))-1,"n.d.") -> n.d. | Y59: =IF(INDEX($C59:$G59,1,aux!$AL$1)>0,(G59-INDEX($C59:$G59,1,aux!$AL$1))/INDEX($C59:$G59,1,aux!$AL$1),"n.d.") -> n.d. | AA59: =O59-INDEX($K59:$O59,1,aux!$AL$1) -> 8.433 | AB59: 0.0001793585854 | AC59: 0.0001745847608 | AD59: =+IF(INDEX($K59:$O59,1,aux!$AL$1)>0,(O59/INDEX($K59:$O59,1,aux!$AL$1))^(1/($O$3-INDEX($K$3:$O$3,1,aux!$AL$1)))-1,"n.d.") -> 3.871533143 | AE59: =IF(INDEX($K59:$O59,1,aux!$AL$1)>0,(O59-INDEX($K59:$O59,1,aux!$AL$1))/INDEX($K59:$O59,1,aux!$AL$1),"n.d.") -> 562.2 | AX59: 07
A60: 0714 | B60: Raízes de mandioca, de araruta, batata-doce, etc. | C60: 0 | D60: 0 | E60: 0 | F60: 0 | G60: 0 | H60: 0 | I60: 0 | J60: 0 | K60: 0 | L60: 48.852 | M60: 0 | N60: 0 | O60: 0 | P60: 9.7704 | Q60: 0.000196321102 | R60: 8.235221291e-05 | S60: 9.7704 | U60: =G60-INDEX($C60:$G60,1,aux!$AL$1) -> 0 | V60: 0 | W60: 0 | X60: =+IF(INDEX($C60:$G60,1,aux!$AL$1)>0,(G60/INDEX($C60:$G60,1,aux!$AL$1))^(1/($G$3-INDEX($C$3:$G$3,1,aux!$AL$1)))-1,"n.d.") -> n.d. | Y60: =IF(INDEX($C60:$G60,1,aux!$AL$1)>0,(G60-INDEX($C60:$G60,1,aux!$AL$1))/INDEX($C60:$G60,1,aux!$AL$1),"n.d.") -> n.d. | AA60: =O60-INDEX($K60:$O60,1,aux!$AL$1) -> 0 | AB60: 0 | AC60: 0 | AD60: =+IF(INDEX($K60:$O60,1,aux!$AL$1)>0,(O60/INDEX($K60:$O60,1,aux!$AL$1))^(1/($O$3-INDEX($K$3:$O$3,1,aux!$AL$1)))-1,"n.d.") -> n.d. | AE60: =IF(INDEX($K60:$O60,1,aux!$AL$1)>0,(O60-INDEX($K60:$O60,1,aux!$AL$1))/INDEX($K60:$O60,1,aux!$AL$1),"n.d.") -> n.d. | AX60: 07
A61: 07SS | B61: Produtos hortícolas, plantas, raízes e tubérculos, comestíveis | C61: 0 | D61: 0 | E61: 0 | F61: 0 | G61: 0 | H61: 0 | I61: 0 | J61: 0 | K61: 0 | L61: 0 | M61: 0 | N61: 0 | O61: 0 | P61: 0 | Q61: 0 | R61: 0 | S61: 0 | U61: =G61-INDEX($C61:$G61,1,aux!$AL$1) -> 0 | V61: 0 | W61: 0 | X61: =+IF(INDEX($C61:$G61,1,aux!$AL$1)>0,(G61/INDEX($C61:$G61,1,aux!$AL$1))^(1/($G$3-INDEX($C$3:$G$3,1,aux!$AL$1)))-1,"n.d.") -> n.d. | Y61: =IF(INDEX($C61:$G61,1,aux!$AL$1)>0,(G61-INDEX($C61:$G61,1,aux!$AL$1))/INDEX($C61:$G61,1,aux!$AL$1),"n.d.") -> n.d. | AA61: =O61-INDEX($K61:$O61,1,aux!$AL$1) -> 0 | AB61: 0 | AC61: 0 | AD61: =+IF(INDEX($K61:$O61,1,aux!$AL$1)>0,(O61/INDEX($K61:$O61,1,aux!$AL$1))^(1/($O$3-INDEX($K$3:$O$3,1,aux!$AL$1)))-1,"n.d.") -> n.d. | AE61: =IF(INDEX($K61:$O61,1,aux!$AL$1)>0,(O61-INDEX($K61:$O61,1,aux!$AL$1))/INDEX($K61:$O61,1,aux!$AL$1),"n.d.") -> n.d. | AX61: 07
A62: 0801 | B62: Cocos, castanhas do brasil e castanha de cajú | C62: 0 | D62: 0 | E62: 0 | F62: 0 | G62: 0 | H62: 0 | I62: 0 | J62: 0 | K62: 12.655 | L62: 12.383 | M62: 11.51 | N62: 12.617 | O62: 17.913 | P62: 13.4156 | Q62: 0.0002695657676 | R62: 0.0001130766752 | S62: 13.4156 | U62: =G62-INDEX($C62:$G62,1,aux!$AL$1) -> 0 | V62: 0 | W62: 0 | X62: =+IF(INDEX($C62:$G62,1,aux!$AL$1)>0,(G62/INDEX($C62:$G62,1,aux!$AL$1))^(1/($G$3-INDEX($C$3:$G$3,1,aux!$AL$1)))-1,"n.d.") -> n.d. | Y62: =IF(INDEX($C62:$G62,1,aux!$AL$1)>0,(G62-INDEX($C62:$G62,1,aux!$AL$1))/INDEX($C62:$G62,1,aux!$AL$1),"n.d.") -> n.d. | AA62: =O62-INDEX($K62:$O62,1,aux!$AL$1) -> 5.258 | AB62: 0.0001118305991 | AC62: 0.0001088541056 | AD62: =+IF(INDEX($K62:$O62,1,aux!$AL$1)>0,(O62/INDEX($K62:$O62,1,aux!$AL$1))^(1/($O$3-INDEX($K$3:$O$3,1,aux!$AL$1)))-1,"n.d.") -> 0.09075332138 | AE62: =IF(INDEX($K62:$O62,1,aux!$AL$1)>0,(O62-INDEX($K62:$O62,1,aux!$AL$1))/INDEX($K62:$O62,1,aux!$AL$1),"n.d.") -> 0.4154879494 | AX62: 08
A63: 0802 | B63: Frutas de casca rija | C63: 0 | D63: 18.842 | E63: 0 | F63: 0 | G63: 0 | H63: 3.7684 | I63: 0.0003327934962 | J63: 8.800494348e-05 | K63: 36.144 | L63: 5.981 | M63: 45.971 | N63: 70.139 | O63: 250.964 | P63: 81.8398 | Q63: 0.001644444416 | R63: 0.0006898068282 | S63: 78.0714 | U63: =G63-INDEX($C63:$G63,1,aux!$AL$1) -> 0 | V63: 0 | W63: 0 | X63: =+IF(INDEX($C63:$G63,1,aux!$AL$1)>0,(G63/INDEX($C63:$G63,1,aux!$AL$1))^(1/($G$3-INDEX($C$3:$G$3,1,aux!$AL$1)))-1,"n.d.") -> n.d. | Y63: =IF(INDEX($C63:$G63,1,aux!$AL$1)>0,(G63-INDEX($C63:$G63,1,aux!$AL$1))/INDEX($C63:$G63,1,aux!$AL$1),"n.d.") -> n.d. | AA63: =O63-INDEX($K63:$O63,1,aux!$AL$1) -> 214.82 | AB63: 0.004568932919 | AC63: 0.004447325782 | AD63: =+IF(INDEX($K63:$O63,1,aux!$AL$1)>0,(O63/INDEX($K63:$O63,1,aux!$AL$1))^(1/($O$3-INDEX($K$3:$O$3,1,aux!$AL$1)))-1,"n.d.") -> 0.6232813668 | AE63: =IF(INDEX($K63:$O63,1,aux!$AL$1)>0,(O63-INDEX($K63:$O63,1,aux!$AL$1))/INDEX($K63:$O63,1,aux!$AL$1),"n.d.") -> 5.943448429 | AX63: 08
A64: 0803 | B64: Bananas, frescas ou secas | C64: 0 | D64: 0 | E64: 0 | F64: 0 | G64: 0 | H64: 0 | I64: 0 | J64: 0 | K64: 0 | L64: 0 | M64: 0 | N64: 0 | O64: 0 | P64: 0 | Q64: 0 | R64: 0 | S64: 0 | U64: =G64-INDEX($C64:$G64,1,aux!$AL$1) -> 0 | V64: 0 | W64: 0 | X64: =+IF(INDEX($C64:$G64,1,aux!$AL$1)>0,(G64/INDEX($C64:$G64,1,aux!$AL$1))^(1/($G$3-INDEX($C$3:$G$3,1,aux!$AL$1)))-1,"n.d.") -> n.d. | Y64: =IF(INDEX($C64:$G64,1,aux!$AL$1)>0,(G64-INDEX($C64:$G64,1,aux!$AL$1))/INDEX($C64:$G64,1,aux!$AL$1),"n.d.") -> n.d. | AA64: =O64-INDEX($K64:$O64,1,aux!$AL$1) -> 0 | AB64: 0 | AC64: 0 | AD64: =+IF(INDEX($K64:$O64,1,aux!$AL$1)>0,(O64/INDEX($K64:$O64,1,aux!$AL$1))^(1/($O$3-INDEX($K$3:$O$3,1,aux!$AL$1)))-1,"n.d.") -> n.d. | AE64: =IF(INDEX($K64:$O64,1,aux!$AL$1)>0,(O64-INDEX($K64:$O64,1,aux!$AL$1))/INDEX($K64:$O64,1,aux!$AL$1),"n.d.") -> n.d. | AX64: 08
A65: 0804 | B65: Tâmaras, figos, ananases, abacates, goiabas, mangas | C65: 48.85 | D65: 0 | E65: 51.633 | F65: 0.061 | G65: 0 | H65: 20.1088 | I65: 0.001775840637 | J65: 0.0004696088015 | K65: 64.292 | L65: 76.199 | M65: 25.859 | N65: 11.749 | O65: 2.65 | P65: 36.1498 | Q65: 0.0007263744139 | R65: 0.0003046974562 | S65: 16.041 | U65: =G65-INDEX($C65:$G65,1,aux!$AL$1) -> -48.85 | V65: -0.0038915205 | W65: -0.002336702634 | X65: =+IF(INDEX($C65:$G65,1,aux!$AL$1)>0,(G65/INDEX($C65:$G65,1,aux!$AL$1))^(1/($G$3-INDEX($C$3:$G$3,1,aux!$AL$1)))-1,"n.d.") -> -1 | Y65: =IF(INDEX($C65:$G65,1,aux!$AL$1)>0,(G65-INDEX($C65:$G65,1,aux!$AL$1))/INDEX($C65:$G65,1,aux!$AL$1),"n.d.") -> -1 | AA65: =O65-INDEX($K65:$O65,1,aux!$AL$1) -> -61.642 | AB65: -0.001311042561 | AC65: -0.001276147732 | AD65: =+IF(INDEX($K65:$O65,1,aux!$AL$1)>0,(O65/INDEX($K65:$O65,1,aux!$AL$1))^(1/($O$3-INDEX($K$3:$O$3,1,aux!$AL$1)))-1,"n.d.") -> -0.5494196641 | AE65: =IF(INDEX($K65:$O65,1,aux!$AL$1)>0,(O65-INDEX($K65:$O65,1,aux!$AL$1))/INDEX($K65:$O65,1,aux!$AL$1),"n.d.") -> -0.958781808 | AX65: 08
A66: 0805 | B66: Citrinos, frescos ou secos | C66: 0 | D66: 25.92 | E66: 98.968 | F66: 45.345 | G66: 115.135 | H66: 57.0736 | I66: 0.005040261884 | J66: 0.001332862473 | K66: 0 | L66: 0 | M66: 0 | N66: 0 | O66: 0 | P66: 0 | Q66: 0 | R66: 0 | S66: -57.0736 | U66: =G66-INDEX($C66:$G66,1,aux!$AL$1) -> 115.135 | V66: 0.00917195932 | W66: 0.005507395245 | X66: =+IF(INDEX($C66:$G66,1,aux!$AL$1)>0,(G66/INDEX($C66:$G66,1,aux!$AL$1))^(1/($G$3-INDEX($C$3:$G$3,1,aux!$AL$1)))-1,"n.d.") -> n.d. | Y66: =IF(INDEX($C66:$G66,1,aux!$AL$1)>0,(G66-INDEX($C66:$G66,1,aux!$AL$1))/INDEX($C66:$G66,1,aux!$AL$1),"n.d.") -> n.d. | AA66: =O66-INDEX($K66:$O66,1,aux!$AL$1) -> 0 | AB66: 0 | AC66: 0 | AD66: =+IF(INDEX($K66:$O66,1,aux!$AL$1)>0,(O66/INDEX($K66:$O66,1,aux!$AL$1))^(1/($O$3-INDEX($K$3:$O$3,1,aux!$AL$1)))-1,"n.d.") -> n.d. | AE66: =IF(INDEX($K66:$O66,1,aux!$AL$1)>0,(O66-INDEX($K66:$O66,1,aux!$AL$1))/INDEX($K66:$O66,1,aux!$AL$1),"n.d.") -> n.d. | AX66: 08
A67: 0806 | B67: Uvas, frescas ou secas | C67: 0 | D67: 0 | E67: 0 | F67: 0 | G67: 0 | H67: 0 | I67: 0 | J67: 0 | K67: 49.591 | L67: 14.82 | M67: 24.058 | N67: 26.688 | O67: 22.68 | P67: 27.5674 | Q67: 0.0005539243375 | R67: 0.0002323585927 | S67: 27.5674 | U67: =G67-INDEX($C67:$G67,1,aux!$AL$1) -> 0 | V67: 0 | W67: 0 | X67: =+IF(INDEX($C67:$G67,1,aux!$AL$1)>0,(G67/INDEX($C67:$G67,1,aux!$AL$1))^(1/($G$3-INDEX($C$3:$G$3,1,aux!$AL$1)))-1,"n.d.") -> n.d. | Y67: =IF(INDEX($C67:$G67,1,aux!$AL$1)>0,(G67-INDEX($C67:$G67,1,aux!$AL$1))/INDEX($C67:$G67,1,aux!$AL$1),"n.d.") -> n.d. | AA67: =O67-INDEX($K67:$O67,1,aux!$AL$1) -> -26.911 | AB67: -0.0005723608314 | AC67: -0.000557126823 | AD67: =+IF(INDEX($K67:$O67,1,aux!$AL$1)>0,(O67/INDEX($K67:$O67,1,aux!$AL$1))^(1/($O$3-INDEX($K$3:$O$3,1,aux!$AL$1)))-1,"n.d.") -> -0.1776436579 | AE67: =IF(INDEX($K67:$O67,1,aux!$AL$1)>0,(O67-INDEX($K67:$O67,1,aux!$AL$1))/INDEX($K67:$O67,1,aux!$AL$1),"n.d.") -> -0.5426589502 | AX67: 08
A68: 0807 | B68: Melões, melancias e papaia, frescos | C68: 77.935 | D68: 88.106 | E68: 86.941 | F68: 35.793 | G68: 814.493 | H68: 220.6536 | I68: 0.01948627614 | J68: 0.005153011251 | K68: 0 | L68: 0 | M68: 0 | N68: 0 | O68: 0 | P68: 0 | Q68: 0 | R68: 0 | S68: -220.6536 | U68: =G68-INDEX($C68:$G68,1,aux!$AL$1) -> 736.558 | V68: =IF($U$237<>0,U68/$U$237, "n.d.") -> 0.05867616288 | W68: =IF($U$322<>0,U68/$U$322, "n.d.") -> 0.03523269229 | X68: =+IF(INDEX($C68:$G68,1,aux!$AL$1)>0,(G68/INDEX($C68:$G68,1,aux!$AL$1))^(1/($G$3-INDEX($C$3:$G$3,1,aux!$AL$1)))-1,"n.d.") -> 0.7979959292 | Y68: =IF(INDEX($C68:$G68,1,aux!$AL$1)>0,(G68-INDEX($C68:$G68,1,aux!$AL$1))/INDEX($C68:$G68,1,aux!$AL$1),"n.d.") -> 9.450927055 | AA68: =O68-INDEX($K68:$O68,1,aux!$AL$1) -> 0 | AB68: =IF($AA$237<>0,AA68/$AA$237, "n.d.") -> 0 | AC68: =IF($AA$322<>0,AA68/$AA$322, "n.d.") -> 0 | AD68: =+IF(INDEX($K68:$O68,1,aux!$AL$1)>0,(O68/INDEX($K68:$O68,1,aux!$AL$1))^(1/($O$3-INDEX($K$3:$O$3,1,aux!$AL$1)))-1,"n.d.") -> n.d. | AE68: =IF(INDEX($K68:$O68,1,aux!$AL$1)>0,(O68-INDEX($K68:$O68,1,aux!$AL$1))/INDEX($K68:$O68,1,aux!$AL$1),"n.d.") -> n.d. | AX68: 08
A69: 0808 | B69: Maçãs, peras e marmelos, frescos | C69: 0 | D69: 0 | E69: 0 | F69: 0 | G69: 0 | H69: 0 | I69: 0 | J69: 0 | K69: 153.345 | L69: 211.013 | M69: 366.523 | N69: 531.599 | O69: 446.249 | P69: 341.7458 | Q69: 0.006866854178 | R69: 0.0028804883 | S69: 341.7458 | U69: =G69-INDEX($C69:$G69,1,aux!$AL$1) -> 0 | V69: 0 | W69: 0 | X69: =+IF(INDEX($C69:$G69,1,aux!$AL$1)>0,(G69/INDEX($C69:$G69,1,aux!$AL$1))^(1/($G$3-INDEX($C$3:$G$3,1,aux!$AL$1)))-1,"n.d.") -> n.d. | Y69: =IF(INDEX($C69:$G69,1,aux!$AL$1)>0,(G69-INDEX($C69:$G69,1,aux!$AL$1))/INDEX($C69:$G69,1,aux!$AL$1),"n.d.") -> n.d. | AA69: =O69-INDEX($K69:$O69,1,aux!$AL$1) -> 292.904 | AB69: 0.006229674741 | AC69: 0.006063865147 | AD69: =+IF(INDEX($K69:$O69,1,aux!$AL$1)>0,(O69/INDEX($K69:$O69,1,aux!$AL$1))^(1/($O$3-INDEX($K$3:$O$3,1,aux!$AL$1)))-1,"n.d.") -> 0.3061014422 | AE69: =IF(INDEX($K69:$O69,1,aux!$AL$1)>0,(O69-INDEX($K69:$O69,1,aux!$AL$1))/INDEX($K69:$O69,1,aux!$AL$1),"n.d.") -> 1.910098145 | AX69: 08
A70: 0809 | B70: Damascos, cerejas, pêssegos, etc., frescos | C70: 0 | D70: 0 | E70: 0 | F70: 0 | G70: 0 | H70: 0 | I70: 0 | J70: 0 | K70: 0 | L70: 0 | M70: 0 | N70: 0 | O70: 0 | P70: 0 | Q70: 0 | R70: 0 | S70: 0 | U70: =G70-INDEX($C70:$G70,1,aux!$AL$1) -> 0 | V70: 0 | W70: 0 | X70: =+IF(INDEX($C70:$G70,1,aux!$AL$1)>0,(G70/INDEX($C70:$G70,1,aux!$AL$1))^(1/($G$3-INDEX($C$3:$G$3,1,aux!$AL$1)))-1,"n.d.") -> n.d. | Y70: =IF(INDEX($C70:$G70,1,aux!$AL$1)>0,(G70-INDEX($C70:$G70,1,aux!$AL$1))/INDEX($C70:$G70,1,aux!$AL$1),"n.d.") -> n.d. | AA70: =O70-INDEX($K70:$O70,1,aux!$AL$1) -> 0 | AB70: 0 | AC70: 0 | AD70: =+IF(INDEX($K70:$O70,1,aux!$AL$1)>0,(O70/INDEX($K70:$O70,1,aux!$AL$1))^(1/($O$3-INDEX($K$3:$O$3,1,aux!$AL$1)))-1,"n.d.") -> n.d. | AE70: =IF(INDEX($K70:$O70,1,aux!$AL$1)>0,(O70-INDEX($K70:$O70,1,aux!$AL$1))/INDEX($K70:$O70,1,aux!$AL$1),"n.d.") -> n.d. | AX70: 08
A71: 0810 | B71: Outras frutas frescas | C71: 9.894 | D71: 0 | E71: 18.04 | F71: 0 | G71: 0 | H71: 5.5868 | I71: 0.0004933793399 | J71: 0.0001304707617 | K71: 0 | L71: 0 | M71: 0 | N71: 0 | O71: 0 | P71: 0 | Q71: 0 | R71: 0 | S71: -5.5868 | U71: =G71-INDEX($C71:$G71,1,aux!$AL$1) -> -9.894 | V71: -0.0007881822688 | W71: -0.0004732719725 | X71: =+IF(INDEX($C71:$G71,1,aux!$AL$1)>0,(G71/INDEX($C71:$G71,1,aux!$AL$1))^(1/($G$3-INDEX($C$3:$G$3,1,aux!$AL$1)))-1,"n.d.") -> -1 | Y71: =IF(INDEX($C71:$G71,1,aux!$AL$1)>0,(G71-INDEX($C71:$G71,1,aux!$AL$1))/INDEX($C71:$G71,1,aux!$AL$1),"n.d.") -> -1 | AA71: =O71-INDEX($K71:$O71,1,aux!$AL$1) -> 0 | AB71: 0 | AC71: 0 | AD71: =+IF(INDEX($K71:$O71,1,aux!$AL$1)>0,(O71/INDEX($K71:$O71,1,aux!$AL$1))^(1/($O$3-INDEX($K$3:$O$3,1,aux!$AL$1)))-1,"n.d.") -> n.d. | AE71: =IF(INDEX($K71:$O71,1,aux!$AL$1)>0,(O71-INDEX($K71:$O71,1,aux!$AL$1))/INDEX($K71:$O71,1,aux!$AL$1),"n.d.") -> n.d. | AX71: 08
A72: 0811 | B72: Frutas não cozidas ou cozidas em água ou vapor, congeladas | C72: 877.832 | D72: 1602.706 | E72: 652.164 | F72: 2404.23 | G72: 2321.772 | H72: 1571.7408 | I72: 0.138802971 | J72: 0.03670548781 | K72: 218.948 | L72: 168.852 | M72: 295.317 | N72: 277.762 | O72: 172.214 | P72: 226.6186 | Q72: 0.004553550856 | R72: 0.001910110456 | S72: -1345.1222 | U72: =G72-INDEX($C72:$G72,1,aux!$AL$1) -> 1443.94 | V72: 0.1150280883 | W72: 0.06906977279 | X72: =+IF(INDEX($C72:$G72,1,aux!$AL$1)>0,(G72/INDEX($C72:$G72,1,aux!$AL$1))^(1/($G$3-INDEX($C$3:$G$3,1,aux!$AL$1)))-1,"n.d.") -> 0.2752696975 | Y72: =IF(INDEX($C72:$G72,1,aux!$AL$1)>0,(G72-INDEX($C72:$G72,1,aux!$AL$1))/INDEX($C72:$G72,1,aux!$AL$1),"n.d.") -> 1.644893328 | AA72: =O72-INDEX($K72:$O72,1,aux!$AL$1) -> -46.734 | AB72: -0.0009939694212 | AC72: -0.0009675138399 | AD72: =+IF(INDEX($K72:$O72,1,aux!$AL$1)>0,(O72/INDEX($K72:$O72,1,aux!$AL$1))^(1/($O$3-INDEX($K$3:$O$3,1,aux!$AL$1)))-1,"n.d.") -> -0.05825815542 | AE72: =IF(INDEX($K72:$O72,1,aux!$AL$1)>0,(O72-INDEX($K72:$O72,1,aux!$AL$1))/INDEX($K72:$O72,1,aux!$AL$1),"n.d.") -> -0.213447942 | AX72: 08
A73: 0812 | B73: Frutas conservadas transitoriamente | C73: 0 | D73: 0 | E73: 0 | F73: 0 | G73: 0 | H73: 0 | I73: 0 | J73: 0 | K73: 0 | L73: 0 | M73: 0 | N73: 0 | O73: 0 | P73: 0 | Q73: 0 | R73: 0 | S73: 0 | U73: =G73-INDEX($C73:$G73,1,aux!$AL$1) -> 0 | V73: 0 | W73: 0 | X73: =+IF(INDEX($C73:$G73,1,aux!$AL$1)>0,(G73/INDEX($C73:$G73,1,aux!$AL$1))^(1/($G$3-INDEX($C$3:$G$3,1,aux!$AL$1)))-1,"n.d.") -> n.d. | Y73: =IF(INDEX($C73:$G73,1,aux!$AL$1)>0,(G73-INDEX($C73:$G73,1,aux!$AL$1))/INDEX($C73:$G73,1,aux!$AL$1),"n.d.") -> n.d. | AA73: =O73-INDEX($K73:$O73,1,aux!$AL$1) -> 0 | AB73: 0 | AC73: 0 | AD73: =+IF(INDEX($K73:$O73,1,aux!$AL$1)>0,(O73/INDEX($K73:$O73,1,aux!$AL$1))^(1/($O$3-INDEX($K$3:$O$3,1,aux!$AL$1)))-1,"n.d.") -> n.d. | AE73: =IF(INDEX($K73:$O73,1,aux!$AL$1)>0,(O73-INDEX($K73:$O73,1,aux!$AL$1))/INDEX($K73:$O73,1,aux!$AL$1),"n.d.") -> n.d. | AX73: 08
A74: 0813 | B74: Outras frutas secas | C74: 0 | D74: 0.311 | E74: 0 | F74: 0.057 | G74: 0 | H74: 0.0736 | I74: 6.499734986e-06 | J74: 1.718810063e-06 | K74: 15.977 | L74: 0 | M74: 3.464 | N74: 0 | O74: 8.297 | P74: 5.5476 | Q74: 0.0001114704562 | R74: 4.675930733e-05 | S74: 5.474 | U74: =G74-INDEX($C74:$G74,1,aux!$AL$1) -> 0 | V74: 0 | W74: 0 | X74: =+IF(INDEX($C74:$G74,1,aux!$AL$1)>0,(G74/INDEX($C74:$G74,1,aux!$AL$1))^(1/($G$3-INDEX($C$3:$G$3,1,aux!$AL$1)))-1,"n.d.") -> n.d. | Y74: =IF(INDEX($C74:$G74,1,aux!$AL$1)>0,(G74-INDEX($C74:$G74,1,aux!$AL$1))/INDEX($C74:$G74,1,aux!$AL$1),"n.d.") -> n.d. | AA74: =O74-INDEX($K74:$O74,1,aux!$AL$1) -> -7.68 | AB74: -0.0001633432866 | AC74: -0.0001589957267 | AD74: =+IF(INDEX($K74:$O74,1,aux!$AL$1)>0,(O74/INDEX($K74:$O74,1,aux!$AL$1))^(1/($O$3-INDEX($K$3:$O$3,1,aux!$AL$1)))-1,"n.d.") -> -0.1511001365 | AE74: =IF(INDEX($K74:$O74,1,aux!$AL$1)>0,(O74-INDEX($K74:$O74,1,aux!$AL$1))/INDEX($K74:$O74,1,aux!$AL$1),"n.d.") -> -0.4806909933 | AX74: 08
A75: 0814 | B75: Cascas de citrinos, melões ou melancias | C75: 0 | D75: 8.791 | E75: 0 | F75: 0 | G75: 0 | H75: 1.7582 | I75: 0.0001552694844 | J75: 4.105994365e-05 | K75: 0 | L75: 0 | M75: 0 | N75: 0 | O75: 0 | P75: 0 | Q75: 0 | R75: 0 | S75: -1.7582 | U75: =G75-INDEX($C75:$G75,1,aux!$AL$1) -> 0 | V75: 0 | W75: 0 | X75: =+IF(INDEX($C75:$G75,1,aux!$AL$1)>0,(G75/INDEX($C75:$G75,1,aux!$AL$1))^(1/($G$3-INDEX($C$3:$G$3,1,aux!$AL$1)))-1,"n.d.") -> n.d. | Y75: =IF(INDEX($C75:$G75,1,aux!$AL$1)>0,(G75-INDEX($C75:$G75,1,aux!$AL$1))/INDEX($C75:$G75,1,aux!$AL$1),"n.d.") -> n.d. | AA75: =O75-INDEX($K75:$O75,1,aux!$AL$1) -> 0 | AB75: 0 | AC75: 0 | AD75: =+IF(INDEX($K75:$O75,1,aux!$AL$1)>0,(O75/INDEX($K75:$O75,1,aux!$AL$1))^(1/($O$3-INDEX($K$3:$O$3,1,aux!$AL$1)))-1,"n.d.") -> n.d. | AE75: =IF(INDEX($K75:$O75,1,aux!$AL$1)>0,(O75-INDEX($K75:$O75,1,aux!$AL$1))/INDEX($K75:$O75,1,aux!$AL$1),"n.d.") -> n.d. | AX75: =+LEFT(A75,2) -> 08
A76: 08SS | B76: Frutas; cascas de citrinos e de melões | C76: 0 | D76: 0 | E76: 0 | F76: 0 | G76: 0 | H76: 0 | I76: 0 | J76: 0 | K76: 0 | L76: 0 | M76: 0 | N76: 0 | O76: 0 | P76: 0 | Q76: 0 | R76: 0 | S76: 0 | U76: =G76-INDEX($C76:$G76,1,aux!$AL$1) -> 0 | V76: 0 | W76: 0 | X76: =+IF(INDEX($C76:$G76,1,aux!$AL$1)>0,(G76/INDEX($C76:$G76,1,aux!$AL$1))^(1/($G$3-INDEX($C$3:$G$3,1,aux!$AL$1)))-1,"n.d.") -> n.d. | Y76: =IF(INDEX($C76:$G76,1,aux!$AL$1)>0,(G76-INDEX($C76:$G76,1,aux!$AL$1))/INDEX($C76:$G76,1,aux!$AL$1),"n.d.") -> n.d. | AA76: =O76-INDEX($K76:$O76,1,aux!$AL$1) -> 0 | AB76: 0 | AC76: 0 | AD76: =+IF(INDEX($K76:$O76,1,aux!$AL$1)>0,(O76/INDEX($K76:$O76,1,aux!$AL$1))^(1/($O$3-INDEX($K$3:$O$3,1,aux!$AL$1)))-1,"n.d.") -> n.d. | AE76: =IF(INDEX($K76:$O76,1,aux!$AL$1)>0,(O76-INDEX($K76:$O76,1,aux!$AL$1))/INDEX($K76:$O76,1,aux!$AL$1),"n.d.") -> n.d. | AX76: 08
A77: 0901 | B77: Café | C77: 0 | D77: 0 | E77: 0 | F77: 0.053 | G77: 0.523 | H77: 0.1152 | I77: 1.017349824e-05 | J77: 2.690311403e-06 | K77: 375.888 | L77: 612.257 | M77: 470.898 | N77: 396.059 | O77: 329.293 | P77: 436.879 | Q77: 0.008778408942 | R77: 0.00368234181 | S77: 436.7638 | U77: =G77-INDEX($C77:$G77,1,aux!$AL$1) -> 0.523 | V77: 4.166356646e-05 | W77: 2.501730762e-05 | X77: =+IF(INDEX($C77:$G77,1,aux!$AL$1)>0,(G77/INDEX($C77:$G77,1,aux!$AL$1))^(1/($G$3-INDEX($C$3:$G$3,1,aux!$AL$1)))-1,"n.d.") -> n.d. | Y77: =IF(INDEX($C77:$G77,1,aux!$AL$1)>0,(G77-INDEX($C77:$G77,1,aux!$AL$1))/INDEX($C77:$G77,1,aux!$AL$1),"n.d.") -> n.d. | AA77: =O77-INDEX($K77:$O77,1,aux!$AL$1) -> -46.595 | AB77: -0.0009910130778 | AC77: -0.0009646361829 | AD77: =+IF(INDEX($K77:$O77,1,aux!$AL$1)>0,(O77/INDEX($K77:$O77,1,aux!$AL$1))^(1/($O$3-INDEX($K$3:$O$3,1,aux!$AL$1)))-1,"n.d.") -> -0.03254447457 | AE77: =IF(INDEX($K77:$O77,1,aux!$AL$1)>0,(O77-INDEX($K77:$O77,1,aux!$AL$1))/INDEX($K77:$O77,1,aux!$AL$1),"n.d.") -> -0.1239597965 | AX77: 09
A78: 0902 | B78: Chá | C78: 0 | D78: 0.041 | E78: 0.108 | F78: 1.669 | G78: 0.248 | H78: 0.4132 | I78: 3.649036e-05 | J78: 9.649623885e-06 | K78: 0.25 | L78: 0.007 | M78: 0 | N78: 0 | O78: 0 | P78: 0.0514 | Q78: 1.032803636e-06 | R78: 4.332375075e-07 | S78: -0.3618 | U78: =G78-INDEX($C78:$G78,1,aux!$AL$1) -> 0.248 | V78: 1.975633744e-05 | W78: 1.186289157e-05 | X78: =+IF(INDEX($C78:$G78,1,aux!$AL$1)>0,(G78/INDEX($C78:$G78,1,aux!$AL$1))^(1/($G$3-INDEX($C$3:$G$3,1,aux!$AL$1)))-1,"n.d.") -> n.d. | Y78: =IF(INDEX($C78:$G78,1,aux!$AL$1)>0,(G78-INDEX($C78:$G78,1,aux!$AL$1))/INDEX($C78:$G78,1,aux!$AL$1),"n.d.") -> n.d. | AA78: =O78-INDEX($K78:$O78,1,aux!$AL$1) -> -0.25 | AB78: -5.317164276e-06 | AC78: -5.175642145e-06 | AD78: =+IF(INDEX($K78:$O78,1,aux!$AL$1)>0,(O78/INDEX($K78:$O78,1,aux!$AL$1))^(1/($O$3-INDEX($K$3:$O$3,1,aux!$AL$1)))-1,"n.d.") -> -1 | AE78: =IF(INDEX($K78:$O78,1,aux!$AL$1)>0,(O78-INDEX($K78:$O78,1,aux!$AL$1))/INDEX($K78:$O78,1,aux!$AL$1),"n.d.") -> -1 | AX78: 09
A79: 0903 | B79: Mate | C79: 0 | D79: 0 | E79: 0 | F79: 0 | G79: 0.046 | H79: 0.0092 | I79: 8.124668732e-07 | J79: 2.148512578e-07 | K79: 0 | L79: 0 | M79: 0 | N79: 0 | O79: 0 | P79: 0 | Q79: 0 | R79: 0 | S79: -0.0092 | U79: =G79-INDEX($C79:$G79,1,aux!$AL$1) -> 0.046 | V79: 3.664481945e-06 | W79: 2.200375049e-06 | X79: =+IF(INDEX($C79:$G79,1,aux!$AL$1)>0,(G79/INDEX($C79:$G79,1,aux!$AL$1))^(1/($G$3-INDEX($C$3:$G$3,1,aux!$AL$1)))-1,"n.d.") -> n.d. | Y79: =IF(INDEX($C79:$G79,1,aux!$AL$1)>0,(G79-INDEX($C79:$G79,1,aux!$AL$1))/INDEX($C79:$G79,1,aux!$AL$1),"n.d.") -> n.d. | AA79: =O79-INDEX($K79:$O79,1,aux!$AL$1) -> 0 | AB79: 0 | AC79: 0 | AD79: =+IF(INDEX($K79:$O79,1,aux!$AL$1)>0,(O79/INDEX($K79:$O79,1,aux!$AL$1))^(1/($O$3-INDEX($K$3:$O$3,1,aux!$AL$1)))-1,"n.d.") -> n.d. | AE79: =IF(INDEX($K79:$O79,1,aux!$AL$1)>0,(O79-INDEX($K79:$O79,1,aux!$AL$1))/INDEX($K79:$O79,1,aux!$AL$1),"n.d.") -> n.d. | AX79: 09
A80: 0904 | B80: Pimenta | C80: 0 | D80: 0 | E80: 0 | F80: 0 | G80: 3.2 | H80: 0.64 | I80: 5.651943466e-05 | J80: 1.494617446e-05 | K80: 0 | L80: 0 | M80: 0 | N80: 0 | O80: 0 | P80: 0 | Q80: 0 | R80: 0 | S80: -0.64 | U80: =G80-INDEX($C80:$G80,1,aux!$AL$1) -> 3.2 | V80: 0.0002549204831 | W80: 0.0001530695686 | X80: =+IF(INDEX($C80:$G80,1,aux!$AL$1)>0,(G80/INDEX($C80:$G80,1,aux!$AL$1))^(1/($G$3-INDEX($C$3:$G$3,1,aux!$AL$1)))-1,"n.d.") -> n.d. | Y80: =IF(INDEX($C80:$G80,1,aux!$AL$1)>0,(G80-INDEX($C80:$G80,1,aux!$AL$1))/INDEX($C80:$G80,1,aux!$AL$1),"n.d.") -> n.d. | AA80: =O80-INDEX($K80:$O80,1,aux!$AL$1) -> 0 | AB80: 0 | AC80: 0 | AD80: =+IF(INDEX($K80:$O80,1,aux!$AL$1)>0,(O80/INDEX($K80:$O80,1,aux!$AL$1))^(1/($O$3-INDEX($K$3:$O$3,1,aux!$AL$1)))-1,"n.d.") -> n.d. | AE80: =IF(INDEX($K80:$O80,1,aux!$AL$1)>0,(O80-INDEX($K80:$O80,1,aux!$AL$1))/INDEX($K80:$O80,1,aux!$AL$1),"n.d.") -> n.d. | AX80: 09
A81: 0905 | B81: Baunilha | C81: 0 | D81: 0 | E81: 0 | F81: 0 | G81: 0 | H81: 0 | I81: 0 | J81: 0 | K81: 0 | L81: 0 | M81: 0 | N81: 0 | O81: 4.341 | P81: 0.8682 | Q81: 1.744513846e-05 | R81: 7.317836655e-06 | S81: 0.8682 | U81: =G81-INDEX($C81:$G81,1,aux!$AL$1) -> 0 | V81: 0 | W81: 0 | X81: =+IF(INDEX($C81:$G81,1,aux!$AL$1)>0,(G81/INDEX($C81:$G81,1,aux!$AL$1))^(1/($G$3-INDEX($C$3:$G$3,1,aux!$AL$1)))-1,"n.d.") -> n.d. | Y81: =IF(INDEX($C81:$G81,1,aux!$AL$1)>0,(G81-INDEX($C81:$G81,1,aux!$AL$1))/INDEX($C81:$G81,1,aux!$AL$1),"n.d.") -> n.d. | AA81: =O81-INDEX($K81:$O81,1,aux!$AL$1) -> 4.341 | AB81: 9.232724049e-05 | AC81: 8.98698502e-05 | AD81: =+IF(INDEX($K81:$O81,1,aux!$AL$1)>0,(O81/INDEX($K81:$O81,1,aux!$AL$1))^(1/($O$3-INDEX($K$3:$O$3,1,aux!$AL$1)))-1,"n.d.") -> n.d. | AE81: =IF(INDEX($K81:$O81,1,aux!$AL$1)>0,(O81-INDEX($K81:$O81,1,aux!$AL$1))/INDEX($K81:$O81,1,aux!$AL$1),"n.d.") -> n.d. | AX81: 09
A82: 0906 | B82: Canela | C82: 0 | D82: 0 | E82: 0 | F82: 0 | G82: 0 | H82: 0 | I82: 0 | J82: 0 | K82: 36.111 | L82: 12.198 | M82: 56.76 | N82: 42.002 | O82: 8.88 | P82: 31.1902 | Q82: 0.0006267189098 | R82: 0.0002628942511 | S82: 31.1902 | U82: =G82-INDEX($C82:$G82,1,aux!$AL$1) -> 0 | V82: 0 | W82: 0 | X82: =+IF(INDEX($C82:$G82,1,aux!$AL$1)>0,(G82/INDEX($C82:$G82,1,aux!$AL$1))^(1/($G$3-INDEX($C$3:$G$3,1,aux!$AL$1)))-1,"n.d.") -> n.d. | Y82: =IF(INDEX($C82:$G82,1,aux!$AL$1)>0,(G82-INDEX($C82:$G82,1,aux!$AL$1))/INDEX($C82:$G82,1,aux!$AL$1),"n.d.") -> n.d. | AA82: =O82-INDEX($K82:$O82,1,aux!$AL$1) -> -27.231 | AB82: -0.0005791668016 | AC82: -0.0005637516449 | AD82: =+IF(INDEX($K82:$O82,1,aux!$AL$1)>0,(O82/INDEX($K82:$O82,1,aux!$AL$1))^(1/($O$3-INDEX($K$3:$O$3,1,aux!$AL$1)))-1,"n.d.") -> -0.29580431 | AE82: =IF(INDEX($K82:$O82,1,aux!$AL$1)>0,(O82-INDEX($K82:$O82,1,aux!$AL$1))/INDEX($K82:$O82,1,aux!$AL$1),"n.d.") -> -0.7540915511 | AX82: 09
A83: 0907 | B83: Cravo-da-índia | C83: 0 | D83: 0 | E83: 0 | F83: 0 | G83: 0 | H83: 0 | I83: 0 | J83: 0 | K83: 0 | L83: 0 | M83: 0 | N83: 0 | O83: 0 | P83: 0 | Q83: 0 | R83: 0 | S83: 0 | U83: =G83-INDEX($C83:$G83,1,aux!$AL$1) -> 0 | V83: 0 | W83: 0 | X83: =+IF(INDEX($C83:$G83,1,aux!$AL$1)>0,(G83/INDEX($C83:$G83,1,aux!$AL$1))^(1/($G$3-INDEX($C$3:$G$3,1,aux!$AL$1)))-1,"n.d.") -> n.d. | Y83: =IF(INDEX($C83:$G83,1,aux!$AL$1)>0,(G83-INDEX($C83:$G83,1,aux!$AL$1))/INDEX($C83:$G83,1,aux!$AL$1),"n.d.") -> n.d. | AA83: =O83-INDEX($K83:$O83,1,aux!$AL$1) -> 0 | AB83: 0 | AC83: 0 | AD83: =+IF(INDEX($K83:$O83,1,aux!$AL$1)>0,(O83/INDEX($K83:$O83,1,aux!$AL$1))^(1/($O$3-INDEX($K$3:$O$3,1,aux!$AL$1)))-1,"n.d.") -> n.d. | AE83: =IF(INDEX($K83:$O83,1,aux!$AL$1)>0,(O83-INDEX($K83:$O83,1,aux!$AL$1))/INDEX($K83:$O83,1,aux!$AL$1),"n.d.") -> n.d. | AX83: 09
A84: 0908 | B84: Noz-moscada, etc. | C84: 0 | D84: 0 | E84: 0 | F84: 0 | G84: 0 | H84: 0 | I84: 0 | J84: 0 | K84: 0 | L84: 0 | M84: 0 | N84: 0 | O84: 0 | P84: 0 | Q84: 0 | R84: 0 | S84: 0 | U84: =G84-INDEX($C84:$G84,1,aux!$AL$1) -> 0 | V84: 0 | W84: 0 | X84: =+IF(INDEX($C84:$G84,1,aux!$AL$1)>0,(G84/INDEX($C84:$G84,1,aux!$AL$1))^(1/($G$3-INDEX($C$3:$G$3,1,aux!$AL$1)))-1,"n.d.") -> n.d. | Y84: =IF(INDEX($C84:$G84,1,aux!$AL$1)>0,(G84-INDEX($C84:$G84,1,aux!$AL$1))/INDEX($C84:$G84,1,aux!$AL$1),"n.d.") -> n.d. | AA84: =O84-INDEX($K84:$O84,1,aux!$AL$1) -> 0 | AB84: 0 | AC84: 0 | AD84: =+IF(INDEX($K84:$O84,1,aux!$AL$1)>0,(O84/INDEX($K84:$O84,1,aux!$AL$1))^(1/($O$3-INDEX($K$3:$O$3,1,aux!$AL$1)))-1,"n.d.") -> n.d. | AE84: =IF(INDEX($K84:$O84,1,aux!$AL$1)>0,(O84-INDEX($K84:$O84,1,aux!$AL$1))/INDEX($K84:$O84,1,aux!$AL$1),"n.d.") -> n.d. | AX84: 09
A85: 0909 | B85: Sementes de anis, funcho, etc. | C85: 0 | D85: 0 | E85: 0.043 | F85: 0.006 | G85: 0.001 | H85: 0.01 | I85: 8.831161665e-07 | J85: 2.335339759e-07 | K85: 0 | L85: 0 | M85: 0 | N85: 0 | O85: 0 | P85: 0 | Q85: 0 | R85: 0 | S85: -0.01 | U85: =G85-INDEX($C85:$G85,1,aux!$AL$1) -> 0.001 | V85: 7.966265098e-08 | W85: 4.78342402e-08 | X85: =+IF(INDEX($C85:$G85,1,aux!$AL$1)>0,(G85/INDEX($C85:$G85,1,aux!$AL$1))^(1/($G$3-INDEX($C$3:$G$3,1,aux!$AL$1)))-1,"n.d.") -> n.d. | Y85: =IF(INDEX($C85:$G85,1,aux!$AL$1)>0,(G85-INDEX($C85:$G85,1,aux!$AL$1))/INDEX($C85:$G85,1,aux!$AL$1),"n.d.") -> n.d. | AA85: =O85-INDEX($K85:$O85,1,aux!$AL$1) -> 0 | AB85: 0 | AC85: 0 | AD85: =+IF(INDEX($K85:$O85,1,aux!$AL$1)>0,(O85/INDEX($K85:$O85,1,aux!$AL$1))^(1/($O$3-INDEX($K$3:$O$3,1,aux!$AL$1)))-1,"n.d.") -> n.d. | AE85: =IF(INDEX($K85:$O85,1,aux!$AL$1)>0,(O85-INDEX($K85:$O85,1,aux!$AL$1))/INDEX($K85:$O85,1,aux!$AL$1),"n.d.") -> n.d. | AX85: 09
A86: 0910 | B86: Gengibre, açafrão, tomilho, louro, etc. | C86: 0 | D86: 0 | E86: 0.048 | F86: 0.042 | G86: 0 | H86: 0.018 | I86: 1.5896091e-06 | J86: 4.203611567e-07 | K86: 1.064 | L86: 0 | M86: 29.289 | N86: 8.053 | O86: 0.229 | P86: 7.727 | Q86: 0.0001552621341 | R86: 6.51289148e-05 | S86: 7.709 | U86: =G86-INDEX($C86:$G86,1,aux!$AL$1) -> 0 | V86: 0 | W86: 0 | X86: =+IF(INDEX($C86:$G86,1,aux!$AL$1)>0,(G86/INDEX($C86:$G86,1,aux!$AL$1))^(1/($G$3-INDEX($C$3:$G$3,1,aux!$AL$1)))-1,"n.d.") -> n.d. | Y86: =IF(INDEX($C86:$G86,1,aux!$AL$1)>0,(G86-INDEX($C86:$G86,1,aux!$AL$1))/INDEX($C86:$G86,1,aux!$AL$1),"n.d.") -> n.d. | AA86: =O86-INDEX($K86:$O86,1,aux!$AL$1) -> -0.835 | AB86: -1.775932868e-05 | AC86: -1.728664476e-05 | AD86: =+IF(INDEX($K86:$O86,1,aux!$AL$1)>0,(O86/INDEX($K86:$O86,1,aux!$AL$1))^(1/($O$3-INDEX($K$3:$O$3,1,aux!$AL$1)))-1,"n.d.") -> -0.3188802654 | AE86: =IF(INDEX($K86:$O86,1,aux!$AL$1)>0,(O86-INDEX($K86:$O86,1,aux!$AL$1))/INDEX($K86:$O86,1,aux!$AL$1),"n.d.") -> -0.7847744361 | AX86: 09
A87: 09SS | B87: Café, chá, mate e especiarias | C87: 0 | D87: 0 | E87: 0 | F87: 0 | G87: 0 | H87: 0 | I87: 0 | J87: 0 | K87: 0 | L87: 0 | M87: 0 | N87: 0 | O87: 0 | P87: 0 | Q87: 0 | R87: 0 | S87: 0 | U87: =G87-INDEX($C87:$G87,1,aux!$AL$1) -> 0 | V87: 0 | W87: 0 | X87: =+IF(INDEX($C87:$G87,1,aux!$AL$1)>0,(G87/INDEX($C87:$G87,1,aux!$AL$1))^(1/($G$3-INDEX($C$3:$G$3,1,aux!$AL$1)))-1,"n.d.") -> n.d. | Y87: =IF(INDEX($C87:$G87,1,aux!$AL$1)>0,(G87-INDEX($C87:$G87,1,aux!$AL$1))/INDEX($C87:$G87,1,aux!$AL$1),"n.d.") -> n.d. | AA87: =O87-INDEX($K87:$O87,1,aux!$AL$1) -> 0 | AB87: 0 | AC87: 0 | AD87: =+IF(INDEX($K87:$O87,1,aux!$AL$1)>0,(O87/INDEX($K87:$O87,1,aux!$AL$1))^(1/($O$3-INDEX($K$3:$O$3,1,aux!$AL$1)))-1,"n.d.") -> n.d. | AE87: =IF(INDEX($K87:$O87,1,aux!$AL$1)>0,(O87-INDEX($K87:$O87,1,aux!$AL$1))/INDEX($K87:$O87,1,aux!$AL$1),"n.d.") -> n.d. | AX87: 09
A88: 1001 | B88: Trigo e mistura trigo/centeio | C88: 0 | D88: 0 | E88: 0 | F88: 0 | G88: 0 | H88: 0 | I88: 0 | J88: 0 | K88: 0 | L88: 0 | M88: 0 | N88: 0.235 | O88: 0 | P88: 0.047 | Q88: 9.443924296e-07 | R88: 3.961510283e-07 | S88: 0.047 | U88: =G88-INDEX($C88:$G88,1,aux!$AL$1) -> 0 | V88: 0 | W88: 0 | X88: =+IF(INDEX($C88:$G88,1,aux!$AL$1)>0,(G88/INDEX($C88:$G88,1,aux!$AL$1))^(1/($G$3-INDEX($C$3:$G$3,1,aux!$AL$1)))-1,"n.d.") -> n.d. | Y88: =IF(INDEX($C88:$G88,1,aux!$AL$1)>0,(G88-INDEX($C88:$G88,1,aux!$AL$1))/INDEX($C88:$G88,1,aux!$AL$1),"n.d.") -> n.d. | AA88: =O88-INDEX($K88:$O88,1,aux!$AL$1) -> 0 | AB88: 0 | AC88: 0 | AD88: =+IF(INDEX($K88:$O88,1,aux!$AL$1)>0,(O88/INDEX($K88:$O88,1,aux!$AL$1))^(1/($O$3-INDEX($K$3:$O$3,1,aux!$AL$1)))-1,"n.d.") -> n.d. | AE88: =IF(INDEX($K88:$O88,1,aux!$AL$1)>0,(O88-INDEX($K88:$O88,1,aux!$AL$1))/INDEX($K88:$O88,1,aux!$AL$1),"n.d.") -> n.d. | AX88: 10
A89: 1002 | B89: Centeio | C89: 0 | D89: 0 | E89: 0 | F89: 0 | G89: 0 | H89: 0 | I89: 0 | J89: 0 | K89: 0 | L89: 0 | M89: 0 | N89: 0 | O89: 0 | P89: 0 | Q89: 0 | R89: 0 | S89: 0 | U89: =G89-INDEX($C89:$G89,1,aux!$AL$1) -> 0 | V89: 0 | W89: 0 | X89: =+IF(INDEX($C89:$G89,1,aux!$AL$1)>0,(G89/INDEX($C89:$G89,1,aux!$AL$1))^(1/($G$3-INDEX($C$3:$G$3,1,aux!$AL$1)))-1,"n.d.") -> n.d. | Y89: =IF(INDEX($C89:$G89,1,aux!$AL$1)>0,(G89-INDEX($C89:$G89,1,aux!$AL$1))/INDEX($C89:$G89,1,aux!$AL$1),"n.d.") -> n.d. | AA89: =O89-INDEX($K89:$O89,1,aux!$AL$1) -> 0 | AB89: 0 | AC89: 0 | AD89: =+IF(INDEX($K89:$O89,1,aux!$AL$1)>0,(O89/INDEX($K89:$O89,1,aux!$AL$1))^(1/($O$3-INDEX($K$3:$O$3,1,aux!$AL$1)))-1,"n.d.") -> n.d. | AE89: =IF(INDEX($K89:$O89,1,aux!$AL$1)>0,(O89-INDEX($K89:$O89,1,aux!$AL$1))/INDEX($K89:$O89,1,aux!$AL$1),"n.d.") -> n.d. | AX89: 10
A90: 1003 | B90: Cevada | C90: 0 | D90: 0 | E90: 0 | F90: 0 | G90: 0 | H90: 0 | I90: 0 | J90: 0 | K90: 0 | L90: 0 | M90: 0 | N90: 0 | O90: 0 | P90: 0 | Q90: 0 | R90: 0 | S90: 0 | U90: =G90-INDEX($C90:$G90,1,aux!$AL$1) -> 0 | V90: 0 | W90: 0 | X90: =+IF(INDEX($C90:$G90,1,aux!$AL$1)>0,(G90/INDEX($C90:$G90,1,aux!$AL$1))^(1/($G$3-INDEX($C$3:$G$3,1,aux!$AL$1)))-1,"n.d.") -> n.d. | Y90: =IF(INDEX($C90:$G90,1,aux!$AL$1)>0,(G90-INDEX($C90:$G90,1,aux!$AL$1))/INDEX($C90:$G90,1,aux!$AL$1),"n.d.") -> n.d. | AA90: =O90-INDEX($K90:$O90,1,aux!$AL$1) -> 0 | AB90: 0 | AC90: 0 | AD90: =+IF(INDEX($K90:$O90,1,aux!$AL$1)>0,(O90/INDEX($K90:$O90,1,aux!$AL$1))^(1/($O$3-INDEX($K$3:$O$3,1,aux!$AL$1)))-1,"n.d.") -> n.d. | AE90: =IF(INDEX($K90:$O90,1,aux!$AL$1)>0,(O90-INDEX($K90:$O90,1,aux!$AL$1))/INDEX($K90:$O90,1,aux!$AL$1),"n.d.") -> n.d. | AX90: 10
A91: 1004 | B91: Aveia | C91: 0 | D91: 0 | E91: 0 | F91: 0 | G91: 0 | H91: 0 | I91: 0 | J91: 0 | K91: 0 | L91: 20.25 | M91: 10.983 | N91: 12.485 | O91: 0 | P91: 8.7436 | Q91: 0.0001756891414 | R91: 7.369757726e-05 | S91: 8.7436 | U91: =G91-INDEX($C91:$G91,1,aux!$AL$1) -> 0 | V91: 0 | W91: 0 | X91: =+IF(INDEX($C91:$G91,1,aux!$AL$1)>0,(G91/INDEX($C91:$G91,1,aux!$AL$1))^(1/($G$3-INDEX($C$3:$G$3,1,aux!$AL$1)))-1,"n.d.") -> n.d. | Y91: =IF(INDEX($C91:$G91,1,aux!$AL$1)>0,(G91-INDEX($C91:$G91,1,aux!$AL$1))/INDEX($C91:$G91,1,aux!$AL$1),"n.d.") -> n.d. | AA91: =O91-INDEX($K91:$O91,1,aux!$AL$1) -> 0 | AB91: 0 | AC91: 0 | AD91: =+IF(INDEX($K91:$O91,1,aux!$AL$1)>0,(O91/INDEX($K91:$O91,1,aux!$AL$1))^(1/($O$3-INDEX($K$3:$O$3,1,aux!$AL$1)))-1,"n.d.") -> n.d. | AE91: =IF(INDEX($K91:$O91,1,aux!$AL$1)>0,(O91-INDEX($K91:$O91,1,aux!$AL$1))/INDEX($K91:$O91,1,aux!$AL$1),"n.d.") -> n.d. | AX91: 10
A92: 1005 | B92: Milho | C92: 0 | D92: 0 | E92: 0 | F92: 0 | G92: 0 | H92: 0 | I92: 0 | J92: 0 | K92: 0 | L92: 0 | M92: 0 | N92: 0 | O92: 0 | P92: 0 | Q92: 0 | R92: 0 | S92: 0 | U92: =G92-INDEX($C92:$G92,1,aux!$AL$1) -> 0 | V92: 0 | W92: 0 | X92: =+IF(INDEX($C92:$G92,1,aux!$AL$1)>0,(G92/INDEX($C92:$G92,1,aux!$AL$1))^(1/($G$3-INDEX($C$3:$G$3,1,aux!$AL$1)))-1,"n.d.") -> n.d. | Y92: =IF(INDEX($C92:$G92,1,aux!$AL$1)>0,(G92-INDEX($C92:$G92,1,aux!$AL$1))/INDEX($C92:$G92,1,aux!$AL$1),"n.d.") -> n.d. | AA92: =O92-INDEX($K92:$O92,1,aux!$AL$1) -> 0 | AB92: 0 | AC92: 0 | AD92: =+IF(INDEX($K92:$O92,1,aux!$AL$1)>0,(O92/INDEX($K92:$O92,1,aux!$AL$1))^(1/($O$3-INDEX($K$3:$O$3,1,aux!$AL$1)))-1,"n.d.") -> n.d. | AE92: =IF(INDEX($K92:$O92,1,aux!$AL$1)>0,(O92-INDEX($K92:$O92,1,aux!$AL$1))/INDEX($K92:$O92,1,aux!$AL$1),"n.d.") -> n.d. | AX92: 10
A93: 1006 | B93: Arroz | C93: 0 | D93: 0 | E93: 0 | F93: 0 | G93: 0 | H93: 0 | I93: 0 | J93: 0 | K93: 0 | L93: 134.209 | M93: 563.99 | N93: 1730.817 | O93: 1557.426 | P93: 797.2884 | Q93: 0.01602027934 | R93: 0.006720140841 | S93: 797.2884 | U93: =G93-INDEX($C93:$G93,1,aux!$AL$1) -> 0 | V93: 0 | W93: 0 | X93: =+IF(INDEX($C93:$G93,1,aux!$AL$1)>0,(G93/INDEX($C93:$G93,1,aux!$AL$1))^(1/($G$3-INDEX($C$3:$G$3,1,aux!$AL$1)))-1,"n.d.") -> n.d. | Y93: =IF(INDEX($C93:$G93,1,aux!$AL$1)>0,(G93-INDEX($C93:$G93,1,aux!$AL$1))/INDEX($C93:$G93,1,aux!$AL$1),"n.d.") -> n.d. | AA93: =O93-INDEX($K93:$O93,1,aux!$AL$1) -> 1557.426 | AB93: 0.03312435956 | AC93: 0.03224271857 | AD93: =+IF(INDEX($K93:$O93,1,aux!$AL$1)>0,(O93/INDEX($K93:$O93,1,aux!$AL$1))^(1/($O$3-INDEX($K$3:$O$3,1,aux!$AL$1)))-1,"n.d.") -> n.d. | AE93: =IF(INDEX($K93:$O93,1,aux!$AL$1)>0,(O93-INDEX($K93:$O93,1,aux!$AL$1))/INDEX($K93:$O93,1,aux!$AL$1),"n.d.") -> n.d. | AX93: 10
A94: 1007 | B94: Sorgo de grão | C94: 0 | D94: 0 | E94: 0 | F94: 0 | G94: 0 | H94: 0 | I94: 0 | J94: 0 | K94: 0 | L94: 0 | M94: 0 | N94: 0 | O94: 0 | P94: 0 | Q94: 0 | R94: 0 | S94: 0 | U94: =G94-INDEX($C94:$G94,1,aux!$AL$1) -> 0 | V94: 0 | W94: 0 | X94: =+IF(INDEX($C94:$G94,1,aux!$AL$1)>0,(G94/INDEX($C94:$G94,1,aux!$AL$1))^(1/($G$3-INDEX($C$3:$G$3,1,aux!$AL$1)))-1,"n.d.") -> n.d. | Y94: =IF(INDEX($C94:$G94,1,aux!$AL$1)>0,(G94-INDEX($C94:$G94,1,aux!$AL$1))/INDEX($C94:$G94,1,aux!$AL$1),"n.d.") -> n.d. | AA94: =O94-INDEX($K94:$O94,1,aux!$AL$1) -> 0 | AB94: 0 | AC94: 0 | AD94: =+IF(INDEX($K94:$O94,1,aux!$AL$1)>0,(O94/INDEX($K94:$O94,1,aux!$AL$1))^(1/($O$3-INDEX($K$3:$O$3,1,aux!$AL$1)))-1,"n.d.") -> n.d. | AE94: =IF(INDEX($K94:$O94,1,aux!$AL$1)>0,(O94-INDEX($K94:$O94,1,aux!$AL$1))/INDEX($K94:$O94,1,aux!$AL$1),"n.d.") -> n.d. | AX94: 10
A95: 1008 | B95: Trigo mourisco, painço e outros cereais | C95: 0 | D95: 0 | E95: 0 | F95: 0 | G95: 0 | H95: 0 | I95: 0 | J95: 0 | K95: 0.366 | L95: 1.208 | M95: 3.284 | N95: 30.145 | O95: 0 | P95: 7.0006 | Q95: 0.0001406662477 | R95: 5.900627423e-05 | S95: 7.0006 | U95: =G95-INDEX($C95:$G95,1,aux!$AL$1) -> 0 | V95: 0 | W95: 0 | X95: =+IF(INDEX($C95:$G95,1,aux!$AL$1)>0,(G95/INDEX($C95:$G95,1,aux!$AL$1))^(1/($G$3-INDEX($C$3:$G$3,1,aux!$AL$1)))-1,"n.d.") -> n.d. | Y95: =IF(INDEX($C95:$G95,1,aux!$AL$1)>0,(G95-INDEX($C95:$G95,1,aux!$AL$1))/INDEX($C95:$G95,1,aux!$AL$1),"n.d.") -> n.d. | AA95: =O95-INDEX($K95:$O95,1,aux!$AL$1) -> -0.366 | AB95: -7.784328501e-06 | AC95: -7.5771401e-06 | AD95: =+IF(INDEX($K95:$O95,1,aux!$AL$1)>0,(O95/INDEX($K95:$O95,1,aux!$AL$1))^(1/($O$3-INDEX($K$3:$O$3,1,aux!$AL$1)))-1,"n.d.") -> -1 | AE95: =IF(INDEX($K95:$O95,1,aux!$AL$1)>0,(O95-INDEX($K95:$O95,1,aux!$AL$1))/INDEX($K95:$O95,1,aux!$AL$1),"n.d.") -> -1 | AX95: 10
A96: 10SS | B96: Cereais | C96: 0 | D96: 0 | E96: 0 | F96: 0 | G96: 0 | H96: 0 | I96: 0 | J96: 0 | K96: 0 | L96: 0 | M96: 0 | N96: 0 | O96: 0 | P96: 0 | Q96: 0 | R96: 0 | S96: 0 | U96: =G96-INDEX($C96:$G96,1,aux!$AL$1) -> 0 | V96: 0 | W96: 0 | X96: =+IF(INDEX($C96:$G96,1,aux!$AL$1)>0,(G96/INDEX($C96:$G96,1,aux!$AL$1))^(1/($G$3-INDEX($C$3:$G$3,1,aux!$AL$1)))-1,"n.d.") -> n.d. | Y96: =IF(INDEX($C96:$G96,1,aux!$AL$1)>0,(G96-INDEX($C96:$G96,1,aux!$AL$1))/INDEX($C96:$G96,1,aux!$AL$1),"n.d.") -> n.d. | AA96: =O96-INDEX($K96:$O96,1,aux!$AL$1) -> 0 | AB96: 0 | AC96: 0 | AD96: =+IF(INDEX($K96:$O96,1,aux!$AL$1)>0,(O96/INDEX($K96:$O96,1,aux!$AL$1))^(1/($O$3-INDEX($K$3:$O$3,1,aux!$AL$1)))-1,"n.d.") -> n.d. | AE96: =IF(INDEX($K96:$O96,1,aux!$AL$1)>0,(O96-INDEX($K96:$O96,1,aux!$AL$1))/INDEX($K96:$O96,1,aux!$AL$1),"n.d.") -> n.d. | AX96: 10
A97: 1101 | B97: Farinhas de trigo ou trigo/centeio | C97: 0 | D97: 0 | E97: 0.039 | F97: 0 | G97: 0 | H97: 0.0078 | I97: 6.888306099e-07 | J97: 1.821565012e-07 | K97: 0.043 | L97: 0.042 | M97: 0 | N97: 0 | O97: 0 | P97: 0.017 | Q97: 3.415887511e-07 | R97: 1.432886698e-07 | S97: 0.0092 | U97: =G97-INDEX($C97:$G97,1,aux!$AL$1) -> 0 | V97: 0 | W97: 0 | X97: =+IF(INDEX($C97:$G97,1,aux!$AL$1)>0,(G97/INDEX($C97:$G97,1,aux!$AL$1))^(1/($G$3-INDEX($C$3:$G$3,1,aux!$AL$1)))-1,"n.d.") -> n.d. | Y97: =IF(INDEX($C97:$G97,1,aux!$AL$1)>0,(G97-INDEX($C97:$G97,1,aux!$AL$1))/INDEX($C97:$G97,1,aux!$AL$1),"n.d.") -> n.d. | AA97: =O97-INDEX($K97:$O97,1,aux!$AL$1) -> -0.043 | AB97: -9.145522555e-07 | AC97: -8.902104489e-07 | AD97: =+IF(INDEX($K97:$O97,1,aux!$AL$1)>0,(O97/INDEX($K97:$O97,1,aux!$AL$1))^(1/($O$3-INDEX($K$3:$O$3,1,aux!$AL$1)))-1,"n.d.") -> -1 | AE97: =IF(INDEX($K97:$O97,1,aux!$AL$1)>0,(O97-INDEX($K97:$O97,1,aux!$AL$1))/INDEX($K97:$O97,1,aux!$AL$1),"n.d.") -> -1 | AX97: 11
A98: 1102 | B98: Outras farinhas de cereais | C98: 0 | D98: 0 | E98: 0.014 | F98: 0 | G98: 0 | H98: 0.0028 | I98: 2.472725266e-07 | J98: 6.538951326e-08 | K98: 0.001 | L98: 10.632 | M98: 0.756 | N98: 2.431 | O98: 6.111 | P98: 3.9862 | Q98: 8.009653411e-05 | R98: 3.359866445e-05 | S98: 3.9834 | U98: =G98-INDEX($C98:$G98,1,aux!$AL$1) -> 0 | V98: 0 | W98: 0 | X98: =+IF(INDEX($C98:$G98,1,aux!$AL$1)>0,(G98/INDEX($C98:$G98,1,aux!$AL$1))^(1/($G$3-INDEX($C$3:$G$3,1,aux!$AL$1)))-1,"n.d.") -> n.d. | Y98: =IF(INDEX($C98:$G98,1,aux!$AL$1)>0,(G98-INDEX($C98:$G98,1,aux!$AL$1))/INDEX($C98:$G98,1,aux!$AL$1),"n.d.") -> n.d. | AA98: =O98-INDEX($K98:$O98,1,aux!$AL$1) -> 6.11 | AB98: 0.0001299514949 | AC98: 0.000126492694 | AD98: =+IF(INDEX($K98:$O98,1,aux!$AL$1)>0,(O98/INDEX($K98:$O98,1,aux!$AL$1))^(1/($O$3-INDEX($K$3:$O$3,1,aux!$AL$1)))-1,"n.d.") -> 7.841543153 | AE98: =IF(INDEX($K98:$O98,1,aux!$AL$1)>0,(O98-INDEX($K98:$O98,1,aux!$AL$1))/INDEX($K98:$O98,1,aux!$AL$1),"n.d.") -> 6110 | AX98: 11
A99: 1103 | B99: Grumos, sêmolas, etc. de cereais | C99: 0 | D99: 0 | E99: 0 | F99: 0 | G99: 0 | H99: 0 | I99: 0 | J99: 0 | K99: 6.579 | L99: 0 | M99: 1.193 | N99: 0.823 | O99: 0.166 | P99: 1.7522 | Q99: 3.520775351e-05 | R99: 1.476884748e-05 | S99: 1.7522 | U99: =G99-INDEX($C99:$G99,1,aux!$AL$1) -> 0 | V99: 0 | W99: 0 | X99: =+IF(INDEX($C99:$G99,1,aux!$AL$1)>0,(G99/INDEX($C99:$G99,1,aux!$AL$1))^(1/($G$3-INDEX($C$3:$G$3,1,aux!$AL$1)))-1,"n.d.") -> n.d. | Y99: =IF(INDEX($C99:$G99,1,aux!$AL$1)>0,(G99-INDEX($C99:$G99,1,aux!$AL$1))/INDEX($C99:$G99,1,aux!$AL$1),"n.d.") -> n.d. | AA99: =O99-INDEX($K99:$O99,1,aux!$AL$1) -> -6.413 | AB99: -0.000136395898 | AC99: -0.0001327655723 | AD99: =+IF(INDEX($K99:$O99,1,aux!$AL$1)>0,(O99/INDEX($K99:$O99,1,aux!$AL$1))^(1/($O$3-INDEX($K$3:$O$3,1,aux!$AL$1)))-1,"n.d.") -> -0.6014461118 | AE99: =IF(INDEX($K99:$O99,1,aux!$AL$1)>0,(O99-INDEX($K99:$O99,1,aux!$AL$1))/INDEX($K99:$O99,1,aux!$AL$1),"n.d.") -> -0.9747682019 | AX99: 11
A100: 1104 | B100: Grãos de cereais processados | C100: 0 | D100: 10.158 | E100: 0 | F100: 0 | G100: 0 | H100: 2.0316 | I100: 0.0001794138804 | J100: 4.744476255e-05 | K100: 8.942 | L100: 22.992 | M100: 35.931 | N100: 65.597 | O100: 51.711 | P100: 37.0346 | Q100: 0.0007441531037 | R100: 0.0003121552101 | S100: 35.003 | U100: =G100-INDEX($C100:$G100,1,aux!$AL$1) -> 0 | V100: 0 | W100: 0 | X100: =+IF(INDEX($C100:$G100,1,aux!$AL$1)>0,(G100/INDEX($C100:$G100,1,aux!$AL$1))^(1/($G$3-INDEX($C$3:$G$3,1,aux!$AL$1)))-1,"n.d.") -> n.d. | Y100: =IF(INDEX($C100:$G100,1,aux!$AL$1)>0,(G100-INDEX($C100:$G100,1,aux!$AL$1))/INDEX($C100:$G100,1,aux!$AL$1),"n.d.") -> n.d. | AA100: =O100-INDEX($K100:$O100,1,aux!$AL$1) -> 42.769 | AB100: 0.0009096391957 | AC100: 0.0008854281555 | AD100: =+IF(INDEX($K100:$O100,1,aux!$AL$1)>0,(O100/INDEX($K100:$O100,1,aux!$AL$1))^(1/($O$3-INDEX($K$3:$O$3,1,aux!$AL$1)))-1,"n.d.") -> 0.5507331386 | AE100: =IF(INDEX($K100:$O100,1,aux!$AL$1)>0,(O100-INDEX($K100:$O100,1,aux!$AL$1))/INDEX($K100:$O100,1,aux!$AL$1),"n.d.") -> 4.782934467 | AX100: 11
A101: 1105 | B101: Farinha, sêmola, etc. de batata | C101: 0 | D101: 44.95 | E101: 0 | F101: 0 | G101: 0 | H101: 8.99 | I101: 0.0007939214337 | J101: 0.0002099470443 | K101: 0 | L101: 0 | M101: 0 | N101: 0 | O101: 0 | P101: 0 | Q101: 0 | R101: 0 | S101: -8.99 | U101: =G101-INDEX($C101:$G101,1,aux!$AL$1) -> 0 | V101: 0 | W101: 0 | X101: =+IF(INDEX($C101:$G101,1,aux!$AL$1)>0,(G101/INDEX($C101:$G101,1,aux!$AL$1))^(1/($G$3-INDEX($C$3:$G$3,1,aux!$AL$1)))-1,"n.d.") -> n.d. | Y101: =IF(INDEX($C101:$G101,1,aux!$AL$1)>0,(G101-INDEX($C101:$G101,1,aux!$AL$1))/INDEX($C101:$G101,1,aux!$AL$1),"n.d.") -> n.d. | AA101: =O101-INDEX($K101:$O101,1,aux!$AL$1) -> 0 | AB101: 0 | AC101: 0 | AD101: =+IF(INDEX($K101:$O101,1,aux!$AL$1)>0,(O101/INDEX($K101:$O101,1,aux!$AL$1))^(1/($O$3-INDEX($K$3:$O$3,1,aux!$AL$1)))-1,"n.d.") -> n.d. | AE101: =IF(INDEX($K101:$O101,1,aux!$AL$1)>0,(O101-INDEX($K101:$O101,1,aux!$AL$1))/INDEX($K101:$O101,1,aux!$AL$1),"n.d.") -> n.d. | AX101: 11
A102: 1106 | B102: Farinhas, etc. de leguminosas e outros tubérculos | C102: 0 | D102: 0 | E102: 0 | F102: 0 | G102: 0.048 | H102: 0.0096 | I102: 8.477915199e-07 | J102: 2.241926169e-07 | K102: 0 | L102: 0 | M102: 0 | N102: 0.009 | O102: 0 | P102: 0.0018 | Q102: 3.616822071e-08 | R102: 1.517174151e-08 | S102: -0.0078 | U102: =G102-INDEX($C102:$G102,1,aux!$AL$1) -> 0.048 | V102: 3.823807247e-06 | W102: 2.29604353e-06 | X102: =+IF(INDEX($C102:$G102,1,aux!$AL$1)>0,(G102/INDEX($C102:$G102,1,aux!$AL$1))^(1/($G$3-INDEX($C$3:$G$3,1,aux!$AL$1)))-1,"n.d.") -> n.d. | Y102: =IF(INDEX($C102:$G102,1,aux!$AL$1)>0,(G102-INDEX($C102:$G102,1,aux!$AL$1))/INDEX($C102:$G102,1,aux!$AL$1),"n.d.") -> n.d. | AA102: =O102-INDEX($K102:$O102,1,aux!$AL$1) -> 0 | AB102: 0 | AC102: 0 | AD102: =+IF(INDEX($K102:$O102,1,aux!$AL$1)>0,(O102/INDEX($K102:$O102,1,aux!$AL$1))^(1/($O$3-INDEX($K$3:$O$3,1,aux!$AL$1)))-1,"n.d.") -> n.d. | AE102: =IF(INDEX($K102:$O102,1,aux!$AL$1)>0,(O102-INDEX($K102:$O102,1,aux!$AL$1))/INDEX($K102:$O102,1,aux!$AL$1),"n.d.") -> n.d. | AX102: 11
A103: 1107 | B103: Malte, mesmo torrado | C103: 0 | D103: 0 | E103: 0 | F103: 0 | G103: 0 | H103: 0 | I103: 0 | J103: 0 | K103: 0 | L103: 0 | M103: 0 | N103: 0 | O103: 0 | P103: 0 | Q103: 0 | R103: 0 | S103: 0 | U103: =G103-INDEX($C103:$G103,1,aux!$AL$1) -> 0 | V103: 0 | W103: 0 | X103: =+IF(INDEX($C103:$G103,1,aux!$AL$1)>0,(G103/INDEX($C103:$G103,1,aux!$AL$1))^(1/($G$3-INDEX($C$3:$G$3,1,aux!$AL$1)))-1,"n.d.") -> n.d. | Y103: =IF(INDEX($C103:$G103,1,aux!$AL$1)>0,(G103-INDEX($C103:$G103,1,aux!$AL$1))/INDEX($C103:$G103,1,aux!$AL$1),"n.d.") -> n.d. | AA103: =O103-INDEX($K103:$O103,1,aux!$AL$1) -> 0 | AB103: 0 | AC103: 0 | AD103: =+IF(INDEX($K103:$O103,1,aux!$AL$1)>0,(O103/INDEX($K103:$O103,1,aux!$AL$1))^(1/($O$3-INDEX($K$3:$O$3,1,aux!$AL$1)))-1,"n.d.") -> n.d. | AE103: =IF(INDEX($K103:$O103,1,aux!$AL$1)>0,(O103-INDEX($K103:$O103,1,aux!$AL$1))/INDEX($K103:$O103,1,aux!$AL$1),"n.d.") -> n.d. | AX103: 11
A104: 1108 | B104: Amidos e féculas; inulina | C104: 0 | D104: 0 | E104: 0 | F104: 0.142 | G104: 0 | H104: 0.0284 | I104: 2.508049913e-06 | J104: 6.632364916e-07 | K104: 196.019 | L104: 16.116 | M104: 50.934 | N104: 9.612 | O104: 1.16 | P104: 54.7682 | Q104: 0.001100482414 | R104: 0.0004616272074 | S104: 54.7398 | U104: =G104-INDEX($C104:$G104,1,aux!$AL$1) -> 0 | V104: 0 | W104: 0 | X104: =+IF(INDEX($C104:$G104,1,aux!$AL$1)>0,(G104/INDEX($C104:$G104,1,aux!$AL$1))^(1/($G$3-INDEX($C$3:$G$3,1,aux!$AL$1)))-1,"n.d.") -> n.d. | Y104: =IF(INDEX($C104:$G104,1,aux!$AL$1)>0,(G104-INDEX($C104:$G104,1,aux!$AL$1))/INDEX($C104:$G104,1,aux!$AL$1),"n.d.") -> n.d. | AA104: =O104-INDEX($K104:$O104,1,aux!$AL$1) -> -194.859 | AB104: -0.004144389255 | AC104: -0.004034081811 | AD104: =+IF(INDEX($K104:$O104,1,aux!$AL$1)>0,(O104/INDEX($K104:$O104,1,aux!$AL$1))^(1/($O$3-INDEX($K$3:$O$3,1,aux!$AL$1)))-1,"n.d.") -> -0.7226424739 | AE104: =IF(INDEX($K104:$O104,1,aux!$AL$1)>0,(O104-INDEX($K104:$O104,1,aux!$AL$1))/INDEX($K104:$O104,1,aux!$AL$1),"n.d.") -> -0.9940822063 | AX104: 11
A105: 1109 | B105: Glúten de trigo, mesmo seco | C105: 0 | D105: 0 | E105: 0 | F105: 0 | G105: 0 | H105: 0 | I105: 0 | J105: 0 | K105: 0 | L105: 0 | M105: 0 | N105: 0 | O105: 0 | P105: 0 | Q105: 0 | R105: 0 | S105: 0 | U105: =G105-INDEX($C105:$G105,1,aux!$AL$1) -> 0 | V105: 0 | W105: 0 | X105: =+IF(INDEX($C105:$G105,1,aux!$AL$1)>0,(G105/INDEX($C105:$G105,1,aux!$AL$1))^(1/($G$3-INDEX($C$3:$G$3,1,aux!$AL$1)))-1,"n.d.") -> n.d. | Y105: =IF(INDEX($C105:$G105,1,aux!$AL$1)>0,(G105-INDEX($C105:$G105,1,aux!$AL$1))/INDEX($C105:$G105,1,aux!$AL$1),"n.d.") -> n.d. | AA105: =O105-INDEX($K105:$O105,1,aux!$AL$1) -> 0 | AB105: 0 | AC105: 0 | AD105: =+IF(INDEX($K105:$O105,1,aux!$AL$1)>0,(O105/INDEX($K105:$O105,1,aux!$AL$1))^(1/($O$3-INDEX($K$3:$O$3,1,aux!$AL$1)))-1,"n.d.") -> n.d. | AE105: =IF(INDEX($K105:$O105,1,aux!$AL$1)>0,(O105-INDEX($K105:$O105,1,aux!$AL$1))/INDEX($K105:$O105,1,aux!$AL$1),"n.d.") -> n.d. | AX105: 11
A106: 11SS | B106: Produtos da indústria de moagem e outros | C106: 0 | D106: 0 | E106: 0 | F106: 0 | G106: 0 | H106: 0 | I106: 0 | J106: 0 | K106: 0 | L106: 0 | M106: 0 | N106: 0 | O106: 0 | P106: 0 | Q106: 0 | R106: 0 | S106: 0 | U106: =G106-INDEX($C106:$G106,1,aux!$AL$1) -> 0 | V106: 0 | W106: 0 | X106: =+IF(INDEX($C106:$G106,1,aux!$AL$1)>0,(G106/INDEX($C106:$G106,1,aux!$AL$1))^(1/($G$3-INDEX($C$3:$G$3,1,aux!$AL$1)))-1,"n.d.") -> n.d. | Y106: =IF(INDEX($C106:$G106,1,aux!$AL$1)>0,(G106-INDEX($C106:$G106,1,aux!$AL$1))/INDEX($C106:$G106,1,aux!$AL$1),"n.d.") -> n.d. | AA106: =O106-INDEX($K106:$O106,1,aux!$AL$1) -> 0 | AB106: 0 | AC106: 0 | AD106: =+IF(INDEX($K106:$O106,1,aux!$AL$1)>0,(O106/INDEX($K106:$O106,1,aux!$AL$1))^(1/($O$3-INDEX($K$3:$O$3,1,aux!$AL$1)))-1,"n.d.") -> n.d. | AE106: =IF(INDEX($K106:$O106,1,aux!$AL$1)>0,(O106-INDEX($K106:$O106,1,aux!$AL$1))/INDEX($K106:$O106,1,aux!$AL$1),"n.d.") -> n.d. | AX106: 11
A107: 1201 | B107: Soja, mesmo triturada | C107: 0 | D107: 0 | E107: 0 | F107: 0 | G107: 0 | H107: 0 | I107: 0 | J107: 0 | K107: 0 | L107: 0 | M107: 1.96 | N107: 0 | O107: 0 | P107: 0.392 | Q107: 7.876634732e-06 | R107: 3.304068151e-06 | S107: 0.392 | U107: =G107-INDEX($C107:$G107,1,aux!$AL$1) -> 0 | V107: 0 | W107: 0 | X107: =+IF(INDEX($C107:$G107,1,aux!$AL$1)>0,(G107/INDEX($C107:$G107,1,aux!$AL$1))^(1/($G$3-INDEX($C$3:$G$3,1,aux!$AL$1)))-1,"n.d.") -> n.d. | Y107: =IF(INDEX($C107:$G107,1,aux!$AL$1)>0,(G107-INDEX($C107:$G107,1,aux!$AL$1))/INDEX($C107:$G107,1,aux!$AL$1),"n.d.") -> n.d. | AA107: =O107-INDEX($K107:$O107,1,aux!$AL$1) -> 0 | AB107: 0 | AC107: 0 | AD107: =+IF(INDEX($K107:$O107,1,aux!$AL$1)>0,(O107/INDEX($K107:$O107,1,aux!$AL$1))^(1/($O$3-INDEX($K$3:$O$3,1,aux!$AL$1)))-1,"n.d.") -> n.d. | AE107: =IF(INDEX($K107:$O107,1,aux!$AL$1)>0,(O107-INDEX($K107:$O107,1,aux!$AL$1))/INDEX($K107:$O107,1,aux!$AL$1),"n.d.") -> n.d. | AX107: 12
A108: 1202 | B108: Amendoins não torrados | C108: 0 | D108: 0 | E108: 0 | F108: 0 | G108: 0 | H108: 0 | I108: 0 | J108: 0 | K108: 0 | L108: 0 | M108: 0 | N108: 0 | O108: 0 | P108: 0 | Q108: 0 | R108: 0 | S108: 0 | U108: =G108-INDEX($C108:$G108,1,aux!$AL$1) -> 0 | V108: 0 | W108: 0 | X108: =+IF(INDEX($C108:$G108,1,aux!$AL$1)>0,(G108/INDEX($C108:$G108,1,aux!$AL$1))^(1/($G$3-INDEX($C$3:$G$3,1,aux!$AL$1)))-1,"n.d.") -> n.d. | Y108: =IF(INDEX($C108:$G108,1,aux!$AL$1)>0,(G108-INDEX($C108:$G108,1,aux!$AL$1))/INDEX($C108:$G108,1,aux!$AL$1),"n.d.") -> n.d. | AA108: =O108-INDEX($K108:$O108,1,aux!$AL$1) -> 0 | AB108: 0 | AC108: 0 | AD108: =+IF(INDEX($K108:$O108,1,aux!$AL$1)>0,(O108/INDEX($K108:$O108,1,aux!$AL$1))^(1/($O$3-INDEX($K$3:$O$3,1,aux!$AL$1)))-1,"n.d.") -> n.d. | AE108: =IF(INDEX($K108:$O108,1,aux!$AL$1)>0,(O108-INDEX($K108:$O108,1,aux!$AL$1))/INDEX($K108:$O108,1,aux!$AL$1),"n.d.") -> n.d. | AX108: 12
A109: 1203 | B109: Copra | C109: 0 | D109: 0 | E109: 0 | F109: 0 | G109: 0 | H109: 0 | I109: 0 | J109: 0 | K109: 0 | L109: 0 | M109: 0 | N109: 0 | O109: 0 | P109: 0 | Q109: 0 | R109: 0 | S109: 0 | U109: =G109-INDEX($C109:$G109,1,aux!$AL$1) -> 0 | V109: 0 | W109: 0 | X109: =+IF(INDEX($C109:$G109,1,aux!$AL$1)>0,(G109/INDEX($C109:$G109,1,aux!$AL$1))^(1/($G$3-INDEX($C$3:$G$3,1,aux!$AL$1)))-1,"n.d.") -> n.d. | Y109: =IF(INDEX($C109:$G109,1,aux!$AL$1)>0,(G109-INDEX($C109:$G109,1,aux!$AL$1))/INDEX($C109:$G109,1,aux!$AL$1),"n.d.") -> n.d. | AA109: =O109-INDEX($K109:$O109,1,aux!$AL$1) -> 0 | AB109: 0 | AC109: 0 | AD109: =+IF(INDEX($K109:$O109,1,aux!$AL$1)>0,(O109/INDEX($K109:$O109,1,aux!$AL$1))^(1/($O$3-INDEX($K$3:$O$3,1,aux!$AL$1)))-1,"n.d.") -> n.d. | AE109: =IF(INDEX($K109:$O109,1,aux!$AL$1)>0,(O109-INDEX($K109:$O109,1,aux!$AL$1))/INDEX($K109:$O109,1,aux!$AL$1),"n.d.") -> n.d. | AX109: 12
A110: 1204 | B110: Sementes de linho (linhaça) | C110: 0 | D110: 0 | E110: 0 | F110: 0 | G110: 0 | H110: 0 | I110: 0 | J110: 0 | K110: 0 | L110: 0.038 | M110: 6.372 | N110: 10.73 | O110: 5.379 | P110: 4.5038 | Q110: 9.049690691e-05 | R110: 3.796138301e-05 | S110: 4.5038 | U110: =G110-INDEX($C110:$G110,1,aux!$AL$1) -> 0 | V110: 0 | W110: 0 | X110: =+IF(INDEX($C110:$G110,1,aux!$AL$1)>0,(G110/INDEX($C110:$G110,1,aux!$AL$1))^(1/($G$3-INDEX($C$3:$G$3,1,aux!$AL$1)))-1,"n.d.") -> n.d. | Y110: =IF(INDEX($C110:$G110,1,aux!$AL$1)>0,(G110-INDEX($C110:$G110,1,aux!$AL$1))/INDEX($C110:$G110,1,aux!$AL$1),"n.d.") -> n.d. | AA110: =O110-INDEX($K110:$O110,1,aux!$AL$1) -> 5.379 | AB110: 0.0001144041066 | AC110: 0.0001113591164 | AD110: =+IF(INDEX($K110:$O110,1,aux!$AL$1)>0,(O110/INDEX($K110:$O110,1,aux!$AL$1))^(1/($O$3-INDEX($K$3:$O$3,1,aux!$AL$1)))-1,"n.d.") -> n.d. | AE110: =IF(INDEX($K110:$O110,1,aux!$AL$1)>0,(O110-INDEX($K110:$O110,1,aux!$AL$1))/INDEX($K110:$O110,1,aux!$AL$1),"n.d.") -> n.d. | AX110: 12
A111: 1205 | B111: Sementes de nabo silvestre ou de colza | C111: 0 | D111: 0 | E111: 0 | F111: 0 | G111: 0 | H111: 0 | I111: 0 | J111: 0 | K111: 0 | L111: 0 | M111: 0 | N111: 0 | O111: 0 | P111: 0 | Q111: 0 | R111: 0 | S111: 0 | U111: =G111-INDEX($C111:$G111,1,aux!$AL$1) -> 0 | V111: 0 | W111: 0 | X111: =+IF(INDEX($C111:$G111,1,aux!$AL$1)>0,(G111/INDEX($C111:$G111,1,aux!$AL$1))^(1/($G$3-INDEX($C$3:$G$3,1,aux!$AL$1)))-1,"n.d.") -> n.d. | Y111: =IF(INDEX($C111:$G111,1,aux!$AL$1)>0,(G111-INDEX($C111:$G111,1,aux!$AL$1))/INDEX($C111:$G111,1,aux!$AL$1),"n.d.") -> n.d. | AA111: =O111-INDEX($K111:$O111,1,aux!$AL$1) -> 0 | AB111: 0 | AC111: 0 | AD111: =+IF(INDEX($K111:$O111,1,aux!$AL$1)>0,(O111/INDEX($K111:$O111,1,aux!$AL$1))^(1/($O$3-INDEX($K$3:$O$3,1,aux!$AL$1)))-1,"n.d.") -> n.d. | AE111: =IF(INDEX($K111:$O111,1,aux!$AL$1)>0,(O111-INDEX($K111:$O111,1,aux!$AL$1))/INDEX($K111:$O111,1,aux!$AL$1),"n.d.") -> n.d. | AX111: 12
A112: 1206 | B112: Sementes de girassol | C112: 0 | D112: 0 | E112: 0 | F112: 0 | G112: 0 | H112: 0 | I112: 0 | J112: 0 | K112: 0 | L112: 0 | M112: 0 | N112: 0 | O112: 0 | P112: 0 | Q112: 0 | R112: 0 | S112: 0 | U112: =G112-INDEX($C112:$G112,1,aux!$AL$1) -> 0 | V112: 0 | W112: 0 | X112: =+IF(INDEX($C112:$G112,1,aux!$AL$1)>0,(G112/INDEX($C112:$G112,1,aux!$AL$1))^(1/($G$3-INDEX($C$3:$G$3,1,aux!$AL$1)))-1,"n.d.") -> n.d. | Y112: =IF(INDEX($C112:$G112,1,aux!$AL$1)>0,(G112-INDEX($C112:$G112,1,aux!$AL$1))/INDEX($C112:$G112,1,aux!$AL$1),"n.d.") -> n.d. | AA112: =O112-INDEX($K112:$O112,1,aux!$AL$1) -> 0 | AB112: 0 | AC112: 0 | AD112: =+IF(INDEX($K112:$O112,1,aux!$AL$1)>0,(O112/INDEX($K112:$O112,1,aux!$AL$1))^(1/($O$3-INDEX($K$3:$O$3,1,aux!$AL$1)))-1,"n.d.") -> n.d. | AE112: =IF(INDEX($K112:$O112,1,aux!$AL$1)>0,(O112-INDEX($K112:$O112,1,aux!$AL$1))/INDEX($K112:$O112,1,aux!$AL$1),"n.d.") -> n.d. | AX112: 12
A113: 1207 | B113: Sementes e frutos oleaginosos | C113: 0 | D113: 0 | E113: 32.61 | F113: 0.025 | G113: 1.288 | H113: 6.7846 | I113: 0.0005991589943 | J113: 0.0001584434613 | K113: 0 | L113: 2.026 | M113: 30.351 | N113: 48.598 | O113: 35.057 | P113: 23.2064 | Q113: 0.0004662967761 | R113: 0.0001956008345 | S113: 16.4218 | U113: =G113-INDEX($C113:$G113,1,aux!$AL$1) -> 1.288 | V113: 0.0001026054945 | W113: 6.161050138e-05 | X113: =+IF(INDEX($C113:$G113,1,aux!$AL$1)>0,(G113/INDEX($C113:$G113,1,aux!$AL$1))^(1/($G$3-INDEX($C$3:$G$3,1,aux!$AL$1)))-1,"n.d.") -> n.d. | Y113: =IF(INDEX($C113:$G113,1,aux!$AL$1)>0,(G113-INDEX($C113:$G113,1,aux!$AL$1))/INDEX($C113:$G113,1,aux!$AL$1),"n.d.") -> n.d. | AA113: =O113-INDEX($K113:$O113,1,aux!$AL$1) -> 35.057 | AB113: 0.0007456153121 | AC113: 0.0007257699466 | AD113: =+IF(INDEX($K113:$O113,1,aux!$AL$1)>0,(O113/INDEX($K113:$O113,1,aux!$AL$1))^(1/($O$3-INDEX($K$3:$O$3,1,aux!$AL$1)))-1,"n.d.") -> n.d. | AE113: =IF(INDEX($K113:$O113,1,aux!$AL$1)>0,(O113-INDEX($K113:$O113,1,aux!$AL$1))/INDEX($K113:$O113,1,aux!$AL$1),"n.d.") -> n.d. | AX113: 12
A114: 1208 | B114: Farinhas de sementes oleaginosas | C114: 0 | D114: 0 | E114: 0 | F114: 0 | G114: 0 | H114: 0 | I114: 0 | J114: 0 | K114: 0 | L114: 0 | M114: 0 | N114: 0 | O114: 0 | P114: 0 | Q114: 0 | R114: 0 | S114: 0 | U114: =G114-INDEX($C114:$G114,1,aux!$AL$1) -> 0 | V114: 0 | W114: 0 | X114: =+IF(INDEX($C114:$G114,1,aux!$AL$1)>0,(G114/INDEX($C114:$G114,1,aux!$AL$1))^(1/($G$3-INDEX($C$3:$G$3,1,aux!$AL$1)))-1,"n.d.") -> n.d. | Y114: =IF(INDEX($C114:$G114,1,aux!$AL$1)>0,(G114-INDEX($C114:$G114,1,aux!$AL$1))/INDEX($C114:$G114,1,aux!$AL$1),"n.d.") -> n.d. | AA114: =O114-INDEX($K114:$O114,1,aux!$AL$1) -> 0 | AB114: 0 | AC114: 0 | AD114: =+IF(INDEX($K114:$O114,1,aux!$AL$1)>0,(O114/INDEX($K114:$O114,1,aux!$AL$1))^(1/($O$3-INDEX($K$3:$O$3,1,aux!$AL$1)))-1,"n.d.") -> n.d. | AE114: =IF(INDEX($K114:$O114,1,aux!$AL$1)>0,(O114-INDEX($K114:$O114,1,aux!$AL$1))/INDEX($K114:$O114,1,aux!$AL$1),"n.d.") -> n.d. | AX114: 12
A115: 1209 | B115: Sementes, frutos e esporos para sementeira | C115: 0 | D115: 0 | E115: 40.525 | F115: 0 | G115: 0.121 | H115: 8.1292 | I115: 0.0007179027941 | J115: 0.0001898444397 | K115: 0 | L115: 0 | M115: 15.314 | N115: 11.413 | O115: 19.786 | P115: 9.3026 | Q115: 0.0001869213833 | R115: 7.840924587e-05 | S115: 1.1734 | U115: =G115-INDEX($C115:$G115,1,aux!$AL$1) -> 0.121 | V115: 9.639180768e-06 | W115: 5.787943064e-06 | X115: =+IF(INDEX($C115:$G115,1,aux!$AL$1)>0,(G115/INDEX($C115:$G115,1,aux!$AL$1))^(1/($G$3-INDEX($C$3:$G$3,1,aux!$AL$1)))-1,"n.d.") -> n.d. | Y115: =IF(INDEX($C115:$G115,1,aux!$AL$1)>0,(G115-INDEX($C115:$G115,1,aux!$AL$1))/INDEX($C115:$G115,1,aux!$AL$1),"n.d.") -> n.d. | AA115: =O115-INDEX($K115:$O115,1,aux!$AL$1) -> 19.786 | AB115: 0.0004208216495 | AC115: 0.0004096210219 | AD115: =+IF(INDEX($K115:$O115,1,aux!$AL$1)>0,(O115/INDEX($K115:$O115,1,aux!$AL$1))^(1/($O$3-INDEX($K$3:$O$3,1,aux!$AL$1)))-1,"n.d.") -> n.d. | AE115: =IF(INDEX($K115:$O115,1,aux!$AL$1)>0,(O115-INDEX($K115:$O115,1,aux!$AL$1))/INDEX($K115:$O115,1,aux!$AL$1),"n.d.") -> n.d. | AX115: 12
A116: 1210 | B116: Cones de lúpulo, frescos ou secos | C116: 0 | D116: 0 | E116: 0 | F116: 0 | G116: 0 | H116: 0 | I116: 0 | J116: 0 | K116: 0 | L116: 0 | M116: 0 | N116: 0 | O116: 0 | P116: 0 | Q116: 0 | R116: 0 | S116: 0 | U116: =G116-INDEX($C116:$G116,1,aux!$AL$1) -> 0 | V116: 0 | W116: 0 | X116: =+IF(INDEX($C116:$G116,1,aux!$AL$1)>0,(G116/INDEX($C116:$G116,1,aux!$AL$1))^(1/($G$3-INDEX($C$3:$G$3,1,aux!$AL$1)))-1,"n.d.") -> n.d. | Y116: =IF(INDEX($C116:$G116,1,aux!$AL$1)>0,(G116-INDEX($C116:$G116,1,aux!$AL$1))/INDEX($C116:$G116,1,aux!$AL$1),"n.d.") -> n.d. | AA116: =O116-INDEX($K116:$O116,1,aux!$AL$1) -> 0 | AB116: 0 | AC116: 0 | AD116: =+IF(INDEX($K116:$O116,1,aux!$AL$1)>0,(O116/INDEX($K116:$O116,1,aux!$AL$1))^(1/($O$3-INDEX($K$3:$O$3,1,aux!$AL$1)))-1,"n.d.") -> n.d. | AE116: =IF(INDEX($K116:$O116,1,aux!$AL$1)>0,(O116-INDEX($K116:$O116,1,aux!$AL$1))/INDEX($K116:$O116,1,aux!$AL$1),"n.d.") -> n.d. | AX116: 12
A117: 1211 | B117: Plantas, partes de plantas para usos não alimentares | C117: 23.254 | D117: 78.792 | E117: 73.699 | F117: 187.655 | G117: 4.845 | H117: 73.649 | I117: 0.006504062255 | J117: 0.001719954379 | K117: 40.037 | L117: 31.458 | M117: 13.685 | N117: 56.208 | O117: 1.174 | P117: 28.5124 | Q117: 0.0005729126534 | R117: 0.000240323757 | S117: -45.1366 | U117: =G117-INDEX($C117:$G117,1,aux!$AL$1) -> -18.409 | V117: -0.001466509742 | W117: -0.0008805805278 | X117: =+IF(INDEX($C117:$G117,1,aux!$AL$1)>0,(G117/INDEX($C117:$G117,1,aux!$AL$1))^(1/($G$3-INDEX($C$3:$G$3,1,aux!$AL$1)))-1,"n.d.") -> -0.3243853965 | Y117: =IF(INDEX($C117:$G117,1,aux!$AL$1)>0,(G117-INDEX($C117:$G117,1,aux!$AL$1))/INDEX($C117:$G117,1,aux!$AL$1),"n.d.") -> -0.7916487486 | AA117: =O117-INDEX($K117:$O117,1,aux!$AL$1) -> -38.863 | AB117: -0.0008265638211 | AC117: -0.0008045639226 | AD117: =+IF(INDEX($K117:$O117,1,aux!$AL$1)>0,(O117/INDEX($K117:$O117,1,aux!$AL$1))^(1/($O$3-INDEX($K$3:$O$3,1,aux!$AL$1)))-1,"n.d.") -> -0.5861893704 | AE117: =IF(INDEX($K117:$O117,1,aux!$AL$1)>0,(O117-INDEX($K117:$O117,1,aux!$AL$1))/INDEX($K117:$O117,1,aux!$AL$1),"n.d.") -> -0.9706771237 | AX117: 12
A118: 1212 | B118: Alfarroba, algas, beterraba sacarina, etc. | C118: 0 | D118: 0 | E118: 0.03 | F118: 0.114 | G118: 0.029 | H118: 0.0346 | I118: 3.055581936e-06 | J118: 8.080275567e-07 | K118: 0 | L118: 0 | M118: 1.41 | N118: 16.171 | O118: 10.01 | P118: 5.5182 | Q118: 0.0001108797086 | R118: 4.651150222e-05 | S118: 5.4836 | U118: =G118-INDEX($C118:$G118,1,aux!$AL$1) -> 0.029 | V118: 2.310216878e-06 | W118: 1.387192966e-06 | X118: =+IF(INDEX($C118:$G118,1,aux!$AL$1)>0,(G118/INDEX($C118:$G118,1,aux!$AL$1))^(1/($G$3-INDEX($C$3:$G$3,1,aux!$AL$1)))-1,"n.d.") -> n.d. | Y118: =IF(INDEX($C118:$G118,1,aux!$AL$1)>0,(G118-INDEX($C118:$G118,1,aux!$AL$1))/INDEX($C118:$G118,1,aux!$AL$1),"n.d.") -> n.d. | AA118: =O118-INDEX($K118:$O118,1,aux!$AL$1) -> 10.01 | AB118: 0.0002128992576 | AC118: 0.0002072327115 | AD118: =+IF(INDEX($K118:$O118,1,aux!$AL$1)>0,(O118/INDEX($K118:$O118,1,aux!$AL$1))^(1/($O$3-INDEX($K$3:$O$3,1,aux!$AL$1)))-1,"n.d.") -> n.d. | AE118: =IF(INDEX($K118:$O118,1,aux!$AL$1)>0,(O118-INDEX($K118:$O118,1,aux!$AL$1))/INDEX($K118:$O118,1,aux!$AL$1),"n.d.") -> n.d. | AX118: 12
A119: 1213 | B119: Palhas e cascas de cereais | C119: 0 | D119: 0 | E119: 0 | F119: 0 | G119: 0 | H119: 0 | I119: 0 | J119: 0 | K119: 0 | L119: 0 | M119: 0 | N119: 0 | O119: 11.935 | P119: 2.387 | Q119: 4.796307935e-05 | R119: 2.011941499e-05 | S119: 2.387 | U119: =G119-INDEX($C119:$G119,1,aux!$AL$1) -> 0 | V119: 0 | W119: 0 | X119: =+IF(INDEX($C119:$G119,1,aux!$AL$1)>0,(G119/INDEX($C119:$G119,1,aux!$AL$1))^(1/($G$3-INDEX($C$3:$G$3,1,aux!$AL$1)))-1,"n.d.") -> n.d. | Y119: =IF(INDEX($C119:$G119,1,aux!$AL$1)>0,(G119-INDEX($C119:$G119,1,aux!$AL$1))/INDEX($C119:$G119,1,aux!$AL$1),"n.d.") -> n.d. | AA119: =O119-INDEX($K119:$O119,1,aux!$AL$1) -> 11.935 | AB119: 0.0002538414226 | AC119: 0.000247085156 | AD119: =+IF(INDEX($K119:$O119,1,aux!$AL$1)>0,(O119/INDEX($K119:$O119,1,aux!$AL$1))^(1/($O$3-INDEX($K$3:$O$3,1,aux!$AL$1)))-1,"n.d.") -> n.d. | AE119: =IF(INDEX($K119:$O119,1,aux!$AL$1)>0,(O119-INDEX($K119:$O119,1,aux!$AL$1))/INDEX($K119:$O119,1,aux!$AL$1),"n.d.") -> n.d. | AX119: 12
